Workbook

Sheet الربط
A1: البيانات الشخصية | E1: الربط
A2: الإسم | B2: السكني | C2: شتول الربط | D2: شتول خ. الربط | E2: الشهري
A3: =يوليو!A3 -> منزل المرحوم عبدالله محمد صالح (ودحجه) | B3: =يوليو!L3 -> 5000 | C3: 0 | D3: =يوليو!M3 -> 0 | E3: =SUM(B3:D3) -> 5000
A4: =يوليو!A4 -> مبارك عبدالله محمد صالح | B4: =يوليو!L4 -> 5000 | C4: 0 | D4: =يوليو!M4 -> 0 | E4: =SUM(B4:D4) -> 5000
A5: =يوليو!A5 -> خالد عبدالله محمد صالح | B5: =يوليو!L5 -> 5000 | C5: 0 | D5: =يوليو!M5 -> 0 | E5: 5000
A6: =يوليو!A6 -> الفاضل عبدالله محمد صالح | B6: =يوليو!L6 -> 0 | C6: 0 | D6: =يوليو!M6 -> 0 | E6: 0
A7: =يوليو!A7 -> بكري عبدالرحمن ود صالح | B7: =يوليو!L7 -> 5000 | C7: 0 | D7: =يوليو!M7 -> 0 | E7: 5000
A8: =يوليو!A8 -> جمال عبدالرحمن ود صالح | B8: =يوليو!L8 -> 5000 | C8: 0 | D8: =يوليو!M8 -> 0 | E8: 5000
A9: =يوليو!A9 -> صلاح عبدالرحمن ود صالح | B9: =يوليو!L9 -> 5000 | C9: 0 | D9: =يوليو!M9 -> 0 | E9: 5000
A10: =يوليو!A10 -> عبدالحي عبدالرحمن ودصالح | B10: =يوليو!L10 -> 5000 | C10: 0 | D10: =يوليو!M10 -> 0 | E10: 5000
A11: =يوليو!A11 -> فضل عبدالرحمن ودصالح | B11: =يوليو!L11 -> 5000 | C11: 0 | D11: =يوليو!M11 -> 4500 | E11: 9500
A12: =يوليو!A12 -> منزل المرحوم الزين ود صالح (العاقب) | B12: =يوليو!L12 -> 5000 | C12: 0 | D12: =يوليو!M12 -> 0 | E12: 5000
A13: =يوليو!A13 -> مهدي الزين | B13: =يوليو!L13 -> 5000 | C13: 0 | D13: =يوليو!M13 -> 0 | E13: 5000
A14: =يوليو!A14 -> محمد السيد | B14: =يوليو!L14 -> 5000 | C14: 0 | D14: =يوليو!M14 -> 0 | E14: 5000
A15: =يوليو!A15 -> هشام محمد السيد | B15: =يوليو!L15 -> 5000 | C15: 0 | D15: =يوليو!M15 -> 7500 | E15: 12500
A16: =يوليو!A16 -> عصام محمد السيد (أ) | B16: =يوليو!L16 -> 5000 | C16: 0 | D16: =يوليو!M16 -> 0 | E16: 5000
A17: =يوليو!A17 -> عبدالله الأنصاري | B17: =يوليو!L17 -> 0 | C17: 0 | D17: =يوليو!M17 -> 0 | E17: 0
A18: =يوليو!A18 -> عماد محمد سعيد | B18: =يوليو!L18 -> 5000 | C18: 0 | D18: =يوليو!M18 -> 0 | E18: 5000
A19: =يوليو!A19 -> ماهر محمد صالح | B19: =يوليو!L19 -> 0 | C19: 0 | D19: =يوليو!M19 -> 0 | E19: 0
A20: =يوليو!A20 -> منزل المرحوم محمد عبدالله فيك الخير (صالح جرمور) | B20: =يوليو!L20 -> 0 | C20: 0 | D20: =يوليو!M20 -> 0 | E20: 0
A21: =يوليو!A21 -> ناصر إدريس السيد (عماد إبراهيم السيد) | B21: =يوليو!L21 -> 5000 | C21: 0 | D21: =يوليو!M21 -> 0 | E21: 5000
A22: =يوليو!A22 -> محمدعلي الفقير | B22: =يوليو!L22 -> 5000 | C22: 0 | D22: =يوليو!M22 -> 0 | E22: 5000
A23: =يوليو!A23 -> محمد محمدعلي الفقير | B23: =يوليو!L23 -> 5000 | C23: 0 | D23: =يوليو!M23 -> 0 | E23: 5000
A24: =يوليو!A25 -> عبدالله محمد حمد (أ) | B24: =يوليو!L25 -> 5000 | C24: 0 | D24: =يوليو!M25 -> 0 | E24: =SUM(B24:D24) -> 5000
A25: =يوليو!A26 -> عبدالله محمد حمد (ب) | B25: =يوليو!L26 -> 5000 | C25: 0 | D25: =يوليو!M26 -> 0 | E25: =SUM(B25:D25) -> 5000
A26: =يوليو!A29 -> الباقر عبدالله أنصار | B26: =يوليو!L29 -> 5000 | C26: 0 | D26: =يوليو!M29 -> 0 | E26: 5000
A27: =يوليو!A30 -> خالد أحمد صالح ودصالح | B27: =يوليو!L30 -> 0 | C27: 0 | D27: =يوليو!M30 -> 0 | E27: =SUM(B27:D27) -> 0
A28: =يوليو!A31 -> عبدالله صالح حامنتود | B28: =يوليو!L31 -> 0 | C28: 0 | D28: =يوليو!M31 -> 0 | E28: 0
A29: الإجمالي | B29: =SUM(B3:B28) -> 100000 | C29: =SUM(C3:C28) -> 0 | D29: =SUM(D3:D28) -> 12000 | E29: =SUM(E3:E28) -> 112000

Sheet الغلاف
Q13: =الملخص!P17 -> 533100
N14: إجمالي التوريدات

Sheet الملخص
A1: تفاصيل الإيرادات الشهرية للمتحصل / سرالختم عوض الله النور للعام المالي 2025/ 2026م
A2: 2026/2025 | B2: إيرادات داخل الربط الشهري | K2: إيرادات خارج الربط الشهري (الشهر الحالي فقط) | P2: إجمالي الإيراد الشهري (الحالي + متأخرات الشهر السابق)
B3: الإستحقاق الشهري المطلوب سداده في نهاية الشهر (الربط + متأخرات الشهر السابق ، إن وُجِد) | E3: السداد (متأخرات الشهر السابق + الحالي) | H3: متأخرات الربط الشهري (الشهر الحالي + الشهر السابق) | K3: توصيل | L3: مباني | M3: غرامات | N3: أخرى | O3: الإجمالي
B4: السكني | C4: الشتول | D4: الإجمالي | E4: السكني | F4: الشتول | G4: الإجمالي | H4: السكني | I4: الشتول | J4: الإجمالي
A5: أغسطس 2025م | B5: =أغسطس!O$73 -> 28000 | C5: =أغسطس!P$73 -> 1700 | D5: =SUM(B5:C5) -> 29700 | E5: =أغسطس!V$73 -> 27000 | F5: =أغسطس!W$73 -> 100 | G5: =SUM(E5:F5) -> 27100 | H5: =B5-E5 -> 1000 | I5: =C5-F5 -> 1600 | J5: =SUM(H5:I5) -> 2600 | K5: =أغسطس!X$73 -> 0 | L5: =أغسطس!Y$73 -> 0 | M5: =أغسطس!Z$73 -> 0 | N5: =أغسطس!AA$73 -> 0 | O5: =SUM(K5:N5) -> 0 | P5: =G5+O5 -> 27100
A6: سبتمبر 2025م | B6: =سبتمبر!O$73 -> 121000 | C6: =سبتمبر!P$73 -> 37600 | D6: =SUM(B6:C6) -> 158600 | E6: =سبتمبر!V$73 -> 116000 | F6: =سبتمبر!W$73 -> 38000 | G6: =SUM(E6:F6) -> 154000 | H6: =B6-E6 -> 5000 | I6: =C6-F6 -> -400 | J6: =SUM(H6:I6) -> 4600 | K6: =سبتمبر!X$73 -> 0 | L6: =سبتمبر!Y$73 -> 0 | M6: =سبتمبر!Z$73 -> 0 | N6: =سبتمبر!AA$73 -> 0 | O6: =SUM(K6:N6) -> 0 | P6: =G6+O6 -> 154000
A7: أكتوبر 2025م | B7: =أكتوبر!O$73 -> 125000 | C7: =أكتوبر!P$73 -> 35600 | D7: 160600 | E7: =أكتوبر!V$73 -> 115000 | F7: =أكتوبر!W$73 -> 39000 | G7: 154000 | H7: 10000 | I7: -3400 | J7: 6600 | K7: =أكتوبر!X$73 -> 0 | L7: =أكتوبر!Y$73 -> 0 | M7: =أكتوبر!Z$73 -> 0 | N7: =أكتوبر!AA$73 -> 0 | O7: 0 | P7: 154000
A8: نوفمبر 2025م | B8: =نوفمبر!O$73 -> 130000 | C8: =نوفمبر!P$73 -> 32600 | D8: 162600 | E8: =نوفمبر!V$73 -> 60000 | F8: =نوفمبر!W$73 -> 12000 | G8: 72000 | H8: 70000 | I8: 20600 | J8: 90600 | K8: =نوفمبر!X$73 -> 0 | L8: =نوفمبر!Y$73 -> 0 | M8: =نوفمبر!Z$73 -> 0 | N8: =نوفمبر!AA$73 -> 0 | O8: 0 | P8: 72000
A9: ديسمبر 2025م | B9: =ديسمبر!O$73 -> 190000 | C9: =ديسمبر!P$73 -> 56600 | D9: 246600 | E9: =ديسمبر!V$73 -> 114000 | F9: =ديسمبر!W$73 -> 12000 | G9: 126000 | H9: 76000 | I9: 44600 | J9: 120600 | K9: =ديسمبر!X$73 -> 0 | L9: =ديسمبر!Y$73 -> 0 | M9: =ديسمبر!Z$73 -> 0 | N9: =ديسمبر!AA$73 -> 0 | O9: 0 | P9: 126000
A10: يناير 2026م | B10: =يناير!O$73 -> 196000 | C10: =يناير!P$73 -> 80600 | D10: 276600 | E10: =يناير!V$73 -> 0 | F10: =يناير!W$73 -> 0 | G10: 0 | H10: 196000 | I10: 80600 | J10: 276600 | K10: =يناير!X$73 -> 0 | L10: =يناير!Y$73 -> 0 | M10: =يناير!Z$73 -> 0 | N10: =يناير!AA$73 -> 0 | O10: 0 | P10: 0
A11: فبراير 2026م | B11: =فبراير!O$73 -> 316000 | C11: =فبراير!P$73 -> 116600 | D11: 432600 | E11: =فبراير!V$73 -> 0 | F11: =فبراير!W$73 -> 0 | G11: 0 | H11: 316000 | I11: 116600 | J11: 432600 | K11: =فبراير!X$73 -> 0 | L11: =فبراير!Y$73 -> 0 | M11: =فبراير!Z$73 -> 0 | N11: =فبراير!AA$73 -> 0 | O11: 0 | P11: 0
A12: مارس 2026م | B12: =مارس!O$73 -> 436000 | C12: =مارس!P$73 -> 152600 | D12: 588600 | E12: =مارس!V$73 -> 0 | F12: =مارس!W$73 -> 0 | G12: 0 | H12: 436000 | I12: 152600 | J12: 588600 | K12: =مارس!X$73 -> 0 | L12: =مارس!Y$73 -> 0 | M12: =مارس!Z$73 -> 0 | N12: =مارس!AA$73 -> 0 | O12: 0 | P12: 0
A13: أبريل 2026م | B13: =أبريل!O$73 -> 556000 | C13: =أبريل!P$73 -> 188600 | D13: 744600 | E13: =أبريل!V$73 -> 0 | F13: =أبريل!W$73 -> 0 | G13: 0 | H13: 556000 | I13: 188600 | J13: 744600 | K13: =أبريل!X$73 -> 0 | L13: =أبريل!Y$73 -> 0 | M13: =أبريل!Z$73 -> 0 | N13: =أبريل!AA$73 -> 0 | O13: 0 | P13: 0
A14: مايو 2026م | B14: =مايو!O$73 -> 676000 | C14: =مايو!P$73 -> 224600 | D14: 900600 | E14: =مايو!V$73 -> 0 | F14: =مايو!W$73 -> 0 | G14: 0 | H14: 676000 | I14: 224600 | J14: 900600 | K14: =مايو!X$73 -> 0 | L14: =مايو!Y$73 -> 0 | M14: =مايو!Z$73 -> 0 | N14: =مايو!AA$73 -> 0 | O14: 0 | P14: 0
A15: يونيو 2026م | B15: =يونيو!O$73 -> 796000 | C15: =يونيو!P$73 -> 260600 | D15: 1056600 | E15: =يونيو!V$73 -> 0 | F15: =يونيو!W$73 -> 0 | G15: 0 | H15: 796000 | I15: 260600 | J15: 1056600 | K15: =يونيو!X$73 -> 0 | L15: =يونيو!Y$73 -> 0 | M15: =يونيو!Z$73 -> 0 | N15: =يونيو!AA$73 -> 0 | O15: 0 | P15: 0
A16: يوليو 2026م | B16: =يوليو!O$73 -> 916000 | C16: =يوليو!P$73 -> 296600 | D16: 1212600 | E16: =يوليو!V$73 -> 0 | F16: =يوليو!W$73 -> 0 | G16: 0 | H16: 916000 | I16: 296600 | J16: 1212600 | K16: =يوليو!X$73 -> 0 | L16: =يوليو!Y$73 -> 0 | M16: =يوليو!Z$73 -> 0 | N16: =يوليو!AA$73 -> 0 | O16: 0 | P16: 0
A17: الإجمالي | B17: =SUM(B5:B16) -> 4486000 | C17: 1484300 | D17: 5970300 | E17: 432000 | F17: 101100 | G17: 533100 | H17: 4054000 | I17: 1383200 | J17: 5437200 | K17: 0 | L17: 0 | M17: 0 | N17: 0 | O17: 0 | P17: 533100

Sheet أغسطس
A1: البيانات الشخصية | G1: الربط | H1: المتأخرات حتى نهاية يوليو 2025م | L1: جاري أغسطس 2025م | O1: المطلوب حتى نهاية أغسطس 2025م | S1: تفاصيل السداد خلال أغسطس 2025م | AC1: المتأخرات حتى نهاية أغسطس 2025م | AH1: موقف السداد | AI1: ملاحظات | AK1: إستلام أمين الصندوق
A2: الإسم | B2: المنزل | C2: الهاتف | D2: السكني | E2: شتول الربط | F2: شتول خ. الربط | G2: الشهري | H2: السكني | I2: الشتول | J2: غرامات | K2: الإجمالي | L2: السكني | M2: الشتول | N2: الإجمالي | O2: السكني | P2: الشتول | Q2: غرامات | R2: الإجمالي | S2: التاريخ | T2: رقم الإيصال | U2: رقم الدفتر | V2: السكني | W2: الشتول | X2: توصيل | Y2: مباني | Z2: غرامات | AA2: أخرى | AB2: الإجمالي | AC2: السكني | AD2: الشتول | AE2: الغرامات | AF2: غرامة تأخير سداد | AG2: الإجمالي | AK2: التاريخ | AL2: الإسم | AM2: المبلغ | AN2: ملحوظات
A3: منزل المرحوم عبدالله محمد صالح (ودحجه) | B3: مأهول | C3: 913223640 | D3: =IF(B3="مأهول",1000,0) -> 1000 | E3: 0 | F3: 0 | G3: =D3+(F3*100) -> 1000 | H3: 0 | I3: 0 | J3: 0 | K3: =ROUND((SUM(H3:J3))/100,0)*100 -> 0 | L3: =D3 -> 1000 | M3: =F3*100 -> 0 | N3: =SUM(L3:M3) -> 1000 | O3: =ROUND((H3+L3)/100,0)*100 -> 1000 | P3: =ROUND((I3+M3)/100,0)*100 -> 0 | Q3: =J3 -> 0 | R3: =SUM(O3:Q3) -> 1000 | V3: 1000 | W3: 0 | X3: 0 | Y3: 0 | Z3: 0 | AA3: 0 | AB3: =SUM(V3:AA3) -> 1000 | AC3: =ROUND((O3-V3)/100,0)*100 -> 0 | AD3: =ROUND((P3-W3)/100,0)*100 -> 0 | AE3: =ROUND((Q3-Z3)/100,0)*100 -> 0 | AF3: 0 | AG3: =ROUND(SUM(AC3:AF3)/100,0)*100 -> 0 | AH3: =IF(A3<>"",_xlfn.IFS(AG3>(G3*3),"مفصول",AG3=0,"تم السداد أو ليست عليه إلتزامات",AG3<0,"له باقي طرفنا",0<AG3>(G3*3),"لم يتم السداد"),"") -> تم السداد أو ليست عليه إلتزامات | AI3: سداد حتى نهاية يونيو 2025م. | AK3: 2025-08-31 | AL3: محمد عبدالله محمد حمد | AM3: 1000 | AN3: سداد بيد الطيب محمود (بنكك)
A4: مبارك عبدالله محمد صالح | B4: مأهول | C4: 912572291 | D4: =IF(B4="مأهول",1000,0) -> 1000 | E4: 2 | F4: 0 | G4: =D4+(F4*100) -> 1000 | H4: 0 | I4: 0 | J4: 0 | K4: =ROUND((SUM(H4:J4))/100,0)*100 -> 0 | L4: =D4 -> 1000 | M4: =F4*100 -> 0 | N4: =SUM(L4:M4) -> 1000 | O4: =ROUND((H4+L4)/100,0)*100 -> 1000 | P4: =ROUND((I4+M4)/100,0)*100 -> 0 | Q4: =J4 -> 0 | R4: =SUM(O4:Q4) -> 1000 | V4: 1000 | W4: 0 | X4: 0 | Y4: 0 | Z4: 0 | AA4: 0 | AB4: =SUM(V4:AA4) -> 1000 | AC4: =ROUND((O4-V4)/100,0)*100 -> 0 | AD4: =ROUND((P4-W4)/100,0)*100 -> 0 | AE4: =ROUND((Q4-Z4)/100,0)*100 -> 0 | AF4: 0 | AG4: =ROUND(SUM(AC4:AF4)/50,0)*50 -> 0 | AH4: =IF(A4<>"",_xlfn.IFS(AG4>(G4*3),"مفصول",AG4=0,"تم السداد أو ليست عليه إلتزامات",AG4<0,"له باقي طرفنا",0<AG4>(G4*3),"لم يتم السداد"),"") -> تم السداد أو ليست عليه إلتزامات | AI4: سداد حتى نهاية يونيو 2025م. | AL4: طه محمدعلي الفقير | AM4: 6000 | AN4: سداد قديم
A5: خالد عبدالله محمد صالح | B5: مأهول | C5: 916713241 | D5: 1000 | E5: 2 | F5: 0 | G5: 1000 | H5: 0 | I5: 0 | J5: 0 | K5: 0 | L5: 1000 | M5: 0 | N5: 1000 | O5: 1000 | P5: 0 | Q5: 0 | R5: 1000 | V5: 1000 | W5: 0 | X5: 0 | Y5: 0 | Z5: 0 | AA5: 0 | AB5: 1000 | AC5: 0 | AD5: 0 | AE5: 0 | AF5: 0 | AG5: 0 | AH5: تم السداد أو ليست عليه إلتزامات | AI5: سداد حتى نهاية يونيو 2025م.
A6: الفاضل عبدالله محمد صالح | B6: مغلق | C6: 917924080 | D6: 0 | E6: 1 | F6: 0 | G6: 0 | H6: 0 | I6: 0 | J6: 0 | K6: 0 | L6: 0 | M6: 0 | N6: 0 | O6: 0 | P6: 0 | Q6: 0 | R6: 0 | AB6: 0 | AC6: 0 | AD6: 0 | AE6: 0 | AF6: 0 | AG6: 0 | AH6: تم السداد أو ليست عليه إلتزامات | AI6: سداد حتى نهاية يونيو 2025م.
A7: بكري عبدالرحمن ود صالح | B7: مأهول | C7: 126793356 | D7: 1000 | E7: 1 | F7: 0 | G7: 1000 | H7: 0 | I7: 0 | J7: 0 | K7: 0 | L7: 1000 | M7: 0 | N7: 1000 | O7: 1000 | P7: 0 | Q7: 0 | R7: 1000 | V7: 1000 | W7: 0 | X7: 0 | Y7: 0 | Z7: 0 | AA7: 0 | AB7: 1000 | AC7: 0 | AD7: 0 | AE7: 0 | AF7: 0 | AG7: 0 | AH7: تم السداد أو ليست عليه إلتزامات | AI7: سداد حتى نهاية يونيو 2025م.
A8: جمال عبدالرحمن ود صالح | B8: مأهول | C8: 124317243 | D8: 1000 | E8: 0 | F8: 0 | G8: 1000 | H8: 0 | I8: 0 | J8: 0 | K8: 0 | L8: 1000 | M8: 0 | N8: 1000 | O8: 1000 | P8: 0 | Q8: 0 | R8: 1000 | V8: 1000 | W8: 0 | X8: 0 | Y8: 0 | Z8: 0 | AA8: 0 | AB8: 1000 | AC8: 0 | AD8: 0 | AE8: 0 | AF8: 0 | AG8: 0 | AH8: تم السداد أو ليست عليه إلتزامات | AI8: سداد حتى نهاية يونيو 2025م.
A9: صلاح عبدالرحمن ود صالح | B9: مأهول | C9: 121347090 | D9: 1000 | E9: 2 | F9: 0 | G9: 1000 | H9: 0 | I9: 0 | J9: 0 | K9: 0 | L9: 1000 | M9: 0 | N9: 1000 | O9: 1000 | P9: 0 | Q9: 0 | R9: 1000 | V9: 1000 | W9: 0 | X9: 0 | Y9: 0 | Z9: 0 | AA9: 0 | AB9: 1000 | AC9: 0 | AD9: 0 | AE9: 0 | AF9: 0 | AG9: 0 | AH9: تم السداد أو ليست عليه إلتزامات | AI9: سداد حتى نهاية يونيو 2025م.
A10: عبدالحي عبدالرحمن ودصالح | B10: مأهول | C10: 114114215 | D10: 1000 | E10: 0 | F10: 0 | G10: 1000 | H10: 0 | I10: 0 | J10: 0 | K10: 0 | L10: 1000 | M10: 0 | N10: 1000 | O10: 1000 | P10: 0 | Q10: 0 | R10: 1000 | V10: 1000 | W10: 0 | X10: 0 | Y10: 0 | Z10: 0 | AA10: 0 | AB10: 1000 | AC10: 0 | AD10: 0 | AE10: 0 | AF10: 0 | AG10: 0 | AH10: تم السداد أو ليست عليه إلتزامات | AI10: سداد حتى نهاية يونيو 2025م.
A11: فضل عبدالرحمن ودصالح | B11: مأهول | C11: 965527390 | D11: 1000 | E11: 3 | F11: 0 | G11: 1000 | H11: 0 | I11: 0 | J11: 0 | K11: 0 | L11: 1000 | M11: 0 | N11: 1000 | O11: 1000 | P11: 0 | Q11: 0 | R11: 1000 | V11: 1000 | W11: 0 | X11: 0 | Y11: 0 | Z11: 0 | AA11: 0 | AB11: 1000 | AC11: 0 | AD11: 0 | AE11: 0 | AF11: 0 | AG11: 0 | AH11: تم السداد أو ليست عليه إلتزامات | AI11: سداد حتى نهاية يونيو 2025م.
A12: منزل المرحوم الزين ود صالح (العاقب) | B12: مأهول | C12: 917344140 | D12: 1000 | E12: 0 | F12: 0 | G12: 1000 | H12: 0 | I12: 0 | J12: 0 | K12: 0 | L12: 1000 | M12: 0 | N12: 1000 | O12: 1000 | P12: 0 | Q12: 0 | R12: 1000 | V12: 1000 | W12: 0 | X12: 0 | Y12: 0 | Z12: 0 | AA12: 0 | AB12: 1000 | AC12: 0 | AD12: 0 | AE12: 0 | AF12: 0 | AG12: 0 | AH12: تم السداد أو ليست عليه إلتزامات | AI12: سداد حتى نهاية يونيو 2025م.
A13: مهدي الزين | B13: مأهول | C13: 913099777 | D13: 1000 | E13: 2 | F13: 0 | G13: 1000 | H13: 0 | I13: 0 | J13: 0 | K13: 0 | L13: 1000 | M13: 0 | N13: 1000 | O13: 1000 | P13: 0 | Q13: 0 | R13: 1000 | V13: 1000 | W13: 0 | X13: 0 | Y13: 0 | Z13: 0 | AA13: 0 | AB13: 1000 | AC13: 0 | AD13: 0 | AE13: 0 | AF13: 0 | AG13: 0 | AH13: تم السداد أو ليست عليه إلتزامات | AI13: سداد حتى نهاية يونيو 2025م.
A14: محمد السيد | B14: مأهول | C14: 917636525 | D14: 1000 | E14: 0 | F14: 0 | G14: 1000 | H14: 0 | I14: 0 | J14: 0 | K14: 0 | L14: 1000 | M14: 0 | N14: 1000 | O14: 1000 | P14: 0 | Q14: 0 | R14: 1000 | V14: 1000 | W14: 0 | X14: 0 | Y14: 0 | Z14: 0 | AA14: 0 | AB14: 1000 | AC14: 0 | AD14: 0 | AE14: 0 | AF14: 0 | AG14: 0 | AH14: تم السداد أو ليست عليه إلتزامات | AI14: سداد حتى نهاية يونيو 2025م.
A15: هشام محمد السيد | B15: مأهول | C15: 915778117 | D15: 1000 | E15: 4 | F15: 1 | G15: 1100 | H15: 0 | I15: 0 | J15: 0 | K15: 0 | L15: 1000 | M15: 100 | N15: 1100 | O15: 1000 | P15: 100 | Q15: 0 | R15: 1100 | V15: 1000 | W15: 100 | X15: 0 | Y15: 0 | Z15: 0 | AA15: 0 | AB15: 1100 | AC15: 0 | AD15: 0 | AE15: 0 | AF15: 0 | AG15: 0 | AH15: تم السداد أو ليست عليه إلتزامات | AI15: سداد حتى نهاية يونيو 2025م.
A16: عصام محمد السيد (أ) | B16: مأهول | C16: 915896866 | D16: 1000 | E16: 1 | F16: 0 | G16: 1000 | H16: 0 | I16: 0 | J16: 0 | K16: 0 | L16: 1000 | M16: 0 | N16: 1000 | O16: 1000 | P16: 0 | Q16: 0 | R16: 1000 | V16: 1000 | W16: 0 | X16: 0 | Y16: 0 | Z16: 0 | AA16: 0 | AB16: 1000 | AC16: 0 | AD16: 0 | AE16: 0 | AF16: 0 | AG16: 0 | AH16: تم السداد أو ليست عليه إلتزامات | AI16: سداد حتى نهاية يونيو 2025م.
A17: عبدالله الأنصاري | B17: مغلق | C17: 911101791 | D17: 0 | E17: 3 | F17: 0 | G17: 0 | H17: 0 | I17: 0 | J17: 0 | K17: 0 | L17: 0 | M17: 0 | N17: 0 | O17: 0 | P17: 0 | Q17: 0 | R17: 0 | AB17: 0 | AC17: 0 | AD17: 0 | AE17: 0 | AF17: 0 | AG17: 0 | AH17: تم السداد أو ليست عليه إلتزامات | AI17: سداد حتى نهاية يونيو 2025م ، وبعدها مغلق .
A18: عماد محمد سعيد | B18: مأهول | C18: 911113020 | D18: 1000 | E18: 3 | F18: 0 | G18: 1000 | H18: 0 | I18: 0 | J18: 0 | K18: 0 | L18: 1000 | M18: 0 | N18: 1000 | O18: 1000 | P18: 0 | Q18: 0 | R18: 1000 | V18: 1000 | W18: 0 | X18: 0 | Y18: 0 | Z18: 0 | AA18: 0 | AB18: 1000 | AC18: 0 | AD18: 0 | AE18: 0 | AF18: 0 | AG18: 0 | AH18: تم السداد أو ليست عليه إلتزامات | AI18: سداد حتى نهاية يونيو 2025م.
A19: ماهر محمد صالح | B19: معفي | C19: 962864495 | D19: 0 | E19: 1 | F19: 0 | G19: 0 | H19: 0 | I19: 0 | J19: 0 | K19: 0 | L19: 0 | M19: 0 | N19: 0 | O19: 0 | P19: 0 | Q19: 0 | R19: 0 | V19: 0 | W19: 0 | X19: 0 | Y19: 0 | Z19: 0 | AA19: 0 | AB19: 0 | AC19: 0 | AD19: 0 | AE19: 0 | AF19: 0 | AG19: 0 | AH19: تم السداد أو ليست عليه إلتزامات | AI19: معفي
A20: منزل المرحوم محمد عبدالله فيك الخير (صالح جرمور) | B20: إعفاء | C20: 915857673 | D20: 0 | E20: 0 | F20: 0 | G20: 0 | H20: 0 | I20: 0 | J20: 0 | K20: 0 | L20: 0 | M20: 0 | N20: 0 | O20: 0 | P20: 0 | Q20: 0 | R20: 0 | V20: 0 | W20: 0 | X20: 0 | Y20: 0 | Z20: 0 | AA20: 0 | AB20: 0 | AC20: 0 | AD20: 0 | AE20: 0 | AF20: 0 | AG20: 0 | AH20: تم السداد أو ليست عليه إلتزامات | AI20: معفي
A21: ناصر إدريس السيد (عماد إبراهيم السيد) | B21: مأهول | C21: 111914245 | D21: 1000 | E21: 0 | F21: 0 | G21: 1000 | H21: 0 | I21: 0 | J21: 0 | K21: 0 | L21: 1000 | M21: 0 | N21: 1000 | O21: 1000 | P21: 0 | Q21: 0 | R21: 1000 | V21: 1000 | W21: 0 | X21: 0 | Y21: 0 | Z21: 0 | AA21: 0 | AB21: 1000 | AC21: 0 | AD21: 0 | AE21: 0 | AF21: 0 | AG21: 0 | AH21: تم السداد أو ليست عليه إلتزامات | AI21: سداد حتى نهاية يونيو 2025م.
A22: محمدعلي الفقير | B22: مأهول | C22: 910204066 | D22: 1000 | E22: 3 | F22: 0 | G22: 1000 | H22: 0 | I22: 0 | J22: 0 | K22: 0 | L22: 1000 | M22: 0 | N22: 1000 | O22: 1000 | P22: 0 | Q22: 0 | R22: 1000 | V22: 1000 | W22: 0 | X22: 0 | Y22: 0 | Z22: 0 | AA22: 0 | AB22: 1000 | AC22: 0 | AD22: 0 | AE22: 0 | AF22: 0 | AG22: 0 | AH22: تم السداد أو ليست عليه إلتزامات | AI22: سداد حتى نهاية يونيو 2025م.
A23: محمد محمدعلي الفقير | B23: مأهول | C23: 965199199 | D23: 1000 | E23: 0 | F23: 0 | G23: 1000 | H23: 0 | I23: 0 | J23: 0 | K23: 0 | L23: 1000 | M23: 0 | N23: 1000 | O23: 1000 | P23: 0 | Q23: 0 | R23: 1000 | V23: 1000 | W23: 0 | X23: 0 | Y23: 0 | Z23: 0 | AA23: 0 | AB23: 1000 | AC23: 0 | AD23: 0 | AE23: 0 | AF23: 0 | AG23: 0 | AH23: تم السداد أو ليست عليه إلتزامات | AI23: سداد حتى نهاية يونيو 2025م.
A24: طه محمدعلي الفقير | B24: مأهول | C24: 112437426 | D24: 1000 | E24: 2 | F24: 0 | G24: 1000 | H24: 0 | I24: 0 | J24: 0 | K24: 0 | L24: 1000 | M24: 0 | N24: 1000 | O24: 1000 | P24: 0 | Q24: 0 | R24: 1000 | V24: 6000 | W24: 0 | X24: 0 | Y24: 0 | Z24: 0 | AA24: 0 | AB24: 6000 | AC24: -5000 | AD24: 0 | AE24: 0 | AF24: 0 | AG24: -5000 | AH24: له باقي طرفنا | AI24: له (5000) جنيه، وسداد حتى نهاية أغسطس 2025م.
A25: عبدالله محمد حمد (أ) | B25: مأهول | C25: 118561564 | D25: 1000 | E25: 3 | F25: 0 | G25: 1000 | H25: 0 | I25: 0 | J25: 0 | K25: 0 | L25: 1000 | M25: 0 | N25: 1000 | O25: 1000 | P25: 0 | Q25: 0 | R25: 1000 | V25: 1000 | W25: 0 | X25: 0 | Y25: 0 | Z25: 0 | AA25: 0 | AB25: 1000 | AC25: 0 | AD25: 0 | AE25: 0 | AF25: 0 | AG25: 0 | AH25: تم السداد أو ليست عليه إلتزامات | AI25: سداد حتى نهاية يونيو 2025م.
A26: عبدالله محمد حمد (ب) | B26: مأهول | C26: 118561564 | D26: 1000 | E26: 3 | F26: 0 | G26: 1000 | H26: 0 | I26: 0 | J26: 0 | K26: 0 | L26: 1000 | M26: 0 | N26: 1000 | O26: 1000 | P26: 0 | Q26: 0 | R26: 1000 | V26: 1000 | W26: 0 | X26: 0 | Y26: 0 | Z26: 0 | AA26: 0 | AB26: 1000 | AC26: 0 | AD26: 0 | AE26: 0 | AF26: 0 | AG26: 0 | AH26: تم السداد أو ليست عليه إلتزامات | AI26: سداد حتى نهاية يونيو 2025م.
A27: محمد عبدالله محمد حمد (بابا) | B27: مأهول | C27: 118561564 | D27: 1000 | E27: 0 | F27: 0 | G27: 1000 | H27: 0 | I27: 0 | J27: 0 | K27: 0 | L27: 1000 | M27: 0 | N27: 1000 | O27: 1000 | P27: 0 | Q27: 0 | R27: 1000 | S27: 2025-08-31 | V27: 1000 | W27: 0 | X27: 0 | Y27: 0 | Z27: 0 | AA27: 0 | AB27: 1000 | AC27: 0 | AD27: 0 | AE27: 0 | AF27: 0 | AG27: 0 | AH27: تم السداد أو ليست عليه إلتزامات | AI27: سداد حتى نهاية أغسطس 2025م.
A28: منذر عبدالله محمد حمد | B28: مأهول | C28: 118561564 | D28: 1000 | E28: 2 | F28: 0 | G28: 1000 | H28: 0 | I28: 0 | J28: 0 | K28: 0 | L28: 1000 | M28: 0 | N28: 1000 | O28: 1000 | P28: 0 | Q28: 0 | R28: 1000 | AB28: 0 | AC28: 1000 | AD28: 0 | AE28: 0 | AF28: 0 | AG28: 1000 | AH28: لم يتم السداد | AI28: سداد حتى نهاية يوليو 2025م.
A29: الباقر عبدالله أنصار | B29: مأهول | C29: 0 | D29: 1000 | E29: 0 | F29: 0 | G29: 1000 | H29: 0 | I29: 0 | J29: 0 | K29: 0 | L29: 1000 | M29: 0 | N29: 1000 | O29: 1000 | P29: 0 | Q29: 0 | R29: 1000 | V29: 1000 | W29: 0 | X29: 0 | Y29: 0 | Z29: 0 | AA29: 0 | AB29: 1000 | AC29: 0 | AD29: 0 | AE29: 0 | AF29: 0 | AG29: 0 | AH29: تم السداد أو ليست عليه إلتزامات | AI29: سداد حتى نهاية يونيو 2025م.
A30: خالد أحمد صالح ودصالح | B30: جديد | C30: 0 | D30: 0 | E30: 0 | F30: 0 | G30: 0 | H30: 0 | I30: 0 | J30: 0 | K30: 0 | L30: 0 | M30: 0 | N30: 0 | O30: 0 | P30: 0 | Q30: 0 | R30: 0 | AB30: 0 | AC30: 0 | AD30: 0 | AE30: 0 | AF30: 0 | AG30: 0 | AH30: تم السداد أو ليست عليه إلتزامات | AI30: 0
A31: عبدالله صالح حامنتود | B31: جديد | C31: 0 | D31: 0 | E31: 0 | F31: 0 | G31: 0 | H31: 0 | I31: 0 | J31: 0 | K31: 0 | L31: 0 | M31: 0 | N31: 0 | O31: 0 | P31: 0 | Q31: 0 | R31: 0 | AB31: 0 | AC31: 0 | AD31: 0 | AE31: 0 | AF31: 0 | AG31: 0 | AH31: تم السداد أو ليست عليه إلتزامات | AI31: توصيل جديد
A32: عبدالرحمن جمال عبدالرحمن | B32: 0 | C32: 0 | D32: 0 | E32: 0 | F32: 0 | G32: 0 | H32: 0 | I32: 0 | J32: 0 | K32: 0 | L32: 0 | M32: 0 | N32: 0 | O32: 0 | P32: 0 | Q32: 0 | R32: 0 | AB32: 0 | AC32: 0 | AD32: 0 | AE32: 0 | AF32: 0 | AG32: 0 | AH32: تم السداد أو ليست عليه إلتزامات | AI32: للمراجعة مع المتحصل
A33: محمد صالح | B33: 0 | C33: 0 | D33: 0 | E33: 0 | F33: 0 | G33: 0 | H33: 0 | I33: 0 | J33: 0 | K33: 0 | L33: 0 | M33: 0 | N33: 0 | O33: 0 | P33: 0 | Q33: 0 | R33: 0 | AB33: 0 | AC33: 0 | AD33: 0 | AE33: 0 | AF33: 0 | AG33: 0 | AH33: تم السداد أو ليست عليه إلتزامات | AI33: للمراجعة مع المتحصل
A34: أنور محي الدين (1) | B34: 0 | C34: 0 | D34: 0 | E34: 0 | F34: 0 | G34: 0 | H34: 0 | I34: 0 | J34: 0 | K34: 0 | L34: 0 | M34: 0 | N34: 0 | O34: 0 | P34: 0 | Q34: 0 | R34: 0 | AB34: 0 | AC34: 0 | AD34: 0 | AE34: 0 | AF34: 0 | AG34: 0 | AH34: تم السداد أو ليست عليه إلتزامات | AI34: للمراجعة مع المتحصل
A35: أنور محي الدين (2) | B35: 0 | C35: 0 | D35: 0 | E35: 0 | F35: 0 | G35: 0 | H35: 0 | I35: 0 | J35: 0 | K35: 0 | L35: 0 | M35: 0 | N35: 0 | O35: 0 | P35: 0 | Q35: 0 | R35: 0 | AB35: 0 | AC35: 0 | AD35: 0 | AE35: 0 | AF35: 0 | AG35: 0 | AH35: تم السداد أو ليست عليه إلتزامات | AI35: للمراجعة مع المتحصل
A36: أنور محي الدين (3) | B36: 0 | C36: 0 | D36: 0 | E36: 0 | F36: 0 | G36: 0 | H36: 0 | I36: 0 | J36: 0 | K36: 0 | L36: 0 | M36: 0 | N36: 0 | O36: 0 | P36: 0 | Q36: 0 | R36: 0 | AB36: 0 | AC36: 0 | AD36: 0 | AE36: 0 | AF36: 0 | AG36: 0 | AH36: تم السداد أو ليست عليه إلتزامات | AI36: للمراجعة مع المتحصل
A37: جلال أنور | B37: 0 | C37: 0 | D37: 0 | E37: 0 | F37: 0 | G37: 0 | H37: 0 | I37: 0 | J37: 0 | K37: 0 | L37: 0 | M37: 0 | N37: 0 | O37: 0 | P37: 0 | Q37: 0 | R37: 0 | AB37: 0 | AC37: 0 | AD37: 0 | AE37: 0 | AF37: 0 | AG37: 0 | AH37: تم السداد أو ليست عليه إلتزامات | AI37: للمراجعة مع المتحصل
A38: محسن فتحي | B38: 0 | C38: 0 | D38: 0 | E38: 0 | F38: 0 | G38: 0 | H38: 0 | I38: 0 | J38: 0 | K38: 0 | L38: 0 | M38: 0 | N38: 0 | O38: 0 | P38: 0 | Q38: 0 | R38: 0 | AB38: 0 | AC38: 0 | AD38: 0 | AE38: 0 | AF38: 0 | AG38: 0 | AH38: تم السداد أو ليست عليه إلتزامات | AI38: للمراجعة مع المتحصل
A39: معتز صالح | B39: 0 | C39: 0 | D39: 0 | E39: 0 | F39: 0 | G39: 0 | H39: 0 | I39: 0 | J39: 0 | K39: 0 | L39: 0 | M39: 0 | N39: 0 | O39: 0 | P39: 0 | Q39: 0 | R39: 0 | AB39: 0 | AC39: 0 | AD39: 0 | AE39: 0 | AF39: 0 | AG39: 0 | AH39: تم السداد أو ليست عليه إلتزامات | AI39: للمراجعة مع المتحصل
A40: صالح النور | B40: 0 | C40: 0 | D40: 0 | E40: 1 | F40: 0 | G40: 0 | H40: 0 | I40: 0 | J40: 0 | K40: 0 | L40: 0 | M40: 0 | N40: 0 | O40: 0 | P40: 0 | Q40: 0 | R40: 0 | AB40: 0 | AC40: 0 | AD40: 0 | AE40: 0 | AF40: 0 | AG40: 0 | AH40: تم السداد أو ليست عليه إلتزامات | AI40: للمراجعة مع المتحصل
A41: محمد إدريس | B41: 0 | C41: 0 | D41: 0 | E41: 0 | F41: 0 | G41: 0 | H41: 0 | I41: 0 | J41: 0 | K41: 0 | L41: 0 | M41: 0 | N41: 0 | O41: 0 | P41: 0 | Q41: 0 | R41: 0 | AB41: 0 | AC41: 0 | AD41: 0 | AE41: 0 | AF41: 0 | AG41: 0 | AH41: تم السداد أو ليست عليه إلتزامات | AI41: للمراجعة مع المتحصل
A42: عمر محمد السيد | B42: 0 | C42: 0 | D42: 0 | E42: 3 | F42: 0 | G42: 0 | H42: 0 | I42: 0 | J42: 0 | K42: 0 | L42: 0 | M42: 0 | N42: 0 | O42: 0 | P42: 0 | Q42: 0 | R42: 0 | AB42: 0 | AC42: 0 | AD42: 0 | AE42: 0 | AF42: 0 | AG42: 0 | AH42: تم السداد أو ليست عليه إلتزامات | AI42: للمراجعة مع المتحصل
A43: منزل المرحوم إدريس السيد | B43: 0 | C43: 0 | D43: 0 | E43: 0 | F43: 0 | G43: 0 | H43: 0 | I43: 0 | J43: 0 | K43: 0 | L43: 0 | M43: 0 | N43: 0 | O43: 0 | P43: 0 | Q43: 0 | R43: 0 | AB43: 0 | AC43: 0 | AD43: 0 | AE43: 0 | AF43: 0 | AG43: 0 | AH43: تم السداد أو ليست عليه إلتزامات | AI43: للمراجعة مع المتحصل
A44: صفوان مهدي الزين | B44: 0 | C44: 0 | D44: 0 | E44: 4 | F44: 6 | G44: 600 | H44: 0 | I44: 0 | J44: 0 | K44: 0 | L44: 0 | M44: 600 | N44: 600 | O44: 0 | P44: 600 | Q44: 0 | R44: 600 | AB44: 0 | AC44: 0 | AD44: 600 | AE44: 0 | AF44: 0 | AG44: 600 | AH44: لم يتم السداد | AI44: للمراجعة مع المتحصل
A45: أحمد صالح | B45: 0 | C45: 0 | D45: 0 | E45: 2 | F45: 0 | G45: 0 | H45: 0 | I45: 0 | J45: 0 | K45: 0 | L45: 0 | M45: 0 | N45: 0 | O45: 0 | P45: 0 | Q45: 0 | R45: 0 | AB45: 0 | AC45: 0 | AD45: 0 | AE45: 0 | AF45: 0 | AG45: 0 | AH45: تم السداد أو ليست عليه إلتزامات | AI45: للمراجعة مع المتحصل
A46: محجوب محمد صالح | B46: 0 | C46: 0 | D46: 0 | E46: 3 | F46: 0 | G46: 0 | H46: 0 | I46: 0 | J46: 0 | K46: 0 | L46: 0 | M46: 0 | N46: 0 | O46: 0 | P46: 0 | Q46: 0 | R46: 0 | AB46: 0 | AC46: 0 | AD46: 0 | AE46: 0 | AF46: 0 | AG46: 0 | AH46: تم السداد أو ليست عليه إلتزامات | AI46: للمراجعة مع المتحصل
A47: عادل عبدالله | B47: 0 | C47: 0 | D47: 0 | E47: 11 | F47: 0 | G47: 0 | H47: 0 | I47: 0 | J47: 0 | K47: 0 | L47: 0 | M47: 0 | N47: 0 | O47: 0 | P47: 0 | Q47: 0 | R47: 0 | AB47: 0 | AC47: 0 | AD47: 0 | AE47: 0 | AF47: 0 | AG47: 0 | AH47: تم السداد أو ليست عليه إلتزامات | AI47: للمراجعة مع المتحصل
A48: حسن الزين ودصالح | B48: 0 | C48: 0 | D48: 0 | E48: 2 | F48: 0 | G48: 0 | H48: 0 | I48: 0 | J48: 0 | K48: 0 | L48: 0 | M48: 0 | N48: 0 | O48: 0 | P48: 0 | Q48: 0 | R48: 0 | AB48: 0 | AC48: 0 | AD48: 0 | AE48: 0 | AF48: 0 | AG48: 0 | AH48: تم السداد أو ليست عليه إلتزامات | AI48: للمراجعة مع المتحصل
A49: أحمد محجوب | B49: 0 | C49: 0 | D49: 0 | E49: 1 | F49: 0 | G49: 0 | H49: 0 | I49: 0 | J49: 0 | K49: 0 | L49: 0 | M49: 0 | N49: 0 | O49: 0 | P49: 0 | Q49: 0 | R49: 0 | AB49: 0 | AC49: 0 | AD49: 0 | AE49: 0 | AF49: 0 | AG49: 0 | AH49: تم السداد أو ليست عليه إلتزامات | AI49: للمراجعة مع المتحصل
A50: راشد ودحجه | B50: 0 | C50: 0 | D50: 0 | E50: 0 | F50: 0 | G50: 0 | H50: 0 | I50: 0 | J50: 0 | K50: 0 | L50: 0 | M50: 0 | N50: 0 | O50: 0 | P50: 0 | Q50: 0 | R50: 0 | AB50: 0 | AC50: 0 | AD50: 0 | AE50: 0 | AF50: 0 | AG50: 0 | AH50: تم السداد أو ليست عليه إلتزامات | AI50: للمراجعة مع المتحصل
A51: محمد صلاح | B51: 0 | C51: 0 | D51: 0 | E51: 0 | F51: 0 | G51: 0 | H51: 0 | I51: 0 | J51: 0 | K51: 0 | L51: 0 | M51: 0 | N51: 0 | O51: 0 | P51: 0 | Q51: 0 | R51: 0 | AB51: 0 | AC51: 0 | AD51: 0 | AE51: 0 | AF51: 0 | AG51: 0 | AH51: تم السداد أو ليست عليه إلتزامات | AI51: للمراجعة مع المتحصل
A52: الفاضل محمدعلي | B52: 0 | C52: 0 | D52: 0 | E52: 0 | F52: 0 | G52: 0 | H52: 0 | I52: 0 | J52: 0 | K52: 0 | L52: 0 | M52: 0 | N52: 0 | O52: 0 | P52: 0 | Q52: 0 | R52: 0 | AB52: 0 | AC52: 0 | AD52: 0 | AE52: 0 | AF52: 0 | AG52: 0 | AH52: تم السداد أو ليست عليه إلتزامات | AI52: للمراجعة مع المتحصل | AK52: الإجمالي | AM52: =SUM(AM3:AM51) -> 7000
A53: سعاد ودحجه | B53: 0 | C53: 0 | D53: 0 | E53: 2 | F53: 0 | G53: 0 | H53: 0 | I53: 0 | J53: 0 | K53: 0 | L53: 0 | M53: 0 | N53: 0 | O53: 0 | P53: 0 | Q53: 0 | R53: 0 | AB53: 0 | AC53: 0 | AD53: 0 | AE53: 0 | AF53: 0 | AG53: 0 | AH53: تم السداد أو ليست عليه إلتزامات | AI53: للمراجعة مع المتحصل
A54: أحمد الفقير | B54: 0 | C54: 0 | D54: 0 | E54: 2 | F54: 0 | G54: 0 | H54: 0 | I54: 0 | J54: 0 | K54: 0 | L54: 0 | M54: 0 | N54: 0 | O54: 0 | P54: 0 | Q54: 0 | R54: 0 | AB54: 0 | AC54: 0 | AD54: 0 | AE54: 0 | AF54: 0 | AG54: 0 | AH54: تم السداد أو ليست عليه إلتزامات | AI54: للمراجعة مع المتحصل
A55: عبدالقادر خالد محمدعلي الفقير | B55: 0 | C55: 0 | D55: 0 | E55: 3 | F55: 0 | G55: 0 | H55: 0 | I55: 0 | J55: 0 | K55: 0 | L55: 0 | M55: 0 | N55: 0 | O55: 0 | P55: 0 | Q55: 0 | R55: 0 | AB55: 0 | AC55: 0 | AD55: 0 | AE55: 0 | AF55: 0 | AG55: 0 | AH55: تم السداد أو ليست عليه إلتزامات | AI55: للمراجعة مع المتحصل
A56: وليد الفقير | B56: 0 | C56: 0 | D56: 0 | E56: 0 | F56: 0 | G56: 0 | H56: 0 | I56: 0 | J56: 0 | K56: 0 | L56: 0 | M56: 0 | N56: 0 | O56: 0 | P56: 0 | Q56: 0 | R56: 0 | AB56: 0 | AC56: 0 | AD56: 0 | AE56: 0 | AF56: 0 | AG56: 0 | AH56: تم السداد أو ليست عليه إلتزامات | AI56: للمراجعة مع المتحصل
A57: خالد محمدعلي الفقير | B57: 0 | C57: 0 | D57: 0 | E57: 3 | F57: 0 | G57: 0 | H57: 0 | I57: 0 | J57: 0 | K57: 0 | L57: 0 | M57: 0 | N57: 0 | O57: 0 | P57: 0 | Q57: 0 | R57: 0 | AB57: 0 | AC57: 0 | AD57: 0 | AE57: 0 | AF57: 0 | AG57: 0 | AH57: تم السداد أو ليست عليه إلتزامات | AI57: للمراجعة مع المتحصل
A58: مصعب خالد | B58: 0 | C58: 0 | D58: 0 | E58: 4 | F58: 10 | G58: 1000 | H58: 0 | I58: 0 | J58: 0 | K58: 0 | L58: 0 | M58: 1000 | N58: 1000 | O58: 0 | P58: 1000 | Q58: 0 | R58: 1000 | AB58: 0 | AC58: 0 | AD58: 1000 | AE58: 0 | AF58: 0 | AG58: 1000 | AH58: لم يتم السداد | AI58: للمراجعة مع المتحصل
A59: عماد إبراهيم السيد | B59: 0 | C59: 0 | D59: 0 | E59: 1 | F59: 0 | G59: 0 | H59: 0 | I59: 0 | J59: 0 | K59: 0 | L59: 0 | M59: 0 | N59: 0 | O59: 0 | P59: 0 | Q59: 0 | R59: 0 | AB59: 0 | AC59: 0 | AD59: 0 | AE59: 0 | AF59: 0 | AG59: 0 | AH59: تم السداد أو ليست عليه إلتزامات | AI59: للمراجعة مع المتحصل
A60: العاقب الزين | B60: مأهول | C60: 0 | D60: 5000 | E60: 0 | F60: 0 | G60: 5000 | H60: 0 | I60: 0 | J60: 0 | K60: 0 | L60: 5000 | M60: 0 | N60: 5000 | O60: 5000 | P60: 0 | Q60: 0 | R60: 5000 | AB60: 0 | AC60: 5000 | AD60: 0 | AE60: 0 | AF60: 0 | AG60: 5000 | AH60: لم يتم السداد | AI60: للمراجعة مع المتحصل
B61: 0 | C61: 0 | D61: 0 | E61: 0 | F61: 0 | G61: 0 | H61: 0 | I61: 0 | J61: 0 | K61: 0 | L61: 0 | M61: 0 | N61: 0 | O61: 0 | P61: 0 | Q61: 0 | R61: 0 | AB61: 0 | AC61: 0 | AD61: 0 | AE61: 0 | AF61: 0 | AG61: 0
B62: 0 | C62: 0 | D62: 0 | E62: 0 | F62: 0 | G62: 0 | H62: 0 | I62: 0 | J62: 0 | K62: 0 | L62: 0 | M62: 0 | N62: 0 | O62: 0 | P62: 0 | Q62: 0 | R62: 0 | AB62: 0 | AC62: 0 | AD62: 0 | AE62: 0 | AF62: 0 | AG62: 0
B63: 0 | C63: 0 | D63: 0 | E63: 0 | F63: 0 | G63: 0 | H63: 0 | I63: 0 | J63: 0 | K63: 0 | L63: 0 | M63: 0 | N63: 0 | O63: 0 | P63: 0 | Q63: 0 | R63: 0 | AB63: 0 | AC63: 0 | AD63: 0 | AE63: 0 | AF63: 0 | AG63: 0
B64: 0 | C64: 0 | D64: 0 | E64: 0 | F64: 0 | G64: 0 | H64: 0 | I64: 0 | J64: 0 | K64: 0 | L64: 0 | M64: 0 | N64: 0 | O64: 0 | P64: 0 | Q64: 0 | R64: 0 | AB64: 0 | AC64: 0 | AD64: 0 | AE64: 0 | AF64: 0 | AG64: 0
B65: 0 | C65: 0 | D65: 0 | E65: 0 | F65: 0 | G65: 0 | H65: 0 | I65: 0 | J65: 0 | K65: 0 | L65: 0 | M65: 0 | N65: 0 | O65: 0 | P65: 0 | Q65: 0 | R65: 0 | AB65: 0 | AC65: 0 | AD65: 0 | AE65: 0 | AF65: 0 | AG65: 0
B66: 0 | C66: 0 | D66: 0 | E66: 0 | F66: 0 | G66: 0 | H66: 0 | I66: 0 | J66: 0 | K66: 0 | L66: 0 | M66: 0 | N66: 0 | O66: 0 | P66: 0 | Q66: 0 | R66: 0 | AB66: 0 | AC66: 0 | AD66: 0 | AE66: 0 | AF66: 0 | AG66: 0
B67: 0 | C67: 0 | D67: 0 | E67: 0 | F67: 0 | G67: 0 | H67: 0 | I67: 0 | J67: 0 | K67: 0 | L67: 0 | M67: 0 | N67: 0 | O67: 0 | P67: 0 | Q67: 0 | R67: 0 | AB67: 0 | AC67: 0 | AD67: 0 | AE67: 0 | AF67: 0 | AG67: 0
B68: 0 | C68: 0 | D68: =IF(B68="مأهول",1000,0) -> 0 | E68: 0 | F68: 0 | G68: =D68+(F68*100) -> 0 | H68: 0 | I68: 0 | J68: 0 | K68: =ROUND((SUM(H68:J68))/100,0)*100 -> 0 | L68: =D68 -> 0 | M68: =F68*100 -> 0 | N68: =SUM(L68:M68) -> 0 | O68: =ROUND((H68+L68)/100,0)*100 -> 0 | P68: 0 | Q68: =J68 -> 0 | R68: =SUM(O68:Q68) -> 0 | AB68: =SUM(V68:AA68) -> 0 | AC68: =ROUND((O68-V68)/100,0)*100 -> 0 | AD68: 0 | AE68: =ROUND((Q68-Z68)/100,0)*100 -> 0 | AF68: 0 | AG68: =ROUND(SUM(AC68:AF68)/50,0)*50 -> 0 | AH68: =IF(A68<>"",_xlfn.IFS(AG68>(G68*3),"مفصول",AG68=0,"تم السداد أو ليست عليه إلتزامات",AG68<0,"له باقي طرفنا",0<AG68>(G68*3),"لم يتم السداد"),"") -> 
B69: 0 | C69: 0 | D69: 0 | E69: 0 | F69: 0 | G69: 0 | H69: 0 | I69: 0 | J69: 0 | K69: 0 | L69: =D69 -> 0 | M69: 0 | N69: =SUM(L69:M69) -> 0 | O69: 0 | P69: 0 | Q69: =J69 -> 0 | R69: =SUM(O69:Q69) -> 0 | AB69: =SUM(V69:AA69) -> 0 | AC69: 0 | AD69: 0 | AE69: =ROUND((Q69-Z69)/100,0)*100 -> 0 | AF69: 0 | AG69: =ROUND(SUM(AC69:AF69)/50,0)*50 -> 0 | AH69: =IF(A69<>"",_xlfn.IFS(AG69>(G69*3),"مفصول",AG69=0,"تم السداد أو ليست عليه إلتزامات",AG69<0,"له باقي طرفنا",0<AG69>(G69*3),"لم يتم السداد"),"") -> 
B70: 0 | C70: 0 | D70: 0 | E70: 0 | F70: 0 | G70: 0 | H70: 0 | I70: 0 | J70: 0 | K70: 0 | L70: =D70 -> 0 | M70: 0 | N70: =SUM(L70:M70) -> 0 | O70: 0 | P70: 0 | Q70: =J70 -> 0 | R70: =SUM(O70:Q70) -> 0 | AB70: =SUM(V70:AA70) -> 0 | AC70: 0 | AD70: 0 | AE70: =ROUND((Q70-Z70)/100,0)*100 -> 0 | AF70: 0 | AG70: =ROUND(SUM(AC70:AF70)/50,0)*50 -> 0 | AH70: =IF(A70<>"",_xlfn.IFS(AG70>(G70*3),"مفصول",AG70=0,"تم السداد أو ليست عليه إلتزامات",AG70<0,"له باقي طرفنا",0<AG70>(G70*3),"لم يتم السداد"),"") -> 
B71: 0 | C71: 0 | D71: 0 | E71: 0 | F71: 0 | G71: 0 | H71: 0 | I71: 0 | J71: 0 | K71: 0 | L71: =D71 -> 0 | M71: 0 | N71: =SUM(L71:M71) -> 0 | O71: 0 | P71: 0 | Q71: =J71 -> 0 | R71: =SUM(O71:Q71) -> 0 | AB71: =SUM(V71:AA71) -> 0 | AC71: 0 | AD71: 0 | AE71: =ROUND((Q71-Z71)/100,0)*100 -> 0 | AF71: 0 | AG71: =ROUND(SUM(AC71:AF71)/50,0)*50 -> 0 | AH71: =IF(A71<>"",_xlfn.IFS(AG71>(G71*3),"مفصول",AG71=0,"تم السداد أو ليست عليه إلتزامات",AG71<0,"له باقي طرفنا",0<AG71>(G71*3),"لم يتم السداد"),"") -> 
B72: 0 | C72: 0 | D72: 0 | E72: 0 | F72: 0 | G72: 0 | H72: 0 | I72: 0 | J72: 0 | K72: 0 | L72: =D72 -> 0 | M72: 0 | N72: =SUM(L72:M72) -> 0 | O72: 0 | P72: 0 | Q72: =J72 -> 0 | R72: =SUM(O72:Q72) -> 0 | AB72: =SUM(V72:AA72) -> 0 | AC72: 0 | AD72: 0 | AE72: =ROUND((Q72-Z72)/100,0)*100 -> 0 | AF72: 0 | AG72: =ROUND(SUM(AC72:AF72)/50,0)*50 -> 0 | AH72: =IF(A72<>"",_xlfn.IFS(AG72>(G72*3),"مفصول",AG72=0,"تم السداد أو ليست عليه إلتزامات",AG72<0,"له باقي طرفنا",0<AG72>(G72*3),"لم يتم السداد"),"") -> 
A73: الإجمالي | D73: =SUM(D3:D72) -> 28000 | E73: =SUM(E3:E72) -> 80 | F73: =SUM(F3:F72) -> 17 | G73: =SUM(G3:G72) -> 29700 | H73: =SUM(H3:H72) -> 0 | I73: =SUM(I3:I72) -> 0 | J73: 0 | K73: 0 | L73: 28000 | M73: 1700 | N73: 29700 | O73: 28000 | P73: 1700 | Q73: 0 | R73: 29700 | V73: =SUM(V3:V72) -> 27000 | W73: =SUM(W3:W72) -> 100 | X73: 0 | Y73: 0 | Z73: =SUM(Z3:Z72) -> 0 | AA73: 0 | AB73: =SUM(AB3:AB72) -> 27100 | AC73: 1000 | AD73: =SUM(AD3:AD72) -> 1600 | AE73: =SUM(AE3:AE72) -> 0 | AF73: 0 | AG73: 2600
A76: البيان | B76: المبلغ | C76: ملحوظات
A77: إجمالي التحصيل الشهري | B77: =AB73 -> 27100
A78: مديونية سابقة على المتحصل | B78: 0
A79: إستلام أمين الصندوق | B79: =AM52 -> 7000
A80: المطلوب من المتحصل | B80: =(B77+B78)-B79 -> 20100
A81: السداد | B81: 21000 | C81: تحويل (21000) بنكك بتاريخ 2025/9/3م
A82: الباقي | B82: =B80-B81 -> -900
A83: مأهول
A84: شتول
A85: جديد
A86: مغلق
A87: مفصول
A88: معفي

Sheet سبتمبر
A1: البيانات الشخصية | G1: الربط | H1: المتأخرات حتى نهاية أغسطس 2025م | L1: جاري سبتمبر 2025م | O1: المطلوب حتى نهاية سبتمبر 2025م | S1: تفاصيل السداد خلال سبتمبر 2025م | AC1: المتأخرات حتى نهاية سبتمبر 2025م | AH1: موقف السداد | AI1: ملاحظات | AK1: إستلام أمين الصندوق
A2: الإسم | B2: المنزل | C2: الهاتف | D2: السكني | E2: شتول الربط | F2: شتول خ. الربط | G2: الشهري | H2: السكني | I2: الشتول | J2: غرامات | K2: الإجمالي | L2: السكني | M2: الشتول | N2: الإجمالي | O2: السكني | P2: الشتول | Q2: غرامات | R2: الإجمالي | S2: التاريخ | T2: رقم الإيصال | U2: رقم الدفتر | V2: السكني | W2: الشتول | X2: توصيل | Y2: مباني | Z2: غرامات | AA2: أخرى | AB2: الإجمالي | AC2: السكني | AD2: الشتول | AE2: الغرامات | AF2: غرامة تأخير سداد | AG2: الإجمالي | AK2: التاريخ | AL2: الإسم | AM2: المبلغ | AN2: ملحوظات
A3: =أغسطس!A3 -> منزل المرحوم عبدالله محمد صالح (ودحجه) | B3: =أغسطس!B3 -> مأهول | C3: =أغسطس!C3 -> 913223640 | D3: =IF(B3="مأهول",5000,0) -> 5000 | E3: 2 | F3: =أغسطس!F3 -> 0 | G3: =D3+(F3*1500) -> 5000 | H3: =أغسطس!AC3 -> 0 | I3: =أغسطس!AD3 -> 0 | J3: =ROUND((أغسطس!AE3+أغسطس!AF3)/100,0)*100 -> 0 | K3: =ROUND((SUM(H3:J3))/100,0)*100 -> 0 | L3: =D3 -> 5000 | M3: =(F3*1500) -> 0 | N3: =SUM(L3:M3) -> 5000 | O3: =ROUND((H3+L3)/100,0)*100 -> 5000 | P3: =ROUND((I3+M3)/100,0)*100 -> 0 | Q3: =J3 -> 0 | R3: =ROUND((SUM(O3:Q3))/100,0)*100 -> 5000 | V3: 5000 | W3: 0 | X3: 0 | Y3: 0 | Z3: 0 | AA3: 0 | AB3: =SUM(V3:AA3) -> 5000 | AC3: =ROUND((O3-V3)/100,0)*100 -> 0 | AD3: =ROUND((P3-W3)/100,0)*100 -> 0 | AE3: =ROUND((Q3-Z3)/100,0)*100 -> 0 | AF3: 0 | AG3: =ROUND(SUM(AC3:AF3)/100,0)*100 -> 0 | AH3: =IF(A3<>"",_xlfn.IFS(AG3>(G3*3),"مفصول",AG3=0,"تم السداد أو ليست عليه إلتزامات",AG3<0,"له باقي طرفنا",0<AG3>(G3*3),"لم يتم السداد"),"") -> تم السداد أو ليست عليه إلتزامات | AI3: سداد حتى نهاية سبتمبر 2025م. | AK3: 2025-10-04 | AL3: طه محمدعلي الفقير | AM3: 7000 | AN3: بنكك
A4: =أغسطس!A4 -> مبارك عبدالله محمد صالح | B4: =أغسطس!B4 -> مأهول | C4: =أغسطس!C4 -> 912572291 | D4: =IF(B4="مأهول",5000,0) -> 5000 | E4: 1 | F4: =أغسطس!F4 -> 0 | G4: =D4+(F4*1500) -> 5000 | H4: =أغسطس!AC4 -> 0 | I4: =أغسطس!AD4 -> 0 | J4: =ROUND((أغسطس!AE4+أغسطس!AF4)/100,0)*100 -> 0 | K4: =ROUND((SUM(H4:J4))/100,0)*100 -> 0 | L4: =D4 -> 5000 | M4: =(F4*1500) -> 0 | N4: =SUM(L4:M4) -> 5000 | O4: =ROUND((H4+L4)/100,0)*100 -> 5000 | P4: 0 | Q4: =J4 -> 0 | R4: =ROUND((SUM(O4:Q4))/100,0)*100 -> 5000 | V4: 5000 | W4: 2000 | X4: 0 | Y4: 0 | Z4: 0 | AA4: 0 | AB4: =SUM(V4:AA4) -> 7000 | AC4: =ROUND((O4-V4)/100,0)*100 -> 0 | AD4: -2000 | AE4: =ROUND((Q4-Z4)/100,0)*100 -> 0 | AF4: =(IF(SUM(AC4:AE4)>0,IF(AB4<0,0,ROUND((SUM(AC4:AE4)/2)/100,0)*100),0)) -> 0 | AG4: =ROUND(SUM(AC4:AF4)/50,0)*50 -> -2000 | AH4: =IF(A4<>"",_xlfn.IFS(AG4>(G4*3),"مفصول",AG4=0,"تم السداد أو ليست عليه إلتزامات",AG4<0,"له باقي طرفنا",0<AG4>(G4*3),"لم يتم السداد"),"") -> له باقي طرفنا | AI4: سداد حتى نهاية سبتمبر 2025م. | AK4: 2025-10-05 | AL4: المنذر عبدالله محمد حمد | AM4: 8000 | AN4: بنكك
A5: =أغسطس!A5 -> خالد عبدالله محمد صالح | B5: =أغسطس!B5 -> مأهول | C5: =أغسطس!C5 -> 916713241 | D5: 5000 | E5: =أغسطس!E5 -> 2 | F5: =أغسطس!F5 -> 0 | G5: 5000 | H5: =أغسطس!AC5 -> 0 | I5: =أغسطس!AD5 -> 0 | J5: =ROUND((أغسطس!AE5+أغسطس!AF5)/100,0)*100 -> 0 | K5: 0 | L5: 5000 | M5: 0 | N5: 5000 | O5: 5000 | P5: 0 | Q5: 0 | R5: 5000 | V5: 5000 | W5: 2000 | X5: 0 | Y5: 0 | Z5: 0 | AA5: 0 | AB5: 7000 | AC5: 0 | AD5: -2000 | AE5: 0 | AF5: 0 | AG5: -2000 | AH5: له باقي طرفنا | AI5: سداد حتى نهاية سبتمبر 2025م. | AK5: 2025-10-05 | AL5: محمد عبدالله محمد حمد | AM5: 5000 | AN5: بنكك
A6: =أغسطس!A6 -> الفاضل عبدالله محمد صالح | B6: =أغسطس!B6 -> مغلق | C6: =أغسطس!C6 -> 917924080 | D6: 0 | E6: =أغسطس!E6 -> 1 | F6: =أغسطس!F6 -> 0 | G6: 0 | H6: =أغسطس!AC6 -> 0 | I6: =أغسطس!AD6 -> 0 | J6: =ROUND((أغسطس!AE6+أغسطس!AF6)/100,0)*100 -> 0 | K6: 0 | L6: 0 | M6: 0 | N6: 0 | O6: 0 | P6: 0 | Q6: 0 | R6: 0 | AB6: 0 | AC6: 0 | AD6: 0 | AE6: 0 | AF6: 0 | AG6: 0 | AH6: تم السداد أو ليست عليه إلتزامات | AI6: =أغسطس!AI6 -> سداد حتى نهاية يونيو 2025م.
A7: =أغسطس!A7 -> بكري عبدالرحمن ود صالح | B7: =أغسطس!B7 -> مأهول | C7: =أغسطس!C7 -> 126793356 | D7: 5000 | E7: 1 | F7: =أغسطس!F7 -> 0 | G7: 5000 | H7: =أغسطس!AC7 -> 0 | I7: =أغسطس!AD7 -> 0 | J7: =ROUND((أغسطس!AE7+أغسطس!AF7)/100,0)*100 -> 0 | K7: 0 | L7: 5000 | M7: 0 | N7: 5000 | O7: 5000 | P7: 0 | Q7: 0 | R7: 5000 | V7: 5000 | W7: 1000 | X7: 0 | Y7: 0 | Z7: 0 | AA7: 0 | AB7: 6000 | AC7: 0 | AD7: -1000 | AE7: 0 | AF7: 0 | AG7: -1000 | AH7: له باقي طرفنا | AI7: سداد حتى نهاية سبتمبر 2025م.
A8: =أغسطس!A8 -> جمال عبدالرحمن ود صالح | B8: =أغسطس!B8 -> مأهول | C8: =أغسطس!C8 -> 124317243 | D8: 5000 | E8: =أغسطس!E8 -> 0 | F8: =أغسطس!F8 -> 0 | G8: 5000 | H8: =أغسطس!AC8 -> 0 | I8: =أغسطس!AD8 -> 0 | J8: =ROUND((أغسطس!AE8+أغسطس!AF8)/100,0)*100 -> 0 | K8: 0 | L8: 5000 | M8: 0 | N8: 5000 | O8: 5000 | P8: 0 | Q8: 0 | R8: 5000 | V8: 5000 | W8: 0 | X8: 0 | Y8: 0 | Z8: 0 | AA8: 0 | AB8: 5000 | AC8: 0 | AD8: 0 | AE8: 0 | AF8: 0 | AG8: 0 | AH8: تم السداد أو ليست عليه إلتزامات | AI8: سداد حتى نهاية سبتمبر 2025م.
A9: =أغسطس!A9 -> صلاح عبدالرحمن ود صالح | B9: =أغسطس!B9 -> مأهول | C9: =أغسطس!C9 -> 121347090 | D9: 5000 | E9: =أغسطس!E9 -> 2 | F9: =أغسطس!F9 -> 0 | G9: 5000 | H9: =أغسطس!AC9 -> 0 | I9: =أغسطس!AD9 -> 0 | J9: =ROUND((أغسطس!AE9+أغسطس!AF9)/100,0)*100 -> 0 | K9: 0 | L9: 5000 | M9: 0 | N9: 5000 | O9: 5000 | P9: 0 | Q9: 0 | R9: 5000 | V9: 5000 | W9: 2000 | X9: 0 | Y9: 0 | Z9: 0 | AA9: 0 | AB9: 7000 | AC9: 0 | AD9: -2000 | AE9: 0 | AF9: 0 | AG9: -2000 | AH9: له باقي طرفنا | AI9: سداد حتى نهاية سبتمبر 2025م.
A10: =أغسطس!A10 -> عبدالحي عبدالرحمن ودصالح | B10: =أغسطس!B10 -> مأهول | C10: =أغسطس!C10 -> 114114215 | D10: 5000 | E10: =أغسطس!E10 -> 0 | F10: =أغسطس!F10 -> 0 | G10: 5000 | H10: =أغسطس!AC10 -> 0 | I10: =أغسطس!AD10 -> 0 | J10: =ROUND((أغسطس!AE10+أغسطس!AF10)/100,0)*100 -> 0 | K10: 0 | L10: 5000 | M10: 0 | N10: 5000 | O10: 5000 | P10: 0 | Q10: 0 | R10: 5000 | V10: 5000 | W10: 0 | X10: 0 | Y10: 0 | Z10: 0 | AA10: 0 | AB10: 5000 | AC10: 0 | AD10: 0 | AE10: 0 | AF10: 0 | AG10: 0 | AH10: تم السداد أو ليست عليه إلتزامات | AI10: سداد حتى نهاية سبتمبر 2025م.
A11: =أغسطس!A11 -> فضل عبدالرحمن ودصالح | B11: =أغسطس!B11 -> مأهول | C11: =أغسطس!C11 -> 965527390 | D11: 5000 | E11: 4 | F11: 3 | G11: 9500 | H11: =أغسطس!AC11 -> 0 | I11: =أغسطس!AD11 -> 0 | J11: =ROUND((أغسطس!AE11+أغسطس!AF11)/100,0)*100 -> 0 | K11: 0 | L11: 5000 | M11: 4500 | N11: 9500 | O11: 5000 | P11: 4500 | Q11: 0 | R11: 9500 | V11: 5000 | W11: 4500 | X11: 0 | Y11: 0 | Z11: 0 | AA11: 0 | AB11: 9500 | AC11: 0 | AD11: 0 | AE11: 0 | AF11: 0 | AG11: 0 | AH11: تم السداد أو ليست عليه إلتزامات | AI11: سداد حتى نهاية سبتمبر 2025م.
A12: =أغسطس!A12 -> منزل المرحوم الزين ود صالح (العاقب) | B12: =أغسطس!B12 -> مأهول | C12: =أغسطس!C12 -> 917344140 | D12: 5000 | E12: 1 | F12: =أغسطس!F12 -> 0 | G12: 5000 | H12: =أغسطس!AC12 -> 0 | I12: =أغسطس!AD12 -> 0 | J12: =ROUND((أغسطس!AE12+أغسطس!AF12)/100,0)*100 -> 0 | K12: 0 | L12: 5000 | M12: 0 | N12: 5000 | O12: 5000 | P12: 0 | Q12: 0 | R12: 5000 | V12: 5000 | W12: 0 | X12: 0 | Y12: 0 | Z12: 0 | AA12: 0 | AB12: 5000 | AC12: 0 | AD12: 0 | AE12: 0 | AF12: 0 | AG12: 0 | AH12: تم السداد أو ليست عليه إلتزامات | AI12: سداد حتى نهاية سبتمبر 2025م.
A13: =أغسطس!A13 -> مهدي الزين | B13: =أغسطس!B13 -> مأهول | C13: =أغسطس!C13 -> 913099777 | D13: 5000 | E13: =أغسطس!E13 -> 2 | F13: =أغسطس!F13 -> 0 | G13: 5000 | H13: =أغسطس!AC13 -> 0 | I13: =أغسطس!AD13 -> 0 | J13: =ROUND((أغسطس!AE13+أغسطس!AF13)/100,0)*100 -> 0 | K13: 0 | L13: 5000 | M13: 0 | N13: 5000 | O13: 5000 | P13: 0 | Q13: 0 | R13: 5000 | V13: 5000 | W13: 2000 | X13: 0 | Y13: 0 | Z13: 0 | AA13: 0 | AB13: 7000 | AC13: 0 | AD13: -2000 | AE13: 0 | AF13: 0 | AG13: -2000 | AH13: له باقي طرفنا | AI13: سداد حتى نهاية سبتمبر 2025م.
A14: =أغسطس!A14 -> محمد السيد | B14: =أغسطس!B14 -> مأهول | C14: =أغسطس!C14 -> 917636525 | D14: 5000 | E14: 1 | F14: =أغسطس!F14 -> 0 | G14: 5000 | H14: =أغسطس!AC14 -> 0 | I14: =أغسطس!AD14 -> 0 | J14: =ROUND((أغسطس!AE14+أغسطس!AF14)/100,0)*100 -> 0 | K14: 0 | L14: 5000 | M14: 0 | N14: 5000 | O14: 5000 | P14: 0 | Q14: 0 | R14: 5000 | V14: 5000 | W14: 0 | X14: 0 | Y14: 0 | Z14: 0 | AA14: 0 | AB14: 5000 | AC14: 0 | AD14: 0 | AE14: 0 | AF14: 0 | AG14: 0 | AH14: تم السداد أو ليست عليه إلتزامات | AI14: سداد حتى نهاية سبتمبر 2025م.
A15: =أغسطس!A15 -> هشام محمد السيد | B15: =أغسطس!B15 -> مأهول | C15: =أغسطس!C15 -> 915778117 | D15: 5000 | E15: =أغسطس!E15 -> 4 | F15: 5 | G15: 12500 | H15: =أغسطس!AC15 -> 0 | I15: =أغسطس!AD15 -> 0 | J15: =ROUND((أغسطس!AE15+أغسطس!AF15)/100,0)*100 -> 0 | K15: 0 | L15: 5000 | M15: 7500 | N15: 12500 | O15: 5000 | P15: 7500 | Q15: 0 | R15: 12500 | V15: 5000 | W15: 7500 | X15: 0 | Y15: 0 | Z15: 0 | AA15: 0 | AB15: 12500 | AC15: 0 | AD15: 0 | AE15: 0 | AF15: 0 | AG15: 0 | AH15: تم السداد أو ليست عليه إلتزامات | AI15: سداد حتى نهاية سبتمبر 2025م.
A16: =أغسطس!A16 -> عصام محمد السيد (أ) | B16: =أغسطس!B16 -> مأهول | C16: =أغسطس!C16 -> 915896866 | D16: 5000 | E16: =أغسطس!E16 -> 1 | F16: =أغسطس!F16 -> 0 | G16: 5000 | H16: =أغسطس!AC16 -> 0 | I16: =أغسطس!AD16 -> 0 | J16: =ROUND((أغسطس!AE16+أغسطس!AF16)/100,0)*100 -> 0 | K16: 0 | L16: 5000 | M16: 0 | N16: 5000 | O16: 5000 | P16: 0 | Q16: 0 | R16: 5000 | V16: 5000 | W16: 1000 | X16: 0 | Y16: 0 | Z16: 0 | AA16: 0 | AB16: 6000 | AC16: 0 | AD16: -1000 | AE16: 0 | AF16: 0 | AG16: -1000 | AH16: له باقي طرفنا | AI16: سداد حتى نهاية سبتمبر 2025م.
A17: =أغسطس!A17 -> عبدالله الأنصاري | B17: =أغسطس!B17 -> مغلق | C17: =أغسطس!C17 -> 911101791 | D17: 0 | E17: =أغسطس!E17 -> 3 | F17: =أغسطس!F17 -> 0 | G17: 0 | H17: =أغسطس!AC17 -> 0 | I17: =أغسطس!AD17 -> 0 | J17: =ROUND((أغسطس!AE17+أغسطس!AF17)/100,0)*100 -> 0 | K17: 0 | L17: 0 | M17: 0 | N17: 0 | O17: 0 | P17: 0 | Q17: 0 | R17: 0 | AB17: 0 | AC17: 0 | AD17: 0 | AE17: 0 | AF17: 0 | AG17: 0 | AH17: تم السداد أو ليست عليه إلتزامات | AI17: =أغسطس!AI17 -> سداد حتى نهاية يونيو 2025م ، وبعدها مغلق .
A18: =أغسطس!A18 -> عماد محمد سعيد | B18: =أغسطس!B18 -> مأهول | C18: =أغسطس!C18 -> 911113020 | D18: 5000 | E18: 2 | F18: =أغسطس!F18 -> 0 | G18: 5000 | H18: =أغسطس!AC18 -> 0 | I18: =أغسطس!AD18 -> 0 | J18: =ROUND((أغسطس!AE18+أغسطس!AF18)/100,0)*100 -> 0 | K18: 0 | L18: 5000 | M18: 0 | N18: 5000 | O18: 5000 | P18: 0 | Q18: 0 | R18: 5000 | V18: 5000 | W18: 3000 | X18: 0 | Y18: 0 | Z18: 0 | AA18: 0 | AB18: 8000 | AC18: 0 | AD18: -3000 | AE18: 0 | AF18: 0 | AG18: -3000 | AH18: له باقي طرفنا | AI18: سداد حتى نهاية سبتمبر 2025م.
A19: =أغسطس!A19 -> ماهر محمد صالح | B19: =أغسطس!B19 -> معفي | C19: =أغسطس!C19 -> 962864495 | D19: 0 | E19: =أغسطس!E19 -> 1 | F19: =أغسطس!F19 -> 0 | G19: 0 | H19: =أغسطس!AC19 -> 0 | I19: =أغسطس!AD19 -> 0 | J19: =ROUND((أغسطس!AE19+أغسطس!AF19)/100,0)*100 -> 0 | K19: 0 | L19: 0 | M19: 0 | N19: 0 | O19: 0 | P19: 0 | Q19: 0 | R19: 0 | V19: 0 | W19: 0 | X19: 0 | Y19: 0 | Z19: 0 | AA19: 0 | AB19: 0 | AC19: 0 | AD19: 0 | AE19: 0 | AF19: 0 | AG19: 0 | AH19: تم السداد أو ليست عليه إلتزامات | AI19: =أغسطس!AI19 -> معفي
A20: =أغسطس!A20 -> منزل المرحوم محمد عبدالله فيك الخير (صالح جرمور) | B20: =أغسطس!B20 -> إعفاء | C20: =أغسطس!C20 -> 915857673 | D20: 0 | E20: =أغسطس!E20 -> 0 | F20: =أغسطس!F20 -> 0 | G20: 0 | H20: =أغسطس!AC20 -> 0 | I20: =أغسطس!AD20 -> 0 | J20: =ROUND((أغسطس!AE20+أغسطس!AF20)/100,0)*100 -> 0 | K20: 0 | L20: 0 | M20: 0 | N20: 0 | O20: 0 | P20: 0 | Q20: 0 | R20: 0 | AB20: 0 | AC20: 0 | AD20: 0 | AE20: 0 | AF20: 0 | AG20: 0 | AH20: تم السداد أو ليست عليه إلتزامات | AI20: =أغسطس!AI20 -> معفي
A21: =أغسطس!A21 -> ناصر إدريس السيد (عماد إبراهيم السيد) | B21: =أغسطس!B21 -> مأهول | C21: =أغسطس!C21 -> 111914245 | D21: 5000 | E21: =أغسطس!E21 -> 0 | F21: =أغسطس!F21 -> 0 | G21: 5000 | H21: =أغسطس!AC21 -> 0 | I21: =أغسطس!AD21 -> 0 | J21: =ROUND((أغسطس!AE21+أغسطس!AF21)/100,0)*100 -> 0 | K21: 0 | L21: 5000 | M21: 0 | N21: 5000 | O21: 5000 | P21: 0 | Q21: 0 | R21: 5000 | V21: 5000 | W21: 0 | X21: 0 | Y21: 0 | Z21: 0 | AA21: 0 | AB21: 5000 | AC21: 0 | AD21: 0 | AE21: 0 | AF21: 0 | AG21: 0 | AH21: تم السداد أو ليست عليه إلتزامات | AI21: سداد حتى نهاية سبتمبر 2025م.
A22: =أغسطس!A22 -> محمدعلي الفقير | B22: =أغسطس!B22 -> مأهول | C22: =أغسطس!C22 -> 910204066 | D22: 5000 | E22: =أغسطس!E22 -> 3 | F22: =أغسطس!F22 -> 0 | G22: 5000 | H22: =أغسطس!AC22 -> 0 | I22: =أغسطس!AD22 -> 0 | J22: =ROUND((أغسطس!AE22+أغسطس!AF22)/100,0)*100 -> 0 | K22: 0 | L22: 5000 | M22: 0 | N22: 5000 | O22: 5000 | P22: 0 | Q22: 0 | R22: 5000 | V22: 5000 | W22: 3000 | X22: 0 | Y22: 0 | Z22: 0 | AA22: 0 | AB22: 8000 | AC22: 0 | AD22: -3000 | AE22: 0 | AF22: 0 | AG22: -3000 | AH22: له باقي طرفنا | AI22: سداد حتى نهاية سبتمبر 2025م.
A23: =أغسطس!A23 -> محمد محمدعلي الفقير | B23: =أغسطس!B23 -> مأهول | C23: =أغسطس!C23 -> 965199199 | D23: 5000 | E23: =أغسطس!E23 -> 0 | F23: =أغسطس!F23 -> 0 | G23: 5000 | H23: =أغسطس!AC23 -> 0 | I23: =أغسطس!AD23 -> 0 | J23: =ROUND((أغسطس!AE23+أغسطس!AF23)/100,0)*100 -> 0 | K23: 0 | L23: 5000 | M23: 0 | N23: 5000 | O23: 5000 | P23: 0 | Q23: 0 | R23: 5000 | V23: 5000 | W23: 0 | X23: 0 | Y23: 0 | Z23: 0 | AA23: 0 | AB23: 5000 | AC23: 0 | AD23: 0 | AE23: 0 | AF23: 0 | AG23: 0 | AH23: تم السداد أو ليست عليه إلتزامات | AI23: سداد حتى نهاية سبتمبر 2025م.
A24: =أغسطس!A24 -> طه محمدعلي الفقير | B24: =أغسطس!B24 -> مأهول | C24: =أغسطس!C24 -> 112437426 | D24: 5000 | E24: 3 | F24: =أغسطس!F24 -> 0 | G24: 5000 | H24: =أغسطس!AC24 -> -5000 | I24: =أغسطس!AD24 -> 0 | J24: =ROUND((أغسطس!AE24+أغسطس!AF24)/100,0)*100 -> 0 | K24: -5000 | L24: 5000 | M24: 0 | N24: 5000 | O24: 0 | P24: 0 | Q24: 0 | R24: 0 | S24: 2025-10-04 | V24: 5000 | W24: 2000 | X24: 0 | Y24: 0 | Z24: 0 | AA24: 0 | AB24: 7000 | AC24: -5000 | AD24: -2000 | AE24: 0 | AF24: 0 | AG24: -7000 | AH24: له باقي طرفنا | AI24: له (5000) جنيه، وسداد حتى نهاية سبتمبر 2025م.
A25: =أغسطس!A25 -> عبدالله محمد حمد (أ) | B25: =أغسطس!B25 -> مأهول | C25: =أغسطس!C25 -> 118561564 | D25: 5000 | E25: 0 | F25: =أغسطس!F25 -> 0 | G25: 5000 | H25: =أغسطس!AC25 -> 0 | I25: =أغسطس!AD25 -> 0 | J25: =ROUND((أغسطس!AE25+أغسطس!AF25)/100,0)*100 -> 0 | K25: 0 | L25: 5000 | M25: 0 | N25: 5000 | O25: 5000 | P25: 0 | Q25: 0 | R25: 5000 | V25: 5000 | W25: 3000 | X25: 0 | Y25: 0 | Z25: 0 | AA25: 0 | AB25: 8000 | AC25: 0 | AD25: -3000 | AE25: 0 | AF25: 0 | AG25: -3000 | AH25: له باقي طرفنا | AI25: سداد حتى نهاية سبتمبر 2025م.
A26: =أغسطس!A26 -> عبدالله محمد حمد (ب) | B26: =أغسطس!B26 -> مأهول | C26: =أغسطس!C26 -> 118561564 | D26: 5000 | E26: 1 | F26: =أغسطس!F26 -> 0 | G26: 5000 | H26: =أغسطس!AC26 -> 0 | I26: =أغسطس!AD26 -> 0 | J26: =ROUND((أغسطس!AE26+أغسطس!AF26)/100,0)*100 -> 0 | K26: 0 | L26: 5000 | M26: 0 | N26: 5000 | O26: 5000 | P26: 0 | Q26: 0 | R26: 5000 | V26: 5000 | W26: 3000 | X26: 0 | Y26: 0 | Z26: 0 | AA26: 0 | AB26: 8000 | AC26: 0 | AD26: -3000 | AE26: 0 | AF26: 0 | AG26: -3000 | AH26: له باقي طرفنا | AI26: سداد حتى نهاية سبتمبر 2025م.
A27: =أغسطس!A27 -> محمد عبدالله محمد حمد (بابا) | B27: =أغسطس!B27 -> مأهول | C27: =أغسطس!C27 -> 118561564 | D27: 5000 | E27: =أغسطس!E27 -> 0 | F27: =أغسطس!F27 -> 0 | G27: 5000 | H27: =أغسطس!AC27 -> 0 | I27: =أغسطس!AD27 -> 0 | J27: =ROUND((أغسطس!AE27+أغسطس!AF27)/100,0)*100 -> 0 | K27: 0 | L27: 5000 | M27: 0 | N27: 5000 | O27: 5000 | P27: 0 | Q27: 0 | R27: 5000 | S27: 2025-10-05 | V27: 5000 | W27: 0 | X27: 0 | Y27: 0 | Z27: 0 | AA27: 0 | AB27: 5000 | AC27: 0 | AD27: 0 | AE27: 0 | AF27: 0 | AG27: 0 | AH27: تم السداد أو ليست عليه إلتزامات | AI27: سداد حتى نهاية سبتمبر 2025م.
A28: =أغسطس!A28 -> منذر عبدالله محمد حمد | B28: =أغسطس!B28 -> مأهول | C28: =أغسطس!C28 -> 118561564 | D28: 5000 | E28: 1 | F28: =أغسطس!F28 -> 0 | G28: 5000 | H28: =أغسطس!AC28 -> 1000 | I28: =أغسطس!AD28 -> 0 | J28: =ROUND((أغسطس!AE28+أغسطس!AF28)/100,0)*100 -> 0 | K28: 1000 | L28: 5000 | M28: 0 | N28: 5000 | O28: 6000 | P28: 0 | Q28: 0 | R28: 6000 | S28: 2025-10-05 | V28: 6000 | W28: 2000 | X28: 0 | Y28: 0 | Z28: 0 | AA28: 0 | AB28: 8000 | AC28: 0 | AD28: -2000 | AE28: 0 | AF28: 0 | AG28: -2000 | AH28: له باقي طرفنا | AI28: سداد حتى نهاية سبتمبر 2025م.
A29: =أغسطس!A29 -> الباقر عبدالله أنصار | B29: =أغسطس!B29 -> مأهول | C29: =أغسطس!C29 -> 0 | D29: 5000 | E29: =أغسطس!E29 -> 0 | F29: =أغسطس!F29 -> 0 | G29: 5000 | H29: =أغسطس!AC29 -> 0 | I29: =أغسطس!AD29 -> 0 | J29: =ROUND((أغسطس!AE29+أغسطس!AF29)/100,0)*100 -> 0 | K29: 0 | L29: 5000 | M29: 0 | N29: 5000 | O29: 5000 | P29: 0 | Q29: 0 | R29: 5000 | V29: 5000 | W29: 0 | X29: 0 | Y29: 0 | Z29: 0 | AA29: 0 | AB29: 5000 | AC29: 0 | AD29: 0 | AE29: 0 | AF29: 0 | AG29: 0 | AH29: تم السداد أو ليست عليه إلتزامات | AI29: سداد حتى نهاية سبتمبر 2025م.
A30: =أغسطس!A30 -> خالد أحمد صالح ودصالح | B30: =أغسطس!B30 -> جديد | C30: =أغسطس!C30 -> 0 | D30: 0 | E30: =أغسطس!E30 -> 0 | F30: =أغسطس!F30 -> 0 | G30: 0 | H30: =أغسطس!AC30 -> 0 | I30: =أغسطس!AD30 -> 0 | J30: =ROUND((أغسطس!AE30+أغسطس!AF30)/100,0)*100 -> 0 | K30: 0 | L30: 0 | M30: 0 | N30: 0 | O30: 0 | P30: 0 | Q30: 0 | R30: 0 | AB30: 0 | AC30: 0 | AD30: 0 | AE30: 0 | AF30: 0 | AG30: 0 | AH30: تم السداد أو ليست عليه إلتزامات | AI30: =أغسطس!AI30 -> 0
A31: =أغسطس!A31 -> عبدالله صالح حامنتود | B31: =أغسطس!B31 -> جديد | C31: =أغسطس!C31 -> 0 | D31: 0 | E31: =أغسطس!E31 -> 0 | F31: =أغسطس!F31 -> 0 | G31: 0 | H31: =أغسطس!AC31 -> 0 | I31: =أغسطس!AD31 -> 0 | J31: =ROUND((أغسطس!AE31+أغسطس!AF31)/100,0)*100 -> 0 | K31: 0 | L31: 0 | M31: 0 | N31: 0 | O31: 0 | P31: 0 | Q31: 0 | R31: 0 | AB31: 0 | AC31: 0 | AD31: 0 | AE31: 0 | AF31: 0 | AG31: 0 | AH31: تم السداد أو ليست عليه إلتزامات | AI31: =أغسطس!AI31 -> توصيل جديد
A32: =أغسطس!A32 -> عبدالرحمن جمال عبدالرحمن | B32: =أغسطس!B32 -> 0 | C32: =أغسطس!C32 -> 0 | D32: =IF(B32="مأهول",5000,0) -> 0 | E32: =أغسطس!E32 -> 0 | F32: =أغسطس!F32 -> 0 | G32: 0 | H32: =أغسطس!AC32 -> 0 | I32: =أغسطس!AD32 -> 0 | J32: =ROUND((أغسطس!AE32+أغسطس!AF32)/100,0)*100 -> 0 | K32: =ROUND((SUM(H32:J32))/100,0)*100 -> 0 | L32: =D32 -> 0 | M32: 0 | N32: =SUM(L32:M32) -> 0 | O32: =ROUND((H32+L32)/100,0)*100 -> 0 | P32: =ROUND((I32+M32)/100,0)*100 -> 0 | Q32: =J32 -> 0 | R32: =ROUND((SUM(O32:Q32))/100,0)*100 -> 0 | AB32: =SUM(V32:AA32) -> 0 | AC32: =ROUND((O32-V32)/100,0)*100 -> 0 | AD32: =ROUND((P32-W32)/100,0)*100 -> 0 | AE32: =ROUND((Q32-Z32)/100,0)*100 -> 0 | AF32: =(IF(SUM(AC32:AE32)>0,IF(AB32<0,0,ROUND((SUM(AC32:AE32)/2)/100,0)*100),0)) -> 0 | AG32: =ROUND(SUM(AC32:AF32)/50,0)*50 -> 0 | AH32: =IF(A32<>"",_xlfn.IFS(AG32>(G32*3),"مفصول",AG32=0,"تم السداد أو ليست عليه إلتزامات",AG32<0,"له باقي طرفنا",0<AG32>(G32*3),"لم يتم السداد"),"") -> تم السداد أو ليست عليه إلتزامات | AI32: =أغسطس!AI32 -> للمراجعة مع المتحصل
A33: =أغسطس!A33 -> محمد صالح | B33: =أغسطس!B33 -> 0 | C33: =أغسطس!C33 -> 0 | D33: 0 | E33: =أغسطس!E33 -> 0 | F33: =أغسطس!F33 -> 0 | G33: 0 | H33: =أغسطس!AC33 -> 0 | I33: =أغسطس!AD33 -> 0 | J33: =ROUND((أغسطس!AE33+أغسطس!AF33)/100,0)*100 -> 0 | K33: 0 | L33: 0 | M33: 0 | N33: 0 | O33: 0 | P33: 0 | Q33: 0 | R33: 0 | AB33: 0 | AC33: 0 | AD33: 0 | AE33: 0 | AF33: 0 | AG33: 0 | AH33: تم السداد أو ليست عليه إلتزامات | AI33: =أغسطس!AI33 -> للمراجعة مع المتحصل
A34: =أغسطس!A34 -> أنور محي الدين (1) | B34: =أغسطس!B34 -> 0 | C34: =أغسطس!C34 -> 0 | D34: 0 | E34: =أغسطس!E34 -> 0 | F34: =أغسطس!F34 -> 0 | G34: 0 | H34: =أغسطس!AC34 -> 0 | I34: =أغسطس!AD34 -> 0 | J34: =ROUND((أغسطس!AE34+أغسطس!AF34)/100,0)*100 -> 0 | K34: 0 | L34: 0 | M34: 0 | N34: 0 | O34: 0 | P34: 0 | Q34: 0 | R34: 0 | AB34: 0 | AC34: 0 | AD34: 0 | AE34: 0 | AF34: 0 | AG34: 0 | AH34: تم السداد أو ليست عليه إلتزامات | AI34: =أغسطس!AI34 -> للمراجعة مع المتحصل
A35: =أغسطس!A35 -> أنور محي الدين (2) | B35: =أغسطس!B35 -> 0 | C35: =أغسطس!C35 -> 0 | D35: 0 | E35: =أغسطس!E35 -> 0 | F35: =أغسطس!F35 -> 0 | G35: 0 | H35: =أغسطس!AC35 -> 0 | I35: =أغسطس!AD35 -> 0 | J35: =ROUND((أغسطس!AE35+أغسطس!AF35)/100,0)*100 -> 0 | K35: 0 | L35: 0 | M35: 0 | N35: 0 | O35: 0 | P35: 0 | Q35: 0 | R35: 0 | AB35: 0 | AC35: 0 | AD35: 0 | AE35: 0 | AF35: 0 | AG35: 0 | AH35: تم السداد أو ليست عليه إلتزامات | AI35: =أغسطس!AI35 -> للمراجعة مع المتحصل
A36: =أغسطس!A36 -> أنور محي الدين (3) | B36: =أغسطس!B36 -> 0 | C36: =أغسطس!C36 -> 0 | D36: 0 | E36: =أغسطس!E36 -> 0 | F36: =أغسطس!F36 -> 0 | G36: 0 | H36: =أغسطس!AC36 -> 0 | I36: =أغسطس!AD36 -> 0 | J36: =ROUND((أغسطس!AE36+أغسطس!AF36)/100,0)*100 -> 0 | K36: 0 | L36: 0 | M36: 0 | N36: 0 | O36: 0 | P36: 0 | Q36: 0 | R36: 0 | AB36: 0 | AC36: 0 | AD36: 0 | AE36: 0 | AF36: 0 | AG36: 0 | AH36: تم السداد أو ليست عليه إلتزامات | AI36: =أغسطس!AI36 -> للمراجعة مع المتحصل
A37: =أغسطس!A37 -> جلال أنور | B37: =أغسطس!B37 -> 0 | C37: =أغسطس!C37 -> 0 | D37: 0 | E37: =أغسطس!E37 -> 0 | F37: =أغسطس!F37 -> 0 | G37: 0 | H37: =أغسطس!AC37 -> 0 | I37: =أغسطس!AD37 -> 0 | J37: =ROUND((أغسطس!AE37+أغسطس!AF37)/100,0)*100 -> 0 | K37: 0 | L37: 0 | M37: 0 | N37: 0 | O37: 0 | P37: 0 | Q37: 0 | R37: 0 | AB37: 0 | AC37: 0 | AD37: 0 | AE37: 0 | AF37: 0 | AG37: 0 | AH37: تم السداد أو ليست عليه إلتزامات | AI37: =أغسطس!AI37 -> للمراجعة مع المتحصل
A38: =أغسطس!A38 -> محسن فتحي | B38: =أغسطس!B38 -> 0 | C38: =أغسطس!C38 -> 0 | D38: 0 | E38: =أغسطس!E38 -> 0 | F38: =أغسطس!F38 -> 0 | G38: 0 | H38: =أغسطس!AC38 -> 0 | I38: =أغسطس!AD38 -> 0 | J38: =ROUND((أغسطس!AE38+أغسطس!AF38)/100,0)*100 -> 0 | K38: 0 | L38: 0 | M38: 0 | N38: 0 | O38: 0 | P38: 0 | Q38: 0 | R38: 0 | AB38: 0 | AC38: 0 | AD38: 0 | AE38: 0 | AF38: 0 | AG38: 0 | AH38: تم السداد أو ليست عليه إلتزامات | AI38: =أغسطس!AI38 -> للمراجعة مع المتحصل
A39: =أغسطس!A39 -> معتز صالح | B39: =أغسطس!B39 -> 0 | C39: =أغسطس!C39 -> 0 | D39: 0 | E39: =أغسطس!E39 -> 0 | F39: =أغسطس!F39 -> 0 | G39: 0 | H39: =أغسطس!AC39 -> 0 | I39: =أغسطس!AD39 -> 0 | J39: =ROUND((أغسطس!AE39+أغسطس!AF39)/100,0)*100 -> 0 | K39: 0 | L39: 0 | M39: 0 | N39: 0 | O39: 0 | P39: 0 | Q39: 0 | R39: 0 | AB39: 0 | AC39: 0 | AD39: 0 | AE39: 0 | AF39: 0 | AG39: 0 | AH39: تم السداد أو ليست عليه إلتزامات | AI39: =أغسطس!AI39 -> للمراجعة مع المتحصل
A40: =أغسطس!A40 -> صالح النور | B40: =أغسطس!B40 -> 0 | C40: =أغسطس!C40 -> 0 | D40: 0 | E40: =أغسطس!E40 -> 1 | F40: =أغسطس!F40 -> 0 | G40: 0 | H40: =أغسطس!AC40 -> 0 | I40: =أغسطس!AD40 -> 0 | J40: =ROUND((أغسطس!AE40+أغسطس!AF40)/100,0)*100 -> 0 | K40: 0 | L40: 0 | M40: 0 | N40: 0 | O40: 0 | P40: 0 | Q40: 0 | R40: 0 | AB40: 0 | AC40: 0 | AD40: 0 | AE40: 0 | AF40: 0 | AG40: 0 | AH40: تم السداد أو ليست عليه إلتزامات | AI40: =أغسطس!AI40 -> للمراجعة مع المتحصل
A41: =أغسطس!A41 -> محمد إدريس | B41: =أغسطس!B41 -> 0 | C41: =أغسطس!C41 -> 0 | D41: 0 | E41: =أغسطس!E41 -> 0 | F41: =أغسطس!F41 -> 0 | G41: 0 | H41: =أغسطس!AC41 -> 0 | I41: =أغسطس!AD41 -> 0 | J41: =ROUND((أغسطس!AE41+أغسطس!AF41)/100,0)*100 -> 0 | K41: 0 | L41: 0 | M41: 0 | N41: 0 | O41: 0 | P41: 0 | Q41: 0 | R41: 0 | AB41: 0 | AC41: 0 | AD41: 0 | AE41: 0 | AF41: 0 | AG41: 0 | AH41: تم السداد أو ليست عليه إلتزامات | AI41: =أغسطس!AI41 -> للمراجعة مع المتحصل
A42: =أغسطس!A42 -> عمر محمد السيد | B42: =أغسطس!B42 -> 0 | C42: =أغسطس!C42 -> 0 | D42: 0 | E42: =أغسطس!E42 -> 3 | F42: =أغسطس!F42 -> 0 | G42: 0 | H42: =أغسطس!AC42 -> 0 | I42: =أغسطس!AD42 -> 0 | J42: =ROUND((أغسطس!AE42+أغسطس!AF42)/100,0)*100 -> 0 | K42: 0 | L42: 0 | M42: 0 | N42: 0 | O42: 0 | P42: 0 | Q42: 0 | R42: 0 | AB42: 0 | AC42: 0 | AD42: 0 | AE42: 0 | AF42: 0 | AG42: 0 | AH42: تم السداد أو ليست عليه إلتزامات | AI42: =أغسطس!AI42 -> للمراجعة مع المتحصل
A43: =أغسطس!A43 -> منزل المرحوم إدريس السيد | B43: =أغسطس!B43 -> 0 | C43: =أغسطس!C43 -> 0 | D43: 0 | E43: =أغسطس!E43 -> 0 | F43: =أغسطس!F43 -> 0 | G43: 0 | H43: =أغسطس!AC43 -> 0 | I43: =أغسطس!AD43 -> 0 | J43: =ROUND((أغسطس!AE43+أغسطس!AF43)/100,0)*100 -> 0 | K43: 0 | L43: 0 | M43: 0 | N43: 0 | O43: 0 | P43: 0 | Q43: 0 | R43: 0 | AB43: 0 | AC43: 0 | AD43: 0 | AE43: 0 | AF43: 0 | AG43: 0 | AH43: تم السداد أو ليست عليه إلتزامات | AI43: =أغسطس!AI43 -> للمراجعة مع المتحصل
A44: =أغسطس!A44 -> صفوان مهدي الزين | B44: =أغسطس!B44 -> 0 | C44: =أغسطس!C44 -> 0 | D44: 0 | E44: =أغسطس!E44 -> 4 | F44: =أغسطس!F44 -> 6 | G44: 9000 | H44: =أغسطس!AC44 -> 0 | I44: =أغسطس!AD44 -> 600 | J44: =ROUND((أغسطس!AE44+أغسطس!AF44)/100,0)*100 -> 0 | K44: 600 | L44: 0 | M44: 9000 | N44: 9000 | O44: 0 | P44: 9600 | Q44: 0 | R44: 9600 | AB44: 0 | AC44: 0 | AD44: 9600 | AE44: 0 | AF44: 0 | AG44: 9600 | AH44: لم يتم السداد | AI44: =أغسطس!AI44 -> للمراجعة مع المتحصل
A45: =أغسطس!A45 -> أحمد صالح | B45: =أغسطس!B45 -> 0 | C45: =أغسطس!C45 -> 0 | D45: 0 | E45: =أغسطس!E45 -> 2 | F45: =أغسطس!F45 -> 0 | G45: 0 | H45: =أغسطس!AC45 -> 0 | I45: =أغسطس!AD45 -> 0 | J45: =ROUND((أغسطس!AE45+أغسطس!AF45)/100,0)*100 -> 0 | K45: 0 | L45: 0 | M45: 0 | N45: 0 | O45: 0 | P45: 0 | Q45: 0 | R45: 0 | AB45: 0 | AC45: 0 | AD45: 0 | AE45: 0 | AF45: 0 | AG45: 0 | AH45: تم السداد أو ليست عليه إلتزامات | AI45: =أغسطس!AI45 -> للمراجعة مع المتحصل
A46: =أغسطس!A46 -> محجوب محمد صالح | B46: =أغسطس!B46 -> 0 | C46: =أغسطس!C46 -> 0 | D46: 0 | E46: =أغسطس!E46 -> 3 | F46: =أغسطس!F46 -> 0 | G46: 0 | H46: =أغسطس!AC46 -> 0 | I46: =أغسطس!AD46 -> 0 | J46: =ROUND((أغسطس!AE46+أغسطس!AF46)/100,0)*100 -> 0 | K46: 0 | L46: 0 | M46: 0 | N46: 0 | O46: 0 | P46: 0 | Q46: 0 | R46: 0 | AB46: 0 | AC46: 0 | AD46: 0 | AE46: 0 | AF46: 0 | AG46: 0 | AH46: تم السداد أو ليست عليه إلتزامات | AI46: =أغسطس!AI46 -> للمراجعة مع المتحصل
A47: =أغسطس!A47 -> عادل عبدالله | B47: =أغسطس!B47 -> 0 | C47: =أغسطس!C47 -> 0 | D47: 0 | E47: =أغسطس!E47 -> 11 | F47: =أغسطس!F47 -> 0 | G47: 0 | H47: =أغسطس!AC47 -> 0 | I47: =أغسطس!AD47 -> 0 | J47: =ROUND((أغسطس!AE47+أغسطس!AF47)/100,0)*100 -> 0 | K47: 0 | L47: 0 | M47: 0 | N47: 0 | O47: 0 | P47: 0 | Q47: 0 | R47: 0 | AB47: 0 | AC47: 0 | AD47: 0 | AE47: 0 | AF47: 0 | AG47: 0 | AH47: تم السداد أو ليست عليه إلتزامات | AI47: =أغسطس!AI47 -> للمراجعة مع المتحصل
A48: =أغسطس!A48 -> حسن الزين ودصالح | B48: =أغسطس!B48 -> 0 | C48: =أغسطس!C48 -> 0 | D48: 0 | E48: =أغسطس!E48 -> 2 | F48: =أغسطس!F48 -> 0 | G48: 0 | H48: =أغسطس!AC48 -> 0 | I48: =أغسطس!AD48 -> 0 | J48: =ROUND((أغسطس!AE48+أغسطس!AF48)/100,0)*100 -> 0 | K48: 0 | L48: 0 | M48: 0 | N48: 0 | O48: 0 | P48: 0 | Q48: 0 | R48: 0 | AB48: 0 | AC48: 0 | AD48: 0 | AE48: 0 | AF48: 0 | AG48: 0 | AH48: تم السداد أو ليست عليه إلتزامات | AI48: =أغسطس!AI48 -> للمراجعة مع المتحصل
A49: =أغسطس!A49 -> أحمد محجوب | B49: =أغسطس!B49 -> 0 | C49: =أغسطس!C49 -> 0 | D49: 0 | E49: =أغسطس!E49 -> 1 | F49: =أغسطس!F49 -> 0 | G49: 0 | H49: =أغسطس!AC49 -> 0 | I49: =أغسطس!AD49 -> 0 | J49: =ROUND((أغسطس!AE49+أغسطس!AF49)/100,0)*100 -> 0 | K49: 0 | L49: 0 | M49: 0 | N49: 0 | O49: 0 | P49: 0 | Q49: 0 | R49: 0 | AB49: 0 | AC49: 0 | AD49: 0 | AE49: 0 | AF49: 0 | AG49: 0 | AH49: تم السداد أو ليست عليه إلتزامات | AI49: =أغسطس!AI49 -> للمراجعة مع المتحصل
A50: =أغسطس!A50 -> راشد ودحجه | B50: =أغسطس!B50 -> 0 | C50: =أغسطس!C50 -> 0 | D50: 0 | E50: =أغسطس!E50 -> 0 | F50: =أغسطس!F50 -> 0 | G50: 0 | H50: =أغسطس!AC50 -> 0 | I50: =أغسطس!AD50 -> 0 | J50: =ROUND((أغسطس!AE50+أغسطس!AF50)/100,0)*100 -> 0 | K50: 0 | L50: 0 | M50: 0 | N50: 0 | O50: 0 | P50: 0 | Q50: 0 | R50: 0 | AB50: 0 | AC50: 0 | AD50: 0 | AE50: 0 | AF50: 0 | AG50: 0 | AH50: تم السداد أو ليست عليه إلتزامات | AI50: =أغسطس!AI50 -> للمراجعة مع المتحصل
A51: =أغسطس!A51 -> محمد صلاح | B51: =أغسطس!B51 -> 0 | C51: =أغسطس!C51 -> 0 | D51: 0 | E51: =أغسطس!E51 -> 0 | F51: =أغسطس!F51 -> 0 | G51: 0 | H51: =أغسطس!AC51 -> 0 | I51: =أغسطس!AD51 -> 0 | J51: =ROUND((أغسطس!AE51+أغسطس!AF51)/100,0)*100 -> 0 | K51: 0 | L51: 0 | M51: 0 | N51: 0 | O51: 0 | P51: 0 | Q51: 0 | R51: 0 | AB51: 0 | AC51: 0 | AD51: 0 | AE51: 0 | AF51: 0 | AG51: 0 | AH51: تم السداد أو ليست عليه إلتزامات | AI51: =أغسطس!AI51 -> للمراجعة مع المتحصل
A52: =أغسطس!A52 -> الفاضل محمدعلي | B52: =أغسطس!B52 -> 0 | C52: =أغسطس!C52 -> 0 | D52: 0 | E52: =أغسطس!E52 -> 0 | F52: =أغسطس!F52 -> 0 | G52: 0 | H52: =أغسطس!AC52 -> 0 | I52: =أغسطس!AD52 -> 0 | J52: =ROUND((أغسطس!AE52+أغسطس!AF52)/100,0)*100 -> 0 | K52: 0 | L52: 0 | M52: 0 | N52: 0 | O52: 0 | P52: 0 | Q52: 0 | R52: 0 | AB52: 0 | AC52: 0 | AD52: 0 | AE52: 0 | AF52: 0 | AG52: 0 | AH52: تم السداد أو ليست عليه إلتزامات | AI52: =أغسطس!AI52 -> للمراجعة مع المتحصل | AK52: الإجمالي | AM52: =SUM(AM3:AM51) -> 20000
A53: =أغسطس!A53 -> سعاد ودحجه | B53: =أغسطس!B53 -> 0 | C53: =أغسطس!C53 -> 0 | D53: 0 | E53: =أغسطس!E53 -> 2 | F53: =أغسطس!F53 -> 0 | G53: 0 | H53: =أغسطس!AC53 -> 0 | I53: =أغسطس!AD53 -> 0 | J53: =ROUND((أغسطس!AE53+أغسطس!AF53)/100,0)*100 -> 0 | K53: 0 | L53: 0 | M53: 0 | N53: 0 | O53: 0 | P53: 0 | Q53: 0 | R53: 0 | AB53: 0 | AC53: 0 | AD53: 0 | AE53: 0 | AF53: 0 | AG53: 0 | AH53: تم السداد أو ليست عليه إلتزامات | AI53: =أغسطس!AI53 -> للمراجعة مع المتحصل
A54: =أغسطس!A54 -> أحمد الفقير | B54: =أغسطس!B54 -> 0 | C54: =أغسطس!C54 -> 0 | D54: 0 | E54: =أغسطس!E54 -> 2 | F54: =أغسطس!F54 -> 0 | G54: 0 | H54: =أغسطس!AC54 -> 0 | I54: =أغسطس!AD54 -> 0 | J54: =ROUND((أغسطس!AE54+أغسطس!AF54)/100,0)*100 -> 0 | K54: 0 | L54: 0 | M54: 0 | N54: 0 | O54: 0 | P54: 0 | Q54: 0 | R54: 0 | AB54: 0 | AC54: 0 | AD54: 0 | AE54: 0 | AF54: 0 | AG54: 0 | AH54: تم السداد أو ليست عليه إلتزامات | AI54: =أغسطس!AI54 -> للمراجعة مع المتحصل
A55: =أغسطس!A55 -> عبدالقادر خالد محمدعلي الفقير | B55: =أغسطس!B55 -> 0 | C55: =أغسطس!C55 -> 0 | D55: 0 | E55: =أغسطس!E55 -> 3 | F55: =أغسطس!F55 -> 0 | G55: 0 | H55: =أغسطس!AC55 -> 0 | I55: =أغسطس!AD55 -> 0 | J55: =ROUND((أغسطس!AE55+أغسطس!AF55)/100,0)*100 -> 0 | K55: 0 | L55: 0 | M55: 0 | N55: 0 | O55: 0 | P55: 0 | Q55: 0 | R55: 0 | AB55: 0 | AC55: 0 | AD55: 0 | AE55: 0 | AF55: 0 | AG55: 0 | AH55: تم السداد أو ليست عليه إلتزامات | AI55: =أغسطس!AI55 -> للمراجعة مع المتحصل
A56: =أغسطس!A56 -> وليد الفقير | B56: =أغسطس!B56 -> 0 | C56: =أغسطس!C56 -> 0 | D56: 0 | E56: =أغسطس!E56 -> 0 | F56: =أغسطس!F56 -> 0 | G56: 0 | H56: =أغسطس!AC56 -> 0 | I56: =أغسطس!AD56 -> 0 | J56: =ROUND((أغسطس!AE56+أغسطس!AF56)/100,0)*100 -> 0 | K56: 0 | L56: 0 | M56: 0 | N56: 0 | O56: 0 | P56: 0 | Q56: 0 | R56: 0 | AB56: 0 | AC56: 0 | AD56: 0 | AE56: 0 | AF56: 0 | AG56: 0 | AH56: تم السداد أو ليست عليه إلتزامات | AI56: =أغسطس!AI56 -> للمراجعة مع المتحصل
A57: =أغسطس!A57 -> خالد محمدعلي الفقير | B57: =أغسطس!B57 -> 0 | C57: =أغسطس!C57 -> 0 | D57: 0 | E57: =أغسطس!E57 -> 3 | F57: =أغسطس!F57 -> 0 | G57: 0 | H57: =أغسطس!AC57 -> 0 | I57: =أغسطس!AD57 -> 0 | J57: =ROUND((أغسطس!AE57+أغسطس!AF57)/100,0)*100 -> 0 | K57: 0 | L57: 0 | M57: 0 | N57: 0 | O57: 0 | P57: 0 | Q57: 0 | R57: 0 | AB57: 0 | AC57: 0 | AD57: 0 | AE57: 0 | AF57: 0 | AG57: 0 | AH57: تم السداد أو ليست عليه إلتزامات | AI57: =أغسطس!AI57 -> للمراجعة مع المتحصل
A58: =أغسطس!A58 -> مصعب خالد | B58: =أغسطس!B58 -> 0 | C58: =أغسطس!C58 -> 0 | D58: 0 | E58: =أغسطس!E58 -> 4 | F58: =أغسطس!F58 -> 10 | G58: 15000 | H58: =أغسطس!AC58 -> 0 | I58: =أغسطس!AD58 -> 1000 | J58: =ROUND((أغسطس!AE58+أغسطس!AF58)/100,0)*100 -> 0 | K58: 1000 | L58: 0 | M58: 15000 | N58: 15000 | O58: 0 | P58: 16000 | Q58: 0 | R58: 16000 | AB58: 0 | AC58: 0 | AD58: 16000 | AE58: 0 | AF58: 0 | AG58: 16000 | AH58: لم يتم السداد | AI58: =أغسطس!AI58 -> للمراجعة مع المتحصل
A59: =أغسطس!A59 -> عماد إبراهيم السيد | B59: =أغسطس!B59 -> 0 | C59: =أغسطس!C59 -> 0 | D59: 0 | E59: =أغسطس!E59 -> 1 | F59: =أغسطس!F59 -> 0 | G59: 0 | H59: =أغسطس!AC59 -> 0 | I59: =أغسطس!AD59 -> 0 | J59: =ROUND((أغسطس!AE59+أغسطس!AF59)/100,0)*100 -> 0 | K59: 0 | L59: 0 | M59: 0 | N59: 0 | O59: 0 | P59: 0 | Q59: 0 | R59: 0 | AB59: 0 | AC59: 0 | AD59: 0 | AE59: 0 | AF59: 0 | AG59: 0 | AH59: تم السداد أو ليست عليه إلتزامات | AI59: =أغسطس!AI59 -> للمراجعة مع المتحصل
A60: =أغسطس!A60 -> العاقب الزين | B60: =أغسطس!B60 -> مأهول | C60: =أغسطس!C60 -> 0 | D60: 5000 | E60: =أغسطس!E60 -> 0 | F60: =أغسطس!F60 -> 0 | G60: 5000 | H60: =أغسطس!AC60 -> 5000 | I60: =أغسطس!AD60 -> 0 | J60: =ROUND((أغسطس!AE60+أغسطس!AF60)/100,0)*100 -> 0 | K60: 5000 | L60: 5000 | M60: 0 | N60: 5000 | O60: 10000 | P60: 0 | Q60: 0 | R60: 10000 | AB60: 0 | AC60: 10000 | AD60: 0 | AE60: 0 | AF60: 0 | AG60: 10000 | AH60: لم يتم السداد | AI60: =أغسطس!AI60 -> للمراجعة مع المتحصل
A61: =أغسطس!A61 -> 0 | B61: =أغسطس!B61 -> 0 | C61: =أغسطس!C61 -> 0 | D61: 0 | E61: =أغسطس!E61 -> 0 | F61: =أغسطس!F61 -> 0 | G61: 0 | H61: =أغسطس!AC61 -> 0 | I61: =أغسطس!AD61 -> 0 | J61: =ROUND((أغسطس!AE61+أغسطس!AF61)/100,0)*100 -> 0 | K61: 0 | L61: 0 | M61: 0 | N61: 0 | O61: 0 | P61: 0 | Q61: 0 | R61: 0 | AB61: 0 | AC61: 0 | AD61: 0 | AE61: 0 | AF61: 0 | AG61: 0 | AH61: تم السداد أو ليست عليه إلتزامات | AI61: =أغسطس!AI61 -> 0
A62: =أغسطس!A62 -> 0 | B62: =أغسطس!B62 -> 0 | C62: =أغسطس!C62 -> 0 | D62: 0 | E62: =أغسطس!E62 -> 0 | F62: =أغسطس!F62 -> 0 | G62: 0 | H62: =أغسطس!AC62 -> 0 | I62: =أغسطس!AD62 -> 0 | J62: =ROUND((أغسطس!AE62+أغسطس!AF62)/100,0)*100 -> 0 | K62: 0 | L62: 0 | M62: 0 | N62: 0 | O62: 0 | P62: 0 | Q62: 0 | R62: 0 | AB62: 0 | AC62: 0 | AD62: 0 | AE62: 0 | AF62: 0 | AG62: 0 | AH62: تم السداد أو ليست عليه إلتزامات | AI62: =أغسطس!AI62 -> 0
A63: =أغسطس!A63 -> 0 | B63: =أغسطس!B63 -> 0 | C63: =أغسطس!C63 -> 0 | D63: 0 | E63: =أغسطس!E63 -> 0 | F63: =أغسطس!F63 -> 0 | G63: 0 | H63: =أغسطس!AC63 -> 0 | I63: =أغسطس!AD63 -> 0 | J63: =ROUND((أغسطس!AE63+أغسطس!AF63)/100,0)*100 -> 0 | K63: 0 | L63: 0 | M63: 0 | N63: 0 | O63: 0 | P63: 0 | Q63: 0 | R63: 0 | AB63: 0 | AC63: 0 | AD63: 0 | AE63: 0 | AF63: 0 | AG63: 0 | AH63: تم السداد أو ليست عليه إلتزامات | AI63: =أغسطس!AI63 -> 0
A64: =أغسطس!A64 -> 0 | B64: =أغسطس!B64 -> 0 | C64: =أغسطس!C64 -> 0 | D64: 0 | E64: =أغسطس!E64 -> 0 | F64: =أغسطس!F64 -> 0 | G64: 0 | H64: =أغسطس!AC64 -> 0 | I64: =أغسطس!AD64 -> 0 | J64: =ROUND((أغسطس!AE64+أغسطس!AF64)/100,0)*100 -> 0 | K64: 0 | L64: 0 | M64: 0 | N64: 0 | O64: 0 | P64: 0 | Q64: 0 | R64: 0 | AB64: 0 | AC64: 0 | AD64: 0 | AE64: 0 | AF64: 0 | AG64: 0 | AH64: تم السداد أو ليست عليه إلتزامات | AI64: =أغسطس!AI64 -> 0
A65: =أغسطس!A65 -> 0 | B65: =أغسطس!B65 -> 0 | C65: =أغسطس!C65 -> 0 | D65: 0 | E65: =أغسطس!E65 -> 0 | F65: =أغسطس!F65 -> 0 | G65: 0 | H65: =أغسطس!AC65 -> 0 | I65: =أغسطس!AD65 -> 0 | J65: =ROUND((أغسطس!AE65+أغسطس!AF65)/100,0)*100 -> 0 | K65: 0 | L65: 0 | M65: 0 | N65: 0 | O65: 0 | P65: 0 | Q65: 0 | R65: 0 | AB65: 0 | AC65: 0 | AD65: 0 | AE65: 0 | AF65: 0 | AG65: 0 | AH65: تم السداد أو ليست عليه إلتزامات | AI65: =أغسطس!AI65 -> 0
A66: =أغسطس!A66 -> 0 | B66: =أغسطس!B66 -> 0 | C66: =أغسطس!C66 -> 0 | D66: 0 | E66: =أغسطس!E66 -> 0 | F66: =أغسطس!F66 -> 0 | G66: 0 | H66: =أغسطس!AC66 -> 0 | I66: =أغسطس!AD66 -> 0 | J66: =ROUND((أغسطس!AE66+أغسطس!AF66)/100,0)*100 -> 0 | K66: 0 | L66: 0 | M66: 0 | N66: 0 | O66: 0 | P66: 0 | Q66: 0 | R66: 0 | AB66: 0 | AC66: 0 | AD66: 0 | AE66: 0 | AF66: 0 | AG66: 0 | AH66: تم السداد أو ليست عليه إلتزامات | AI66: =أغسطس!AI66 -> 0
A67: =أغسطس!A67 -> 0 | B67: =أغسطس!B67 -> 0 | C67: =أغسطس!C67 -> 0 | D67: 0 | E67: =أغسطس!E67 -> 0 | F67: =أغسطس!F67 -> 0 | G67: 0 | H67: =أغسطس!AC67 -> 0 | I67: =أغسطس!AD67 -> 0 | J67: =ROUND((أغسطس!AE67+أغسطس!AF67)/100,0)*100 -> 0 | K67: 0 | L67: 0 | M67: 0 | N67: 0 | O67: 0 | P67: 0 | Q67: 0 | R67: 0 | AB67: 0 | AC67: 0 | AD67: 0 | AE67: 0 | AF67: 0 | AG67: 0 | AH67: تم السداد أو ليست عليه إلتزامات | AI67: =أغسطس!AI67 -> 0
A68: =أغسطس!A68 -> 0 | B68: =أغسطس!B68 -> 0 | C68: =أغسطس!C68 -> 0 | D68: 0 | E68: =أغسطس!E68 -> 0 | F68: =أغسطس!F68 -> 0 | G68: =D68+(F68*1500) -> 0 | H68: =أغسطس!AC68 -> 0 | I68: =أغسطس!AD68 -> 0 | J68: =ROUND((أغسطس!AE68+أغسطس!AF68)/100,0)*100 -> 0 | K68: 0 | L68: 0 | M68: =(F68*1500) -> 0 | N68: 0 | O68: 0 | P68: 0 | Q68: 0 | R68: 0 | AB68: 0 | AC68: 0 | AD68: 0 | AE68: 0 | AF68: 0 | AG68: 0 | AH68: تم السداد أو ليست عليه إلتزامات | AI68: =أغسطس!AI68 -> 0
A69: =أغسطس!A69 -> 0 | B69: =أغسطس!B69 -> 0 | C69: =أغسطس!C69 -> 0 | D69: 0 | E69: =أغسطس!E69 -> 0 | F69: =أغسطس!F69 -> 0 | G69: 0 | H69: =أغسطس!AC69 -> 0 | I69: =أغسطس!AD69 -> 0 | J69: =ROUND((أغسطس!AE69+أغسطس!AF69)/100,0)*100 -> 0 | K69: 0 | L69: 0 | M69: 0 | N69: 0 | O69: 0 | P69: 0 | Q69: 0 | R69: 0 | AB69: 0 | AC69: 0 | AD69: 0 | AE69: 0 | AF69: 0 | AG69: 0 | AH69: تم السداد أو ليست عليه إلتزامات | AI69: =أغسطس!AI69 -> 0
A70: =أغسطس!A70 -> 0 | B70: =أغسطس!B70 -> 0 | C70: =أغسطس!C70 -> 0 | D70: 0 | E70: =أغسطس!E70 -> 0 | F70: =أغسطس!F70 -> 0 | G70: 0 | H70: =أغسطس!AC70 -> 0 | I70: =أغسطس!AD70 -> 0 | J70: =ROUND((أغسطس!AE70+أغسطس!AF70)/100,0)*100 -> 0 | K70: 0 | L70: 0 | M70: 0 | N70: 0 | O70: 0 | P70: 0 | Q70: 0 | R70: 0 | AB70: 0 | AC70: 0 | AD70: 0 | AE70: 0 | AF70: 0 | AG70: 0 | AH70: تم السداد أو ليست عليه إلتزامات | AI70: =أغسطس!AI70 -> 0
A71: =أغسطس!A71 -> 0 | B71: =أغسطس!B71 -> 0 | C71: =أغسطس!C71 -> 0 | D71: 0 | E71: =أغسطس!E71 -> 0 | F71: =أغسطس!F71 -> 0 | G71: 0 | H71: =أغسطس!AC71 -> 0 | I71: =أغسطس!AD71 -> 0 | J71: =ROUND((أغسطس!AE71+أغسطس!AF71)/100,0)*100 -> 0 | K71: 0 | L71: 0 | M71: 0 | N71: 0 | O71: 0 | P71: 0 | Q71: 0 | R71: 0 | AB71: 0 | AC71: 0 | AD71: 0 | AE71: 0 | AF71: 0 | AG71: 0 | AH71: تم السداد أو ليست عليه إلتزامات | AI71: =أغسطس!AI71 -> 0
A72: =أغسطس!A72 -> 0 | B72: =أغسطس!B72 -> 0 | C72: =أغسطس!C72 -> 0 | D72: 0 | E72: =أغسطس!E72 -> 0 | F72: =أغسطس!F72 -> 0 | G72: 0 | H72: =أغسطس!AC72 -> 0 | I72: =أغسطس!AD72 -> 0 | J72: =ROUND((أغسطس!AE72+أغسطس!AF72)/100,0)*100 -> 0 | K72: 0 | L72: 0 | M72: 0 | N72: 0 | O72: 0 | P72: 0 | Q72: 0 | R72: 0 | AB72: 0 | AC72: 0 | AD72: 0 | AE72: 0 | AF72: 0 | AG72: 0 | AH72: تم السداد أو ليست عليه إلتزامات | AI72: =أغسطس!AI72 -> 0
A73: الإجمالي | D73: =SUM(D3:D72) -> 120000 | E73: =SUM(E3:E72) -> 78 | F73: =SUM(F3:F72) -> 24 | G73: =SUM(G3:G72) -> 156000 | H73: =SUM(H3:H72) -> 1000 | I73: =SUM(I3:I72) -> 1600 | J73: 0 | K73: 2600 | L73: 120000 | M73: 36000 | N73: 156000 | O73: 121000 | P73: 37600 | Q73: 0 | R73: 158600 | V73: =SUM(V3:V72) -> 116000 | W73: =SUM(W3:W72) -> 38000 | X73: 0 | Y73: 0 | Z73: =SUM(Z3:Z72) -> 0 | AA73: 0 | AB73: =SUM(AB3:AB72) -> 154000 | AC73: 5000 | AD73: =SUM(AD3:AD72) -> -400 | AE73: =SUM(AE3:AE72) -> 0 | AF73: 0 | AG73: 4600
A76: البيان | B76: المبلغ | C76: ملحوظات
A77: إجمالي التحصيل الشهري | B77: =AB73 -> 154000
A78: مديونية سابقة على المتحصل | B78: =أغسطس!B82 -> -900
A79: إستلام أمين الصندوق | B79: =AM52 -> 20000
A80: المطلوب من المتحصل | B80: =(B77+B78)-B79 -> 133100
A81: السداد | B81: 140500 | C81: سداد عبر بنكك بتاريخ 2025/10/3م عن طريق بشير
A82: الباقي | B82: =B80-B81 -> -7400
A83: مأهول
A84: شتول
A85: جديد
A86: مغلق
A87: مفصول
A88: معفي

Sheet أكتوبر
A1: البيانات الشخصية | G1: الربط | H1: المتأخرات حتى نهاية سبتمبر 2025م | L1: جاري أكتوبر 2025م | O1: المطلوب حتى نهاية أكتوبر 2025م | S1: تفاصيل السداد خلال أكتوبر 2025م | AC1: المتأخرات حتى نهاية أكتوبر 2025م | AH1: موقف السداد | AI1: ملاحظات | AK1: إستلام أمين الصندوق
A2: الإسم | B2: المنزل | C2: الهاتف | D2: السكني | E2: شتول الربط | F2: شتول خ. الربط | G2: الشهري | H2: السكني | I2: الشتول | J2: غرامات | K2: الإجمالي | L2: السكني | M2: الشتول | N2: الإجمالي | O2: السكني | P2: الشتول | Q2: غرامات | R2: الإجمالي | S2: التاريخ | T2: رقم الإيصال | U2: رقم الدفتر | V2: السكني | W2: الشتول | X2: توصيل | Y2: مباني | Z2: غرامات | AA2: أخرى | AB2: الإجمالي | AC2: السكني | AD2: الشتول | AE2: الغرامات | AF2: غرامة تأخير سداد | AG2: الإجمالي | AK2: التاريخ | AL2: الإسم | AM2: المبلغ | AN2: ملحوظات
A3: =سبتمبر!A3 -> منزل المرحوم عبدالله محمد صالح (ودحجه) | B3: =سبتمبر!B3 -> مأهول | C3: =سبتمبر!C3 -> 913223640 | D3: =IF(B3="مأهول",5000,0) -> 5000 | E3: =سبتمبر!E3 -> 2 | F3: =سبتمبر!F3 -> 0 | G3: =D3+(F3*1500) -> 5000 | H3: =سبتمبر!AC3 -> 0 | I3: =سبتمبر!AD3 -> 0 | J3: =ROUND((سبتمبر!AE3+سبتمبر!AF3)/100,0)*100 -> 0 | K3: =ROUND((SUM(H3:J3))/100,0)*100 -> 0 | L3: =D3 -> 5000 | M3: =(F3*1500) -> 0 | N3: =SUM(L3:M3) -> 5000 | O3: =ROUND((H3+L3)/100,0)*100 -> 5000 | P3: =ROUND((I3+M3)/100,0)*100 -> 0 | Q3: =J3 -> 0 | R3: =ROUND((SUM(O3:Q3))/100,0)*100 -> 5000 | V3: 5000 | W3: 0 | X3: 0 | Y3: 0 | Z3: 0 | AA3: 0 | AB3: =SUM(V3:AA3) -> 5000 | AC3: =ROUND((O3-V3)/100,0)*100 -> 0 | AD3: =ROUND((P3-W3)/100,0)*100 -> 0 | AE3: =ROUND((Q3-Z3)/100,0)*100 -> 0 | AF3: 0 | AG3: =ROUND(SUM(AC3:AF3)/100,0)*100 -> 0 | AH3: =IF(A3<>"",_xlfn.IFS(AG3>(G3*3),"مفصول",AG3=0,"تم السداد أو ليست عليه إلتزامات",AG3<0,"له باقي طرفنا",0<AG3>(G3*3),"لم يتم السداد"),"") -> تم السداد أو ليست عليه إلتزامات | AI3: سداد حتى نهاية أكتوبر 2025م. | AK3: 2025-11-05 | AL3: طه محمدعلي الفقير | AM3: 10000 | AN3: بنكك
A4: =سبتمبر!A4 -> مبارك عبدالله محمد صالح | B4: =سبتمبر!B4 -> مأهول | C4: =سبتمبر!C4 -> 912572291 | D4: =IF(B4="مأهول",5000,0) -> 5000 | E4: =سبتمبر!E4 -> 1 | F4: =سبتمبر!F4 -> 0 | G4: =D4+(F4*1500) -> 5000 | H4: =سبتمبر!AC4 -> 0 | I4: =سبتمبر!AD4 -> -2000 | J4: =ROUND((سبتمبر!AE4+سبتمبر!AF4)/100,0)*100 -> 0 | K4: =ROUND((SUM(H4:J4))/100,0)*100 -> -2000 | L4: =D4 -> 5000 | M4: =(F4*1500) -> 0 | N4: =SUM(L4:M4) -> 5000 | O4: =ROUND((H4+L4)/100,0)*100 -> 5000 | P4: -2000 | Q4: =J4 -> 0 | R4: =ROUND((SUM(O4:Q4))/100,0)*100 -> 3000 | V4: 5000 | W4: 2000 | X4: 0 | Y4: 0 | Z4: 0 | AA4: 0 | AB4: =SUM(V4:AA4) -> 7000 | AC4: =ROUND((O4-V4)/100,0)*100 -> 0 | AD4: -4000 | AE4: =ROUND((Q4-Z4)/100,0)*100 -> 0 | AF4: =(IF(SUM(AC4:AE4)>0,IF(AB4<0,0,ROUND((SUM(AC4:AE4)/2)/100,0)*100),0)) -> 0 | AG4: =ROUND(SUM(AC4:AF4)/50,0)*50 -> -4000 | AH4: =IF(A4<>"",_xlfn.IFS(AG4>(G4*3),"مفصول",AG4=0,"تم السداد أو ليست عليه إلتزامات",AG4<0,"له باقي طرفنا",0<AG4>(G4*3),"لم يتم السداد"),"") -> له باقي طرفنا | AI4: سداد حتى نهاية أكتوبر 2025م. | AK4: 2025-11-05 | AL4: منذر عبدالله محمد حمد | AM4: 5000 | AN4: بنكك
A5: =سبتمبر!A5 -> خالد عبدالله محمد صالح | B5: =سبتمبر!B5 -> مأهول | C5: =سبتمبر!C5 -> 916713241 | D5: 5000 | E5: =سبتمبر!E5 -> 2 | F5: =سبتمبر!F5 -> 0 | G5: 5000 | H5: =سبتمبر!AC5 -> 0 | I5: =سبتمبر!AD5 -> -2000 | J5: =ROUND((سبتمبر!AE5+سبتمبر!AF5)/100,0)*100 -> 0 | K5: -2000 | L5: 5000 | M5: 0 | N5: 5000 | O5: 5000 | P5: -2000 | Q5: 0 | R5: 3000 | V5: 5000 | W5: 2000 | X5: 0 | Y5: 0 | Z5: 0 | AA5: 0 | AB5: 7000 | AC5: 0 | AD5: -4000 | AE5: 0 | AF5: 0 | AG5: -4000 | AH5: له باقي طرفنا | AI5: سداد حتى نهاية أكتوبر 2025م. | AK5: 2025-11-05 | AL5: محمد عبدالله محمد حمد | AM5: 5000 | AN5: بنكك
A6: =سبتمبر!A6 -> الفاضل عبدالله محمد صالح | B6: =سبتمبر!B6 -> مغلق | C6: =سبتمبر!C6 -> 917924080 | D6: 0 | E6: =سبتمبر!E6 -> 1 | F6: =سبتمبر!F6 -> 0 | G6: 0 | H6: =سبتمبر!AC6 -> 0 | I6: =سبتمبر!AD6 -> 0 | J6: =ROUND((سبتمبر!AE6+سبتمبر!AF6)/100,0)*100 -> 0 | K6: 0 | L6: 0 | M6: 0 | N6: 0 | O6: 0 | P6: 0 | Q6: 0 | R6: 0 | AB6: 0 | AC6: 0 | AD6: 0 | AE6: 0 | AF6: 0 | AG6: 0 | AH6: تم السداد أو ليست عليه إلتزامات | AI6: =سبتمبر!AI6 -> سداد حتى نهاية يونيو 2025م.
A7: =سبتمبر!A7 -> بكري عبدالرحمن ود صالح | B7: =سبتمبر!B7 -> مأهول | C7: =سبتمبر!C7 -> 126793356 | D7: 5000 | E7: =سبتمبر!E7 -> 1 | F7: =سبتمبر!F7 -> 0 | G7: 5000 | H7: =سبتمبر!AC7 -> 0 | I7: =سبتمبر!AD7 -> -1000 | J7: =ROUND((سبتمبر!AE7+سبتمبر!AF7)/100,0)*100 -> 0 | K7: -1000 | L7: 5000 | M7: 0 | N7: 5000 | O7: 5000 | P7: -1000 | Q7: 0 | R7: 4000 | V7: 5000 | W7: 1000 | X7: 0 | Y7: 0 | Z7: 0 | AA7: 0 | AB7: 6000 | AC7: 0 | AD7: -2000 | AE7: 0 | AF7: 0 | AG7: -2000 | AH7: له باقي طرفنا | AI7: سداد حتى نهاية أكتوبر 2025م.
A8: =سبتمبر!A8 -> جمال عبدالرحمن ود صالح | B8: =سبتمبر!B8 -> مأهول | C8: =سبتمبر!C8 -> 124317243 | D8: 5000 | E8: =سبتمبر!E8 -> 0 | F8: =سبتمبر!F8 -> 0 | G8: 5000 | H8: =سبتمبر!AC8 -> 0 | I8: =سبتمبر!AD8 -> 0 | J8: =ROUND((سبتمبر!AE8+سبتمبر!AF8)/100,0)*100 -> 0 | K8: 0 | L8: 5000 | M8: 0 | N8: 5000 | O8: 5000 | P8: 0 | Q8: 0 | R8: 5000 | V8: 5000 | W8: 0 | X8: 0 | Y8: 0 | Z8: 0 | AA8: 0 | AB8: 5000 | AC8: 0 | AD8: 0 | AE8: 0 | AF8: 0 | AG8: 0 | AH8: تم السداد أو ليست عليه إلتزامات | AI8: سداد حتى نهاية أكتوبر 2025م.
A9: =سبتمبر!A9 -> صلاح عبدالرحمن ود صالح | B9: =سبتمبر!B9 -> مأهول | C9: =سبتمبر!C9 -> 121347090 | D9: 5000 | E9: =سبتمبر!E9 -> 2 | F9: =سبتمبر!F9 -> 0 | G9: 5000 | H9: =سبتمبر!AC9 -> 0 | I9: =سبتمبر!AD9 -> -2000 | J9: =ROUND((سبتمبر!AE9+سبتمبر!AF9)/100,0)*100 -> 0 | K9: -2000 | L9: 5000 | M9: 0 | N9: 5000 | O9: 5000 | P9: -2000 | Q9: 0 | R9: 3000 | V9: 5000 | W9: 2000 | X9: 0 | Y9: 0 | Z9: 0 | AA9: 0 | AB9: 7000 | AC9: 0 | AD9: -4000 | AE9: 0 | AF9: 0 | AG9: -4000 | AH9: له باقي طرفنا | AI9: سداد حتى نهاية أكتوبر 2025م.
A10: =سبتمبر!A10 -> عبدالحي عبدالرحمن ودصالح | B10: =سبتمبر!B10 -> مأهول | C10: =سبتمبر!C10 -> 114114215 | D10: 5000 | E10: =سبتمبر!E10 -> 0 | F10: =سبتمبر!F10 -> 0 | G10: 5000 | H10: =سبتمبر!AC10 -> 0 | I10: =سبتمبر!AD10 -> 0 | J10: =ROUND((سبتمبر!AE10+سبتمبر!AF10)/100,0)*100 -> 0 | K10: 0 | L10: 5000 | M10: 0 | N10: 5000 | O10: 5000 | P10: 0 | Q10: 0 | R10: 5000 | V10: 5000 | W10: 0 | X10: 0 | Y10: 0 | Z10: 0 | AA10: 0 | AB10: 5000 | AC10: 0 | AD10: 0 | AE10: 0 | AF10: 0 | AG10: 0 | AH10: تم السداد أو ليست عليه إلتزامات | AI10: سداد حتى نهاية أكتوبر 2025م.
A11: =سبتمبر!A11 -> فضل عبدالرحمن ودصالح | B11: =سبتمبر!B11 -> مأهول | C11: =سبتمبر!C11 -> 965527390 | D11: 5000 | E11: =سبتمبر!E11 -> 4 | F11: =سبتمبر!F11 -> 3 | G11: 9500 | H11: =سبتمبر!AC11 -> 0 | I11: =سبتمبر!AD11 -> 0 | J11: =ROUND((سبتمبر!AE11+سبتمبر!AF11)/100,0)*100 -> 0 | K11: 0 | L11: 5000 | M11: 4500 | N11: 9500 | O11: 5000 | P11: 4500 | Q11: 0 | R11: 9500 | V11: 5000 | W11: 4500 | X11: 0 | Y11: 0 | Z11: 0 | AA11: 0 | AB11: 9500 | AC11: 0 | AD11: 0 | AE11: 0 | AF11: 0 | AG11: 0 | AH11: تم السداد أو ليست عليه إلتزامات | AI11: سداد حتى نهاية أكتوبر 2025م.
A12: =سبتمبر!A12 -> منزل المرحوم الزين ود صالح (العاقب) | B12: =سبتمبر!B12 -> مأهول | C12: =سبتمبر!C12 -> 917344140 | D12: 5000 | E12: =سبتمبر!E12 -> 1 | F12: =سبتمبر!F12 -> 0 | G12: 5000 | H12: =سبتمبر!AC12 -> 0 | I12: =سبتمبر!AD12 -> 0 | J12: =ROUND((سبتمبر!AE12+سبتمبر!AF12)/100,0)*100 -> 0 | K12: 0 | L12: 5000 | M12: 0 | N12: 5000 | O12: 5000 | P12: 0 | Q12: 0 | R12: 5000 | V12: 5000 | W12: 0 | X12: 0 | Y12: 0 | Z12: 0 | AA12: 0 | AB12: 5000 | AC12: 0 | AD12: 0 | AE12: 0 | AF12: 0 | AG12: 0 | AH12: تم السداد أو ليست عليه إلتزامات | AI12: سداد حتى نهاية أكتوبر 2025م.
A13: =سبتمبر!A13 -> مهدي الزين | B13: =سبتمبر!B13 -> مأهول | C13: =سبتمبر!C13 -> 913099777 | D13: 5000 | E13: =سبتمبر!E13 -> 2 | F13: =سبتمبر!F13 -> 0 | G13: 5000 | H13: =سبتمبر!AC13 -> 0 | I13: =سبتمبر!AD13 -> -2000 | J13: =ROUND((سبتمبر!AE13+سبتمبر!AF13)/100,0)*100 -> 0 | K13: -2000 | L13: 5000 | M13: 0 | N13: 5000 | O13: 5000 | P13: -2000 | Q13: 0 | R13: 3000 | V13: 5000 | W13: 2000 | X13: 0 | Y13: 0 | Z13: 0 | AA13: 0 | AB13: 7000 | AC13: 0 | AD13: -4000 | AE13: 0 | AF13: 0 | AG13: -4000 | AH13: له باقي طرفنا | AI13: سداد حتى نهاية أكتوبر 2025م.
A14: =سبتمبر!A14 -> محمد السيد | B14: =سبتمبر!B14 -> مأهول | C14: =سبتمبر!C14 -> 917636525 | D14: 5000 | E14: =سبتمبر!E14 -> 1 | F14: =سبتمبر!F14 -> 0 | G14: 5000 | H14: =سبتمبر!AC14 -> 0 | I14: =سبتمبر!AD14 -> 0 | J14: =ROUND((سبتمبر!AE14+سبتمبر!AF14)/100,0)*100 -> 0 | K14: 0 | L14: 5000 | M14: 0 | N14: 5000 | O14: 5000 | P14: 0 | Q14: 0 | R14: 5000 | V14: 5000 | W14: 0 | X14: 0 | Y14: 0 | Z14: 0 | AA14: 0 | AB14: 5000 | AC14: 0 | AD14: 0 | AE14: 0 | AF14: 0 | AG14: 0 | AH14: تم السداد أو ليست عليه إلتزامات | AI14: سداد حتى نهاية أكتوبر 2025م.
A15: =سبتمبر!A15 -> هشام محمد السيد | B15: =سبتمبر!B15 -> مأهول | C15: =سبتمبر!C15 -> 915778117 | D15: 5000 | E15: =سبتمبر!E15 -> 4 | F15: =سبتمبر!F15 -> 5 | G15: 12500 | H15: =سبتمبر!AC15 -> 0 | I15: =سبتمبر!AD15 -> 0 | J15: =ROUND((سبتمبر!AE15+سبتمبر!AF15)/100,0)*100 -> 0 | K15: 0 | L15: 5000 | M15: 7500 | N15: 12500 | O15: 5000 | P15: 7500 | Q15: 0 | R15: 12500 | V15: 5000 | W15: 7500 | X15: 0 | Y15: 0 | Z15: 0 | AA15: 0 | AB15: 12500 | AC15: 0 | AD15: 0 | AE15: 0 | AF15: 0 | AG15: 0 | AH15: تم السداد أو ليست عليه إلتزامات | AI15: سداد حتى نهاية أكتوبر 2025م.
A16: =سبتمبر!A16 -> عصام محمد السيد (أ) | B16: =سبتمبر!B16 -> مأهول | C16: =سبتمبر!C16 -> 915896866 | D16: 5000 | E16: =سبتمبر!E16 -> 1 | F16: =سبتمبر!F16 -> 0 | G16: 5000 | H16: =سبتمبر!AC16 -> 0 | I16: =سبتمبر!AD16 -> -1000 | J16: =ROUND((سبتمبر!AE16+سبتمبر!AF16)/100,0)*100 -> 0 | K16: -1000 | L16: 5000 | M16: 0 | N16: 5000 | O16: 5000 | P16: -1000 | Q16: 0 | R16: 4000 | V16: 5000 | W16: 1000 | X16: 0 | Y16: 0 | Z16: 0 | AA16: 0 | AB16: 6000 | AC16: 0 | AD16: -2000 | AE16: 0 | AF16: 0 | AG16: -2000 | AH16: له باقي طرفنا | AI16: سداد حتى نهاية أكتوبر 2025م.
A17: =سبتمبر!A17 -> عبدالله الأنصاري | B17: مغلق | C17: =سبتمبر!C17 -> 911101791 | D17: 0 | E17: =سبتمبر!E17 -> 3 | F17: =سبتمبر!F17 -> 0 | G17: 0 | H17: =سبتمبر!AC17 -> 0 | I17: =سبتمبر!AD17 -> 0 | J17: =ROUND((سبتمبر!AE17+سبتمبر!AF17)/100,0)*100 -> 0 | K17: 0 | L17: 0 | M17: 0 | N17: 0 | O17: 0 | P17: 0 | Q17: 0 | R17: 0 | AB17: 0 | AC17: 0 | AD17: 0 | AE17: 0 | AF17: 0 | AG17: 0 | AH17: تم السداد أو ليست عليه إلتزامات | AI17: =سبتمبر!AI17 -> سداد حتى نهاية يونيو 2025م ، وبعدها مغلق .
A18: =سبتمبر!A18 -> عماد محمد سعيد | B18: =سبتمبر!B18 -> مأهول | C18: =سبتمبر!C18 -> 911113020 | D18: 5000 | E18: =سبتمبر!E18 -> 2 | F18: =سبتمبر!F18 -> 0 | G18: 5000 | H18: =سبتمبر!AC18 -> 0 | I18: =سبتمبر!AD18 -> -3000 | J18: =ROUND((سبتمبر!AE18+سبتمبر!AF18)/100,0)*100 -> 0 | K18: -3000 | L18: 5000 | M18: 0 | N18: 5000 | O18: 5000 | P18: -3000 | Q18: 0 | R18: 2000 | V18: 5000 | W18: 3000 | X18: 0 | Y18: 0 | Z18: 0 | AA18: 0 | AB18: 8000 | AC18: 0 | AD18: -6000 | AE18: 0 | AF18: 0 | AG18: -6000 | AH18: له باقي طرفنا | AI18: سداد حتى نهاية أكتوبر 2025م.
A19: =سبتمبر!A19 -> ماهر محمد صالح | B19: =سبتمبر!B19 -> معفي | C19: =سبتمبر!C19 -> 962864495 | D19: 0 | E19: =سبتمبر!E19 -> 1 | F19: =سبتمبر!F19 -> 0 | G19: 0 | H19: =سبتمبر!AC19 -> 0 | I19: =سبتمبر!AD19 -> 0 | J19: =ROUND((سبتمبر!AE19+سبتمبر!AF19)/100,0)*100 -> 0 | K19: 0 | L19: 0 | M19: 0 | N19: 0 | O19: 0 | P19: 0 | Q19: 0 | R19: 0 | AB19: 0 | AC19: 0 | AD19: 0 | AE19: 0 | AF19: 0 | AG19: 0 | AH19: تم السداد أو ليست عليه إلتزامات | AI19: =سبتمبر!AI19 -> معفي
A20: =سبتمبر!A20 -> منزل المرحوم محمد عبدالله فيك الخير (صالح جرمور) | B20: معفي | C20: =سبتمبر!C20 -> 915857673 | D20: 0 | E20: =سبتمبر!E20 -> 0 | F20: =سبتمبر!F20 -> 0 | G20: 0 | H20: =سبتمبر!AC20 -> 0 | I20: =سبتمبر!AD20 -> 0 | J20: =ROUND((سبتمبر!AE20+سبتمبر!AF20)/100,0)*100 -> 0 | K20: 0 | L20: 0 | M20: 0 | N20: 0 | O20: 0 | P20: 0 | Q20: 0 | R20: 0 | AB20: 0 | AC20: 0 | AD20: 0 | AE20: 0 | AF20: 0 | AG20: 0 | AH20: تم السداد أو ليست عليه إلتزامات | AI20: =سبتمبر!AI20 -> معفي
A21: =سبتمبر!A21 -> ناصر إدريس السيد (عماد إبراهيم السيد) | B21: =سبتمبر!B21 -> مأهول | C21: =سبتمبر!C21 -> 111914245 | D21: 5000 | E21: =سبتمبر!E21 -> 0 | F21: =سبتمبر!F21 -> 0 | G21: 5000 | H21: =سبتمبر!AC21 -> 0 | I21: =سبتمبر!AD21 -> 0 | J21: =ROUND((سبتمبر!AE21+سبتمبر!AF21)/100,0)*100 -> 0 | K21: 0 | L21: 5000 | M21: 0 | N21: 5000 | O21: 5000 | P21: 0 | Q21: 0 | R21: 5000 | V21: 5000 | W21: 0 | X21: 0 | Y21: 0 | Z21: 0 | AA21: 0 | AB21: 5000 | AC21: 0 | AD21: 0 | AE21: 0 | AF21: 0 | AG21: 0 | AH21: تم السداد أو ليست عليه إلتزامات | AI21: =سبتمبر!AI21 -> سداد حتى نهاية سبتمبر 2025م.
A22: =سبتمبر!A22 -> محمدعلي الفقير | B22: =سبتمبر!B22 -> مأهول | C22: =سبتمبر!C22 -> 910204066 | D22: 5000 | E22: =سبتمبر!E22 -> 3 | F22: =سبتمبر!F22 -> 0 | G22: 5000 | H22: =سبتمبر!AC22 -> 0 | I22: =سبتمبر!AD22 -> -3000 | J22: =ROUND((سبتمبر!AE22+سبتمبر!AF22)/100,0)*100 -> 0 | K22: -3000 | L22: 5000 | M22: 0 | N22: 5000 | O22: 5000 | P22: -3000 | Q22: 0 | R22: 2000 | V22: 5000 | W22: 3000 | X22: 0 | Y22: 0 | Z22: 0 | AA22: 0 | AB22: 8000 | AC22: 0 | AD22: -6000 | AE22: 0 | AF22: 0 | AG22: -6000 | AH22: له باقي طرفنا | AI22: سداد حتى نهاية أكتوبر 2025م.
A23: =سبتمبر!A23 -> محمد محمدعلي الفقير | B23: =سبتمبر!B23 -> مأهول | C23: =سبتمبر!C23 -> 965199199 | D23: 5000 | E23: =سبتمبر!E23 -> 0 | F23: =سبتمبر!F23 -> 0 | G23: 5000 | H23: =سبتمبر!AC23 -> 0 | I23: =سبتمبر!AD23 -> 0 | J23: =ROUND((سبتمبر!AE23+سبتمبر!AF23)/100,0)*100 -> 0 | K23: 0 | L23: 5000 | M23: 0 | N23: 5000 | O23: 5000 | P23: 0 | Q23: 0 | R23: 5000 | V23: 5000 | W23: 0 | X23: 0 | Y23: 0 | Z23: 0 | AA23: 0 | AB23: 5000 | AC23: 0 | AD23: 0 | AE23: 0 | AF23: 0 | AG23: 0 | AH23: تم السداد أو ليست عليه إلتزامات | AI23: سداد حتى نهاية أكتوبر 2025م.
A24: =سبتمبر!A24 -> طه محمدعلي الفقير | B24: =سبتمبر!B24 -> مأهول | C24: =سبتمبر!C24 -> 112437426 | D24: 5000 | E24: =سبتمبر!E24 -> 3 | F24: =سبتمبر!F24 -> 0 | G24: 5000 | H24: =سبتمبر!AC24 -> -5000 | I24: =سبتمبر!AD24 -> -2000 | J24: =ROUND((سبتمبر!AE24+سبتمبر!AF24)/100,0)*100 -> 0 | K24: -7000 | L24: 5000 | M24: 0 | N24: 5000 | O24: 0 | P24: -2000 | Q24: 0 | R24: -2000 | S24: 2025-11-05 | V24: 5000 | W24: 5000 | X24: 0 | Y24: 0 | Z24: 0 | AA24: 0 | AB24: 10000 | AC24: -5000 | AD24: -7000 | AE24: 0 | AF24: 0 | AG24: -12000 | AH24: له باقي طرفنا | AI24: له (6000) جنيه، وسداد حتى نهاية أكتوبر 2025م
A25: =سبتمبر!A25 -> عبدالله محمد حمد (أ) | B25: =سبتمبر!B25 -> مأهول | C25: =سبتمبر!C25 -> 118561564 | D25: 5000 | E25: =سبتمبر!E25 -> 0 | F25: =سبتمبر!F25 -> 0 | G25: 5000 | H25: =سبتمبر!AC25 -> 0 | I25: =سبتمبر!AD25 -> -3000 | J25: =ROUND((سبتمبر!AE25+سبتمبر!AF25)/100,0)*100 -> 0 | K25: -3000 | L25: 5000 | M25: 0 | N25: 5000 | O25: 5000 | P25: -3000 | Q25: 0 | R25: 2000 | V25: 5000 | W25: 3000 | X25: 0 | Y25: 0 | Z25: 0 | AA25: 0 | AB25: 8000 | AC25: 0 | AD25: -6000 | AE25: 0 | AF25: 0 | AG25: -6000 | AH25: له باقي طرفنا | AI25: سداد حتى نهاية أكتوبر 2025م.
A26: =سبتمبر!A26 -> عبدالله محمد حمد (ب) | B26: =سبتمبر!B26 -> مأهول | C26: =سبتمبر!C26 -> 118561564 | D26: 5000 | E26: =سبتمبر!E26 -> 1 | F26: =سبتمبر!F26 -> 0 | G26: 5000 | H26: =سبتمبر!AC26 -> 0 | I26: =سبتمبر!AD26 -> -3000 | J26: =ROUND((سبتمبر!AE26+سبتمبر!AF26)/100,0)*100 -> 0 | K26: -3000 | L26: 5000 | M26: 0 | N26: 5000 | O26: 5000 | P26: -3000 | Q26: 0 | R26: 2000 | V26: 5000 | W26: 3000 | X26: 0 | Y26: 0 | Z26: 0 | AA26: 0 | AB26: 8000 | AC26: 0 | AD26: -6000 | AE26: 0 | AF26: 0 | AG26: -6000 | AH26: له باقي طرفنا | AI26: سداد حتى نهاية أكتوبر 2025م.
A27: =سبتمبر!A27 -> محمد عبدالله محمد حمد (بابا) | B27: =سبتمبر!B27 -> مأهول | C27: =سبتمبر!C27 -> 118561564 | D27: 5000 | E27: =سبتمبر!E27 -> 0 | F27: =سبتمبر!F27 -> 0 | G27: 5000 | H27: =سبتمبر!AC27 -> 0 | I27: =سبتمبر!AD27 -> 0 | J27: =ROUND((سبتمبر!AE27+سبتمبر!AF27)/100,0)*100 -> 0 | K27: 0 | L27: 5000 | M27: 0 | N27: 5000 | O27: 5000 | P27: 0 | Q27: 0 | R27: 5000 | S27: 2025-11-05 | V27: 5000 | W27: 0 | X27: 0 | Y27: 0 | Z27: 0 | AA27: 0 | AB27: 5000 | AC27: 0 | AD27: 0 | AE27: 0 | AF27: 0 | AG27: 0 | AH27: تم السداد أو ليست عليه إلتزامات | AI27: سداد حتى نهاية أكتوبر 2025م.
A28: =سبتمبر!A28 -> منذر عبدالله محمد حمد | B28: =سبتمبر!B28 -> مأهول | C28: =سبتمبر!C28 -> 118561564 | D28: 5000 | E28: =سبتمبر!E28 -> 1 | F28: =سبتمبر!F28 -> 0 | G28: 5000 | H28: =سبتمبر!AC28 -> 0 | I28: =سبتمبر!AD28 -> -2000 | J28: =ROUND((سبتمبر!AE28+سبتمبر!AF28)/100,0)*100 -> 0 | K28: -2000 | L28: 5000 | M28: 0 | N28: 5000 | O28: 5000 | P28: -2000 | Q28: 0 | R28: 3000 | S28: 2025-11-05 | V28: 5000 | W28: 0 | X28: 0 | Y28: 0 | Z28: 0 | AA28: 0 | AB28: 5000 | AC28: 0 | AD28: -2000 | AE28: 0 | AF28: 0 | AG28: -2000 | AH28: له باقي طرفنا | AI28: سداد حتى نهاية أكتوبر 2025م.
A29: =سبتمبر!A29 -> الباقر عبدالله أنصار | B29: =سبتمبر!B29 -> مأهول | C29: =سبتمبر!C29 -> 0 | D29: 5000 | E29: =سبتمبر!E29 -> 0 | F29: =سبتمبر!F29 -> 0 | G29: 5000 | H29: =سبتمبر!AC29 -> 0 | I29: =سبتمبر!AD29 -> 0 | J29: =ROUND((سبتمبر!AE29+سبتمبر!AF29)/100,0)*100 -> 0 | K29: 0 | L29: 5000 | M29: 0 | N29: 5000 | O29: 5000 | P29: 0 | Q29: 0 | R29: 5000 | V29: 5000 | W29: 0 | X29: 0 | Y29: 0 | Z29: 0 | AA29: 0 | AB29: 5000 | AC29: 0 | AD29: 0 | AE29: 0 | AF29: 0 | AG29: 0 | AH29: تم السداد أو ليست عليه إلتزامات | AI29: سداد حتى نهاية أكتوبر 2025م.
A30: =سبتمبر!A30 -> خالد أحمد صالح ودصالح | B30: =سبتمبر!B30 -> جديد | C30: =سبتمبر!C30 -> 0 | D30: 0 | E30: =سبتمبر!E30 -> 0 | F30: =سبتمبر!F30 -> 0 | G30: 0 | H30: =سبتمبر!AC30 -> 0 | I30: =سبتمبر!AD30 -> 0 | J30: =ROUND((سبتمبر!AE30+سبتمبر!AF30)/100,0)*100 -> 0 | K30: 0 | L30: 0 | M30: 0 | N30: 0 | O30: 0 | P30: 0 | Q30: 0 | R30: 0 | AB30: 0 | AC30: 0 | AD30: 0 | AE30: 0 | AF30: 0 | AG30: 0 | AH30: تم السداد أو ليست عليه إلتزامات | AI30: =سبتمبر!AI30 -> 0
A31: =سبتمبر!A31 -> عبدالله صالح حامنتود | B31: =سبتمبر!B31 -> جديد | C31: =سبتمبر!C31 -> 0 | D31: 0 | E31: =سبتمبر!E31 -> 0 | F31: =سبتمبر!F31 -> 0 | G31: 0 | H31: =سبتمبر!AC31 -> 0 | I31: =سبتمبر!AD31 -> 0 | J31: =ROUND((سبتمبر!AE31+سبتمبر!AF31)/100,0)*100 -> 0 | K31: 0 | L31: 0 | M31: 0 | N31: 0 | O31: 0 | P31: 0 | Q31: 0 | R31: 0 | AB31: 0 | AC31: 0 | AD31: 0 | AE31: 0 | AF31: 0 | AG31: 0 | AH31: تم السداد أو ليست عليه إلتزامات | AI31: =سبتمبر!AI31 -> توصيل جديد
A32: =سبتمبر!A32 -> عبدالرحمن جمال عبدالرحمن | B32: =سبتمبر!B32 -> 0 | C32: =سبتمبر!C32 -> 0 | D32: 0 | E32: =سبتمبر!E32 -> 0 | F32: =سبتمبر!F32 -> 0 | G32: 0 | H32: =سبتمبر!AC32 -> 0 | I32: =سبتمبر!AD32 -> 0 | J32: =ROUND((سبتمبر!AE32+سبتمبر!AF32)/100,0)*100 -> 0 | K32: 0 | L32: 0 | M32: 0 | N32: 0 | O32: 0 | P32: 0 | Q32: 0 | R32: 0 | AB32: 0 | AC32: 0 | AD32: 0 | AE32: 0 | AF32: 0 | AG32: 0 | AH32: تم السداد أو ليست عليه إلتزامات | AI32: =سبتمبر!AI32 -> للمراجعة مع المتحصل
A33: =سبتمبر!A33 -> محمد صالح | B33: =سبتمبر!B33 -> 0 | C33: =سبتمبر!C33 -> 0 | D33: 0 | E33: =سبتمبر!E33 -> 0 | F33: =سبتمبر!F33 -> 0 | G33: 0 | H33: =سبتمبر!AC33 -> 0 | I33: =سبتمبر!AD33 -> 0 | J33: =ROUND((سبتمبر!AE33+سبتمبر!AF33)/100,0)*100 -> 0 | K33: 0 | L33: 0 | M33: 0 | N33: 0 | O33: 0 | P33: 0 | Q33: 0 | R33: 0 | AB33: 0 | AC33: 0 | AD33: 0 | AE33: 0 | AF33: 0 | AG33: 0 | AH33: تم السداد أو ليست عليه إلتزامات | AI33: =سبتمبر!AI33 -> للمراجعة مع المتحصل
A34: =سبتمبر!A34 -> أنور محي الدين (1) | B34: =سبتمبر!B34 -> 0 | C34: =سبتمبر!C34 -> 0 | D34: 0 | E34: =سبتمبر!E34 -> 0 | F34: =سبتمبر!F34 -> 0 | G34: 0 | H34: =سبتمبر!AC34 -> 0 | I34: =سبتمبر!AD34 -> 0 | J34: =ROUND((سبتمبر!AE34+سبتمبر!AF34)/100,0)*100 -> 0 | K34: 0 | L34: 0 | M34: 0 | N34: 0 | O34: 0 | P34: 0 | Q34: 0 | R34: 0 | AB34: 0 | AC34: 0 | AD34: 0 | AE34: 0 | AF34: 0 | AG34: 0 | AH34: تم السداد أو ليست عليه إلتزامات | AI34: =سبتمبر!AI34 -> للمراجعة مع المتحصل
A35: =سبتمبر!A35 -> أنور محي الدين (2) | B35: =سبتمبر!B35 -> 0 | C35: =سبتمبر!C35 -> 0 | D35: 0 | E35: =سبتمبر!E35 -> 0 | F35: =سبتمبر!F35 -> 0 | G35: 0 | H35: =سبتمبر!AC35 -> 0 | I35: =سبتمبر!AD35 -> 0 | J35: =ROUND((سبتمبر!AE35+سبتمبر!AF35)/100,0)*100 -> 0 | K35: 0 | L35: 0 | M35: 0 | N35: 0 | O35: 0 | P35: 0 | Q35: 0 | R35: 0 | AB35: 0 | AC35: 0 | AD35: 0 | AE35: 0 | AF35: =(IF(SUM(AC35:AE35)>0,IF(AB35<0,0,ROUND((SUM(AC35:AE35)/2)/100,0)*100),0)) -> 0 | AG35: 0 | AH35: تم السداد أو ليست عليه إلتزامات | AI35: =سبتمبر!AI35 -> للمراجعة مع المتحصل
A36: =سبتمبر!A36 -> أنور محي الدين (3) | B36: =سبتمبر!B36 -> 0 | C36: =سبتمبر!C36 -> 0 | D36: 0 | E36: =سبتمبر!E36 -> 0 | F36: =سبتمبر!F36 -> 0 | G36: 0 | H36: =سبتمبر!AC36 -> 0 | I36: =سبتمبر!AD36 -> 0 | J36: =ROUND((سبتمبر!AE36+سبتمبر!AF36)/100,0)*100 -> 0 | K36: 0 | L36: 0 | M36: 0 | N36: 0 | O36: 0 | P36: 0 | Q36: 0 | R36: 0 | AB36: 0 | AC36: 0 | AD36: 0 | AE36: 0 | AF36: 0 | AG36: 0 | AH36: تم السداد أو ليست عليه إلتزامات | AI36: =سبتمبر!AI36 -> للمراجعة مع المتحصل
A37: =سبتمبر!A37 -> جلال أنور | B37: =سبتمبر!B37 -> 0 | C37: =سبتمبر!C37 -> 0 | D37: 0 | E37: =سبتمبر!E37 -> 0 | F37: =سبتمبر!F37 -> 0 | G37: 0 | H37: =سبتمبر!AC37 -> 0 | I37: =سبتمبر!AD37 -> 0 | J37: =ROUND((سبتمبر!AE37+سبتمبر!AF37)/100,0)*100 -> 0 | K37: 0 | L37: 0 | M37: 0 | N37: 0 | O37: 0 | P37: 0 | Q37: 0 | R37: 0 | AB37: 0 | AC37: 0 | AD37: 0 | AE37: 0 | AF37: 0 | AG37: 0 | AH37: تم السداد أو ليست عليه إلتزامات | AI37: =سبتمبر!AI37 -> للمراجعة مع المتحصل
A38: =سبتمبر!A38 -> محسن فتحي | B38: =سبتمبر!B38 -> 0 | C38: =سبتمبر!C38 -> 0 | D38: 0 | E38: =سبتمبر!E38 -> 0 | F38: =سبتمبر!F38 -> 0 | G38: 0 | H38: =سبتمبر!AC38 -> 0 | I38: =سبتمبر!AD38 -> 0 | J38: =ROUND((سبتمبر!AE38+سبتمبر!AF38)/100,0)*100 -> 0 | K38: 0 | L38: 0 | M38: 0 | N38: 0 | O38: 0 | P38: 0 | Q38: 0 | R38: 0 | AB38: 0 | AC38: 0 | AD38: 0 | AE38: 0 | AF38: 0 | AG38: 0 | AH38: تم السداد أو ليست عليه إلتزامات | AI38: =سبتمبر!AI38 -> للمراجعة مع المتحصل
A39: =سبتمبر!A39 -> معتز صالح | B39: =سبتمبر!B39 -> 0 | C39: =سبتمبر!C39 -> 0 | D39: 0 | E39: =سبتمبر!E39 -> 0 | F39: =سبتمبر!F39 -> 0 | G39: 0 | H39: =سبتمبر!AC39 -> 0 | I39: =سبتمبر!AD39 -> 0 | J39: =ROUND((سبتمبر!AE39+سبتمبر!AF39)/100,0)*100 -> 0 | K39: 0 | L39: 0 | M39: 0 | N39: 0 | O39: 0 | P39: 0 | Q39: 0 | R39: 0 | AB39: 0 | AC39: 0 | AD39: 0 | AE39: 0 | AF39: 0 | AG39: 0 | AH39: تم السداد أو ليست عليه إلتزامات | AI39: =سبتمبر!AI39 -> للمراجعة مع المتحصل
A40: =سبتمبر!A40 -> صالح النور | B40: =سبتمبر!B40 -> 0 | C40: =سبتمبر!C40 -> 0 | D40: 0 | E40: =سبتمبر!E40 -> 1 | F40: =سبتمبر!F40 -> 0 | G40: 0 | H40: =سبتمبر!AC40 -> 0 | I40: =سبتمبر!AD40 -> 0 | J40: =ROUND((سبتمبر!AE40+سبتمبر!AF40)/100,0)*100 -> 0 | K40: 0 | L40: 0 | M40: 0 | N40: 0 | O40: 0 | P40: 0 | Q40: 0 | R40: 0 | AB40: 0 | AC40: 0 | AD40: 0 | AE40: 0 | AF40: 0 | AG40: 0 | AH40: تم السداد أو ليست عليه إلتزامات | AI40: =سبتمبر!AI40 -> للمراجعة مع المتحصل
A41: =سبتمبر!A41 -> محمد إدريس | B41: =سبتمبر!B41 -> 0 | C41: =سبتمبر!C41 -> 0 | D41: 0 | E41: =سبتمبر!E41 -> 0 | F41: =سبتمبر!F41 -> 0 | G41: 0 | H41: =سبتمبر!AC41 -> 0 | I41: =سبتمبر!AD41 -> 0 | J41: =ROUND((سبتمبر!AE41+سبتمبر!AF41)/100,0)*100 -> 0 | K41: 0 | L41: 0 | M41: 0 | N41: 0 | O41: 0 | P41: 0 | Q41: 0 | R41: 0 | AB41: 0 | AC41: 0 | AD41: 0 | AE41: 0 | AF41: 0 | AG41: 0 | AH41: تم السداد أو ليست عليه إلتزامات | AI41: =سبتمبر!AI41 -> للمراجعة مع المتحصل
A42: =سبتمبر!A42 -> عمر محمد السيد | B42: =سبتمبر!B42 -> 0 | C42: =سبتمبر!C42 -> 0 | D42: 0 | E42: =سبتمبر!E42 -> 3 | F42: =سبتمبر!F42 -> 0 | G42: 0 | H42: =سبتمبر!AC42 -> 0 | I42: =سبتمبر!AD42 -> 0 | J42: =ROUND((سبتمبر!AE42+سبتمبر!AF42)/100,0)*100 -> 0 | K42: 0 | L42: 0 | M42: 0 | N42: 0 | O42: 0 | P42: 0 | Q42: 0 | R42: 0 | AB42: 0 | AC42: 0 | AD42: 0 | AE42: 0 | AF42: 0 | AG42: 0 | AH42: تم السداد أو ليست عليه إلتزامات | AI42: =سبتمبر!AI42 -> للمراجعة مع المتحصل
A43: =سبتمبر!A43 -> منزل المرحوم إدريس السيد | B43: =سبتمبر!B43 -> 0 | C43: =سبتمبر!C43 -> 0 | D43: 0 | E43: =سبتمبر!E43 -> 0 | F43: =سبتمبر!F43 -> 0 | G43: 0 | H43: =سبتمبر!AC43 -> 0 | I43: =سبتمبر!AD43 -> 0 | J43: =ROUND((سبتمبر!AE43+سبتمبر!AF43)/100,0)*100 -> 0 | K43: 0 | L43: 0 | M43: 0 | N43: 0 | O43: 0 | P43: 0 | Q43: 0 | R43: 0 | AB43: 0 | AC43: 0 | AD43: 0 | AE43: 0 | AF43: 0 | AG43: 0 | AH43: تم السداد أو ليست عليه إلتزامات | AI43: =سبتمبر!AI43 -> للمراجعة مع المتحصل
A44: =سبتمبر!A44 -> صفوان مهدي الزين | B44: =سبتمبر!B44 -> 0 | C44: =سبتمبر!C44 -> 0 | D44: 0 | E44: =سبتمبر!E44 -> 4 | F44: =سبتمبر!F44 -> 6 | G44: 9000 | H44: =سبتمبر!AC44 -> 0 | I44: =سبتمبر!AD44 -> 9600 | J44: =ROUND((سبتمبر!AE44+سبتمبر!AF44)/100,0)*100 -> 0 | K44: 9600 | L44: 0 | M44: 9000 | N44: 9000 | O44: 0 | P44: 18600 | Q44: 0 | R44: 18600 | AB44: 0 | AC44: 0 | AD44: 18600 | AE44: 0 | AF44: 0 | AG44: 18600 | AH44: لم يتم السداد | AI44: =سبتمبر!AI44 -> للمراجعة مع المتحصل
A45: =سبتمبر!A45 -> أحمد صالح | B45: =سبتمبر!B45 -> 0 | C45: =سبتمبر!C45 -> 0 | D45: 0 | E45: =سبتمبر!E45 -> 2 | F45: =سبتمبر!F45 -> 0 | G45: 0 | H45: =سبتمبر!AC45 -> 0 | I45: =سبتمبر!AD45 -> 0 | J45: =ROUND((سبتمبر!AE45+سبتمبر!AF45)/100,0)*100 -> 0 | K45: 0 | L45: 0 | M45: 0 | N45: 0 | O45: 0 | P45: 0 | Q45: 0 | R45: 0 | AB45: 0 | AC45: 0 | AD45: 0 | AE45: 0 | AF45: 0 | AG45: 0 | AH45: تم السداد أو ليست عليه إلتزامات | AI45: =سبتمبر!AI45 -> للمراجعة مع المتحصل
A46: =سبتمبر!A46 -> محجوب محمد صالح | B46: =سبتمبر!B46 -> 0 | C46: =سبتمبر!C46 -> 0 | D46: 0 | E46: =سبتمبر!E46 -> 3 | F46: =سبتمبر!F46 -> 0 | G46: 0 | H46: =سبتمبر!AC46 -> 0 | I46: =سبتمبر!AD46 -> 0 | J46: =ROUND((سبتمبر!AE46+سبتمبر!AF46)/100,0)*100 -> 0 | K46: 0 | L46: 0 | M46: 0 | N46: 0 | O46: 0 | P46: 0 | Q46: 0 | R46: 0 | AB46: 0 | AC46: 0 | AD46: 0 | AE46: 0 | AF46: 0 | AG46: 0 | AH46: تم السداد أو ليست عليه إلتزامات | AI46: =سبتمبر!AI46 -> للمراجعة مع المتحصل
A47: =سبتمبر!A47 -> عادل عبدالله | B47: =سبتمبر!B47 -> 0 | C47: =سبتمبر!C47 -> 0 | D47: 0 | E47: =سبتمبر!E47 -> 11 | F47: =سبتمبر!F47 -> 0 | G47: 0 | H47: =سبتمبر!AC47 -> 0 | I47: =سبتمبر!AD47 -> 0 | J47: =ROUND((سبتمبر!AE47+سبتمبر!AF47)/100,0)*100 -> 0 | K47: 0 | L47: 0 | M47: 0 | N47: 0 | O47: 0 | P47: 0 | Q47: 0 | R47: 0 | AB47: 0 | AC47: 0 | AD47: 0 | AE47: 0 | AF47: 0 | AG47: 0 | AH47: تم السداد أو ليست عليه إلتزامات | AI47: =سبتمبر!AI47 -> للمراجعة مع المتحصل
A48: =سبتمبر!A48 -> حسن الزين ودصالح | B48: =سبتمبر!B48 -> 0 | C48: =سبتمبر!C48 -> 0 | D48: 0 | E48: =سبتمبر!E48 -> 2 | F48: =سبتمبر!F48 -> 0 | G48: 0 | H48: =سبتمبر!AC48 -> 0 | I48: =سبتمبر!AD48 -> 0 | J48: =ROUND((سبتمبر!AE48+سبتمبر!AF48)/100,0)*100 -> 0 | K48: 0 | L48: 0 | M48: 0 | N48: 0 | O48: 0 | P48: 0 | Q48: 0 | R48: 0 | AB48: 0 | AC48: 0 | AD48: 0 | AE48: 0 | AF48: 0 | AG48: 0 | AH48: تم السداد أو ليست عليه إلتزامات | AI48: =سبتمبر!AI48 -> للمراجعة مع المتحصل
A49: =سبتمبر!A49 -> أحمد محجوب | B49: =سبتمبر!B49 -> 0 | C49: =سبتمبر!C49 -> 0 | D49: 0 | E49: =سبتمبر!E49 -> 1 | F49: =سبتمبر!F49 -> 0 | G49: 0 | H49: =سبتمبر!AC49 -> 0 | I49: =سبتمبر!AD49 -> 0 | J49: =ROUND((سبتمبر!AE49+سبتمبر!AF49)/100,0)*100 -> 0 | K49: 0 | L49: 0 | M49: 0 | N49: 0 | O49: 0 | P49: 0 | Q49: 0 | R49: 0 | AB49: 0 | AC49: 0 | AD49: 0 | AE49: 0 | AF49: 0 | AG49: 0 | AH49: تم السداد أو ليست عليه إلتزامات | AI49: =سبتمبر!AI49 -> للمراجعة مع المتحصل
A50: =سبتمبر!A50 -> راشد ودحجه | B50: =سبتمبر!B50 -> 0 | C50: =سبتمبر!C50 -> 0 | D50: 0 | E50: =سبتمبر!E50 -> 0 | F50: =سبتمبر!F50 -> 0 | G50: 0 | H50: =سبتمبر!AC50 -> 0 | I50: =سبتمبر!AD50 -> 0 | J50: =ROUND((سبتمبر!AE50+سبتمبر!AF50)/100,0)*100 -> 0 | K50: 0 | L50: 0 | M50: 0 | N50: 0 | O50: 0 | P50: 0 | Q50: 0 | R50: 0 | AB50: 0 | AC50: 0 | AD50: 0 | AE50: 0 | AF50: 0 | AG50: 0 | AH50: تم السداد أو ليست عليه إلتزامات | AI50: =سبتمبر!AI50 -> للمراجعة مع المتحصل
A51: =سبتمبر!A51 -> محمد صلاح | B51: =سبتمبر!B51 -> 0 | C51: =سبتمبر!C51 -> 0 | D51: 0 | E51: =سبتمبر!E51 -> 0 | F51: =سبتمبر!F51 -> 0 | G51: 0 | H51: =سبتمبر!AC51 -> 0 | I51: =سبتمبر!AD51 -> 0 | J51: =ROUND((سبتمبر!AE51+سبتمبر!AF51)/100,0)*100 -> 0 | K51: 0 | L51: 0 | M51: 0 | N51: 0 | O51: 0 | P51: 0 | Q51: 0 | R51: 0 | AB51: 0 | AC51: 0 | AD51: 0 | AE51: 0 | AF51: 0 | AG51: 0 | AH51: تم السداد أو ليست عليه إلتزامات | AI51: =سبتمبر!AI51 -> للمراجعة مع المتحصل
A52: =سبتمبر!A52 -> الفاضل محمدعلي | B52: =سبتمبر!B52 -> 0 | C52: =سبتمبر!C52 -> 0 | D52: 0 | E52: =سبتمبر!E52 -> 0 | F52: =سبتمبر!F52 -> 0 | G52: 0 | H52: =سبتمبر!AC52 -> 0 | I52: =سبتمبر!AD52 -> 0 | J52: =ROUND((سبتمبر!AE52+سبتمبر!AF52)/100,0)*100 -> 0 | K52: 0 | L52: 0 | M52: 0 | N52: 0 | O52: 0 | P52: 0 | Q52: 0 | R52: 0 | AB52: 0 | AC52: 0 | AD52: 0 | AE52: 0 | AF52: 0 | AG52: 0 | AH52: تم السداد أو ليست عليه إلتزامات | AI52: =سبتمبر!AI52 -> للمراجعة مع المتحصل | AK52: الإجمالي | AM52: =SUM(AM3:AM51) -> 20000
A53: =سبتمبر!A53 -> سعاد ودحجه | B53: =سبتمبر!B53 -> 0 | C53: =سبتمبر!C53 -> 0 | D53: 0 | E53: =سبتمبر!E53 -> 2 | F53: =سبتمبر!F53 -> 0 | G53: 0 | H53: =سبتمبر!AC53 -> 0 | I53: =سبتمبر!AD53 -> 0 | J53: =ROUND((سبتمبر!AE53+سبتمبر!AF53)/100,0)*100 -> 0 | K53: 0 | L53: 0 | M53: 0 | N53: 0 | O53: 0 | P53: 0 | Q53: 0 | R53: 0 | AB53: 0 | AC53: 0 | AD53: 0 | AE53: 0 | AF53: 0 | AG53: 0 | AH53: تم السداد أو ليست عليه إلتزامات | AI53: =سبتمبر!AI53 -> للمراجعة مع المتحصل
A54: =سبتمبر!A54 -> أحمد الفقير | B54: =سبتمبر!B54 -> 0 | C54: =سبتمبر!C54 -> 0 | D54: 0 | E54: =سبتمبر!E54 -> 2 | F54: =سبتمبر!F54 -> 0 | G54: 0 | H54: =سبتمبر!AC54 -> 0 | I54: =سبتمبر!AD54 -> 0 | J54: =ROUND((سبتمبر!AE54+سبتمبر!AF54)/100,0)*100 -> 0 | K54: 0 | L54: 0 | M54: 0 | N54: 0 | O54: 0 | P54: 0 | Q54: 0 | R54: 0 | AB54: 0 | AC54: 0 | AD54: 0 | AE54: 0 | AF54: 0 | AG54: 0 | AH54: تم السداد أو ليست عليه إلتزامات | AI54: =سبتمبر!AI54 -> للمراجعة مع المتحصل
A55: =سبتمبر!A55 -> عبدالقادر خالد محمدعلي الفقير | B55: =سبتمبر!B55 -> 0 | C55: =سبتمبر!C55 -> 0 | D55: 0 | E55: =سبتمبر!E55 -> 3 | F55: =سبتمبر!F55 -> 0 | G55: 0 | H55: =سبتمبر!AC55 -> 0 | I55: =سبتمبر!AD55 -> 0 | J55: =ROUND((سبتمبر!AE55+سبتمبر!AF55)/100,0)*100 -> 0 | K55: 0 | L55: 0 | M55: 0 | N55: 0 | O55: 0 | P55: 0 | Q55: 0 | R55: 0 | AB55: 0 | AC55: 0 | AD55: 0 | AE55: 0 | AF55: 0 | AG55: 0 | AH55: تم السداد أو ليست عليه إلتزامات | AI55: =سبتمبر!AI55 -> للمراجعة مع المتحصل
A56: =سبتمبر!A56 -> وليد الفقير | B56: =سبتمبر!B56 -> 0 | C56: =سبتمبر!C56 -> 0 | D56: 0 | E56: =سبتمبر!E56 -> 0 | F56: =سبتمبر!F56 -> 0 | G56: 0 | H56: =سبتمبر!AC56 -> 0 | I56: =سبتمبر!AD56 -> 0 | J56: =ROUND((سبتمبر!AE56+سبتمبر!AF56)/100,0)*100 -> 0 | K56: 0 | L56: 0 | M56: 0 | N56: 0 | O56: 0 | P56: 0 | Q56: 0 | R56: 0 | AB56: 0 | AC56: 0 | AD56: 0 | AE56: 0 | AF56: 0 | AG56: 0 | AH56: تم السداد أو ليست عليه إلتزامات | AI56: =سبتمبر!AI56 -> للمراجعة مع المتحصل
A57: =سبتمبر!A57 -> خالد محمدعلي الفقير | B57: =سبتمبر!B57 -> 0 | C57: =سبتمبر!C57 -> 0 | D57: 0 | E57: =سبتمبر!E57 -> 3 | F57: =سبتمبر!F57 -> 0 | G57: 0 | H57: =سبتمبر!AC57 -> 0 | I57: =سبتمبر!AD57 -> 0 | J57: =ROUND((سبتمبر!AE57+سبتمبر!AF57)/100,0)*100 -> 0 | K57: 0 | L57: 0 | M57: 0 | N57: 0 | O57: 0 | P57: 0 | Q57: 0 | R57: 0 | AB57: 0 | AC57: 0 | AD57: 0 | AE57: 0 | AF57: 0 | AG57: 0 | AH57: تم السداد أو ليست عليه إلتزامات | AI57: =سبتمبر!AI57 -> للمراجعة مع المتحصل
A58: =سبتمبر!A58 -> مصعب خالد | B58: =سبتمبر!B58 -> 0 | C58: =سبتمبر!C58 -> 0 | D58: 0 | E58: =سبتمبر!E58 -> 4 | F58: =سبتمبر!F58 -> 10 | G58: 15000 | H58: =سبتمبر!AC58 -> 0 | I58: =سبتمبر!AD58 -> 16000 | J58: =ROUND((سبتمبر!AE58+سبتمبر!AF58)/100,0)*100 -> 0 | K58: 16000 | L58: 0 | M58: 15000 | N58: 15000 | O58: 0 | P58: 31000 | Q58: 0 | R58: 31000 | AB58: 0 | AC58: 0 | AD58: 31000 | AE58: 0 | AF58: 0 | AG58: 31000 | AH58: لم يتم السداد | AI58: =سبتمبر!AI58 -> للمراجعة مع المتحصل
A59: =سبتمبر!A59 -> عماد إبراهيم السيد | B59: =سبتمبر!B59 -> 0 | C59: =سبتمبر!C59 -> 0 | D59: 0 | E59: =سبتمبر!E59 -> 1 | F59: =سبتمبر!F59 -> 0 | G59: 0 | H59: =سبتمبر!AC59 -> 0 | I59: =سبتمبر!AD59 -> 0 | J59: =ROUND((سبتمبر!AE59+سبتمبر!AF59)/100,0)*100 -> 0 | K59: 0 | L59: 0 | M59: 0 | N59: 0 | O59: 0 | P59: 0 | Q59: 0 | R59: 0 | AB59: 0 | AC59: 0 | AD59: 0 | AE59: 0 | AF59: 0 | AG59: 0 | AH59: تم السداد أو ليست عليه إلتزامات | AI59: =سبتمبر!AI59 -> للمراجعة مع المتحصل
A60: =سبتمبر!A60 -> العاقب الزين | B60: =سبتمبر!B60 -> مأهول | C60: =سبتمبر!C60 -> 0 | D60: 5000 | E60: =سبتمبر!E60 -> 0 | F60: =سبتمبر!F60 -> 0 | G60: 5000 | H60: =سبتمبر!AC60 -> 10000 | I60: =سبتمبر!AD60 -> 0 | J60: =ROUND((سبتمبر!AE60+سبتمبر!AF60)/100,0)*100 -> 0 | K60: 10000 | L60: 5000 | M60: 0 | N60: 5000 | O60: 15000 | P60: 0 | Q60: 0 | R60: 15000 | AB60: 0 | AC60: 15000 | AD60: 0 | AE60: 0 | AF60: 0 | AG60: 15000 | AH60: لم يتم السداد | AI60: =سبتمبر!AI60 -> للمراجعة مع المتحصل
A61: =سبتمبر!A61 -> 0 | B61: =سبتمبر!B61 -> 0 | C61: =سبتمبر!C61 -> 0 | D61: 0 | E61: =سبتمبر!E61 -> 0 | F61: =سبتمبر!F61 -> 0 | G61: 0 | H61: =سبتمبر!AC61 -> 0 | I61: =سبتمبر!AD61 -> 0 | J61: =ROUND((سبتمبر!AE61+سبتمبر!AF61)/100,0)*100 -> 0 | K61: 0 | L61: 0 | M61: 0 | N61: 0 | O61: 0 | P61: 0 | Q61: 0 | R61: 0 | AB61: 0 | AC61: 0 | AD61: 0 | AE61: 0 | AF61: 0 | AG61: 0 | AH61: تم السداد أو ليست عليه إلتزامات | AI61: =سبتمبر!AI61 -> 0
A62: =سبتمبر!A62 -> 0 | B62: =سبتمبر!B62 -> 0 | C62: =سبتمبر!C62 -> 0 | D62: 0 | E62: =سبتمبر!E62 -> 0 | F62: =سبتمبر!F62 -> 0 | G62: 0 | H62: =سبتمبر!AC62 -> 0 | I62: =سبتمبر!AD62 -> 0 | J62: =ROUND((سبتمبر!AE62+سبتمبر!AF62)/100,0)*100 -> 0 | K62: 0 | L62: 0 | M62: 0 | N62: 0 | O62: 0 | P62: 0 | Q62: 0 | R62: 0 | AB62: 0 | AC62: 0 | AD62: 0 | AE62: 0 | AF62: 0 | AG62: 0 | AH62: تم السداد أو ليست عليه إلتزامات | AI62: =سبتمبر!AI62 -> 0
A63: =سبتمبر!A63 -> 0 | B63: =سبتمبر!B63 -> 0 | C63: =سبتمبر!C63 -> 0 | D63: 0 | E63: =سبتمبر!E63 -> 0 | F63: =سبتمبر!F63 -> 0 | G63: 0 | H63: =سبتمبر!AC63 -> 0 | I63: =سبتمبر!AD63 -> 0 | J63: =ROUND((سبتمبر!AE63+سبتمبر!AF63)/100,0)*100 -> 0 | K63: 0 | L63: 0 | M63: 0 | N63: 0 | O63: 0 | P63: 0 | Q63: 0 | R63: 0 | AB63: 0 | AC63: 0 | AD63: 0 | AE63: 0 | AF63: 0 | AG63: 0 | AH63: تم السداد أو ليست عليه إلتزامات | AI63: =سبتمبر!AI63 -> 0
A64: =سبتمبر!A64 -> 0 | B64: =سبتمبر!B64 -> 0 | C64: =سبتمبر!C64 -> 0 | D64: 0 | E64: =سبتمبر!E64 -> 0 | F64: =سبتمبر!F64 -> 0 | G64: 0 | H64: =سبتمبر!AC64 -> 0 | I64: =سبتمبر!AD64 -> 0 | J64: =ROUND((سبتمبر!AE64+سبتمبر!AF64)/100,0)*100 -> 0 | K64: 0 | L64: 0 | M64: 0 | N64: 0 | O64: 0 | P64: 0 | Q64: 0 | R64: 0 | AB64: 0 | AC64: 0 | AD64: 0 | AE64: 0 | AF64: 0 | AG64: 0 | AH64: تم السداد أو ليست عليه إلتزامات | AI64: =سبتمبر!AI64 -> 0
A65: =سبتمبر!A65 -> 0 | B65: =سبتمبر!B65 -> 0 | C65: =سبتمبر!C65 -> 0 | D65: 0 | E65: =سبتمبر!E65 -> 0 | F65: =سبتمبر!F65 -> 0 | G65: 0 | H65: =سبتمبر!AC65 -> 0 | I65: =سبتمبر!AD65 -> 0 | J65: =ROUND((سبتمبر!AE65+سبتمبر!AF65)/100,0)*100 -> 0 | K65: 0 | L65: 0 | M65: 0 | N65: 0 | O65: 0 | P65: 0 | Q65: 0 | R65: 0 | AB65: 0 | AC65: 0 | AD65: 0 | AE65: 0 | AF65: 0 | AG65: 0 | AH65: تم السداد أو ليست عليه إلتزامات | AI65: =سبتمبر!AI65 -> 0
A66: =سبتمبر!A66 -> 0 | B66: =سبتمبر!B66 -> 0 | C66: =سبتمبر!C66 -> 0 | D66: 0 | E66: =سبتمبر!E66 -> 0 | F66: =سبتمبر!F66 -> 0 | G66: 0 | H66: =سبتمبر!AC66 -> 0 | I66: =سبتمبر!AD66 -> 0 | J66: =ROUND((سبتمبر!AE66+سبتمبر!AF66)/100,0)*100 -> 0 | K66: 0 | L66: 0 | M66: 0 | N66: 0 | O66: 0 | P66: 0 | Q66: 0 | R66: 0 | AB66: 0 | AC66: 0 | AD66: 0 | AE66: 0 | AF66: 0 | AG66: 0 | AH66: تم السداد أو ليست عليه إلتزامات | AI66: =سبتمبر!AI66 -> 0
A67: =سبتمبر!A67 -> 0 | B67: =سبتمبر!B67 -> 0 | C67: =سبتمبر!C67 -> 0 | D67: 0 | E67: =سبتمبر!E67 -> 0 | F67: =سبتمبر!F67 -> 0 | G67: 0 | H67: =سبتمبر!AC67 -> 0 | I67: =سبتمبر!AD67 -> 0 | J67: =ROUND((سبتمبر!AE67+سبتمبر!AF67)/100,0)*100 -> 0 | K67: 0 | L67: 0 | M67: 0 | N67: 0 | O67: 0 | P67: 0 | Q67: 0 | R67: 0 | AB67: 0 | AC67: 0 | AD67: 0 | AE67: 0 | AF67: =(IF(SUM(AC67:AE67)>0,IF(AB67<0,0,ROUND((SUM(AC67:AE67)/2)/100,0)*100),0)) -> 0 | AG67: 0 | AH67: تم السداد أو ليست عليه إلتزامات | AI67: =سبتمبر!AI67 -> 0
A68: =سبتمبر!A68 -> 0 | B68: =سبتمبر!B68 -> 0 | C68: =سبتمبر!C68 -> 0 | D68: =IF(B68="مأهول",5000,0) -> 0 | E68: =سبتمبر!E68 -> 0 | F68: =سبتمبر!F68 -> 0 | G68: =D68+(F68*1500) -> 0 | H68: =سبتمبر!AC68 -> 0 | I68: =سبتمبر!AD68 -> 0 | J68: =ROUND((سبتمبر!AE68+سبتمبر!AF68)/100,0)*100 -> 0 | K68: =ROUND((SUM(H68:J68))/100,0)*100 -> 0 | L68: =D68 -> 0 | M68: =(F68*1500) -> 0 | N68: =SUM(L68:M68) -> 0 | O68: =ROUND((H68+L68)/100,0)*100 -> 0 | P68: 0 | Q68: =J68 -> 0 | R68: =ROUND((SUM(O68:Q68))/100,0)*100 -> 0 | AB68: =SUM(V68:AA68) -> 0 | AC68: =ROUND((O68-V68)/100,0)*100 -> 0 | AD68: 0 | AE68: =ROUND((Q68-Z68)/100,0)*100 -> 0 | AF68: 0 | AG68: =ROUND(SUM(AC68:AF68)/50,0)*50 -> 0 | AH68: =IF(A68<>"",_xlfn.IFS(AG68>(G68*3),"مفصول",AG68=0,"تم السداد أو ليست عليه إلتزامات",AG68<0,"له باقي طرفنا",0<AG68>(G68*3),"لم يتم السداد"),"") -> تم السداد أو ليست عليه إلتزامات | AI68: =سبتمبر!AI68 -> 0
A69: =سبتمبر!A69 -> 0 | B69: =سبتمبر!B69 -> 0 | C69: =سبتمبر!C69 -> 0 | D69: =IF(B69="مأهول",5000,0) -> 0 | E69: =سبتمبر!E69 -> 0 | F69: =سبتمبر!F69 -> 0 | G69: 0 | H69: =سبتمبر!AC69 -> 0 | I69: =سبتمبر!AD69 -> 0 | J69: =ROUND((سبتمبر!AE69+سبتمبر!AF69)/100,0)*100 -> 0 | K69: =ROUND((SUM(H69:J69))/100,0)*100 -> 0 | L69: =D69 -> 0 | M69: 0 | N69: =SUM(L69:M69) -> 0 | O69: 0 | P69: 0 | Q69: =J69 -> 0 | R69: =ROUND((SUM(O69:Q69))/100,0)*100 -> 0 | AB69: =SUM(V69:AA69) -> 0 | AC69: 0 | AD69: 0 | AE69: =ROUND((Q69-Z69)/100,0)*100 -> 0 | AF69: 0 | AG69: =ROUND(SUM(AC69:AF69)/50,0)*50 -> 0 | AH69: =IF(A69<>"",_xlfn.IFS(AG69>(G69*3),"مفصول",AG69=0,"تم السداد أو ليست عليه إلتزامات",AG69<0,"له باقي طرفنا",0<AG69>(G69*3),"لم يتم السداد"),"") -> تم السداد أو ليست عليه إلتزامات | AI69: =سبتمبر!AI69 -> 0
A70: =سبتمبر!A70 -> 0 | B70: =سبتمبر!B70 -> 0 | C70: =سبتمبر!C70 -> 0 | D70: =IF(B70="مأهول",5000,0) -> 0 | E70: =سبتمبر!E70 -> 0 | F70: =سبتمبر!F70 -> 0 | G70: 0 | H70: =سبتمبر!AC70 -> 0 | I70: =سبتمبر!AD70 -> 0 | J70: =ROUND((سبتمبر!AE70+سبتمبر!AF70)/100,0)*100 -> 0 | K70: =ROUND((SUM(H70:J70))/100,0)*100 -> 0 | L70: =D70 -> 0 | M70: 0 | N70: =SUM(L70:M70) -> 0 | O70: 0 | P70: 0 | Q70: =J70 -> 0 | R70: =ROUND((SUM(O70:Q70))/100,0)*100 -> 0 | AB70: =SUM(V70:AA70) -> 0 | AC70: 0 | AD70: 0 | AE70: =ROUND((Q70-Z70)/100,0)*100 -> 0 | AF70: 0 | AG70: =ROUND(SUM(AC70:AF70)/50,0)*50 -> 0 | AH70: =IF(A70<>"",_xlfn.IFS(AG70>(G70*3),"مفصول",AG70=0,"تم السداد أو ليست عليه إلتزامات",AG70<0,"له باقي طرفنا",0<AG70>(G70*3),"لم يتم السداد"),"") -> تم السداد أو ليست عليه إلتزامات | AI70: =سبتمبر!AI70 -> 0
A71: =سبتمبر!A71 -> 0 | B71: =سبتمبر!B71 -> 0 | C71: =سبتمبر!C71 -> 0 | D71: =IF(B71="مأهول",5000,0) -> 0 | E71: =سبتمبر!E71 -> 0 | F71: =سبتمبر!F71 -> 0 | G71: 0 | H71: =سبتمبر!AC71 -> 0 | I71: =سبتمبر!AD71 -> 0 | J71: =ROUND((سبتمبر!AE71+سبتمبر!AF71)/100,0)*100 -> 0 | K71: =ROUND((SUM(H71:J71))/100,0)*100 -> 0 | L71: =D71 -> 0 | M71: 0 | N71: =SUM(L71:M71) -> 0 | O71: 0 | P71: 0 | Q71: =J71 -> 0 | R71: =ROUND((SUM(O71:Q71))/100,0)*100 -> 0 | AB71: =SUM(V71:AA71) -> 0 | AC71: 0 | AD71: 0 | AE71: =ROUND((Q71-Z71)/100,0)*100 -> 0 | AF71: 0 | AG71: =ROUND(SUM(AC71:AF71)/50,0)*50 -> 0 | AH71: =IF(A71<>"",_xlfn.IFS(AG71>(G71*3),"مفصول",AG71=0,"تم السداد أو ليست عليه إلتزامات",AG71<0,"له باقي طرفنا",0<AG71>(G71*3),"لم يتم السداد"),"") -> تم السداد أو ليست عليه إلتزامات | AI71: =سبتمبر!AI71 -> 0
A72: =سبتمبر!A72 -> 0 | B72: =سبتمبر!B72 -> 0 | C72: =سبتمبر!C72 -> 0 | D72: =IF(B72="مأهول",5000,0) -> 0 | E72: =سبتمبر!E72 -> 0 | F72: =سبتمبر!F72 -> 0 | G72: 0 | H72: =سبتمبر!AC72 -> 0 | I72: =سبتمبر!AD72 -> 0 | J72: =ROUND((سبتمبر!AE72+سبتمبر!AF72)/100,0)*100 -> 0 | K72: =ROUND((SUM(H72:J72))/100,0)*100 -> 0 | L72: =D72 -> 0 | M72: 0 | N72: =SUM(L72:M72) -> 0 | O72: 0 | P72: 0 | Q72: =J72 -> 0 | R72: =ROUND((SUM(O72:Q72))/100,0)*100 -> 0 | AB72: =SUM(V72:AA72) -> 0 | AC72: 0 | AD72: 0 | AE72: =ROUND((Q72-Z72)/100,0)*100 -> 0 | AF72: 0 | AG72: =ROUND(SUM(AC72:AF72)/50,0)*50 -> 0 | AH72: =IF(A72<>"",_xlfn.IFS(AG72>(G72*3),"مفصول",AG72=0,"تم السداد أو ليست عليه إلتزامات",AG72<0,"له باقي طرفنا",0<AG72>(G72*3),"لم يتم السداد"),"") -> تم السداد أو ليست عليه إلتزامات | AI72: =سبتمبر!AI72 -> 0
A73: الإجمالي | D73: =SUM(D3:D72) -> 120000 | E73: =SUM(E3:E72) -> 78 | F73: =SUM(F3:F72) -> 24 | G73: =SUM(G3:G72) -> 156000 | H73: =SUM(H3:H72) -> 5000 | I73: =SUM(I3:I72) -> -400 | J73: 0 | K73: 4600 | L73: 120000 | M73: 36000 | N73: 156000 | O73: 125000 | P73: 35600 | Q73: 0 | R73: 160600 | V73: =SUM(V3:V72) -> 115000 | W73: =SUM(W3:W72) -> 39000 | X73: 0 | Y73: 0 | Z73: =SUM(Z3:Z72) -> 0 | AA73: 0 | AB73: =SUM(AB3:AB72) -> 154000 | AC73: 10000 | AD73: =SUM(AD3:AD72) -> -3400 | AE73: =SUM(AE3:AE72) -> 0 | AF73: 0 | AG73: 6600
A76: البيان | B76: المبلغ | C76: ملحوظات
A77: إجمالي التحصيل الشهري | B77: =AB73 -> 154000
A78: مديونية سابقة على المتحصل | B78: =سبتمبر!B82 -> -7400
A79: إستلام أمين الصندوق | B79: =AM52 -> 20000
A80: المطلوب من المتحصل | B80: =(B77+B78)-B79 -> 126600
A81: السداد | B81: 140000 | C81: سداد عبر بنكك بتاريخ 2025/11/4م.
A82: الباقي | B82: =B80-B81 -> -13400
A83: مأهول
A84: شتول
A85: جديد
A86: مغلق
A87: مفصول
A88: معفي

Sheet نوفمبر
A1: البيانات الشخصية | G1: الربط | H1: المتأخرات حتى نهاية أكتوبر 2025م | L1: جاري نوفمبر 2025م | O1: المطلوب حتى نهاية نوفمبر 2025م | S1: تفاصيل السداد خلال نوفمبر 2025م | AC1: المتأخرات حتى نهاية نوفمبر 2025م | AH1: موقف السداد | AI1: ملاحظات | AK1: إستلام أمين الصندوق
A2: الإسم | B2: المنزل | C2: الهاتف | D2: السكني | E2: شتول الربط | F2: شتول خ. الربط | G2: الشهري | H2: السكني | I2: الشتول | J2: غرامات | K2: الإجمالي | L2: السكني | M2: الشتول | N2: الإجمالي | O2: السكني | P2: الشتول | Q2: غرامات | R2: الإجمالي | S2: التاريخ | T2: رقم الإيصال | U2: رقم الدفتر | V2: السكني | W2: الشتول | X2: توصيل | Y2: مباني | Z2: غرامات | AA2: أخرى | AB2: الإجمالي | AC2: السكني | AD2: الشتول | AE2: الغرامات | AF2: غرامة تأخير سداد | AG2: الإجمالي | AK2: التاريخ | AL2: الإسم | AM2: المبلغ | AN2: ملحوظات
A3: =أكتوبر!A3 -> منزل المرحوم عبدالله محمد صالح (ودحجه) | B3: =أكتوبر!B3 -> مأهول | C3: =أكتوبر!C3 -> 913223640 | D3: =IF(B3="مأهول",5000,0) -> 5000 | E3: =أكتوبر!E3 -> 2 | F3: =أكتوبر!F3 -> 0 | G3: =D3+(F3*1500) -> 5000 | H3: =أكتوبر!AC3 -> 0 | I3: =أكتوبر!AD3 -> 0 | J3: =ROUND((أكتوبر!AE3+أكتوبر!AF3)/100,0)*100 -> 0 | K3: =ROUND((SUM(H3:J3))/100,0)*100 -> 0 | L3: =D3 -> 5000 | M3: =(F3*1500) -> 0 | N3: =SUM(L3:M3) -> 5000 | O3: =ROUND((H3+L3)/100,0)*100 -> 5000 | P3: =ROUND((I3+M3)/100,0)*100 -> 0 | Q3: =J3 -> 0 | R3: =ROUND((SUM(O3:Q3))/100,0)*100 -> 5000 | V3: 5000 | W3: 0 | X3: 0 | Y3: 0 | Z3: 0 | AA3: 0 | AB3: =SUM(V3:AA3) -> 5000 | AC3: =ROUND((O3-V3)/100,0)*100 -> 0 | AD3: =ROUND((P3-W3)/100,0)*100 -> 0 | AE3: =ROUND((Q3-Z3)/100,0)*100 -> 0 | AF3: =(IF(SUM(AC3:AE3)>0,IF(AB3<0,0,ROUND((SUM(AC3:AE3)/2)/100,0)*100),0)) -> 0 | AG3: =ROUND(SUM(AC3:AF3)/100,0)*100 -> 0 | AH3: =IF(A3<>"",_xlfn.IFS(AG3>(G3*3),"مفصول",AG3=0,"تم السداد أو ليست عليه إلتزامات",AG3<0,"له باقي طرفنا",0<AG3>(G3*3),"لم يتم السداد"),"") -> تم السداد أو ليست عليه إلتزامات | AI3: سداد حتى نهاية نوفمبر 2025م.
A4: =أكتوبر!A4 -> مبارك عبدالله محمد صالح | B4: =أكتوبر!B4 -> مأهول | C4: =أكتوبر!C4 -> 912572291 | D4: =IF(B4="مأهول",5000,0) -> 5000 | E4: =أكتوبر!E4 -> 1 | F4: =أكتوبر!F4 -> 0 | G4: =D4+(F4*1500) -> 5000 | H4: =أكتوبر!AC4 -> 0 | I4: =أكتوبر!AD4 -> -4000 | J4: =ROUND((أكتوبر!AE4+أكتوبر!AF4)/100,0)*100 -> 0 | K4: =ROUND((SUM(H4:J4))/100,0)*100 -> -4000 | L4: =D4 -> 5000 | M4: =(F4*1500) -> 0 | N4: =SUM(L4:M4) -> 5000 | O4: =ROUND((H4+L4)/100,0)*100 -> 5000 | P4: -4000 | Q4: =J4 -> 0 | R4: =ROUND((SUM(O4:Q4))/100,0)*100 -> 1000 | V4: 1000 | W4: 0 | X4: 0 | Y4: 0 | Z4: 0 | AA4: 0 | AB4: =SUM(V4:AA4) -> 1000 | AC4: =ROUND((O4-V4)/100,0)*100 -> 4000 | AD4: -4000 | AE4: =ROUND((Q4-Z4)/100,0)*100 -> 0 | AF4: 0 | AG4: =ROUND(SUM(AC4:AF4)/50,0)*50 -> 0 | AH4: =IF(A4<>"",_xlfn.IFS(AG4>(G4*3),"مفصول",AG4=0,"تم السداد أو ليست عليه إلتزامات",AG4<0,"له باقي طرفنا",0<AG4>(G4*3),"لم يتم السداد"),"") -> تم السداد أو ليست عليه إلتزامات | AI4: سداد حتى نهاية نوفمبر 2025م.
A5: =أكتوبر!A5 -> خالد عبدالله محمد صالح | B5: =أكتوبر!B5 -> مأهول | C5: =أكتوبر!C5 -> 916713241 | D5: 5000 | E5: =أكتوبر!E5 -> 2 | F5: =أكتوبر!F5 -> 0 | G5: 5000 | H5: =أكتوبر!AC5 -> 0 | I5: =أكتوبر!AD5 -> -4000 | J5: =ROUND((أكتوبر!AE5+أكتوبر!AF5)/100,0)*100 -> 0 | K5: -4000 | L5: 5000 | M5: 0 | N5: 5000 | O5: 5000 | P5: -4000 | Q5: 0 | R5: 1000 | V5: 1000 | W5: 0 | X5: 0 | Y5: 0 | Z5: 0 | AA5: 0 | AB5: 1000 | AC5: 4000 | AD5: -4000 | AE5: 0 | AF5: 0 | AG5: 0 | AH5: تم السداد أو ليست عليه إلتزامات | AI5: سداد حتى نهاية نوفمبر 2025م.
A6: =أكتوبر!A6 -> الفاضل عبدالله محمد صالح | B6: =أكتوبر!B6 -> مغلق | C6: =أكتوبر!C6 -> 917924080 | D6: 0 | E6: =أكتوبر!E6 -> 1 | F6: =أكتوبر!F6 -> 0 | G6: 0 | H6: =أكتوبر!AC6 -> 0 | I6: =أكتوبر!AD6 -> 0 | J6: =ROUND((أكتوبر!AE6+أكتوبر!AF6)/100,0)*100 -> 0 | K6: 0 | L6: 0 | M6: 0 | N6: 0 | O6: 0 | P6: 0 | Q6: 0 | R6: 0 | AB6: 0 | AC6: 0 | AD6: 0 | AE6: 0 | AF6: 0 | AG6: 0 | AH6: تم السداد أو ليست عليه إلتزامات | AI6: =أكتوبر!AI6 -> سداد حتى نهاية يونيو 2025م.
A7: =أكتوبر!A7 -> بكري عبدالرحمن ود صالح | B7: =أكتوبر!B7 -> مأهول | C7: =أكتوبر!C7 -> 126793356 | D7: 5000 | E7: =أكتوبر!E7 -> 1 | F7: =أكتوبر!F7 -> 0 | G7: 5000 | H7: =أكتوبر!AC7 -> 0 | I7: =أكتوبر!AD7 -> -2000 | J7: =ROUND((أكتوبر!AE7+أكتوبر!AF7)/100,0)*100 -> 0 | K7: -2000 | L7: 5000 | M7: 0 | N7: 5000 | O7: 5000 | P7: -2000 | Q7: 0 | R7: 3000 | V7: 3000 | W7: 0 | X7: 0 | Y7: 0 | Z7: 0 | AA7: 0 | AB7: 3000 | AC7: 2000 | AD7: -2000 | AE7: 0 | AF7: 0 | AG7: 0 | AH7: تم السداد أو ليست عليه إلتزامات | AI7: سداد حتى نهاية نوفمبر 2025م.
A8: =أكتوبر!A8 -> جمال عبدالرحمن ود صالح | B8: =أكتوبر!B8 -> مأهول | C8: =أكتوبر!C8 -> 124317243 | D8: 5000 | E8: =أكتوبر!E8 -> 0 | F8: =أكتوبر!F8 -> 0 | G8: 5000 | H8: =أكتوبر!AC8 -> 0 | I8: =أكتوبر!AD8 -> 0 | J8: =ROUND((أكتوبر!AE8+أكتوبر!AF8)/100,0)*100 -> 0 | K8: 0 | L8: 5000 | M8: 0 | N8: 5000 | O8: 5000 | P8: 0 | Q8: 0 | R8: 5000 | V8: 5000 | W8: 0 | X8: 0 | Y8: 0 | Z8: 0 | AA8: 0 | AB8: 5000 | AC8: 0 | AD8: 0 | AE8: 0 | AF8: 0 | AG8: 0 | AH8: تم السداد أو ليست عليه إلتزامات | AI8: سداد حتى نهاية نوفمبر 2025م.
A9: =أكتوبر!A9 -> صلاح عبدالرحمن ود صالح | B9: =أكتوبر!B9 -> مأهول | C9: =أكتوبر!C9 -> 121347090 | D9: 5000 | E9: =أكتوبر!E9 -> 2 | F9: =أكتوبر!F9 -> 0 | G9: 5000 | H9: =أكتوبر!AC9 -> 0 | I9: =أكتوبر!AD9 -> -4000 | J9: =ROUND((أكتوبر!AE9+أكتوبر!AF9)/100,0)*100 -> 0 | K9: -4000 | L9: 5000 | M9: 0 | N9: 5000 | O9: 5000 | P9: -4000 | Q9: 0 | R9: 1000 | V9: 1000 | W9: 0 | X9: 0 | Y9: 0 | Z9: 0 | AA9: 0 | AB9: 1000 | AC9: 4000 | AD9: -4000 | AE9: 0 | AF9: 0 | AG9: 0 | AH9: تم السداد أو ليست عليه إلتزامات | AI9: سداد حتى نهاية نوفمبر 2025م.
A10: =أكتوبر!A10 -> عبدالحي عبدالرحمن ودصالح | B10: =أكتوبر!B10 -> مأهول | C10: =أكتوبر!C10 -> 114114215 | D10: 5000 | E10: =أكتوبر!E10 -> 0 | F10: =أكتوبر!F10 -> 0 | G10: 5000 | H10: =أكتوبر!AC10 -> 0 | I10: =أكتوبر!AD10 -> 0 | J10: =ROUND((أكتوبر!AE10+أكتوبر!AF10)/100,0)*100 -> 0 | K10: 0 | L10: 5000 | M10: 0 | N10: 5000 | O10: 5000 | P10: 0 | Q10: 0 | R10: 5000 | V10: 5000 | W10: 0 | X10: 0 | Y10: 0 | Z10: 0 | AA10: 0 | AB10: 5000 | AC10: 0 | AD10: 0 | AE10: 0 | AF10: 0 | AG10: 0 | AH10: تم السداد أو ليست عليه إلتزامات | AI10: سداد حتى نهاية نوفمبر 2025م.
A11: =أكتوبر!A11 -> فضل عبدالرحمن ودصالح | B11: =أكتوبر!B11 -> مأهول | C11: =أكتوبر!C11 -> 965527390 | D11: 5000 | E11: =أكتوبر!E11 -> 4 | F11: =أكتوبر!F11 -> 3 | G11: 9500 | H11: =أكتوبر!AC11 -> 0 | I11: =أكتوبر!AD11 -> 0 | J11: =ROUND((أكتوبر!AE11+أكتوبر!AF11)/100,0)*100 -> 0 | K11: 0 | L11: 5000 | M11: 4500 | N11: 9500 | O11: 5000 | P11: 4500 | Q11: 0 | R11: 9500 | V11: 5000 | W11: 4500 | X11: 0 | Y11: 0 | Z11: 0 | AA11: 0 | AB11: 9500 | AC11: 0 | AD11: 0 | AE11: 0 | AF11: 0 | AG11: 0 | AH11: تم السداد أو ليست عليه إلتزامات | AI11: سداد حتى نهاية نوفمبر 2025م.
A12: =أكتوبر!A12 -> منزل المرحوم الزين ود صالح (العاقب) | B12: =أكتوبر!B12 -> مأهول | C12: =أكتوبر!C12 -> 917344140 | D12: 5000 | E12: =أكتوبر!E12 -> 1 | F12: =أكتوبر!F12 -> 0 | G12: 5000 | H12: =أكتوبر!AC12 -> 0 | I12: =أكتوبر!AD12 -> 0 | J12: =ROUND((أكتوبر!AE12+أكتوبر!AF12)/100,0)*100 -> 0 | K12: 0 | L12: 5000 | M12: 0 | N12: 5000 | O12: 5000 | P12: 0 | Q12: 0 | R12: 5000 | V12: 5000 | W12: 0 | X12: 0 | Y12: 0 | Z12: 0 | AA12: 0 | AB12: 5000 | AC12: 0 | AD12: 0 | AE12: 0 | AF12: 0 | AG12: 0 | AH12: تم السداد أو ليست عليه إلتزامات | AI12: سداد حتى نهاية نوفمبر 2025م.
A13: =أكتوبر!A13 -> مهدي الزين | B13: =أكتوبر!B13 -> مأهول | C13: =أكتوبر!C13 -> 913099777 | D13: 5000 | E13: =أكتوبر!E13 -> 2 | F13: =أكتوبر!F13 -> 0 | G13: 5000 | H13: =أكتوبر!AC13 -> 0 | I13: =أكتوبر!AD13 -> -4000 | J13: =ROUND((أكتوبر!AE13+أكتوبر!AF13)/100,0)*100 -> 0 | K13: -4000 | L13: 5000 | M13: 0 | N13: 5000 | O13: 5000 | P13: -4000 | Q13: 0 | R13: 1000 | V13: 1000 | W13: 0 | X13: 0 | Y13: 0 | Z13: 0 | AA13: 0 | AB13: 1000 | AC13: 4000 | AD13: -4000 | AE13: 0 | AF13: 0 | AG13: 0 | AH13: تم السداد أو ليست عليه إلتزامات | AI13: سداد حتى نهاية نوفمبر 2025م.
A14: =أكتوبر!A14 -> محمد السيد | B14: =أكتوبر!B14 -> مأهول | C14: =أكتوبر!C14 -> 917636525 | D14: 5000 | E14: =أكتوبر!E14 -> 1 | F14: =أكتوبر!F14 -> 0 | G14: 5000 | H14: =أكتوبر!AC14 -> 0 | I14: =أكتوبر!AD14 -> 0 | J14: =ROUND((أكتوبر!AE14+أكتوبر!AF14)/100,0)*100 -> 0 | K14: 0 | L14: 5000 | M14: 0 | N14: 5000 | O14: 5000 | P14: 0 | Q14: 0 | R14: 5000 | V14: 5000 | W14: 0 | X14: 0 | Y14: 0 | Z14: 0 | AA14: 0 | AB14: 5000 | AC14: 0 | AD14: 0 | AE14: 0 | AF14: 0 | AG14: 0 | AH14: تم السداد أو ليست عليه إلتزامات | AI14: سداد حتى نهاية نوفمبر 2025م.
A15: =أكتوبر!A15 -> هشام محمد السيد | B15: =أكتوبر!B15 -> مأهول | C15: =أكتوبر!C15 -> 915778117 | D15: 5000 | E15: =أكتوبر!E15 -> 4 | F15: =أكتوبر!F15 -> 5 | G15: 12500 | H15: =أكتوبر!AC15 -> 0 | I15: =أكتوبر!AD15 -> 0 | J15: =ROUND((أكتوبر!AE15+أكتوبر!AF15)/100,0)*100 -> 0 | K15: 0 | L15: 5000 | M15: 7500 | N15: 12500 | O15: 5000 | P15: 7500 | Q15: 0 | R15: 12500 | V15: 5000 | W15: 7500 | X15: 0 | Y15: 0 | Z15: 0 | AA15: 0 | AB15: 12500 | AC15: 0 | AD15: 0 | AE15: 0 | AF15: 0 | AG15: 0 | AH15: تم السداد أو ليست عليه إلتزامات | AI15: سداد حتى نهاية نوفمبر 2025م.
A16: =أكتوبر!A16 -> عصام محمد السيد (أ) | B16: =أكتوبر!B16 -> مأهول | C16: =أكتوبر!C16 -> 915896866 | D16: 5000 | E16: =أكتوبر!E16 -> 1 | F16: =أكتوبر!F16 -> 0 | G16: 5000 | H16: =أكتوبر!AC16 -> 0 | I16: =أكتوبر!AD16 -> -2000 | J16: =ROUND((أكتوبر!AE16+أكتوبر!AF16)/100,0)*100 -> 0 | K16: -2000 | L16: 5000 | M16: 0 | N16: 5000 | O16: 5000 | P16: -2000 | Q16: 0 | R16: 3000 | V16: 3000 | W16: 0 | X16: 0 | Y16: 0 | Z16: 0 | AA16: 0 | AB16: 3000 | AC16: 2000 | AD16: -2000 | AE16: 0 | AF16: 0 | AG16: 0 | AH16: تم السداد أو ليست عليه إلتزامات | AI16: سداد حتى نهاية نوفمبر 2025م.
A17: =أكتوبر!A17 -> عبدالله الأنصاري | B17: =أكتوبر!B17 -> مغلق | C17: =أكتوبر!C17 -> 911101791 | D17: 0 | E17: =أكتوبر!E17 -> 3 | F17: =أكتوبر!F17 -> 0 | G17: 0 | H17: =أكتوبر!AC17 -> 0 | I17: =أكتوبر!AD17 -> 0 | J17: =ROUND((أكتوبر!AE17+أكتوبر!AF17)/100,0)*100 -> 0 | K17: 0 | L17: 0 | M17: 0 | N17: 0 | O17: 0 | P17: 0 | Q17: 0 | R17: 0 | AB17: 0 | AC17: 0 | AD17: 0 | AE17: 0 | AF17: 0 | AG17: 0 | AH17: تم السداد أو ليست عليه إلتزامات | AI17: =أكتوبر!AI17 -> سداد حتى نهاية يونيو 2025م ، وبعدها مغلق .
A18: =أكتوبر!A18 -> عماد محمد سعيد | B18: =أكتوبر!B18 -> مأهول | C18: =أكتوبر!C18 -> 911113020 | D18: 5000 | E18: =أكتوبر!E18 -> 2 | F18: =أكتوبر!F18 -> 0 | G18: 5000 | H18: =أكتوبر!AC18 -> 0 | I18: =أكتوبر!AD18 -> -6000 | J18: =ROUND((أكتوبر!AE18+أكتوبر!AF18)/100,0)*100 -> 0 | K18: -6000 | L18: 5000 | M18: 0 | N18: 5000 | O18: 5000 | P18: -6000 | Q18: 0 | R18: -1000 | AB18: 0 | AC18: 5000 | AD18: -6000 | AE18: 0 | AF18: 0 | AG18: -1000 | AH18: له باقي طرفنا | AI18: له (1000) جنيه، وسداد حتى نهاية نوفمبر 2025م.
A19: =أكتوبر!A19 -> ماهر محمد صالح | B19: =أكتوبر!B19 -> معفي | C19: =أكتوبر!C19 -> 962864495 | D19: 0 | E19: =أكتوبر!E19 -> 1 | F19: =أكتوبر!F19 -> 0 | G19: 0 | H19: =أكتوبر!AC19 -> 0 | I19: =أكتوبر!AD19 -> 0 | J19: =ROUND((أكتوبر!AE19+أكتوبر!AF19)/100,0)*100 -> 0 | K19: 0 | L19: 0 | M19: 0 | N19: 0 | O19: 0 | P19: 0 | Q19: 0 | R19: 0 | AB19: 0 | AC19: 0 | AD19: 0 | AE19: 0 | AF19: 0 | AG19: 0 | AH19: تم السداد أو ليست عليه إلتزامات | AI19: =أكتوبر!AI19 -> معفي
A20: =أكتوبر!A20 -> منزل المرحوم محمد عبدالله فيك الخير (صالح جرمور) | B20: =أكتوبر!B20 -> معفي | C20: =أكتوبر!C20 -> 915857673 | D20: 0 | E20: =أكتوبر!E20 -> 0 | F20: =أكتوبر!F20 -> 0 | G20: 0 | H20: =أكتوبر!AC20 -> 0 | I20: =أكتوبر!AD20 -> 0 | J20: =ROUND((أكتوبر!AE20+أكتوبر!AF20)/100,0)*100 -> 0 | K20: 0 | L20: 0 | M20: 0 | N20: 0 | O20: 0 | P20: 0 | Q20: 0 | R20: 0 | AB20: 0 | AC20: 0 | AD20: 0 | AE20: 0 | AF20: 0 | AG20: 0 | AH20: تم السداد أو ليست عليه إلتزامات | AI20: =أكتوبر!AI20 -> معفي
A21: =أكتوبر!A21 -> ناصر إدريس السيد (عماد إبراهيم السيد) | B21: =أكتوبر!B21 -> مأهول | C21: =أكتوبر!C21 -> 111914245 | D21: 5000 | E21: =أكتوبر!E21 -> 0 | F21: =أكتوبر!F21 -> 0 | G21: 5000 | H21: =أكتوبر!AC21 -> 0 | I21: =أكتوبر!AD21 -> 0 | J21: =ROUND((أكتوبر!AE21+أكتوبر!AF21)/100,0)*100 -> 0 | K21: 0 | L21: 5000 | M21: 0 | N21: 5000 | O21: 5000 | P21: 0 | Q21: 0 | R21: 5000 | V21: 5000 | W21: 0 | X21: 0 | Y21: 0 | Z21: 0 | AA21: 0 | AB21: 5000 | AC21: 0 | AD21: 0 | AE21: 0 | AF21: 0 | AG21: 0 | AH21: تم السداد أو ليست عليه إلتزامات | AI21: =أكتوبر!AI21 -> سداد حتى نهاية سبتمبر 2025م.
A22: =أكتوبر!A22 -> محمدعلي الفقير | B22: =أكتوبر!B22 -> مأهول | C22: =أكتوبر!C22 -> 910204066 | D22: 5000 | E22: =أكتوبر!E22 -> 3 | F22: =أكتوبر!F22 -> 0 | G22: 5000 | H22: =أكتوبر!AC22 -> 0 | I22: =أكتوبر!AD22 -> -6000 | J22: =ROUND((أكتوبر!AE22+أكتوبر!AF22)/100,0)*100 -> 0 | K22: -6000 | L22: 5000 | M22: 0 | N22: 5000 | O22: 5000 | P22: -6000 | Q22: 0 | R22: -1000 | AB22: 0 | AC22: 5000 | AD22: -6000 | AE22: 0 | AF22: 0 | AG22: -1000 | AH22: له باقي طرفنا | AI22: له (1000) جنيه، وسداد حتى نهاية نوفمبر 2025م.
A23: =أكتوبر!A23 -> محمد محمدعلي الفقير | B23: =أكتوبر!B23 -> مأهول | C23: =أكتوبر!C23 -> 965199199 | D23: 5000 | E23: =أكتوبر!E23 -> 0 | F23: =أكتوبر!F23 -> 0 | G23: 5000 | H23: =أكتوبر!AC23 -> 0 | I23: =أكتوبر!AD23 -> 0 | J23: =ROUND((أكتوبر!AE23+أكتوبر!AF23)/100,0)*100 -> 0 | K23: 0 | L23: 5000 | M23: 0 | N23: 5000 | O23: 5000 | P23: 0 | Q23: 0 | R23: 5000 | V23: 5000 | W23: 0 | X23: 0 | Y23: 0 | Z23: 0 | AA23: 0 | AB23: 5000 | AC23: 0 | AD23: 0 | AE23: 0 | AF23: 0 | AG23: 0 | AH23: تم السداد أو ليست عليه إلتزامات | AI23: سداد حتى نهاية نوفمبر 2025م.
A24: =أكتوبر!A24 -> طه محمدعلي الفقير | B24: =أكتوبر!B24 -> مأهول | C24: =أكتوبر!C24 -> 112437426 | D24: 5000 | E24: =أكتوبر!E24 -> 3 | F24: =أكتوبر!F24 -> 0 | G24: 5000 | H24: =أكتوبر!AC24 -> -5000 | I24: =أكتوبر!AD24 -> -7000 | J24: =ROUND((أكتوبر!AE24+أكتوبر!AF24)/100,0)*100 -> 0 | K24: -12000 | L24: 5000 | M24: 0 | N24: 5000 | O24: 0 | P24: -7000 | Q24: 0 | R24: -7000 | AB24: 0 | AC24: 0 | AD24: -7000 | AE24: 0 | AF24: 0 | AG24: -7000 | AH24: له باقي طرفنا | AI24: له (2000) جنيه، وسداد حتى نهاية ديسمبر 2025م.
A25: =أكتوبر!A25 -> عبدالله محمد حمد (أ) | B25: =أكتوبر!B25 -> مأهول | C25: =أكتوبر!C25 -> 118561564 | D25: 5000 | E25: =أكتوبر!E25 -> 0 | F25: =أكتوبر!F25 -> 0 | G25: 5000 | H25: =أكتوبر!AC25 -> 0 | I25: =أكتوبر!AD25 -> -6000 | J25: =ROUND((أكتوبر!AE25+أكتوبر!AF25)/100,0)*100 -> 0 | K25: -6000 | L25: 5000 | M25: 0 | N25: 5000 | O25: 5000 | P25: -6000 | Q25: 0 | R25: -1000 | AB25: 0 | AC25: 5000 | AD25: -6000 | AE25: 0 | AF25: 0 | AG25: -1000 | AH25: له باقي طرفنا | AI25: له (1000) جنيه، وسداد حتى نهاية نوفمبر 2025م.
A26: =أكتوبر!A26 -> عبدالله محمد حمد (ب) | B26: =أكتوبر!B26 -> مأهول | C26: =أكتوبر!C26 -> 118561564 | D26: 5000 | E26: =أكتوبر!E26 -> 1 | F26: =أكتوبر!F26 -> 0 | G26: 5000 | H26: =أكتوبر!AC26 -> 0 | I26: =أكتوبر!AD26 -> -6000 | J26: =ROUND((أكتوبر!AE26+أكتوبر!AF26)/100,0)*100 -> 0 | K26: -6000 | L26: 5000 | M26: 0 | N26: 5000 | O26: 5000 | P26: -6000 | Q26: 0 | R26: -1000 | AB26: 0 | AC26: 5000 | AD26: -6000 | AE26: 0 | AF26: 0 | AG26: -1000 | AH26: له باقي طرفنا | AI26: له (1000) جنيه، وسداد حتى نهاية نوفمبر 2025م.
A27: =أكتوبر!A27 -> محمد عبدالله محمد حمد (بابا) | B27: =أكتوبر!B27 -> مأهول | C27: =أكتوبر!C27 -> 118561564 | D27: 5000 | E27: =أكتوبر!E27 -> 0 | F27: =أكتوبر!F27 -> 0 | G27: 5000 | H27: =أكتوبر!AC27 -> 0 | I27: =أكتوبر!AD27 -> 0 | J27: =ROUND((أكتوبر!AE27+أكتوبر!AF27)/100,0)*100 -> 0 | K27: 0 | L27: 5000 | M27: 0 | N27: 5000 | O27: 5000 | P27: 0 | Q27: 0 | R27: 5000 | AB27: 0 | AC27: 5000 | AD27: 0 | AE27: 0 | AF27: 0 | AG27: 5000 | AH27: لم يتم السداد | AI27: =أكتوبر!AI27 -> سداد حتى نهاية أكتوبر 2025م.
A28: =أكتوبر!A28 -> منذر عبدالله محمد حمد | B28: =أكتوبر!B28 -> مأهول | C28: =أكتوبر!C28 -> 118561564 | D28: 5000 | E28: =أكتوبر!E28 -> 1 | F28: =أكتوبر!F28 -> 0 | G28: 5000 | H28: =أكتوبر!AC28 -> 0 | I28: =أكتوبر!AD28 -> -2000 | J28: =ROUND((أكتوبر!AE28+أكتوبر!AF28)/100,0)*100 -> 0 | K28: -2000 | L28: 5000 | M28: 0 | N28: 5000 | O28: 5000 | P28: -2000 | Q28: 0 | R28: 3000 | AB28: 0 | AC28: 5000 | AD28: -2000 | AE28: 0 | AF28: 0 | AG28: 3000 | AH28: لم يتم السداد | AI28: =أكتوبر!AI28 -> سداد حتى نهاية أكتوبر 2025م.
A29: =أكتوبر!A29 -> الباقر عبدالله أنصار | B29: =أكتوبر!B29 -> مأهول | C29: =أكتوبر!C29 -> 0 | D29: 5000 | E29: =أكتوبر!E29 -> 0 | F29: =أكتوبر!F29 -> 0 | G29: 5000 | H29: =أكتوبر!AC29 -> 0 | I29: =أكتوبر!AD29 -> 0 | J29: =ROUND((أكتوبر!AE29+أكتوبر!AF29)/100,0)*100 -> 0 | K29: 0 | L29: 5000 | M29: 0 | N29: 5000 | O29: 5000 | P29: 0 | Q29: 0 | R29: 5000 | V29: 5000 | W29: 0 | X29: 0 | Y29: 0 | Z29: 0 | AA29: 0 | AB29: 5000 | AC29: 0 | AD29: 0 | AE29: 0 | AF29: 0 | AG29: 0 | AH29: تم السداد أو ليست عليه إلتزامات | AI29: سداد حتى نهاية نوفمبر 2025م.
A30: =أكتوبر!A30 -> خالد أحمد صالح ودصالح | B30: =أكتوبر!B30 -> جديد | C30: =أكتوبر!C30 -> 0 | D30: 0 | E30: =أكتوبر!E30 -> 0 | F30: =أكتوبر!F30 -> 0 | G30: 0 | H30: =أكتوبر!AC30 -> 0 | I30: =أكتوبر!AD30 -> 0 | J30: =ROUND((أكتوبر!AE30+أكتوبر!AF30)/100,0)*100 -> 0 | K30: 0 | L30: 0 | M30: 0 | N30: 0 | O30: 0 | P30: 0 | Q30: 0 | R30: 0 | AB30: 0 | AC30: 0 | AD30: 0 | AE30: 0 | AF30: 0 | AG30: 0 | AH30: تم السداد أو ليست عليه إلتزامات | AI30: =أكتوبر!AI30 -> 0
A31: =أكتوبر!A31 -> عبدالله صالح حامنتود | B31: =أكتوبر!B31 -> جديد | C31: =أكتوبر!C31 -> 0 | D31: 0 | E31: =أكتوبر!E31 -> 0 | F31: =أكتوبر!F31 -> 0 | G31: 0 | H31: =أكتوبر!AC31 -> 0 | I31: =أكتوبر!AD31 -> 0 | J31: =ROUND((أكتوبر!AE31+أكتوبر!AF31)/100,0)*100 -> 0 | K31: 0 | L31: 0 | M31: 0 | N31: 0 | O31: 0 | P31: 0 | Q31: 0 | R31: 0 | AB31: 0 | AC31: 0 | AD31: 0 | AE31: 0 | AF31: 0 | AG31: 0 | AH31: تم السداد أو ليست عليه إلتزامات | AI31: =أكتوبر!AI31 -> توصيل جديد
A32: =أكتوبر!A32 -> عبدالرحمن جمال عبدالرحمن | B32: =أكتوبر!B32 -> 0 | C32: =أكتوبر!C32 -> 0 | D32: 0 | E32: =أكتوبر!E32 -> 0 | F32: =أكتوبر!F32 -> 0 | G32: 0 | H32: =أكتوبر!AC32 -> 0 | I32: =أكتوبر!AD32 -> 0 | J32: =ROUND((أكتوبر!AE32+أكتوبر!AF32)/100,0)*100 -> 0 | K32: 0 | L32: 0 | M32: 0 | N32: 0 | O32: 0 | P32: 0 | Q32: 0 | R32: 0 | AB32: 0 | AC32: 0 | AD32: 0 | AE32: 0 | AF32: 0 | AG32: 0 | AH32: تم السداد أو ليست عليه إلتزامات | AI32: =أكتوبر!AI32 -> للمراجعة مع المتحصل
A33: =أكتوبر!A33 -> محمد صالح | B33: =أكتوبر!B33 -> 0 | C33: =أكتوبر!C33 -> 0 | D33: 0 | E33: =أكتوبر!E33 -> 0 | F33: =أكتوبر!F33 -> 0 | G33: 0 | H33: =أكتوبر!AC33 -> 0 | I33: =أكتوبر!AD33 -> 0 | J33: =ROUND((أكتوبر!AE33+أكتوبر!AF33)/100,0)*100 -> 0 | K33: 0 | L33: 0 | M33: 0 | N33: 0 | O33: 0 | P33: 0 | Q33: 0 | R33: 0 | AB33: 0 | AC33: 0 | AD33: 0 | AE33: 0 | AF33: 0 | AG33: 0 | AH33: تم السداد أو ليست عليه إلتزامات | AI33: =أكتوبر!AI33 -> للمراجعة مع المتحصل
A34: =أكتوبر!A34 -> أنور محي الدين (1) | B34: =أكتوبر!B34 -> 0 | C34: =أكتوبر!C34 -> 0 | D34: 0 | E34: =أكتوبر!E34 -> 0 | F34: =أكتوبر!F34 -> 0 | G34: 0 | H34: =أكتوبر!AC34 -> 0 | I34: =أكتوبر!AD34 -> 0 | J34: =ROUND((أكتوبر!AE34+أكتوبر!AF34)/100,0)*100 -> 0 | K34: 0 | L34: 0 | M34: 0 | N34: 0 | O34: 0 | P34: 0 | Q34: 0 | R34: 0 | AB34: 0 | AC34: 0 | AD34: 0 | AE34: 0 | AF34: 0 | AG34: 0 | AH34: تم السداد أو ليست عليه إلتزامات | AI34: =أكتوبر!AI34 -> للمراجعة مع المتحصل
A35: =أكتوبر!A35 -> أنور محي الدين (2) | B35: =أكتوبر!B35 -> 0 | C35: =أكتوبر!C35 -> 0 | D35: 0 | E35: =أكتوبر!E35 -> 0 | F35: =أكتوبر!F35 -> 0 | G35: 0 | H35: =أكتوبر!AC35 -> 0 | I35: =أكتوبر!AD35 -> 0 | J35: =ROUND((أكتوبر!AE35+أكتوبر!AF35)/100,0)*100 -> 0 | K35: 0 | L35: 0 | M35: 0 | N35: 0 | O35: 0 | P35: 0 | Q35: 0 | R35: 0 | AB35: 0 | AC35: 0 | AD35: 0 | AE35: 0 | AF35: =(IF(SUM(AC35:AE35)>0,IF(AB35<0,0,ROUND((SUM(AC35:AE35)/2)/100,0)*100),0)) -> 0 | AG35: 0 | AH35: تم السداد أو ليست عليه إلتزامات | AI35: =أكتوبر!AI35 -> للمراجعة مع المتحصل
A36: =أكتوبر!A36 -> أنور محي الدين (3) | B36: =أكتوبر!B36 -> 0 | C36: =أكتوبر!C36 -> 0 | D36: 0 | E36: =أكتوبر!E36 -> 0 | F36: =أكتوبر!F36 -> 0 | G36: 0 | H36: =أكتوبر!AC36 -> 0 | I36: =أكتوبر!AD36 -> 0 | J36: =ROUND((أكتوبر!AE36+أكتوبر!AF36)/100,0)*100 -> 0 | K36: 0 | L36: 0 | M36: 0 | N36: 0 | O36: 0 | P36: 0 | Q36: 0 | R36: 0 | AB36: 0 | AC36: 0 | AD36: 0 | AE36: 0 | AF36: 0 | AG36: 0 | AH36: تم السداد أو ليست عليه إلتزامات | AI36: =أكتوبر!AI36 -> للمراجعة مع المتحصل
A37: =أكتوبر!A37 -> جلال أنور | B37: =أكتوبر!B37 -> 0 | C37: =أكتوبر!C37 -> 0 | D37: 0 | E37: =أكتوبر!E37 -> 0 | F37: =أكتوبر!F37 -> 0 | G37: 0 | H37: =أكتوبر!AC37 -> 0 | I37: =أكتوبر!AD37 -> 0 | J37: =ROUND((أكتوبر!AE37+أكتوبر!AF37)/100,0)*100 -> 0 | K37: 0 | L37: 0 | M37: 0 | N37: 0 | O37: 0 | P37: 0 | Q37: 0 | R37: 0 | AB37: 0 | AC37: 0 | AD37: 0 | AE37: 0 | AF37: 0 | AG37: 0 | AH37: تم السداد أو ليست عليه إلتزامات | AI37: =أكتوبر!AI37 -> للمراجعة مع المتحصل
A38: =أكتوبر!A38 -> محسن فتحي | B38: =أكتوبر!B38 -> 0 | C38: =أكتوبر!C38 -> 0 | D38: 0 | E38: =أكتوبر!E38 -> 0 | F38: =أكتوبر!F38 -> 0 | G38: 0 | H38: =أكتوبر!AC38 -> 0 | I38: =أكتوبر!AD38 -> 0 | J38: =ROUND((أكتوبر!AE38+أكتوبر!AF38)/100,0)*100 -> 0 | K38: 0 | L38: 0 | M38: 0 | N38: 0 | O38: 0 | P38: 0 | Q38: 0 | R38: 0 | AB38: 0 | AC38: 0 | AD38: 0 | AE38: 0 | AF38: 0 | AG38: 0 | AH38: تم السداد أو ليست عليه إلتزامات | AI38: =أكتوبر!AI38 -> للمراجعة مع المتحصل
A39: =أكتوبر!A39 -> معتز صالح | B39: =أكتوبر!B39 -> 0 | C39: =أكتوبر!C39 -> 0 | D39: 0 | E39: =أكتوبر!E39 -> 0 | F39: =أكتوبر!F39 -> 0 | G39: 0 | H39: =أكتوبر!AC39 -> 0 | I39: =أكتوبر!AD39 -> 0 | J39: =ROUND((أكتوبر!AE39+أكتوبر!AF39)/100,0)*100 -> 0 | K39: 0 | L39: 0 | M39: 0 | N39: 0 | O39: 0 | P39: 0 | Q39: 0 | R39: 0 | AB39: 0 | AC39: 0 | AD39: 0 | AE39: 0 | AF39: 0 | AG39: 0 | AH39: تم السداد أو ليست عليه إلتزامات | AI39: =أكتوبر!AI39 -> للمراجعة مع المتحصل
A40: =أكتوبر!A40 -> صالح النور | B40: =أكتوبر!B40 -> 0 | C40: =أكتوبر!C40 -> 0 | D40: 0 | E40: =أكتوبر!E40 -> 1 | F40: =أكتوبر!F40 -> 0 | G40: 0 | H40: =أكتوبر!AC40 -> 0 | I40: =أكتوبر!AD40 -> 0 | J40: =ROUND((أكتوبر!AE40+أكتوبر!AF40)/100,0)*100 -> 0 | K40: 0 | L40: 0 | M40: 0 | N40: 0 | O40: 0 | P40: 0 | Q40: 0 | R40: 0 | AB40: 0 | AC40: 0 | AD40: 0 | AE40: 0 | AF40: 0 | AG40: 0 | AH40: تم السداد أو ليست عليه إلتزامات | AI40: =أكتوبر!AI40 -> للمراجعة مع المتحصل
A41: =أكتوبر!A41 -> محمد إدريس | B41: =أكتوبر!B41 -> 0 | C41: =أكتوبر!C41 -> 0 | D41: 0 | E41: =أكتوبر!E41 -> 0 | F41: =أكتوبر!F41 -> 0 | G41: 0 | H41: =أكتوبر!AC41 -> 0 | I41: =أكتوبر!AD41 -> 0 | J41: =ROUND((أكتوبر!AE41+أكتوبر!AF41)/100,0)*100 -> 0 | K41: 0 | L41: 0 | M41: 0 | N41: 0 | O41: 0 | P41: 0 | Q41: 0 | R41: 0 | AB41: 0 | AC41: 0 | AD41: 0 | AE41: 0 | AF41: 0 | AG41: 0 | AH41: تم السداد أو ليست عليه إلتزامات | AI41: =أكتوبر!AI41 -> للمراجعة مع المتحصل
A42: =أكتوبر!A42 -> عمر محمد السيد | B42: =أكتوبر!B42 -> 0 | C42: =أكتوبر!C42 -> 0 | D42: 0 | E42: =أكتوبر!E42 -> 3 | F42: =أكتوبر!F42 -> 0 | G42: 0 | H42: =أكتوبر!AC42 -> 0 | I42: =أكتوبر!AD42 -> 0 | J42: =ROUND((أكتوبر!AE42+أكتوبر!AF42)/100,0)*100 -> 0 | K42: 0 | L42: 0 | M42: 0 | N42: 0 | O42: 0 | P42: 0 | Q42: 0 | R42: 0 | AB42: 0 | AC42: 0 | AD42: 0 | AE42: 0 | AF42: 0 | AG42: 0 | AH42: تم السداد أو ليست عليه إلتزامات | AI42: =أكتوبر!AI42 -> للمراجعة مع المتحصل
A43: =أكتوبر!A43 -> منزل المرحوم إدريس السيد | B43: =أكتوبر!B43 -> 0 | C43: =أكتوبر!C43 -> 0 | D43: 0 | E43: =أكتوبر!E43 -> 0 | F43: =أكتوبر!F43 -> 0 | G43: 0 | H43: =أكتوبر!AC43 -> 0 | I43: =أكتوبر!AD43 -> 0 | J43: =ROUND((أكتوبر!AE43+أكتوبر!AF43)/100,0)*100 -> 0 | K43: 0 | L43: 0 | M43: 0 | N43: 0 | O43: 0 | P43: 0 | Q43: 0 | R43: 0 | AB43: 0 | AC43: 0 | AD43: 0 | AE43: 0 | AF43: 0 | AG43: 0 | AH43: تم السداد أو ليست عليه إلتزامات | AI43: =أكتوبر!AI43 -> للمراجعة مع المتحصل
A44: =أكتوبر!A44 -> صفوان مهدي الزين | B44: =أكتوبر!B44 -> 0 | C44: =أكتوبر!C44 -> 0 | D44: 0 | E44: =أكتوبر!E44 -> 4 | F44: =أكتوبر!F44 -> 6 | G44: 9000 | H44: =أكتوبر!AC44 -> 0 | I44: =أكتوبر!AD44 -> 18600 | J44: =ROUND((أكتوبر!AE44+أكتوبر!AF44)/100,0)*100 -> 0 | K44: 18600 | L44: 0 | M44: 9000 | N44: 9000 | O44: 0 | P44: 27600 | Q44: 0 | R44: 27600 | AB44: 0 | AC44: 0 | AD44: 27600 | AE44: 0 | AF44: 13800 | AG44: 41400 | AH44: مفصول | AI44: =أكتوبر!AI44 -> للمراجعة مع المتحصل
A45: =أكتوبر!A45 -> أحمد صالح | B45: =أكتوبر!B45 -> 0 | C45: =أكتوبر!C45 -> 0 | D45: 0 | E45: =أكتوبر!E45 -> 2 | F45: =أكتوبر!F45 -> 0 | G45: 0 | H45: =أكتوبر!AC45 -> 0 | I45: =أكتوبر!AD45 -> 0 | J45: =ROUND((أكتوبر!AE45+أكتوبر!AF45)/100,0)*100 -> 0 | K45: 0 | L45: 0 | M45: 0 | N45: 0 | O45: 0 | P45: 0 | Q45: 0 | R45: 0 | AB45: 0 | AC45: 0 | AD45: 0 | AE45: 0 | AF45: 0 | AG45: 0 | AH45: تم السداد أو ليست عليه إلتزامات | AI45: =أكتوبر!AI45 -> للمراجعة مع المتحصل
A46: =أكتوبر!A46 -> محجوب محمد صالح | B46: =أكتوبر!B46 -> 0 | C46: =أكتوبر!C46 -> 0 | D46: 0 | E46: =أكتوبر!E46 -> 3 | F46: =أكتوبر!F46 -> 0 | G46: 0 | H46: =أكتوبر!AC46 -> 0 | I46: =أكتوبر!AD46 -> 0 | J46: =ROUND((أكتوبر!AE46+أكتوبر!AF46)/100,0)*100 -> 0 | K46: 0 | L46: 0 | M46: 0 | N46: 0 | O46: 0 | P46: 0 | Q46: 0 | R46: 0 | AB46: 0 | AC46: 0 | AD46: 0 | AE46: 0 | AF46: 0 | AG46: 0 | AH46: تم السداد أو ليست عليه إلتزامات | AI46: =أكتوبر!AI46 -> للمراجعة مع المتحصل
A47: =أكتوبر!A47 -> عادل عبدالله | B47: =أكتوبر!B47 -> 0 | C47: =أكتوبر!C47 -> 0 | D47: 0 | E47: =أكتوبر!E47 -> 11 | F47: =أكتوبر!F47 -> 0 | G47: 0 | H47: =أكتوبر!AC47 -> 0 | I47: =أكتوبر!AD47 -> 0 | J47: =ROUND((أكتوبر!AE47+أكتوبر!AF47)/100,0)*100 -> 0 | K47: 0 | L47: 0 | M47: 0 | N47: 0 | O47: 0 | P47: 0 | Q47: 0 | R47: 0 | AB47: 0 | AC47: 0 | AD47: 0 | AE47: 0 | AF47: 0 | AG47: 0 | AH47: تم السداد أو ليست عليه إلتزامات | AI47: =أكتوبر!AI47 -> للمراجعة مع المتحصل
A48: =أكتوبر!A48 -> حسن الزين ودصالح | B48: =أكتوبر!B48 -> 0 | C48: =أكتوبر!C48 -> 0 | D48: 0 | E48: =أكتوبر!E48 -> 2 | F48: =أكتوبر!F48 -> 0 | G48: 0 | H48: =أكتوبر!AC48 -> 0 | I48: =أكتوبر!AD48 -> 0 | J48: =ROUND((أكتوبر!AE48+أكتوبر!AF48)/100,0)*100 -> 0 | K48: 0 | L48: 0 | M48: 0 | N48: 0 | O48: 0 | P48: 0 | Q48: 0 | R48: 0 | AB48: 0 | AC48: 0 | AD48: 0 | AE48: 0 | AF48: 0 | AG48: 0 | AH48: تم السداد أو ليست عليه إلتزامات | AI48: =أكتوبر!AI48 -> للمراجعة مع المتحصل
A49: =أكتوبر!A49 -> أحمد محجوب | B49: =أكتوبر!B49 -> 0 | C49: =أكتوبر!C49 -> 0 | D49: 0 | E49: =أكتوبر!E49 -> 1 | F49: =أكتوبر!F49 -> 0 | G49: 0 | H49: =أكتوبر!AC49 -> 0 | I49: =أكتوبر!AD49 -> 0 | J49: =ROUND((أكتوبر!AE49+أكتوبر!AF49)/100,0)*100 -> 0 | K49: 0 | L49: 0 | M49: 0 | N49: 0 | O49: 0 | P49: 0 | Q49: 0 | R49: 0 | AB49: 0 | AC49: 0 | AD49: 0 | AE49: 0 | AF49: 0 | AG49: 0 | AH49: تم السداد أو ليست عليه إلتزامات | AI49: =أكتوبر!AI49 -> للمراجعة مع المتحصل
A50: =أكتوبر!A50 -> راشد ودحجه | B50: =أكتوبر!B50 -> 0 | C50: =أكتوبر!C50 -> 0 | D50: 0 | E50: =أكتوبر!E50 -> 0 | F50: =أكتوبر!F50 -> 0 | G50: 0 | H50: =أكتوبر!AC50 -> 0 | I50: =أكتوبر!AD50 -> 0 | J50: =ROUND((أكتوبر!AE50+أكتوبر!AF50)/100,0)*100 -> 0 | K50: 0 | L50: 0 | M50: 0 | N50: 0 | O50: 0 | P50: 0 | Q50: 0 | R50: 0 | AB50: 0 | AC50: 0 | AD50: 0 | AE50: 0 | AF50: 0 | AG50: 0 | AH50: تم السداد أو ليست عليه إلتزامات | AI50: =أكتوبر!AI50 -> للمراجعة مع المتحصل
A51: =أكتوبر!A51 -> محمد صلاح | B51: =أكتوبر!B51 -> 0 | C51: =أكتوبر!C51 -> 0 | D51: 0 | E51: =أكتوبر!E51 -> 0 | F51: =أكتوبر!F51 -> 0 | G51: 0 | H51: =أكتوبر!AC51 -> 0 | I51: =أكتوبر!AD51 -> 0 | J51: =ROUND((أكتوبر!AE51+أكتوبر!AF51)/100,0)*100 -> 0 | K51: 0 | L51: 0 | M51: 0 | N51: 0 | O51: 0 | P51: 0 | Q51: 0 | R51: 0 | AB51: 0 | AC51: 0 | AD51: 0 | AE51: 0 | AF51: 0 | AG51: 0 | AH51: تم السداد أو ليست عليه إلتزامات | AI51: =أكتوبر!AI51 -> للمراجعة مع المتحصل
A52: =أكتوبر!A52 -> الفاضل محمدعلي | B52: =أكتوبر!B52 -> 0 | C52: =أكتوبر!C52 -> 0 | D52: 0 | E52: =أكتوبر!E52 -> 0 | F52: =أكتوبر!F52 -> 0 | G52: 0 | H52: =أكتوبر!AC52 -> 0 | I52: =أكتوبر!AD52 -> 0 | J52: =ROUND((أكتوبر!AE52+أكتوبر!AF52)/100,0)*100 -> 0 | K52: 0 | L52: 0 | M52: 0 | N52: 0 | O52: 0 | P52: 0 | Q52: 0 | R52: 0 | AB52: 0 | AC52: 0 | AD52: 0 | AE52: 0 | AF52: 0 | AG52: 0 | AH52: تم السداد أو ليست عليه إلتزامات | AI52: =أكتوبر!AI52 -> للمراجعة مع المتحصل | AK52: الإجمالي | AM52: =SUM(AM3:AM51) -> 0
A53: =أكتوبر!A53 -> سعاد ودحجه | B53: =أكتوبر!B53 -> 0 | C53: =أكتوبر!C53 -> 0 | D53: 0 | E53: =أكتوبر!E53 -> 2 | F53: =أكتوبر!F53 -> 0 | G53: 0 | H53: =أكتوبر!AC53 -> 0 | I53: =أكتوبر!AD53 -> 0 | J53: =ROUND((أكتوبر!AE53+أكتوبر!AF53)/100,0)*100 -> 0 | K53: 0 | L53: 0 | M53: 0 | N53: 0 | O53: 0 | P53: 0 | Q53: 0 | R53: 0 | AB53: 0 | AC53: 0 | AD53: 0 | AE53: 0 | AF53: 0 | AG53: 0 | AH53: تم السداد أو ليست عليه إلتزامات | AI53: =أكتوبر!AI53 -> للمراجعة مع المتحصل
A54: =أكتوبر!A54 -> أحمد الفقير | B54: =أكتوبر!B54 -> 0 | C54: =أكتوبر!C54 -> 0 | D54: 0 | E54: =أكتوبر!E54 -> 2 | F54: =أكتوبر!F54 -> 0 | G54: 0 | H54: =أكتوبر!AC54 -> 0 | I54: =أكتوبر!AD54 -> 0 | J54: =ROUND((أكتوبر!AE54+أكتوبر!AF54)/100,0)*100 -> 0 | K54: 0 | L54: 0 | M54: 0 | N54: 0 | O54: 0 | P54: 0 | Q54: 0 | R54: 0 | AB54: 0 | AC54: 0 | AD54: 0 | AE54: 0 | AF54: 0 | AG54: 0 | AH54: تم السداد أو ليست عليه إلتزامات | AI54: =أكتوبر!AI54 -> للمراجعة مع المتحصل
A55: =أكتوبر!A55 -> عبدالقادر خالد محمدعلي الفقير | B55: =أكتوبر!B55 -> 0 | C55: =أكتوبر!C55 -> 0 | D55: 0 | E55: =أكتوبر!E55 -> 3 | F55: =أكتوبر!F55 -> 0 | G55: 0 | H55: =أكتوبر!AC55 -> 0 | I55: =أكتوبر!AD55 -> 0 | J55: =ROUND((أكتوبر!AE55+أكتوبر!AF55)/100,0)*100 -> 0 | K55: 0 | L55: 0 | M55: 0 | N55: 0 | O55: 0 | P55: 0 | Q55: 0 | R55: 0 | AB55: 0 | AC55: 0 | AD55: 0 | AE55: 0 | AF55: 0 | AG55: 0 | AH55: تم السداد أو ليست عليه إلتزامات | AI55: =أكتوبر!AI55 -> للمراجعة مع المتحصل
A56: =أكتوبر!A56 -> وليد الفقير | B56: =أكتوبر!B56 -> 0 | C56: =أكتوبر!C56 -> 0 | D56: 0 | E56: =أكتوبر!E56 -> 0 | F56: =أكتوبر!F56 -> 0 | G56: 0 | H56: =أكتوبر!AC56 -> 0 | I56: =أكتوبر!AD56 -> 0 | J56: =ROUND((أكتوبر!AE56+أكتوبر!AF56)/100,0)*100 -> 0 | K56: 0 | L56: 0 | M56: 0 | N56: 0 | O56: 0 | P56: 0 | Q56: 0 | R56: 0 | AB56: 0 | AC56: 0 | AD56: 0 | AE56: 0 | AF56: 0 | AG56: 0 | AH56: تم السداد أو ليست عليه إلتزامات | AI56: =أكتوبر!AI56 -> للمراجعة مع المتحصل
A57: =أكتوبر!A57 -> خالد محمدعلي الفقير | B57: =أكتوبر!B57 -> 0 | C57: =أكتوبر!C57 -> 0 | D57: 0 | E57: =أكتوبر!E57 -> 3 | F57: =أكتوبر!F57 -> 0 | G57: 0 | H57: =أكتوبر!AC57 -> 0 | I57: =أكتوبر!AD57 -> 0 | J57: =ROUND((أكتوبر!AE57+أكتوبر!AF57)/100,0)*100 -> 0 | K57: 0 | L57: 0 | M57: 0 | N57: 0 | O57: 0 | P57: 0 | Q57: 0 | R57: 0 | AB57: 0 | AC57: 0 | AD57: 0 | AE57: 0 | AF57: 0 | AG57: 0 | AH57: تم السداد أو ليست عليه إلتزامات | AI57: =أكتوبر!AI57 -> للمراجعة مع المتحصل
A58: =أكتوبر!A58 -> مصعب خالد | B58: =أكتوبر!B58 -> 0 | C58: =أكتوبر!C58 -> 0 | D58: 0 | E58: =أكتوبر!E58 -> 4 | F58: =أكتوبر!F58 -> 10 | G58: 15000 | H58: =أكتوبر!AC58 -> 0 | I58: =أكتوبر!AD58 -> 31000 | J58: =ROUND((أكتوبر!AE58+أكتوبر!AF58)/100,0)*100 -> 0 | K58: 31000 | L58: 0 | M58: 15000 | N58: 15000 | O58: 0 | P58: 46000 | Q58: 0 | R58: 46000 | AB58: 0 | AC58: 0 | AD58: 46000 | AE58: 0 | AF58: 23000 | AG58: 69000 | AH58: مفصول | AI58: =أكتوبر!AI58 -> للمراجعة مع المتحصل
A59: =أكتوبر!A59 -> عماد إبراهيم السيد | B59: =أكتوبر!B59 -> 0 | C59: =أكتوبر!C59 -> 0 | D59: 0 | E59: =أكتوبر!E59 -> 1 | F59: =أكتوبر!F59 -> 0 | G59: 0 | H59: =أكتوبر!AC59 -> 0 | I59: =أكتوبر!AD59 -> 0 | J59: =ROUND((أكتوبر!AE59+أكتوبر!AF59)/100,0)*100 -> 0 | K59: 0 | L59: 0 | M59: 0 | N59: 0 | O59: 0 | P59: 0 | Q59: 0 | R59: 0 | AB59: 0 | AC59: 0 | AD59: 0 | AE59: 0 | AF59: 0 | AG59: 0 | AH59: تم السداد أو ليست عليه إلتزامات | AI59: =أكتوبر!AI59 -> للمراجعة مع المتحصل
A60: =أكتوبر!A60 -> العاقب الزين | B60: =أكتوبر!B60 -> مأهول | C60: =أكتوبر!C60 -> 0 | D60: 5000 | E60: =أكتوبر!E60 -> 0 | F60: =أكتوبر!F60 -> 0 | G60: 5000 | H60: =أكتوبر!AC60 -> 15000 | I60: =أكتوبر!AD60 -> 0 | J60: =ROUND((أكتوبر!AE60+أكتوبر!AF60)/100,0)*100 -> 0 | K60: 15000 | L60: 5000 | M60: 0 | N60: 5000 | O60: 20000 | P60: 0 | Q60: 0 | R60: 20000 | AB60: 0 | AC60: 20000 | AD60: 0 | AE60: 0 | AF60: 10000 | AG60: 30000 | AH60: مفصول | AI60: =أكتوبر!AI60 -> للمراجعة مع المتحصل
A61: =أكتوبر!A61 -> 0 | B61: =أكتوبر!B61 -> 0 | C61: =أكتوبر!C61 -> 0 | D61: 0 | E61: =أكتوبر!E61 -> 0 | F61: =أكتوبر!F61 -> 0 | G61: 0 | H61: =أكتوبر!AC61 -> 0 | I61: =أكتوبر!AD61 -> 0 | J61: =ROUND((أكتوبر!AE61+أكتوبر!AF61)/100,0)*100 -> 0 | K61: 0 | L61: 0 | M61: 0 | N61: 0 | O61: 0 | P61: 0 | Q61: 0 | R61: 0 | AB61: 0 | AC61: 0 | AD61: 0 | AE61: 0 | AF61: 0 | AG61: 0 | AH61: تم السداد أو ليست عليه إلتزامات | AI61: =أكتوبر!AI61 -> 0
A62: =أكتوبر!A62 -> 0 | B62: =أكتوبر!B62 -> 0 | C62: =أكتوبر!C62 -> 0 | D62: 0 | E62: =أكتوبر!E62 -> 0 | F62: =أكتوبر!F62 -> 0 | G62: 0 | H62: =أكتوبر!AC62 -> 0 | I62: =أكتوبر!AD62 -> 0 | J62: =ROUND((أكتوبر!AE62+أكتوبر!AF62)/100,0)*100 -> 0 | K62: 0 | L62: 0 | M62: 0 | N62: 0 | O62: 0 | P62: 0 | Q62: 0 | R62: 0 | AB62: 0 | AC62: 0 | AD62: 0 | AE62: 0 | AF62: 0 | AG62: 0 | AH62: تم السداد أو ليست عليه إلتزامات | AI62: =أكتوبر!AI62 -> 0
A63: =أكتوبر!A63 -> 0 | B63: =أكتوبر!B63 -> 0 | C63: =أكتوبر!C63 -> 0 | D63: 0 | E63: =أكتوبر!E63 -> 0 | F63: =أكتوبر!F63 -> 0 | G63: 0 | H63: =أكتوبر!AC63 -> 0 | I63: =أكتوبر!AD63 -> 0 | J63: =ROUND((أكتوبر!AE63+أكتوبر!AF63)/100,0)*100 -> 0 | K63: 0 | L63: 0 | M63: 0 | N63: 0 | O63: 0 | P63: 0 | Q63: 0 | R63: 0 | AB63: 0 | AC63: 0 | AD63: 0 | AE63: 0 | AF63: 0 | AG63: 0 | AH63: تم السداد أو ليست عليه إلتزامات | AI63: =أكتوبر!AI63 -> 0
A64: =أكتوبر!A64 -> 0 | B64: =أكتوبر!B64 -> 0 | C64: =أكتوبر!C64 -> 0 | D64: 0 | E64: =أكتوبر!E64 -> 0 | F64: =أكتوبر!F64 -> 0 | G64: 0 | H64: =أكتوبر!AC64 -> 0 | I64: =أكتوبر!AD64 -> 0 | J64: =ROUND((أكتوبر!AE64+أكتوبر!AF64)/100,0)*100 -> 0 | K64: 0 | L64: 0 | M64: 0 | N64: 0 | O64: 0 | P64: 0 | Q64: 0 | R64: 0 | AB64: 0 | AC64: 0 | AD64: 0 | AE64: 0 | AF64: 0 | AG64: 0 | AH64: تم السداد أو ليست عليه إلتزامات | AI64: =أكتوبر!AI64 -> 0
A65: =أكتوبر!A65 -> 0 | B65: =أكتوبر!B65 -> 0 | C65: =أكتوبر!C65 -> 0 | D65: 0 | E65: =أكتوبر!E65 -> 0 | F65: =أكتوبر!F65 -> 0 | G65: 0 | H65: =أكتوبر!AC65 -> 0 | I65: =أكتوبر!AD65 -> 0 | J65: =ROUND((أكتوبر!AE65+أكتوبر!AF65)/100,0)*100 -> 0 | K65: 0 | L65: 0 | M65: 0 | N65: 0 | O65: 0 | P65: 0 | Q65: 0 | R65: 0 | AB65: 0 | AC65: 0 | AD65: 0 | AE65: 0 | AF65: 0 | AG65: 0 | AH65: تم السداد أو ليست عليه إلتزامات | AI65: =أكتوبر!AI65 -> 0
A66: =أكتوبر!A66 -> 0 | B66: =أكتوبر!B66 -> 0 | C66: =أكتوبر!C66 -> 0 | D66: 0 | E66: =أكتوبر!E66 -> 0 | F66: =أكتوبر!F66 -> 0 | G66: 0 | H66: =أكتوبر!AC66 -> 0 | I66: =أكتوبر!AD66 -> 0 | J66: =ROUND((أكتوبر!AE66+أكتوبر!AF66)/100,0)*100 -> 0 | K66: 0 | L66: 0 | M66: 0 | N66: 0 | O66: 0 | P66: 0 | Q66: 0 | R66: 0 | AB66: 0 | AC66: 0 | AD66: 0 | AE66: 0 | AF66: 0 | AG66: 0 | AH66: تم السداد أو ليست عليه إلتزامات | AI66: =أكتوبر!AI66 -> 0
A67: =أكتوبر!A67 -> 0 | B67: =أكتوبر!B67 -> 0 | C67: =أكتوبر!C67 -> 0 | D67: 0 | E67: =أكتوبر!E67 -> 0 | F67: =أكتوبر!F67 -> 0 | G67: 0 | H67: =أكتوبر!AC67 -> 0 | I67: =أكتوبر!AD67 -> 0 | J67: =ROUND((أكتوبر!AE67+أكتوبر!AF67)/100,0)*100 -> 0 | K67: 0 | L67: 0 | M67: 0 | N67: 0 | O67: 0 | P67: 0 | Q67: 0 | R67: 0 | AB67: 0 | AC67: 0 | AD67: 0 | AE67: 0 | AF67: =(IF(SUM(AC67:AE67)>0,IF(AB67<0,0,ROUND((SUM(AC67:AE67)/2)/100,0)*100),0)) -> 0 | AG67: 0 | AH67: تم السداد أو ليست عليه إلتزامات | AI67: =أكتوبر!AI67 -> 0
A68: =أكتوبر!A68 -> 0 | B68: =أكتوبر!B68 -> 0 | C68: =أكتوبر!C68 -> 0 | D68: =IF(B68="مأهول",5000,0) -> 0 | E68: =أكتوبر!E68 -> 0 | F68: =أكتوبر!F68 -> 0 | G68: =D68+(F68*1500) -> 0 | H68: =أكتوبر!AC68 -> 0 | I68: =أكتوبر!AD68 -> 0 | J68: =ROUND((أكتوبر!AE68+أكتوبر!AF68)/100,0)*100 -> 0 | K68: =ROUND((SUM(H68:J68))/100,0)*100 -> 0 | L68: =D68 -> 0 | M68: =(F68*1500) -> 0 | N68: =SUM(L68:M68) -> 0 | O68: =ROUND((H68+L68)/100,0)*100 -> 0 | P68: 0 | Q68: =J68 -> 0 | R68: =ROUND((SUM(O68:Q68))/100,0)*100 -> 0 | AB68: =SUM(V68:AA68) -> 0 | AC68: =ROUND((O68-V68)/100,0)*100 -> 0 | AD68: 0 | AE68: =ROUND((Q68-Z68)/100,0)*100 -> 0 | AF68: 0 | AG68: =ROUND(SUM(AC68:AF68)/50,0)*50 -> 0 | AH68: =IF(A68<>"",_xlfn.IFS(AG68>(G68*3),"مفصول",AG68=0,"تم السداد أو ليست عليه إلتزامات",AG68<0,"له باقي طرفنا",0<AG68>(G68*3),"لم يتم السداد"),"") -> تم السداد أو ليست عليه إلتزامات | AI68: =أكتوبر!AI68 -> 0
A69: =أكتوبر!A69 -> 0 | B69: =أكتوبر!B69 -> 0 | C69: =أكتوبر!C69 -> 0 | D69: =IF(B69="مأهول",5000,0) -> 0 | E69: =أكتوبر!E69 -> 0 | F69: =أكتوبر!F69 -> 0 | G69: 0 | H69: =أكتوبر!AC69 -> 0 | I69: =أكتوبر!AD69 -> 0 | J69: =ROUND((أكتوبر!AE69+أكتوبر!AF69)/100,0)*100 -> 0 | K69: =ROUND((SUM(H69:J69))/100,0)*100 -> 0 | L69: =D69 -> 0 | M69: 0 | N69: =SUM(L69:M69) -> 0 | O69: 0 | P69: 0 | Q69: =J69 -> 0 | R69: =ROUND((SUM(O69:Q69))/100,0)*100 -> 0 | AB69: =SUM(V69:AA69) -> 0 | AC69: 0 | AD69: 0 | AE69: =ROUND((Q69-Z69)/100,0)*100 -> 0 | AF69: 0 | AG69: =ROUND(SUM(AC69:AF69)/50,0)*50 -> 0 | AH69: =IF(A69<>"",_xlfn.IFS(AG69>(G69*3),"مفصول",AG69=0,"تم السداد أو ليست عليه إلتزامات",AG69<0,"له باقي طرفنا",0<AG69>(G69*3),"لم يتم السداد"),"") -> تم السداد أو ليست عليه إلتزامات | AI69: =أكتوبر!AI69 -> 0
A70: =أكتوبر!A70 -> 0 | B70: =أكتوبر!B70 -> 0 | C70: =أكتوبر!C70 -> 0 | D70: =IF(B70="مأهول",5000,0) -> 0 | E70: =أكتوبر!E70 -> 0 | F70: =أكتوبر!F70 -> 0 | G70: 0 | H70: =أكتوبر!AC70 -> 0 | I70: =أكتوبر!AD70 -> 0 | J70: =ROUND((أكتوبر!AE70+أكتوبر!AF70)/100,0)*100 -> 0 | K70: =ROUND((SUM(H70:J70))/100,0)*100 -> 0 | L70: =D70 -> 0 | M70: 0 | N70: =SUM(L70:M70) -> 0 | O70: 0 | P70: 0 | Q70: =J70 -> 0 | R70: =ROUND((SUM(O70:Q70))/100,0)*100 -> 0 | AB70: =SUM(V70:AA70) -> 0 | AC70: 0 | AD70: 0 | AE70: =ROUND((Q70-Z70)/100,0)*100 -> 0 | AF70: 0 | AG70: =ROUND(SUM(AC70:AF70)/50,0)*50 -> 0 | AH70: =IF(A70<>"",_xlfn.IFS(AG70>(G70*3),"مفصول",AG70=0,"تم السداد أو ليست عليه إلتزامات",AG70<0,"له باقي طرفنا",0<AG70>(G70*3),"لم يتم السداد"),"") -> تم السداد أو ليست عليه إلتزامات | AI70: =أكتوبر!AI70 -> 0
A71: =أكتوبر!A71 -> 0 | B71: =أكتوبر!B71 -> 0 | C71: =أكتوبر!C71 -> 0 | D71: =IF(B71="مأهول",5000,0) -> 0 | E71: =أكتوبر!E71 -> 0 | F71: =أكتوبر!F71 -> 0 | G71: 0 | H71: =أكتوبر!AC71 -> 0 | I71: =أكتوبر!AD71 -> 0 | J71: =ROUND((أكتوبر!AE71+أكتوبر!AF71)/100,0)*100 -> 0 | K71: =ROUND((SUM(H71:J71))/100,0)*100 -> 0 | L71: =D71 -> 0 | M71: 0 | N71: =SUM(L71:M71) -> 0 | O71: 0 | P71: 0 | Q71: =J71 -> 0 | R71: =ROUND((SUM(O71:Q71))/100,0)*100 -> 0 | AB71: =SUM(V71:AA71) -> 0 | AC71: 0 | AD71: 0 | AE71: =ROUND((Q71-Z71)/100,0)*100 -> 0 | AF71: 0 | AG71: =ROUND(SUM(AC71:AF71)/50,0)*50 -> 0 | AH71: =IF(A71<>"",_xlfn.IFS(AG71>(G71*3),"مفصول",AG71=0,"تم السداد أو ليست عليه إلتزامات",AG71<0,"له باقي طرفنا",0<AG71>(G71*3),"لم يتم السداد"),"") -> تم السداد أو ليست عليه إلتزامات | AI71: =أكتوبر!AI71 -> 0
A72: =أكتوبر!A72 -> 0 | B72: =أكتوبر!B72 -> 0 | C72: =أكتوبر!C72 -> 0 | D72: =IF(B72="مأهول",5000,0) -> 0 | E72: =أكتوبر!E72 -> 0 | F72: =أكتوبر!F72 -> 0 | G72: 0 | H72: =أكتوبر!AC72 -> 0 | I72: =أكتوبر!AD72 -> 0 | J72: =ROUND((أكتوبر!AE72+أكتوبر!AF72)/100,0)*100 -> 0 | K72: =ROUND((SUM(H72:J72))/100,0)*100 -> 0 | L72: =D72 -> 0 | M72: 0 | N72: =SUM(L72:M72) -> 0 | O72: 0 | P72: 0 | Q72: =J72 -> 0 | R72: =ROUND((SUM(O72:Q72))/100,0)*100 -> 0 | AB72: =SUM(V72:AA72) -> 0 | AC72: 0 | AD72: 0 | AE72: =ROUND((Q72-Z72)/100,0)*100 -> 0 | AF72: 0 | AG72: =ROUND(SUM(AC72:AF72)/50,0)*50 -> 0 | AH72: =IF(A72<>"",_xlfn.IFS(AG72>(G72*3),"مفصول",AG72=0,"تم السداد أو ليست عليه إلتزامات",AG72<0,"له باقي طرفنا",0<AG72>(G72*3),"لم يتم السداد"),"") -> تم السداد أو ليست عليه إلتزامات | AI72: =أكتوبر!AI72 -> 0
A73: الإجمالي | D73: =SUM(D3:D72) -> 120000 | E73: =SUM(E3:E72) -> 78 | F73: =SUM(F3:F72) -> 24 | G73: =SUM(G3:G72) -> 156000 | H73: =SUM(H3:H72) -> 10000 | I73: =SUM(I3:I72) -> -3400 | J73: 0 | K73: 6600 | L73: 120000 | M73: 36000 | N73: 156000 | O73: 130000 | P73: 32600 | Q73: 0 | R73: 162600 | V73: =SUM(V3:V72) -> 60000 | W73: =SUM(W3:W72) -> 12000 | X73: 0 | Y73: 0 | Z73: =SUM(Z3:Z72) -> 0 | AA73: 0 | AB73: =SUM(AB3:AB72) -> 72000 | AC73: 70000 | AD73: =SUM(AD3:AD72) -> 20600 | AE73: =SUM(AE3:AE72) -> 0 | AF73: 46800 | AG73: 137400
A76: البيان | B76: المبلغ | C76: ملحوظات
A77: إجمالي التحصيل الشهري | B77: =AB73 -> 72000
A78: مديونية سابقة على المتحصل | B78: =أكتوبر!B82 -> -13400
A79: إستلام أمين الصندوق | B79: =AM52 -> 0
A80: المطلوب من المتحصل | B80: =(B77+B78)-B79 -> 58600
A81: السداد | B81: 140000 | C81: سداد عبر بنكك بتاريخ 2025/12/5م.
A82: الباقي | B82: =B80-B81 -> -81400
A83: مأهول
A84: شتول
A85: جديد
A86: مغلق
A87: مفصول
A88: معفي

Sheet ديسمبر
A1: البيانات الشخصية | G1: الربط | H1: المتأخرات حتى نهاية نوفمبر 2025م | L1: جاري ديسمبر 2025م | O1: المطلوب حتى نهاية ديسمبر 2025م | S1: تفاصيل السداد خلال ديسمبر 2025م | AC1: المتأخرات حتى نهاية ديسمبر 2025م | AH1: موقف السداد | AI1: ملاحظات | AK1: إستلام أمين الصندوق
A2: الإسم | B2: المنزل | C2: الهاتف | D2: السكني | E2: شتول الربط | F2: شتول خ. الربط | G2: الشهري | H2: السكني | I2: الشتول | J2: غرامات | K2: الإجمالي | L2: السكني | M2: الشتول | N2: الإجمالي | O2: السكني | P2: الشتول | Q2: غرامات | R2: الإجمالي | S2: التاريخ | T2: رقم الإيصال | U2: رقم الدفتر | V2: السكني | W2: الشتول | X2: توصيل | Y2: مباني | Z2: غرامات | AA2: أخرى | AB2: الإجمالي | AC2: السكني | AD2: الشتول | AE2: الغرامات | AF2: غرامة تأخير سداد | AG2: الإجمالي | AK2: التاريخ | AL2: الإسم | AM2: المبلغ | AN2: ملحوظات
A3: =نوفمبر!A3 -> منزل المرحوم عبدالله محمد صالح (ودحجه) | B3: =نوفمبر!B3 -> مأهول | C3: =نوفمبر!C3 -> 913223640 | D3: =IF(B3="مأهول",5000,0) -> 5000 | E3: =نوفمبر!E3 -> 2 | F3: =نوفمبر!F3 -> 0 | G3: =D3+(F3*1500) -> 5000 | H3: =نوفمبر!AC3 -> 0 | I3: =نوفمبر!AD3 -> 0 | J3: =ROUND((نوفمبر!AE3+نوفمبر!AF3)/100,0)*100 -> 0 | K3: =ROUND((SUM(H3:J3))/100,0)*100 -> 0 | L3: =D3 -> 5000 | M3: =(F3*1500) -> 0 | N3: =SUM(L3:M3) -> 5000 | O3: =ROUND((H3+L3)/100,0)*100 -> 5000 | P3: =ROUND((I3+M3)/100,0)*100 -> 0 | Q3: =J3 -> 0 | R3: =ROUND((SUM(O3:Q3))/100,0)*100 -> 5000 | V3: 5000 | W3: 0 | X3: 0 | Y3: 0 | Z3: 0 | AA3: 0 | AB3: =SUM(V3:AA3) -> 5000 | AC3: =ROUND((O3-V3)/100,0)*100 -> 0 | AD3: =ROUND((P3-W3)/100,0)*100 -> 0 | AE3: =ROUND((Q3-Z3)/100,0)*100 -> 0 | AF3: =(IF(SUM(AC3:AE3)>0,IF(AB3<0,0,ROUND((SUM(AC3:AE3)/2)/100,0)*100),0)) -> 0 | AG3: =ROUND(SUM(AC3:AF3)/100,0)*100 -> 0 | AH3: =IF(A3<>"",_xlfn.IFS(AG3>(G3*3),"مفصول",AG3=0,"تم السداد أو ليست عليه إلتزامات",AG3<0,"له باقي طرفنا",0<AG3>(G3*3),"لم يتم السداد"),"") -> تم السداد أو ليست عليه إلتزامات | AI3: سداد حتى نهاية ديسمبر 2025م. | AK3: 2026-01-05 | AL3: محمد عبدالله محمد حمد | AM3: 10000 | AN3: سداد بيد الطيب محمود (بنكك)
A4: =نوفمبر!A4 -> مبارك عبدالله محمد صالح | B4: =نوفمبر!B4 -> مأهول | C4: =نوفمبر!C4 -> 912572291 | D4: =IF(B4="مأهول",5000,0) -> 5000 | E4: =نوفمبر!E4 -> 1 | F4: =نوفمبر!F4 -> 0 | G4: =D4+(F4*1500) -> 5000 | H4: =نوفمبر!AC4 -> 4000 | I4: =نوفمبر!AD4 -> -4000 | J4: =ROUND((نوفمبر!AE4+نوفمبر!AF4)/100,0)*100 -> 0 | K4: =ROUND((SUM(H4:J4))/100,0)*100 -> 0 | L4: =D4 -> 5000 | M4: =(F4*1500) -> 0 | N4: =SUM(L4:M4) -> 5000 | O4: =ROUND((H4+L4)/100,0)*100 -> 9000 | P4: -4000 | Q4: =J4 -> 0 | R4: =ROUND((SUM(O4:Q4))/100,0)*100 -> 5000 | V4: 5000 | W4: 0 | X4: 0 | Y4: 0 | Z4: 0 | AA4: 0 | AB4: =SUM(V4:AA4) -> 5000 | AC4: =ROUND((O4-V4)/100,0)*100 -> 4000 | AD4: -4000 | AE4: =ROUND((Q4-Z4)/100,0)*100 -> 0 | AF4: 0 | AG4: =ROUND(SUM(AC4:AF4)/50,0)*50 -> 0 | AH4: =IF(A4<>"",_xlfn.IFS(AG4>(G4*3),"مفصول",AG4=0,"تم السداد أو ليست عليه إلتزامات",AG4<0,"له باقي طرفنا",0<AG4>(G4*3),"لم يتم السداد"),"") -> تم السداد أو ليست عليه إلتزامات | AI4: سداد حتى نهاية ديسمبر 2025م. | AK4: 2026-01-05 | AL4: منذر عبدالله محمد حمد | AM4: 8000 | AN4: سداد بيد الطيب محمود (بنكك)
A5: =نوفمبر!A5 -> خالد عبدالله محمد صالح | B5: =نوفمبر!B5 -> مأهول | C5: =نوفمبر!C5 -> 916713241 | D5: 5000 | E5: =نوفمبر!E5 -> 2 | F5: =نوفمبر!F5 -> 0 | G5: 5000 | H5: =نوفمبر!AC5 -> 4000 | I5: =نوفمبر!AD5 -> -4000 | J5: =ROUND((نوفمبر!AE5+نوفمبر!AF5)/100,0)*100 -> 0 | K5: 0 | L5: 5000 | M5: 0 | N5: 5000 | O5: 9000 | P5: -4000 | Q5: 0 | R5: 5000 | V5: 5000 | W5: 0 | X5: 0 | Y5: 0 | Z5: 0 | AA5: 0 | AB5: 5000 | AC5: 4000 | AD5: -4000 | AE5: 0 | AF5: 0 | AG5: 0 | AH5: تم السداد أو ليست عليه إلتزامات | AI5: سداد حتى نهاية ديسمبر 2025م.
A6: =نوفمبر!A6 -> الفاضل عبدالله محمد صالح | B6: =نوفمبر!B6 -> مغلق | C6: =نوفمبر!C6 -> 917924080 | D6: 0 | E6: =نوفمبر!E6 -> 1 | F6: =نوفمبر!F6 -> 0 | G6: 0 | H6: =نوفمبر!AC6 -> 0 | I6: =نوفمبر!AD6 -> 0 | J6: =ROUND((نوفمبر!AE6+نوفمبر!AF6)/100,0)*100 -> 0 | K6: 0 | L6: 0 | M6: 0 | N6: 0 | O6: 0 | P6: 0 | Q6: 0 | R6: 0 | AB6: 0 | AC6: 0 | AD6: 0 | AE6: 0 | AF6: 0 | AG6: 0 | AH6: تم السداد أو ليست عليه إلتزامات | AI6: سداد حتى نهاية ديسمبر 2025م.
A7: =نوفمبر!A7 -> بكري عبدالرحمن ود صالح | B7: =نوفمبر!B7 -> مأهول | C7: =نوفمبر!C7 -> 126793356 | D7: 5000 | E7: =نوفمبر!E7 -> 1 | F7: =نوفمبر!F7 -> 0 | G7: 5000 | H7: =نوفمبر!AC7 -> 2000 | I7: =نوفمبر!AD7 -> -2000 | J7: =ROUND((نوفمبر!AE7+نوفمبر!AF7)/100,0)*100 -> 0 | K7: 0 | L7: 5000 | M7: 0 | N7: 5000 | O7: 7000 | P7: -2000 | Q7: 0 | R7: 5000 | V7: 5000 | W7: 0 | X7: 0 | Y7: 0 | Z7: 0 | AA7: 0 | AB7: 5000 | AC7: 2000 | AD7: -2000 | AE7: 0 | AF7: 0 | AG7: 0 | AH7: تم السداد أو ليست عليه إلتزامات | AI7: سداد حتى نهاية ديسمبر 2025م.
A8: =نوفمبر!A8 -> جمال عبدالرحمن ود صالح | B8: =نوفمبر!B8 -> مأهول | C8: =نوفمبر!C8 -> 124317243 | D8: 5000 | E8: =نوفمبر!E8 -> 0 | F8: =نوفمبر!F8 -> 0 | G8: 5000 | H8: =نوفمبر!AC8 -> 0 | I8: =نوفمبر!AD8 -> 0 | J8: =ROUND((نوفمبر!AE8+نوفمبر!AF8)/100,0)*100 -> 0 | K8: 0 | L8: 5000 | M8: 0 | N8: 5000 | O8: 5000 | P8: 0 | Q8: 0 | R8: 5000 | V8: 5000 | W8: 0 | X8: 0 | Y8: 0 | Z8: 0 | AA8: 0 | AB8: 5000 | AC8: 0 | AD8: 0 | AE8: 0 | AF8: 0 | AG8: 0 | AH8: تم السداد أو ليست عليه إلتزامات | AI8: سداد حتى نهاية ديسمبر 2025م.
A9: =نوفمبر!A9 -> صلاح عبدالرحمن ود صالح | B9: =نوفمبر!B9 -> مأهول | C9: =نوفمبر!C9 -> 121347090 | D9: 5000 | E9: =نوفمبر!E9 -> 2 | F9: =نوفمبر!F9 -> 0 | G9: 5000 | H9: =نوفمبر!AC9 -> 4000 | I9: =نوفمبر!AD9 -> -4000 | J9: =ROUND((نوفمبر!AE9+نوفمبر!AF9)/100,0)*100 -> 0 | K9: 0 | L9: 5000 | M9: 0 | N9: 5000 | O9: 9000 | P9: -4000 | Q9: 0 | R9: 5000 | V9: 5000 | W9: 0 | X9: 0 | Y9: 0 | Z9: 0 | AA9: 0 | AB9: 5000 | AC9: 4000 | AD9: -4000 | AE9: 0 | AF9: 0 | AG9: 0 | AH9: تم السداد أو ليست عليه إلتزامات | AI9: سداد حتى نهاية ديسمبر 2025م.
A10: =نوفمبر!A10 -> عبدالحي عبدالرحمن ودصالح | B10: =نوفمبر!B10 -> مأهول | C10: =نوفمبر!C10 -> 114114215 | D10: 5000 | E10: =نوفمبر!E10 -> 0 | F10: =نوفمبر!F10 -> 0 | G10: 5000 | H10: =نوفمبر!AC10 -> 0 | I10: =نوفمبر!AD10 -> 0 | J10: =ROUND((نوفمبر!AE10+نوفمبر!AF10)/100,0)*100 -> 0 | K10: 0 | L10: 5000 | M10: 0 | N10: 5000 | O10: 5000 | P10: 0 | Q10: 0 | R10: 5000 | V10: 5000 | W10: 0 | X10: 0 | Y10: 0 | Z10: 0 | AA10: 0 | AB10: 5000 | AC10: 0 | AD10: 0 | AE10: 0 | AF10: 0 | AG10: 0 | AH10: تم السداد أو ليست عليه إلتزامات | AI10: سداد حتى نهاية ديسمبر 2025م.
A11: =نوفمبر!A11 -> فضل عبدالرحمن ودصالح | B11: =نوفمبر!B11 -> مأهول | C11: =نوفمبر!C11 -> 965527390 | D11: 5000 | E11: =نوفمبر!E11 -> 4 | F11: =نوفمبر!F11 -> 3 | G11: 9500 | H11: =نوفمبر!AC11 -> 0 | I11: =نوفمبر!AD11 -> 0 | J11: =ROUND((نوفمبر!AE11+نوفمبر!AF11)/100,0)*100 -> 0 | K11: 0 | L11: 5000 | M11: 4500 | N11: 9500 | O11: 5000 | P11: 4500 | Q11: 0 | R11: 9500 | V11: 5000 | W11: 4500 | X11: 0 | Y11: 0 | Z11: 0 | AA11: 0 | AB11: 9500 | AC11: 0 | AD11: 0 | AE11: 0 | AF11: 0 | AG11: 0 | AH11: تم السداد أو ليست عليه إلتزامات | AI11: سداد حتى نهاية ديسمبر 2025م.
A12: =نوفمبر!A12 -> منزل المرحوم الزين ود صالح (العاقب) | B12: =نوفمبر!B12 -> مأهول | C12: =نوفمبر!C12 -> 917344140 | D12: 5000 | E12: =نوفمبر!E12 -> 1 | F12: =نوفمبر!F12 -> 0 | G12: 5000 | H12: =نوفمبر!AC12 -> 0 | I12: =نوفمبر!AD12 -> 0 | J12: =ROUND((نوفمبر!AE12+نوفمبر!AF12)/100,0)*100 -> 0 | K12: 0 | L12: 5000 | M12: 0 | N12: 5000 | O12: 5000 | P12: 0 | Q12: 0 | R12: 5000 | V12: 5000 | W12: 0 | X12: 0 | Y12: 0 | Z12: 0 | AA12: 0 | AB12: 5000 | AC12: 0 | AD12: 0 | AE12: 0 | AF12: 0 | AG12: 0 | AH12: تم السداد أو ليست عليه إلتزامات | AI12: سداد حتى نهاية ديسمبر 2025م.
A13: =نوفمبر!A13 -> مهدي الزين | B13: =نوفمبر!B13 -> مأهول | C13: =نوفمبر!C13 -> 913099777 | D13: 5000 | E13: =نوفمبر!E13 -> 2 | F13: =نوفمبر!F13 -> 0 | G13: 5000 | H13: =نوفمبر!AC13 -> 4000 | I13: =نوفمبر!AD13 -> -4000 | J13: =ROUND((نوفمبر!AE13+نوفمبر!AF13)/100,0)*100 -> 0 | K13: 0 | L13: 5000 | M13: 0 | N13: 5000 | O13: 9000 | P13: -4000 | Q13: 0 | R13: 5000 | V13: 5000 | W13: 0 | X13: 0 | Y13: 0 | Z13: 0 | AA13: 0 | AB13: 5000 | AC13: 4000 | AD13: -4000 | AE13: 0 | AF13: 0 | AG13: 0 | AH13: تم السداد أو ليست عليه إلتزامات | AI13: سداد حتى نهاية ديسمبر 2025م.
A14: =نوفمبر!A14 -> محمد السيد | B14: =نوفمبر!B14 -> مأهول | C14: =نوفمبر!C14 -> 917636525 | D14: 5000 | E14: =نوفمبر!E14 -> 1 | F14: =نوفمبر!F14 -> 0 | G14: 5000 | H14: =نوفمبر!AC14 -> 0 | I14: =نوفمبر!AD14 -> 0 | J14: =ROUND((نوفمبر!AE14+نوفمبر!AF14)/100,0)*100 -> 0 | K14: 0 | L14: 5000 | M14: 0 | N14: 5000 | O14: 5000 | P14: 0 | Q14: 0 | R14: 5000 | V14: 5000 | W14: 0 | X14: 0 | Y14: 0 | Z14: 0 | AA14: 0 | AB14: 5000 | AC14: 0 | AD14: 0 | AE14: 0 | AF14: 0 | AG14: 0 | AH14: تم السداد أو ليست عليه إلتزامات | AI14: سداد حتى نهاية ديسمبر 2025م.
A15: =نوفمبر!A15 -> هشام محمد السيد | B15: =نوفمبر!B15 -> مأهول | C15: =نوفمبر!C15 -> 915778117 | D15: 5000 | E15: =نوفمبر!E15 -> 4 | F15: =نوفمبر!F15 -> 5 | G15: 12500 | H15: =نوفمبر!AC15 -> 0 | I15: =نوفمبر!AD15 -> 0 | J15: =ROUND((نوفمبر!AE15+نوفمبر!AF15)/100,0)*100 -> 0 | K15: 0 | L15: 5000 | M15: 7500 | N15: 12500 | O15: 5000 | P15: 7500 | Q15: 0 | R15: 12500 | V15: 5000 | W15: 7500 | X15: 0 | Y15: 0 | Z15: 0 | AA15: 0 | AB15: 12500 | AC15: 0 | AD15: 0 | AE15: 0 | AF15: 0 | AG15: 0 | AH15: تم السداد أو ليست عليه إلتزامات | AI15: سداد حتى نهاية ديسمبر 2025م.
A16: =نوفمبر!A16 -> عصام محمد السيد (أ) | B16: =نوفمبر!B16 -> مأهول | C16: =نوفمبر!C16 -> 915896866 | D16: 5000 | E16: =نوفمبر!E16 -> 1 | F16: =نوفمبر!F16 -> 0 | G16: 5000 | H16: =نوفمبر!AC16 -> 2000 | I16: =نوفمبر!AD16 -> -2000 | J16: =ROUND((نوفمبر!AE16+نوفمبر!AF16)/100,0)*100 -> 0 | K16: 0 | L16: 5000 | M16: 0 | N16: 5000 | O16: 7000 | P16: -2000 | Q16: 0 | R16: 5000 | V16: 5000 | W16: 0 | X16: 0 | Y16: 0 | Z16: 0 | AA16: 0 | AB16: 5000 | AC16: 2000 | AD16: -2000 | AE16: 0 | AF16: 0 | AG16: 0 | AH16: تم السداد أو ليست عليه إلتزامات | AI16: سداد حتى نهاية ديسمبر 2025م.
A17: =نوفمبر!A17 -> عبدالله الأنصاري | B17: =نوفمبر!B17 -> مغلق | C17: =نوفمبر!C17 -> 911101791 | D17: 0 | E17: 2 | F17: =نوفمبر!F17 -> 0 | G17: 0 | H17: =نوفمبر!AC17 -> 0 | I17: =نوفمبر!AD17 -> 0 | J17: =ROUND((نوفمبر!AE17+نوفمبر!AF17)/100,0)*100 -> 0 | K17: 0 | L17: 0 | M17: 0 | N17: 0 | O17: 0 | P17: 0 | Q17: 0 | R17: 0 | AB17: 0 | AC17: 0 | AD17: 0 | AE17: 0 | AF17: 0 | AG17: 0 | AH17: تم السداد أو ليست عليه إلتزامات | AI17: سداد حتى نهاية ديسمبر 2025م.
A18: =نوفمبر!A18 -> عماد محمد سعيد | B18: =نوفمبر!B18 -> مأهول | C18: =نوفمبر!C18 -> 911113020 | D18: 5000 | E18: =نوفمبر!E18 -> 2 | F18: =نوفمبر!F18 -> 0 | G18: 5000 | H18: =نوفمبر!AC18 -> 5000 | I18: =نوفمبر!AD18 -> -6000 | J18: =ROUND((نوفمبر!AE18+نوفمبر!AF18)/100,0)*100 -> 0 | K18: -1000 | L18: 5000 | M18: 0 | N18: 5000 | O18: 10000 | P18: -6000 | Q18: 0 | R18: 4000 | V18: 4000 | AB18: 4000 | AC18: 6000 | AD18: -6000 | AE18: 0 | AF18: 0 | AG18: 0 | AH18: تم السداد أو ليست عليه إلتزامات | AI18: سداد حتى نهاية ديسمبر 2025م.
A19: =نوفمبر!A19 -> ماهر محمد صالح | B19: =نوفمبر!B19 -> معفي | C19: =نوفمبر!C19 -> 962864495 | D19: 0 | E19: =نوفمبر!E19 -> 1 | F19: =نوفمبر!F19 -> 0 | G19: 0 | H19: =نوفمبر!AC19 -> 0 | I19: =نوفمبر!AD19 -> 0 | J19: =ROUND((نوفمبر!AE19+نوفمبر!AF19)/100,0)*100 -> 0 | K19: 0 | L19: 0 | M19: 0 | N19: 0 | O19: 0 | P19: 0 | Q19: 0 | R19: 0 | AB19: 0 | AC19: 0 | AD19: 0 | AE19: 0 | AF19: 0 | AG19: 0 | AH19: تم السداد أو ليست عليه إلتزامات | AI19: سداد حتى نهاية ديسمبر 2025م.
A20: =نوفمبر!A20 -> منزل المرحوم محمد عبدالله فيك الخير (صالح جرمور) | B20: =نوفمبر!B20 -> معفي | C20: =نوفمبر!C20 -> 915857673 | D20: 0 | E20: =نوفمبر!E20 -> 0 | F20: =نوفمبر!F20 -> 0 | G20: 0 | H20: =نوفمبر!AC20 -> 0 | I20: =نوفمبر!AD20 -> 0 | J20: =ROUND((نوفمبر!AE20+نوفمبر!AF20)/100,0)*100 -> 0 | K20: 0 | L20: 0 | M20: 0 | N20: 0 | O20: 0 | P20: 0 | Q20: 0 | R20: 0 | AB20: 0 | AC20: 0 | AD20: 0 | AE20: 0 | AF20: 0 | AG20: 0 | AH20: تم السداد أو ليست عليه إلتزامات | AI20: سداد حتى نهاية ديسمبر 2025م.
A21: =نوفمبر!A21 -> ناصر إدريس السيد (عماد إبراهيم السيد) | B21: =نوفمبر!B21 -> مأهول | C21: =نوفمبر!C21 -> 111914245 | D21: 5000 | E21: =نوفمبر!E21 -> 0 | F21: =نوفمبر!F21 -> 0 | G21: 5000 | H21: =نوفمبر!AC21 -> 0 | I21: =نوفمبر!AD21 -> 0 | J21: =ROUND((نوفمبر!AE21+نوفمبر!AF21)/100,0)*100 -> 0 | K21: 0 | L21: 5000 | M21: 0 | N21: 5000 | O21: 5000 | P21: 0 | Q21: 0 | R21: 5000 | V21: 5000 | W21: 0 | X21: 0 | Y21: 0 | Z21: 0 | AA21: 0 | AB21: 5000 | AC21: 0 | AD21: 0 | AE21: 0 | AF21: 0 | AG21: 0 | AH21: تم السداد أو ليست عليه إلتزامات | AI21: سداد حتى نهاية ديسمبر 2025م.
A22: =نوفمبر!A22 -> محمدعلي الفقير | B22: =نوفمبر!B22 -> مأهول | C22: =نوفمبر!C22 -> 910204066 | D22: 5000 | E22: =نوفمبر!E22 -> 3 | F22: =نوفمبر!F22 -> 0 | G22: 5000 | H22: =نوفمبر!AC22 -> 5000 | I22: =نوفمبر!AD22 -> -6000 | J22: =ROUND((نوفمبر!AE22+نوفمبر!AF22)/100,0)*100 -> 0 | K22: -1000 | L22: 5000 | M22: 0 | N22: 5000 | O22: 10000 | P22: -6000 | Q22: 0 | R22: 4000 | V22: 4000 | AB22: 4000 | AC22: 6000 | AD22: -6000 | AE22: 0 | AF22: 0 | AG22: 0 | AH22: تم السداد أو ليست عليه إلتزامات | AI22: سداد حتى نهاية ديسمبر 2025م.
A23: =نوفمبر!A23 -> محمد محمدعلي الفقير | B23: =نوفمبر!B23 -> مأهول | C23: =نوفمبر!C23 -> 965199199 | D23: 5000 | E23: =نوفمبر!E23 -> 0 | F23: =نوفمبر!F23 -> 0 | G23: 5000 | H23: =نوفمبر!AC23 -> 0 | I23: =نوفمبر!AD23 -> 0 | J23: =ROUND((نوفمبر!AE23+نوفمبر!AF23)/100,0)*100 -> 0 | K23: 0 | L23: 5000 | M23: 0 | N23: 5000 | O23: 5000 | P23: 0 | Q23: 0 | R23: 5000 | V23: 5000 | W23: 0 | X23: 0 | Y23: 0 | Z23: 0 | AA23: 0 | AB23: 5000 | AC23: 0 | AD23: 0 | AE23: 0 | AF23: 0 | AG23: 0 | AH23: تم السداد أو ليست عليه إلتزامات | AI23: سداد حتى نهاية ديسمبر 2025م.
A24: =نوفمبر!A24 -> طه محمدعلي الفقير | B24: =نوفمبر!B24 -> مأهول | C24: =نوفمبر!C24 -> 112437426 | D24: 5000 | E24: =نوفمبر!E24 -> 3 | F24: =نوفمبر!F24 -> 0 | G24: 5000 | H24: =نوفمبر!AC24 -> 0 | I24: =نوفمبر!AD24 -> -7000 | J24: =ROUND((نوفمبر!AE24+نوفمبر!AF24)/100,0)*100 -> 0 | K24: -7000 | L24: 5000 | M24: 0 | N24: 5000 | O24: 5000 | P24: -7000 | Q24: 0 | R24: -2000 | AB24: 0 | AC24: 5000 | AD24: -7000 | AE24: 0 | AF24: 0 | AG24: -2000 | AH24: له باقي طرفنا | AI24: =نوفمبر!AI24 -> له (2000) جنيه، وسداد حتى نهاية ديسمبر 2025م.
A25: =نوفمبر!A25 -> عبدالله محمد حمد (أ) | B25: =نوفمبر!B25 -> مأهول | C25: =نوفمبر!C25 -> 118561564 | D25: 5000 | E25: =نوفمبر!E25 -> 0 | F25: =نوفمبر!F25 -> 0 | G25: 5000 | H25: =نوفمبر!AC25 -> 5000 | I25: =نوفمبر!AD25 -> -6000 | J25: =ROUND((نوفمبر!AE25+نوفمبر!AF25)/100,0)*100 -> 0 | K25: -1000 | L25: 5000 | M25: 0 | N25: 5000 | O25: 10000 | P25: -6000 | Q25: 0 | R25: 4000 | V25: 4000 | AB25: 4000 | AC25: 6000 | AD25: -6000 | AE25: 0 | AF25: 0 | AG25: 0 | AH25: تم السداد أو ليست عليه إلتزامات | AI25: سداد حتى نهاية ديسمبر 2025م.
A26: =نوفمبر!A26 -> عبدالله محمد حمد (ب) | B26: =نوفمبر!B26 -> مأهول | C26: =نوفمبر!C26 -> 118561564 | D26: 5000 | E26: =نوفمبر!E26 -> 1 | F26: =نوفمبر!F26 -> 0 | G26: 5000 | H26: =نوفمبر!AC26 -> 5000 | I26: =نوفمبر!AD26 -> -6000 | J26: =ROUND((نوفمبر!AE26+نوفمبر!AF26)/100,0)*100 -> 0 | K26: -1000 | L26: 5000 | M26: 0 | N26: 5000 | O26: 10000 | P26: -6000 | Q26: 0 | R26: 4000 | V26: 4000 | AB26: 4000 | AC26: 6000 | AD26: -6000 | AE26: 0 | AF26: 0 | AG26: 0 | AH26: تم السداد أو ليست عليه إلتزامات | AI26: سداد حتى نهاية ديسمبر 2025م.
A27: =نوفمبر!A27 -> محمد عبدالله محمد حمد (بابا) | B27: =نوفمبر!B27 -> مأهول | C27: =نوفمبر!C27 -> 118561564 | D27: 5000 | E27: =نوفمبر!E27 -> 0 | F27: =نوفمبر!F27 -> 0 | G27: 5000 | H27: =نوفمبر!AC27 -> 5000 | I27: =نوفمبر!AD27 -> 0 | J27: =ROUND((نوفمبر!AE27+نوفمبر!AF27)/100,0)*100 -> 0 | K27: 5000 | L27: 5000 | M27: 0 | N27: 5000 | O27: 10000 | P27: 0 | Q27: 0 | R27: 10000 | S27: 2026-01-05 | V27: 10000 | W27: 0 | X27: 0 | Y27: 0 | Z27: 0 | AA27: 0 | AB27: 10000 | AC27: 0 | AD27: 0 | AE27: 0 | AF27: 0 | AG27: 0 | AH27: تم السداد أو ليست عليه إلتزامات | AI27: سداد حتى نهاية ديسمبر 2025م.
A28: =نوفمبر!A28 -> منذر عبدالله محمد حمد | B28: =نوفمبر!B28 -> مأهول | C28: =نوفمبر!C28 -> 118561564 | D28: 5000 | E28: =نوفمبر!E28 -> 1 | F28: =نوفمبر!F28 -> 0 | G28: 5000 | H28: =نوفمبر!AC28 -> 5000 | I28: =نوفمبر!AD28 -> -2000 | J28: =ROUND((نوفمبر!AE28+نوفمبر!AF28)/100,0)*100 -> 0 | K28: 3000 | L28: 5000 | M28: 0 | N28: 5000 | O28: 10000 | P28: -2000 | Q28: 0 | R28: 8000 | S28: 2026-01-05 | V28: 8000 | W28: 0 | X28: 0 | Y28: 0 | Z28: 0 | AA28: 0 | AB28: 8000 | AC28: 2000 | AD28: -2000 | AE28: 0 | AF28: 0 | AG28: 0 | AH28: تم السداد أو ليست عليه إلتزامات | AI28: سداد حتى نهاية ديسمبر 2025م.
A29: =نوفمبر!A29 -> الباقر عبدالله أنصار | B29: =نوفمبر!B29 -> مأهول | C29: =نوفمبر!C29 -> 0 | D29: 5000 | E29: =نوفمبر!E29 -> 0 | F29: =نوفمبر!F29 -> 0 | G29: 5000 | H29: =نوفمبر!AC29 -> 0 | I29: =نوفمبر!AD29 -> 0 | J29: =ROUND((نوفمبر!AE29+نوفمبر!AF29)/100,0)*100 -> 0 | K29: 0 | L29: 5000 | M29: 0 | N29: 5000 | O29: 5000 | P29: 0 | Q29: 0 | R29: 5000 | V29: 5000 | W29: 0 | X29: 0 | Y29: 0 | Z29: 0 | AA29: 0 | AB29: 5000 | AC29: 0 | AD29: 0 | AE29: 0 | AF29: 0 | AG29: 0 | AH29: تم السداد أو ليست عليه إلتزامات | AI29: سداد حتى نهاية ديسمبر 2025م.
A30: =نوفمبر!A30 -> خالد أحمد صالح ودصالح | B30: =نوفمبر!B30 -> جديد | C30: =نوفمبر!C30 -> 0 | D30: 0 | E30: =نوفمبر!E30 -> 0 | F30: =نوفمبر!F30 -> 0 | G30: 0 | H30: =نوفمبر!AC30 -> 0 | I30: =نوفمبر!AD30 -> 0 | J30: =ROUND((نوفمبر!AE30+نوفمبر!AF30)/100,0)*100 -> 0 | K30: 0 | L30: 0 | M30: 0 | N30: 0 | O30: 0 | P30: 0 | Q30: 0 | R30: 0 | AB30: 0 | AC30: 0 | AD30: 0 | AE30: 0 | AF30: 0 | AG30: 0 | AH30: تم السداد أو ليست عليه إلتزامات | AI30: =نوفمبر!AI30 -> 0
A31: =نوفمبر!A31 -> عبدالله صالح حامنتود | B31: =نوفمبر!B31 -> جديد | C31: =نوفمبر!C31 -> 0 | D31: 0 | E31: =نوفمبر!E31 -> 0 | F31: =نوفمبر!F31 -> 0 | G31: 0 | H31: =نوفمبر!AC31 -> 0 | I31: =نوفمبر!AD31 -> 0 | J31: =ROUND((نوفمبر!AE31+نوفمبر!AF31)/100,0)*100 -> 0 | K31: 0 | L31: 0 | M31: 0 | N31: 0 | O31: 0 | P31: 0 | Q31: 0 | R31: 0 | AB31: 0 | AC31: 0 | AD31: 0 | AE31: 0 | AF31: 0 | AG31: 0 | AH31: تم السداد أو ليست عليه إلتزامات | AI31: =نوفمبر!AI31 -> توصيل جديد
A32: =نوفمبر!A32 -> عبدالرحمن جمال عبدالرحمن | B32: =نوفمبر!B32 -> 0 | C32: =نوفمبر!C32 -> 0 | D32: 0 | E32: =نوفمبر!E32 -> 0 | F32: =نوفمبر!F32 -> 0 | G32: 0 | H32: =نوفمبر!AC32 -> 0 | I32: =نوفمبر!AD32 -> 0 | J32: =ROUND((نوفمبر!AE32+نوفمبر!AF32)/100,0)*100 -> 0 | K32: 0 | L32: 0 | M32: 0 | N32: 0 | O32: 0 | P32: 0 | Q32: 0 | R32: 0 | AB32: 0 | AC32: 0 | AD32: 0 | AE32: 0 | AF32: 0 | AG32: 0 | AH32: تم السداد أو ليست عليه إلتزامات | AI32: =نوفمبر!AI32 -> للمراجعة مع المتحصل
A33: =نوفمبر!A33 -> محمد صالح | B33: =نوفمبر!B33 -> 0 | C33: =نوفمبر!C33 -> 0 | D33: 0 | E33: =نوفمبر!E33 -> 0 | F33: =نوفمبر!F33 -> 0 | G33: 0 | H33: =نوفمبر!AC33 -> 0 | I33: =نوفمبر!AD33 -> 0 | J33: =ROUND((نوفمبر!AE33+نوفمبر!AF33)/100,0)*100 -> 0 | K33: 0 | L33: 0 | M33: 0 | N33: 0 | O33: 0 | P33: 0 | Q33: 0 | R33: 0 | AB33: 0 | AC33: 0 | AD33: 0 | AE33: 0 | AF33: 0 | AG33: 0 | AH33: تم السداد أو ليست عليه إلتزامات | AI33: =نوفمبر!AI33 -> للمراجعة مع المتحصل
A34: =نوفمبر!A34 -> أنور محي الدين (1) | B34: =نوفمبر!B34 -> 0 | C34: =نوفمبر!C34 -> 0 | D34: 0 | E34: =نوفمبر!E34 -> 0 | F34: =نوفمبر!F34 -> 0 | G34: 0 | H34: =نوفمبر!AC34 -> 0 | I34: =نوفمبر!AD34 -> 0 | J34: =ROUND((نوفمبر!AE34+نوفمبر!AF34)/100,0)*100 -> 0 | K34: 0 | L34: 0 | M34: 0 | N34: 0 | O34: 0 | P34: 0 | Q34: 0 | R34: 0 | AB34: 0 | AC34: 0 | AD34: 0 | AE34: 0 | AF34: 0 | AG34: 0 | AH34: تم السداد أو ليست عليه إلتزامات | AI34: =نوفمبر!AI34 -> للمراجعة مع المتحصل
A35: =نوفمبر!A35 -> أنور محي الدين (2) | B35: =نوفمبر!B35 -> 0 | C35: =نوفمبر!C35 -> 0 | D35: 0 | E35: =نوفمبر!E35 -> 0 | F35: =نوفمبر!F35 -> 0 | G35: 0 | H35: =نوفمبر!AC35 -> 0 | I35: =نوفمبر!AD35 -> 0 | J35: =ROUND((نوفمبر!AE35+نوفمبر!AF35)/100,0)*100 -> 0 | K35: 0 | L35: 0 | M35: 0 | N35: 0 | O35: 0 | P35: 0 | Q35: 0 | R35: 0 | AB35: 0 | AC35: 0 | AD35: 0 | AE35: 0 | AF35: =(IF(SUM(AC35:AE35)>0,IF(AB35<0,0,ROUND((SUM(AC35:AE35)/2)/100,0)*100),0)) -> 0 | AG35: 0 | AH35: تم السداد أو ليست عليه إلتزامات | AI35: =نوفمبر!AI35 -> للمراجعة مع المتحصل
A36: =نوفمبر!A36 -> أنور محي الدين (3) | B36: =نوفمبر!B36 -> 0 | C36: =نوفمبر!C36 -> 0 | D36: 0 | E36: =نوفمبر!E36 -> 0 | F36: =نوفمبر!F36 -> 0 | G36: 0 | H36: =نوفمبر!AC36 -> 0 | I36: =نوفمبر!AD36 -> 0 | J36: =ROUND((نوفمبر!AE36+نوفمبر!AF36)/100,0)*100 -> 0 | K36: 0 | L36: 0 | M36: 0 | N36: 0 | O36: 0 | P36: 0 | Q36: 0 | R36: 0 | AB36: 0 | AC36: 0 | AD36: 0 | AE36: 0 | AF36: 0 | AG36: 0 | AH36: تم السداد أو ليست عليه إلتزامات | AI36: =نوفمبر!AI36 -> للمراجعة مع المتحصل
A37: =نوفمبر!A37 -> جلال أنور | B37: =نوفمبر!B37 -> 0 | C37: =نوفمبر!C37 -> 0 | D37: 0 | E37: =نوفمبر!E37 -> 0 | F37: =نوفمبر!F37 -> 0 | G37: 0 | H37: =نوفمبر!AC37 -> 0 | I37: =نوفمبر!AD37 -> 0 | J37: =ROUND((نوفمبر!AE37+نوفمبر!AF37)/100,0)*100 -> 0 | K37: 0 | L37: 0 | M37: 0 | N37: 0 | O37: 0 | P37: 0 | Q37: 0 | R37: 0 | AB37: 0 | AC37: 0 | AD37: 0 | AE37: 0 | AF37: 0 | AG37: 0 | AH37: تم السداد أو ليست عليه إلتزامات | AI37: =نوفمبر!AI37 -> للمراجعة مع المتحصل
A38: =نوفمبر!A38 -> محسن فتحي | B38: =نوفمبر!B38 -> 0 | C38: =نوفمبر!C38 -> 0 | D38: 0 | E38: =نوفمبر!E38 -> 0 | F38: =نوفمبر!F38 -> 0 | G38: 0 | H38: =نوفمبر!AC38 -> 0 | I38: =نوفمبر!AD38 -> 0 | J38: =ROUND((نوفمبر!AE38+نوفمبر!AF38)/100,0)*100 -> 0 | K38: 0 | L38: 0 | M38: 0 | N38: 0 | O38: 0 | P38: 0 | Q38: 0 | R38: 0 | AB38: 0 | AC38: 0 | AD38: 0 | AE38: 0 | AF38: 0 | AG38: 0 | AH38: تم السداد أو ليست عليه إلتزامات | AI38: =نوفمبر!AI38 -> للمراجعة مع المتحصل
A39: =نوفمبر!A39 -> معتز صالح | B39: =نوفمبر!B39 -> 0 | C39: =نوفمبر!C39 -> 0 | D39: 0 | E39: =نوفمبر!E39 -> 0 | F39: =نوفمبر!F39 -> 0 | G39: 0 | H39: =نوفمبر!AC39 -> 0 | I39: =نوفمبر!AD39 -> 0 | J39: =ROUND((نوفمبر!AE39+نوفمبر!AF39)/100,0)*100 -> 0 | K39: 0 | L39: 0 | M39: 0 | N39: 0 | O39: 0 | P39: 0 | Q39: 0 | R39: 0 | AB39: 0 | AC39: 0 | AD39: 0 | AE39: 0 | AF39: 0 | AG39: 0 | AH39: تم السداد أو ليست عليه إلتزامات | AI39: =نوفمبر!AI39 -> للمراجعة مع المتحصل
A40: =نوفمبر!A40 -> صالح النور | B40: =نوفمبر!B40 -> 0 | C40: =نوفمبر!C40 -> 0 | D40: 0 | E40: =نوفمبر!E40 -> 1 | F40: =نوفمبر!F40 -> 0 | G40: 0 | H40: =نوفمبر!AC40 -> 0 | I40: =نوفمبر!AD40 -> 0 | J40: =ROUND((نوفمبر!AE40+نوفمبر!AF40)/100,0)*100 -> 0 | K40: 0 | L40: 0 | M40: 0 | N40: 0 | O40: 0 | P40: 0 | Q40: 0 | R40: 0 | AB40: 0 | AC40: 0 | AD40: 0 | AE40: 0 | AF40: 0 | AG40: 0 | AH40: تم السداد أو ليست عليه إلتزامات | AI40: =نوفمبر!AI40 -> للمراجعة مع المتحصل
A41: =نوفمبر!A41 -> محمد إدريس | B41: =نوفمبر!B41 -> 0 | C41: =نوفمبر!C41 -> 0 | D41: 0 | E41: =نوفمبر!E41 -> 0 | F41: =نوفمبر!F41 -> 0 | G41: 0 | H41: =نوفمبر!AC41 -> 0 | I41: =نوفمبر!AD41 -> 0 | J41: =ROUND((نوفمبر!AE41+نوفمبر!AF41)/100,0)*100 -> 0 | K41: 0 | L41: 0 | M41: 0 | N41: 0 | O41: 0 | P41: 0 | Q41: 0 | R41: 0 | AB41: 0 | AC41: 0 | AD41: 0 | AE41: 0 | AF41: 0 | AG41: 0 | AH41: تم السداد أو ليست عليه إلتزامات | AI41: =نوفمبر!AI41 -> للمراجعة مع المتحصل
A42: =نوفمبر!A42 -> عمر محمد السيد | B42: =نوفمبر!B42 -> 0 | C42: =نوفمبر!C42 -> 0 | D42: 0 | E42: =نوفمبر!E42 -> 3 | F42: =نوفمبر!F42 -> 0 | G42: 0 | H42: =نوفمبر!AC42 -> 0 | I42: =نوفمبر!AD42 -> 0 | J42: =ROUND((نوفمبر!AE42+نوفمبر!AF42)/100,0)*100 -> 0 | K42: 0 | L42: 0 | M42: 0 | N42: 0 | O42: 0 | P42: 0 | Q42: 0 | R42: 0 | AB42: 0 | AC42: 0 | AD42: 0 | AE42: 0 | AF42: 0 | AG42: 0 | AH42: تم السداد أو ليست عليه إلتزامات | AI42: =نوفمبر!AI42 -> للمراجعة مع المتحصل
A43: =نوفمبر!A43 -> منزل المرحوم إدريس السيد | B43: =نوفمبر!B43 -> 0 | C43: =نوفمبر!C43 -> 0 | D43: 0 | E43: =نوفمبر!E43 -> 0 | F43: =نوفمبر!F43 -> 0 | G43: 0 | H43: =نوفمبر!AC43 -> 0 | I43: =نوفمبر!AD43 -> 0 | J43: =ROUND((نوفمبر!AE43+نوفمبر!AF43)/100,0)*100 -> 0 | K43: 0 | L43: 0 | M43: 0 | N43: 0 | O43: 0 | P43: 0 | Q43: 0 | R43: 0 | AB43: 0 | AC43: 0 | AD43: 0 | AE43: 0 | AF43: 0 | AG43: 0 | AH43: تم السداد أو ليست عليه إلتزامات | AI43: =نوفمبر!AI43 -> للمراجعة مع المتحصل
A44: =نوفمبر!A44 -> صفوان مهدي الزين | B44: =نوفمبر!B44 -> 0 | C44: =نوفمبر!C44 -> 0 | D44: 0 | E44: =نوفمبر!E44 -> 4 | F44: =نوفمبر!F44 -> 6 | G44: 9000 | H44: =نوفمبر!AC44 -> 0 | I44: =نوفمبر!AD44 -> 27600 | J44: =ROUND((نوفمبر!AE44+نوفمبر!AF44)/100,0)*100 -> 13800 | K44: 41400 | L44: 0 | M44: 9000 | N44: 9000 | O44: 0 | P44: 36600 | Q44: 13800 | R44: 50400 | AB44: 0 | AC44: 0 | AD44: 36600 | AE44: 0 | AF44: 0 | AG44: 36600 | AH44: مفصول | AI44: =نوفمبر!AI44 -> للمراجعة مع المتحصل
A45: =نوفمبر!A45 -> أحمد صالح | B45: =نوفمبر!B45 -> 0 | C45: =نوفمبر!C45 -> 0 | D45: 0 | E45: =نوفمبر!E45 -> 2 | F45: =نوفمبر!F45 -> 0 | G45: 0 | H45: =نوفمبر!AC45 -> 0 | I45: =نوفمبر!AD45 -> 0 | J45: =ROUND((نوفمبر!AE45+نوفمبر!AF45)/100,0)*100 -> 0 | K45: 0 | L45: 0 | M45: 0 | N45: 0 | O45: 0 | P45: 0 | Q45: 0 | R45: 0 | AB45: 0 | AC45: 0 | AD45: 0 | AE45: 0 | AF45: 0 | AG45: 0 | AH45: تم السداد أو ليست عليه إلتزامات | AI45: =نوفمبر!AI45 -> للمراجعة مع المتحصل
A46: =نوفمبر!A46 -> محجوب محمد صالح | B46: =نوفمبر!B46 -> 0 | C46: =نوفمبر!C46 -> 0 | D46: 0 | E46: =نوفمبر!E46 -> 3 | F46: =نوفمبر!F46 -> 0 | G46: 0 | H46: =نوفمبر!AC46 -> 0 | I46: =نوفمبر!AD46 -> 0 | J46: =ROUND((نوفمبر!AE46+نوفمبر!AF46)/100,0)*100 -> 0 | K46: 0 | L46: 0 | M46: 0 | N46: 0 | O46: 0 | P46: 0 | Q46: 0 | R46: 0 | AB46: 0 | AC46: 0 | AD46: 0 | AE46: 0 | AF46: 0 | AG46: 0 | AH46: تم السداد أو ليست عليه إلتزامات | AI46: =نوفمبر!AI46 -> للمراجعة مع المتحصل
A47: =نوفمبر!A47 -> عادل عبدالله | B47: =نوفمبر!B47 -> 0 | C47: =نوفمبر!C47 -> 0 | D47: 0 | E47: =نوفمبر!E47 -> 11 | F47: =نوفمبر!F47 -> 0 | G47: 0 | H47: =نوفمبر!AC47 -> 0 | I47: =نوفمبر!AD47 -> 0 | J47: =ROUND((نوفمبر!AE47+نوفمبر!AF47)/100,0)*100 -> 0 | K47: 0 | L47: 0 | M47: 0 | N47: 0 | O47: 0 | P47: 0 | Q47: 0 | R47: 0 | AB47: 0 | AC47: 0 | AD47: 0 | AE47: 0 | AF47: 0 | AG47: 0 | AH47: تم السداد أو ليست عليه إلتزامات | AI47: =نوفمبر!AI47 -> للمراجعة مع المتحصل
A48: =نوفمبر!A48 -> حسن الزين ودصالح | B48: =نوفمبر!B48 -> 0 | C48: =نوفمبر!C48 -> 0 | D48: 0 | E48: =نوفمبر!E48 -> 2 | F48: =نوفمبر!F48 -> 0 | G48: 0 | H48: =نوفمبر!AC48 -> 0 | I48: =نوفمبر!AD48 -> 0 | J48: =ROUND((نوفمبر!AE48+نوفمبر!AF48)/100,0)*100 -> 0 | K48: 0 | L48: 0 | M48: 0 | N48: 0 | O48: 0 | P48: 0 | Q48: 0 | R48: 0 | AB48: 0 | AC48: 0 | AD48: 0 | AE48: 0 | AF48: 0 | AG48: 0 | AH48: تم السداد أو ليست عليه إلتزامات | AI48: =نوفمبر!AI48 -> للمراجعة مع المتحصل
A49: =نوفمبر!A49 -> أحمد محجوب | B49: =نوفمبر!B49 -> 0 | C49: =نوفمبر!C49 -> 0 | D49: 0 | E49: =نوفمبر!E49 -> 1 | F49: =نوفمبر!F49 -> 0 | G49: 0 | H49: =نوفمبر!AC49 -> 0 | I49: =نوفمبر!AD49 -> 0 | J49: =ROUND((نوفمبر!AE49+نوفمبر!AF49)/100,0)*100 -> 0 | K49: 0 | L49: 0 | M49: 0 | N49: 0 | O49: 0 | P49: 0 | Q49: 0 | R49: 0 | AB49: 0 | AC49: 0 | AD49: 0 | AE49: 0 | AF49: 0 | AG49: 0 | AH49: تم السداد أو ليست عليه إلتزامات | AI49: =نوفمبر!AI49 -> للمراجعة مع المتحصل
A50: =نوفمبر!A50 -> راشد ودحجه | B50: =نوفمبر!B50 -> 0 | C50: =نوفمبر!C50 -> 0 | D50: 0 | E50: =نوفمبر!E50 -> 0 | F50: =نوفمبر!F50 -> 0 | G50: 0 | H50: =نوفمبر!AC50 -> 0 | I50: =نوفمبر!AD50 -> 0 | J50: =ROUND((نوفمبر!AE50+نوفمبر!AF50)/100,0)*100 -> 0 | K50: 0 | L50: 0 | M50: 0 | N50: 0 | O50: 0 | P50: 0 | Q50: 0 | R50: 0 | AB50: 0 | AC50: 0 | AD50: 0 | AE50: 0 | AF50: 0 | AG50: 0 | AH50: تم السداد أو ليست عليه إلتزامات | AI50: =نوفمبر!AI50 -> للمراجعة مع المتحصل
A51: =نوفمبر!A51 -> محمد صلاح | B51: =نوفمبر!B51 -> 0 | C51: =نوفمبر!C51 -> 0 | D51: 0 | E51: =نوفمبر!E51 -> 0 | F51: =نوفمبر!F51 -> 0 | G51: 0 | H51: =نوفمبر!AC51 -> 0 | I51: =نوفمبر!AD51 -> 0 | J51: =ROUND((نوفمبر!AE51+نوفمبر!AF51)/100,0)*100 -> 0 | K51: 0 | L51: 0 | M51: 0 | N51: 0 | O51: 0 | P51: 0 | Q51: 0 | R51: 0 | AB51: 0 | AC51: 0 | AD51: 0 | AE51: 0 | AF51: 0 | AG51: 0 | AH51: تم السداد أو ليست عليه إلتزامات | AI51: =نوفمبر!AI51 -> للمراجعة مع المتحصل
A52: =نوفمبر!A52 -> الفاضل محمدعلي | B52: =نوفمبر!B52 -> 0 | C52: =نوفمبر!C52 -> 0 | D52: 0 | E52: =نوفمبر!E52 -> 0 | F52: =نوفمبر!F52 -> 0 | G52: 0 | H52: =نوفمبر!AC52 -> 0 | I52: =نوفمبر!AD52 -> 0 | J52: =ROUND((نوفمبر!AE52+نوفمبر!AF52)/100,0)*100 -> 0 | K52: 0 | L52: 0 | M52: 0 | N52: 0 | O52: 0 | P52: 0 | Q52: 0 | R52: 0 | AB52: 0 | AC52: 0 | AD52: 0 | AE52: 0 | AF52: 0 | AG52: 0 | AH52: تم السداد أو ليست عليه إلتزامات | AI52: =نوفمبر!AI52 -> للمراجعة مع المتحصل | AK52: الإجمالي | AM52: =SUM(AM3:AM51) -> 18000
A53: =نوفمبر!A53 -> سعاد ودحجه | B53: =نوفمبر!B53 -> 0 | C53: =نوفمبر!C53 -> 0 | D53: 0 | E53: =نوفمبر!E53 -> 2 | F53: =نوفمبر!F53 -> 0 | G53: 0 | H53: =نوفمبر!AC53 -> 0 | I53: =نوفمبر!AD53 -> 0 | J53: =ROUND((نوفمبر!AE53+نوفمبر!AF53)/100,0)*100 -> 0 | K53: 0 | L53: 0 | M53: 0 | N53: 0 | O53: 0 | P53: 0 | Q53: 0 | R53: 0 | AB53: 0 | AC53: 0 | AD53: 0 | AE53: 0 | AF53: 0 | AG53: 0 | AH53: تم السداد أو ليست عليه إلتزامات | AI53: =نوفمبر!AI53 -> للمراجعة مع المتحصل
A54: =نوفمبر!A54 -> أحمد الفقير | B54: =نوفمبر!B54 -> 0 | C54: =نوفمبر!C54 -> 0 | D54: 0 | E54: =نوفمبر!E54 -> 2 | F54: =نوفمبر!F54 -> 0 | G54: 0 | H54: =نوفمبر!AC54 -> 0 | I54: =نوفمبر!AD54 -> 0 | J54: =ROUND((نوفمبر!AE54+نوفمبر!AF54)/100,0)*100 -> 0 | K54: 0 | L54: 0 | M54: 0 | N54: 0 | O54: 0 | P54: 0 | Q54: 0 | R54: 0 | AB54: 0 | AC54: 0 | AD54: 0 | AE54: 0 | AF54: 0 | AG54: 0 | AH54: تم السداد أو ليست عليه إلتزامات | AI54: =نوفمبر!AI54 -> للمراجعة مع المتحصل
A55: =نوفمبر!A55 -> عبدالقادر خالد محمدعلي الفقير | B55: =نوفمبر!B55 -> 0 | C55: =نوفمبر!C55 -> 0 | D55: 0 | E55: =نوفمبر!E55 -> 3 | F55: =نوفمبر!F55 -> 0 | G55: 0 | H55: =نوفمبر!AC55 -> 0 | I55: =نوفمبر!AD55 -> 0 | J55: =ROUND((نوفمبر!AE55+نوفمبر!AF55)/100,0)*100 -> 0 | K55: 0 | L55: 0 | M55: 0 | N55: 0 | O55: 0 | P55: 0 | Q55: 0 | R55: 0 | AB55: 0 | AC55: 0 | AD55: 0 | AE55: 0 | AF55: 0 | AG55: 0 | AH55: تم السداد أو ليست عليه إلتزامات | AI55: =نوفمبر!AI55 -> للمراجعة مع المتحصل
A56: =نوفمبر!A56 -> وليد الفقير | B56: =نوفمبر!B56 -> 0 | C56: =نوفمبر!C56 -> 0 | D56: 0 | E56: =نوفمبر!E56 -> 0 | F56: =نوفمبر!F56 -> 0 | G56: 0 | H56: =نوفمبر!AC56 -> 0 | I56: =نوفمبر!AD56 -> 0 | J56: =ROUND((نوفمبر!AE56+نوفمبر!AF56)/100,0)*100 -> 0 | K56: 0 | L56: 0 | M56: 0 | N56: 0 | O56: 0 | P56: 0 | Q56: 0 | R56: 0 | AB56: 0 | AC56: 0 | AD56: 0 | AE56: 0 | AF56: 0 | AG56: 0 | AH56: تم السداد أو ليست عليه إلتزامات | AI56: =نوفمبر!AI56 -> للمراجعة مع المتحصل
A57: =نوفمبر!A57 -> خالد محمدعلي الفقير | B57: =نوفمبر!B57 -> 0 | C57: =نوفمبر!C57 -> 0 | D57: 0 | E57: =نوفمبر!E57 -> 3 | F57: =نوفمبر!F57 -> 0 | G57: 0 | H57: =نوفمبر!AC57 -> 0 | I57: =نوفمبر!AD57 -> 0 | J57: =ROUND((نوفمبر!AE57+نوفمبر!AF57)/100,0)*100 -> 0 | K57: 0 | L57: 0 | M57: 0 | N57: 0 | O57: 0 | P57: 0 | Q57: 0 | R57: 0 | AB57: 0 | AC57: 0 | AD57: 0 | AE57: 0 | AF57: 0 | AG57: 0 | AH57: تم السداد أو ليست عليه إلتزامات | AI57: =نوفمبر!AI57 -> للمراجعة مع المتحصل
A58: =نوفمبر!A58 -> مصعب خالد | B58: =نوفمبر!B58 -> 0 | C58: =نوفمبر!C58 -> 0 | D58: 0 | E58: =نوفمبر!E58 -> 4 | F58: =نوفمبر!F58 -> 10 | G58: 15000 | H58: =نوفمبر!AC58 -> 0 | I58: =نوفمبر!AD58 -> 46000 | J58: =ROUND((نوفمبر!AE58+نوفمبر!AF58)/100,0)*100 -> 23000 | K58: 69000 | L58: 0 | M58: 15000 | N58: 15000 | O58: 0 | P58: 61000 | Q58: 23000 | R58: 84000 | AB58: 0 | AC58: 0 | AD58: 61000 | AE58: 0 | AF58: 0 | AG58: 61000 | AH58: مفصول | AI58: =نوفمبر!AI58 -> للمراجعة مع المتحصل
A59: =نوفمبر!A59 -> عماد إبراهيم السيد | B59: =نوفمبر!B59 -> 0 | C59: =نوفمبر!C59 -> 0 | D59: 0 | E59: =نوفمبر!E59 -> 1 | F59: =نوفمبر!F59 -> 0 | G59: 0 | H59: =نوفمبر!AC59 -> 0 | I59: =نوفمبر!AD59 -> 0 | J59: =ROUND((نوفمبر!AE59+نوفمبر!AF59)/100,0)*100 -> 0 | K59: 0 | L59: 0 | M59: 0 | N59: 0 | O59: 0 | P59: 0 | Q59: 0 | R59: 0 | AB59: 0 | AC59: 0 | AD59: 0 | AE59: 0 | AF59: 0 | AG59: 0 | AH59: تم السداد أو ليست عليه إلتزامات | AI59: =نوفمبر!AI59 -> للمراجعة مع المتحصل
A60: =نوفمبر!A60 -> العاقب الزين | B60: =نوفمبر!B60 -> مأهول | C60: =نوفمبر!C60 -> 0 | D60: 5000 | E60: =نوفمبر!E60 -> 0 | F60: =نوفمبر!F60 -> 0 | G60: 5000 | H60: =نوفمبر!AC60 -> 20000 | I60: =نوفمبر!AD60 -> 0 | J60: =ROUND((نوفمبر!AE60+نوفمبر!AF60)/100,0)*100 -> 10000 | K60: 30000 | L60: 5000 | M60: 0 | N60: 5000 | O60: 25000 | P60: 0 | Q60: 10000 | R60: 35000 | AB60: 0 | AC60: 25000 | AD60: 0 | AE60: 0 | AF60: 0 | AG60: 25000 | AH60: مفصول | AI60: =نوفمبر!AI60 -> للمراجعة مع المتحصل
A61: =نوفمبر!A61 -> 0 | B61: =نوفمبر!B61 -> 0 | C61: =نوفمبر!C61 -> 0 | D61: 0 | E61: =نوفمبر!E61 -> 0 | F61: =نوفمبر!F61 -> 0 | G61: 0 | H61: =نوفمبر!AC61 -> 0 | I61: =نوفمبر!AD61 -> 0 | J61: =ROUND((نوفمبر!AE61+نوفمبر!AF61)/100,0)*100 -> 0 | K61: 0 | L61: 0 | M61: 0 | N61: 0 | O61: 0 | P61: 0 | Q61: 0 | R61: 0 | AB61: 0 | AC61: 0 | AD61: 0 | AE61: 0 | AF61: 0 | AG61: 0 | AH61: تم السداد أو ليست عليه إلتزامات | AI61: =نوفمبر!AI61 -> 0
A62: =نوفمبر!A62 -> 0 | B62: =نوفمبر!B62 -> 0 | C62: =نوفمبر!C62 -> 0 | D62: 0 | E62: =نوفمبر!E62 -> 0 | F62: =نوفمبر!F62 -> 0 | G62: 0 | H62: =نوفمبر!AC62 -> 0 | I62: =نوفمبر!AD62 -> 0 | J62: =ROUND((نوفمبر!AE62+نوفمبر!AF62)/100,0)*100 -> 0 | K62: 0 | L62: 0 | M62: 0 | N62: 0 | O62: 0 | P62: 0 | Q62: 0 | R62: 0 | AB62: 0 | AC62: 0 | AD62: 0 | AE62: 0 | AF62: 0 | AG62: 0 | AH62: تم السداد أو ليست عليه إلتزامات | AI62: =نوفمبر!AI62 -> 0
A63: =نوفمبر!A63 -> 0 | B63: =نوفمبر!B63 -> 0 | C63: =نوفمبر!C63 -> 0 | D63: 0 | E63: =نوفمبر!E63 -> 0 | F63: =نوفمبر!F63 -> 0 | G63: 0 | H63: =نوفمبر!AC63 -> 0 | I63: =نوفمبر!AD63 -> 0 | J63: =ROUND((نوفمبر!AE63+نوفمبر!AF63)/100,0)*100 -> 0 | K63: 0 | L63: 0 | M63: 0 | N63: 0 | O63: 0 | P63: 0 | Q63: 0 | R63: 0 | AB63: 0 | AC63: 0 | AD63: 0 | AE63: 0 | AF63: 0 | AG63: 0 | AH63: تم السداد أو ليست عليه إلتزامات | AI63: =نوفمبر!AI63 -> 0
A64: =نوفمبر!A64 -> 0 | B64: =نوفمبر!B64 -> 0 | C64: =نوفمبر!C64 -> 0 | D64: 0 | E64: =نوفمبر!E64 -> 0 | F64: =نوفمبر!F64 -> 0 | G64: 0 | H64: =نوفمبر!AC64 -> 0 | I64: =نوفمبر!AD64 -> 0 | J64: =ROUND((نوفمبر!AE64+نوفمبر!AF64)/100,0)*100 -> 0 | K64: 0 | L64: 0 | M64: 0 | N64: 0 | O64: 0 | P64: 0 | Q64: 0 | R64: 0 | AB64: 0 | AC64: 0 | AD64: 0 | AE64: 0 | AF64: 0 | AG64: 0 | AH64: تم السداد أو ليست عليه إلتزامات | AI64: =نوفمبر!AI64 -> 0
A65: =نوفمبر!A65 -> 0 | B65: =نوفمبر!B65 -> 0 | C65: =نوفمبر!C65 -> 0 | D65: 0 | E65: =نوفمبر!E65 -> 0 | F65: =نوفمبر!F65 -> 0 | G65: 0 | H65: =نوفمبر!AC65 -> 0 | I65: =نوفمبر!AD65 -> 0 | J65: =ROUND((نوفمبر!AE65+نوفمبر!AF65)/100,0)*100 -> 0 | K65: 0 | L65: 0 | M65: 0 | N65: 0 | O65: 0 | P65: 0 | Q65: 0 | R65: 0 | AB65: 0 | AC65: 0 | AD65: 0 | AE65: 0 | AF65: 0 | AG65: 0 | AH65: تم السداد أو ليست عليه إلتزامات | AI65: =نوفمبر!AI65 -> 0
A66: =نوفمبر!A66 -> 0 | B66: =نوفمبر!B66 -> 0 | C66: =نوفمبر!C66 -> 0 | D66: 0 | E66: =نوفمبر!E66 -> 0 | F66: =نوفمبر!F66 -> 0 | G66: 0 | H66: =نوفمبر!AC66 -> 0 | I66: =نوفمبر!AD66 -> 0 | J66: =ROUND((نوفمبر!AE66+نوفمبر!AF66)/100,0)*100 -> 0 | K66: 0 | L66: 0 | M66: 0 | N66: 0 | O66: 0 | P66: 0 | Q66: 0 | R66: 0 | AB66: 0 | AC66: 0 | AD66: 0 | AE66: 0 | AF66: 0 | AG66: 0 | AH66: تم السداد أو ليست عليه إلتزامات | AI66: =نوفمبر!AI66 -> 0
A67: =نوفمبر!A67 -> 0 | B67: =نوفمبر!B67 -> 0 | C67: =نوفمبر!C67 -> 0 | D67: 0 | E67: =نوفمبر!E67 -> 0 | F67: =نوفمبر!F67 -> 0 | G67: 0 | H67: =نوفمبر!AC67 -> 0 | I67: =نوفمبر!AD67 -> 0 | J67: =ROUND((نوفمبر!AE67+نوفمبر!AF67)/100,0)*100 -> 0 | K67: 0 | L67: 0 | M67: 0 | N67: 0 | O67: 0 | P67: 0 | Q67: 0 | R67: 0 | AB67: 0 | AC67: 0 | AD67: 0 | AE67: 0 | AF67: =(IF(SUM(AC67:AE67)>0,IF(AB67<0,0,ROUND((SUM(AC67:AE67)/2)/100,0)*100),0)) -> 0 | AG67: 0 | AH67: تم السداد أو ليست عليه إلتزامات | AI67: =نوفمبر!AI67 -> 0
A68: =نوفمبر!A68 -> 0 | B68: =نوفمبر!B68 -> 0 | C68: =نوفمبر!C68 -> 0 | D68: =IF(B68="مأهول",5000,0) -> 0 | E68: =نوفمبر!E68 -> 0 | F68: =نوفمبر!F68 -> 0 | G68: =D68+(F68*1500) -> 0 | H68: =نوفمبر!AC68 -> 0 | I68: =نوفمبر!AD68 -> 0 | J68: =ROUND((نوفمبر!AE68+نوفمبر!AF68)/100,0)*100 -> 0 | K68: =ROUND((SUM(H68:J68))/100,0)*100 -> 0 | L68: =D68 -> 0 | M68: =(F68*1500) -> 0 | N68: =SUM(L68:M68) -> 0 | O68: =ROUND((H68+L68)/100,0)*100 -> 0 | P68: 0 | Q68: =J68 -> 0 | R68: =ROUND((SUM(O68:Q68))/100,0)*100 -> 0 | AB68: =SUM(V68:AA68) -> 0 | AC68: =ROUND((O68-V68)/100,0)*100 -> 0 | AD68: 0 | AE68: =ROUND((Q68-Z68)/100,0)*100 -> 0 | AF68: 0 | AG68: =ROUND(SUM(AC68:AF68)/50,0)*50 -> 0 | AH68: =IF(A68<>"",_xlfn.IFS(AG68>(G68*3),"مفصول",AG68=0,"تم السداد أو ليست عليه إلتزامات",AG68<0,"له باقي طرفنا",0<AG68>(G68*3),"لم يتم السداد"),"") -> تم السداد أو ليست عليه إلتزامات | AI68: =نوفمبر!AI68 -> 0
A69: =نوفمبر!A69 -> 0 | B69: =نوفمبر!B69 -> 0 | C69: =نوفمبر!C69 -> 0 | D69: =IF(B69="مأهول",5000,0) -> 0 | E69: =نوفمبر!E69 -> 0 | F69: =نوفمبر!F69 -> 0 | G69: 0 | H69: =نوفمبر!AC69 -> 0 | I69: =نوفمبر!AD69 -> 0 | J69: =ROUND((نوفمبر!AE69+نوفمبر!AF69)/100,0)*100 -> 0 | K69: =ROUND((SUM(H69:J69))/100,0)*100 -> 0 | L69: =D69 -> 0 | M69: 0 | N69: =SUM(L69:M69) -> 0 | O69: 0 | P69: 0 | Q69: =J69 -> 0 | R69: =ROUND((SUM(O69:Q69))/100,0)*100 -> 0 | AB69: =SUM(V69:AA69) -> 0 | AC69: 0 | AD69: 0 | AE69: =ROUND((Q69-Z69)/100,0)*100 -> 0 | AF69: 0 | AG69: =ROUND(SUM(AC69:AF69)/50,0)*50 -> 0 | AH69: =IF(A69<>"",_xlfn.IFS(AG69>(G69*3),"مفصول",AG69=0,"تم السداد أو ليست عليه إلتزامات",AG69<0,"له باقي طرفنا",0<AG69>(G69*3),"لم يتم السداد"),"") -> تم السداد أو ليست عليه إلتزامات | AI69: =نوفمبر!AI69 -> 0
A70: =نوفمبر!A70 -> 0 | B70: =نوفمبر!B70 -> 0 | C70: =نوفمبر!C70 -> 0 | D70: =IF(B70="مأهول",5000,0) -> 0 | E70: =نوفمبر!E70 -> 0 | F70: =نوفمبر!F70 -> 0 | G70: 0 | H70: =نوفمبر!AC70 -> 0 | I70: =نوفمبر!AD70 -> 0 | J70: =ROUND((نوفمبر!AE70+نوفمبر!AF70)/100,0)*100 -> 0 | K70: =ROUND((SUM(H70:J70))/100,0)*100 -> 0 | L70: =D70 -> 0 | M70: 0 | N70: =SUM(L70:M70) -> 0 | O70: 0 | P70: 0 | Q70: =J70 -> 0 | R70: =ROUND((SUM(O70:Q70))/100,0)*100 -> 0 | AB70: =SUM(V70:AA70) -> 0 | AC70: 0 | AD70: 0 | AE70: =ROUND((Q70-Z70)/100,0)*100 -> 0 | AF70: 0 | AG70: =ROUND(SUM(AC70:AF70)/50,0)*50 -> 0 | AH70: =IF(A70<>"",_xlfn.IFS(AG70>(G70*3),"مفصول",AG70=0,"تم السداد أو ليست عليه إلتزامات",AG70<0,"له باقي طرفنا",0<AG70>(G70*3),"لم يتم السداد"),"") -> تم السداد أو ليست عليه إلتزامات | AI70: =نوفمبر!AI70 -> 0
A71: =نوفمبر!A71 -> 0 | B71: =نوفمبر!B71 -> 0 | C71: =نوفمبر!C71 -> 0 | D71: =IF(B71="مأهول",5000,0) -> 0 | E71: =نوفمبر!E71 -> 0 | F71: =نوفمبر!F71 -> 0 | G71: 0 | H71: =نوفمبر!AC71 -> 0 | I71: =نوفمبر!AD71 -> 0 | J71: =ROUND((نوفمبر!AE71+نوفمبر!AF71)/100,0)*100 -> 0 | K71: =ROUND((SUM(H71:J71))/100,0)*100 -> 0 | L71: =D71 -> 0 | M71: 0 | N71: =SUM(L71:M71) -> 0 | O71: 0 | P71: 0 | Q71: =J71 -> 0 | R71: =ROUND((SUM(O71:Q71))/100,0)*100 -> 0 | AB71: =SUM(V71:AA71) -> 0 | AC71: 0 | AD71: 0 | AE71: =ROUND((Q71-Z71)/100,0)*100 -> 0 | AF71: 0 | AG71: =ROUND(SUM(AC71:AF71)/50,0)*50 -> 0 | AH71: =IF(A71<>"",_xlfn.IFS(AG71>(G71*3),"مفصول",AG71=0,"تم السداد أو ليست عليه إلتزامات",AG71<0,"له باقي طرفنا",0<AG71>(G71*3),"لم يتم السداد"),"") -> تم السداد أو ليست عليه إلتزامات | AI71: =نوفمبر!AI71 -> 0
A72: =نوفمبر!A72 -> 0 | B72: =نوفمبر!B72 -> 0 | C72: =نوفمبر!C72 -> 0 | D72: =IF(B72="مأهول",5000,0) -> 0 | E72: =نوفمبر!E72 -> 0 | F72: =نوفمبر!F72 -> 0 | G72: 0 | H72: =نوفمبر!AC72 -> 0 | I72: =نوفمبر!AD72 -> 0 | J72: =ROUND((نوفمبر!AE72+نوفمبر!AF72)/100,0)*100 -> 0 | K72: =ROUND((SUM(H72:J72))/100,0)*100 -> 0 | L72: =D72 -> 0 | M72: 0 | N72: =SUM(L72:M72) -> 0 | O72: 0 | P72: 0 | Q72: =J72 -> 0 | R72: =ROUND((SUM(O72:Q72))/100,0)*100 -> 0 | AB72: =SUM(V72:AA72) -> 0 | AC72: 0 | AD72: 0 | AE72: =ROUND((Q72-Z72)/100,0)*100 -> 0 | AF72: 0 | AG72: =ROUND(SUM(AC72:AF72)/50,0)*50 -> 0 | AH72: =IF(A72<>"",_xlfn.IFS(AG72>(G72*3),"مفصول",AG72=0,"تم السداد أو ليست عليه إلتزامات",AG72<0,"له باقي طرفنا",0<AG72>(G72*3),"لم يتم السداد"),"") -> تم السداد أو ليست عليه إلتزامات | AI72: =نوفمبر!AI72 -> 0
A73: الإجمالي | D73: =SUM(D3:D72) -> 120000 | E73: =SUM(E3:E72) -> 77 | F73: =SUM(F3:F72) -> 24 | G73: =SUM(G3:G72) -> 156000 | H73: =SUM(H3:H72) -> 70000 | I73: =SUM(I3:I72) -> 20600 | J73: 46800 | K73: 137400 | L73: 120000 | M73: 36000 | N73: 156000 | O73: 190000 | P73: 56600 | Q73: 46800 | R73: 293400 | V73: =SUM(V3:V72) -> 114000 | W73: =SUM(W3:W72) -> 12000 | X73: 0 | Y73: 0 | Z73: =SUM(Z3:Z72) -> 0 | AA73: 0 | AB73: =SUM(AB3:AB72) -> 126000 | AC73: 76000 | AD73: =SUM(AD3:AD72) -> 44600 | AE73: =SUM(AE3:AE72) -> 0 | AF73: 0 | AG73: 120600
A76: البيان | B76: المبلغ | C76: ملحوظات
A77: إجمالي التحصيل الشهري | B77: =AB73 -> 126000
A78: مديونية سابقة على المتحصل | B78: =نوفمبر!B82 -> -81400
A79: إستلام أمين الصندوق | B79: =AM52 -> 18000
A80: المطلوب من المتحصل | B80: =(B77+B78)-B79 -> 26600
A81: السداد | B81: 30600 | C81: سداد عبر بنكك بتاريخ 2026/1/5م.
A82: الباقي | B82: =B80-B81 -> -4000
A83: مأهول
A84: شتول
A85: جديد
A86: مغلق
A87: مفصول
A88: معفي

Sheet يناير
A1: البيانات الشخصية | G1: الربط | H1: المتأخرات حتى نهاية ديسمبر 2025م | L1: جاري يناير 2026م | O1: المطلوب حتى نهاية يناير 2026م | S1: تفاصيل السداد خلال يناير 2026م | AC1: المتأخرات حتى نهاية يناير 2026م | AH1: موقف السداد | AI1: ملاحظات | AK1: إستلام أمين الصندوق
A2: الإسم | B2: المنزل | C2: الهاتف | D2: السكني | E2: شتول الربط | F2: شتول خ. الربط | G2: الشهري | H2: السكني | I2: الشتول | J2: غرامات | K2: الإجمالي | L2: السكني | M2: الشتول | N2: الإجمالي | O2: السكني | P2: الشتول | Q2: غرامات | R2: الإجمالي | S2: التاريخ | T2: رقم الإيصال | U2: رقم الدفتر | V2: السكني | W2: الشتول | X2: توصيل | Y2: مباني | Z2: غرامات | AA2: أخرى | AB2: الإجمالي | AC2: السكني | AD2: الشتول | AE2: الغرامات | AF2: غرامة تأخير سداد | AG2: الإجمالي | AK2: التاريخ | AL2: الإسم | AM2: المبلغ | AN2: ملحوظات
A3: =ديسمبر!A3 -> منزل المرحوم عبدالله محمد صالح (ودحجه) | B3: =ديسمبر!B3 -> مأهول | C3: =ديسمبر!C3 -> 913223640 | D3: =IF(B3="مأهول",5000,0) -> 5000 | E3: =ديسمبر!E3 -> 2 | F3: =ديسمبر!F3 -> 0 | G3: =D3+(F3*1500) -> 5000 | H3: =ديسمبر!AC3 -> 0 | I3: =ديسمبر!AD3 -> 0 | J3: =ROUND((ديسمبر!AE3+ديسمبر!AF3)/100,0)*100 -> 0 | K3: =ROUND((SUM(H3:J3))/100,0)*100 -> 0 | L3: =D3 -> 5000 | M3: =(F3*1500) -> 0 | N3: =SUM(L3:M3) -> 5000 | O3: =ROUND((H3+L3)/100,0)*100 -> 5000 | P3: =ROUND((I3+M3)/100,0)*100 -> 0 | Q3: =J3 -> 0 | R3: =ROUND((SUM(O3:Q3))/100,0)*100 -> 5000 | V3: 0 | AB3: =SUM(V3:AA3) -> 0 | AC3: =ROUND((O3-V3)/100,0)*100 -> 5000 | AD3: =ROUND((P3-W3)/100,0)*100 -> 0 | AE3: =ROUND((Q3-Z3)/100,0)*100 -> 0 | AF3: =(IF(SUM(AC3:AE3)>0,IF(AB3<0,0,ROUND((SUM(AC3:AE3)/2)/100,0)*100),0)) -> 2500 | AG3: =ROUND(SUM(AC3:AF3)/100,0)*100 -> 7500 | AH3: =IF(A3<>"",_xlfn.IFS(AG3>(G3*3),"مفصول",AG3=0,"تم السداد أو ليست عليه إلتزامات",AG3<0,"له باقي طرفنا",0<AG3>(G3*3),"لم يتم السداد"),"") -> لم يتم السداد | AI3: =ديسمبر!AI3 -> سداد حتى نهاية ديسمبر 2025م.
A4: =ديسمبر!A4 -> مبارك عبدالله محمد صالح | B4: =ديسمبر!B4 -> مأهول | C4: =ديسمبر!C4 -> 912572291 | D4: =IF(B4="مأهول",5000,0) -> 5000 | E4: =ديسمبر!E4 -> 1 | F4: =ديسمبر!F4 -> 0 | G4: =D4+(F4*1500) -> 5000 | H4: =ديسمبر!AC4 -> 4000 | I4: =ديسمبر!AD4 -> -4000 | J4: =ROUND((ديسمبر!AE4+ديسمبر!AF4)/100,0)*100 -> 0 | K4: =ROUND((SUM(H4:J4))/100,0)*100 -> 0 | L4: =D4 -> 5000 | M4: =(F4*1500) -> 0 | N4: =SUM(L4:M4) -> 5000 | O4: =ROUND((H4+L4)/100,0)*100 -> 9000 | P4: -4000 | Q4: =J4 -> 0 | R4: =ROUND((SUM(O4:Q4))/100,0)*100 -> 5000 | AB4: =SUM(V4:AA4) -> 0 | AC4: =ROUND((O4-V4)/100,0)*100 -> 9000 | AD4: -4000 | AE4: =ROUND((Q4-Z4)/100,0)*100 -> 0 | AF4: 2500 | AG4: =ROUND(SUM(AC4:AF4)/50,0)*50 -> 7500 | AH4: =IF(A4<>"",_xlfn.IFS(AG4>(G4*3),"مفصول",AG4=0,"تم السداد أو ليست عليه إلتزامات",AG4<0,"له باقي طرفنا",0<AG4>(G4*3),"لم يتم السداد"),"") -> لم يتم السداد | AI4: =ديسمبر!AI4 -> سداد حتى نهاية ديسمبر 2025م.
A5: =ديسمبر!A5 -> خالد عبدالله محمد صالح | B5: =ديسمبر!B5 -> مأهول | C5: =ديسمبر!C5 -> 916713241 | D5: 5000 | E5: =ديسمبر!E5 -> 2 | F5: =ديسمبر!F5 -> 0 | G5: 5000 | H5: =ديسمبر!AC5 -> 4000 | I5: =ديسمبر!AD5 -> -4000 | J5: =ROUND((ديسمبر!AE5+ديسمبر!AF5)/100,0)*100 -> 0 | K5: 0 | L5: 5000 | M5: 0 | N5: 5000 | O5: 9000 | P5: -4000 | Q5: 0 | R5: 5000 | AB5: 0 | AC5: 9000 | AD5: -4000 | AE5: 0 | AF5: 2500 | AG5: 7500 | AH5: لم يتم السداد | AI5: =ديسمبر!AI5 -> سداد حتى نهاية ديسمبر 2025م.
A6: =ديسمبر!A6 -> الفاضل عبدالله محمد صالح | B6: =ديسمبر!B6 -> مغلق | C6: =ديسمبر!C6 -> 917924080 | D6: 0 | E6: =ديسمبر!E6 -> 1 | F6: =ديسمبر!F6 -> 0 | G6: 0 | H6: =ديسمبر!AC6 -> 0 | I6: =ديسمبر!AD6 -> 0 | J6: =ROUND((ديسمبر!AE6+ديسمبر!AF6)/100,0)*100 -> 0 | K6: 0 | L6: 0 | M6: 0 | N6: 0 | O6: 0 | P6: 0 | Q6: 0 | R6: 0 | AB6: 0 | AC6: 0 | AD6: 0 | AE6: 0 | AF6: 0 | AG6: 0 | AH6: تم السداد أو ليست عليه إلتزامات | AI6: =ديسمبر!AI6 -> سداد حتى نهاية ديسمبر 2025م.
A7: =ديسمبر!A7 -> بكري عبدالرحمن ود صالح | B7: =ديسمبر!B7 -> مأهول | C7: =ديسمبر!C7 -> 126793356 | D7: 5000 | E7: =ديسمبر!E7 -> 1 | F7: =ديسمبر!F7 -> 0 | G7: 5000 | H7: =ديسمبر!AC7 -> 2000 | I7: =ديسمبر!AD7 -> -2000 | J7: =ROUND((ديسمبر!AE7+ديسمبر!AF7)/100,0)*100 -> 0 | K7: 0 | L7: 5000 | M7: 0 | N7: 5000 | O7: 7000 | P7: -2000 | Q7: 0 | R7: 5000 | AB7: 0 | AC7: 7000 | AD7: -2000 | AE7: 0 | AF7: 2500 | AG7: 7500 | AH7: لم يتم السداد | AI7: =ديسمبر!AI7 -> سداد حتى نهاية ديسمبر 2025م.
A8: =ديسمبر!A8 -> جمال عبدالرحمن ود صالح | B8: =ديسمبر!B8 -> مأهول | C8: =ديسمبر!C8 -> 124317243 | D8: 5000 | E8: =ديسمبر!E8 -> 0 | F8: =ديسمبر!F8 -> 0 | G8: 5000 | H8: =ديسمبر!AC8 -> 0 | I8: =ديسمبر!AD8 -> 0 | J8: =ROUND((ديسمبر!AE8+ديسمبر!AF8)/100,0)*100 -> 0 | K8: 0 | L8: 5000 | M8: 0 | N8: 5000 | O8: 5000 | P8: 0 | Q8: 0 | R8: 5000 | AB8: 0 | AC8: 5000 | AD8: 0 | AE8: 0 | AF8: 2500 | AG8: 7500 | AH8: لم يتم السداد | AI8: =ديسمبر!AI8 -> سداد حتى نهاية ديسمبر 2025م.
A9: =ديسمبر!A9 -> صلاح عبدالرحمن ود صالح | B9: =ديسمبر!B9 -> مأهول | C9: =ديسمبر!C9 -> 121347090 | D9: 5000 | E9: =ديسمبر!E9 -> 2 | F9: =ديسمبر!F9 -> 0 | G9: 5000 | H9: =ديسمبر!AC9 -> 4000 | I9: =ديسمبر!AD9 -> -4000 | J9: =ROUND((ديسمبر!AE9+ديسمبر!AF9)/100,0)*100 -> 0 | K9: 0 | L9: 5000 | M9: 0 | N9: 5000 | O9: 9000 | P9: -4000 | Q9: 0 | R9: 5000 | AB9: 0 | AC9: 9000 | AD9: -4000 | AE9: 0 | AF9: 2500 | AG9: 7500 | AH9: لم يتم السداد | AI9: =ديسمبر!AI9 -> سداد حتى نهاية ديسمبر 2025م.
A10: =ديسمبر!A10 -> عبدالحي عبدالرحمن ودصالح | B10: =ديسمبر!B10 -> مأهول | C10: =ديسمبر!C10 -> 114114215 | D10: 5000 | E10: =ديسمبر!E10 -> 0 | F10: =ديسمبر!F10 -> 0 | G10: 5000 | H10: =ديسمبر!AC10 -> 0 | I10: =ديسمبر!AD10 -> 0 | J10: =ROUND((ديسمبر!AE10+ديسمبر!AF10)/100,0)*100 -> 0 | K10: 0 | L10: 5000 | M10: 0 | N10: 5000 | O10: 5000 | P10: 0 | Q10: 0 | R10: 5000 | AB10: 0 | AC10: 5000 | AD10: 0 | AE10: 0 | AF10: 2500 | AG10: 7500 | AH10: لم يتم السداد | AI10: =ديسمبر!AI10 -> سداد حتى نهاية ديسمبر 2025م.
A11: =ديسمبر!A11 -> فضل عبدالرحمن ودصالح | B11: =ديسمبر!B11 -> مأهول | C11: =ديسمبر!C11 -> 965527390 | D11: 5000 | E11: =ديسمبر!E11 -> 4 | F11: =ديسمبر!F11 -> 3 | G11: 9500 | H11: =ديسمبر!AC11 -> 0 | I11: =ديسمبر!AD11 -> 0 | J11: =ROUND((ديسمبر!AE11+ديسمبر!AF11)/100,0)*100 -> 0 | K11: 0 | L11: 5000 | M11: 4500 | N11: 9500 | O11: 5000 | P11: 4500 | Q11: 0 | R11: 9500 | AB11: 0 | AC11: 5000 | AD11: 4500 | AE11: 0 | AF11: 4800 | AG11: 14300 | AH11: لم يتم السداد | AI11: =ديسمبر!AI11 -> سداد حتى نهاية ديسمبر 2025م.
A12: =ديسمبر!A12 -> منزل المرحوم الزين ود صالح (العاقب) | B12: =ديسمبر!B12 -> مأهول | C12: =ديسمبر!C12 -> 917344140 | D12: 5000 | E12: =ديسمبر!E12 -> 1 | F12: =ديسمبر!F12 -> 0 | G12: 5000 | H12: =ديسمبر!AC12 -> 0 | I12: =ديسمبر!AD12 -> 0 | J12: =ROUND((ديسمبر!AE12+ديسمبر!AF12)/100,0)*100 -> 0 | K12: 0 | L12: 5000 | M12: 0 | N12: 5000 | O12: 5000 | P12: 0 | Q12: 0 | R12: 5000 | AB12: 0 | AC12: 5000 | AD12: 0 | AE12: 0 | AF12: 2500 | AG12: 7500 | AH12: لم يتم السداد | AI12: =ديسمبر!AI12 -> سداد حتى نهاية ديسمبر 2025م.
A13: =ديسمبر!A13 -> مهدي الزين | B13: =ديسمبر!B13 -> مأهول | C13: =ديسمبر!C13 -> 913099777 | D13: 5000 | E13: =ديسمبر!E13 -> 2 | F13: =ديسمبر!F13 -> 0 | G13: 5000 | H13: =ديسمبر!AC13 -> 4000 | I13: =ديسمبر!AD13 -> -4000 | J13: =ROUND((ديسمبر!AE13+ديسمبر!AF13)/100,0)*100 -> 0 | K13: 0 | L13: 5000 | M13: 0 | N13: 5000 | O13: 9000 | P13: -4000 | Q13: 0 | R13: 5000 | AB13: 0 | AC13: 9000 | AD13: -4000 | AE13: 0 | AF13: 2500 | AG13: 7500 | AH13: لم يتم السداد | AI13: =ديسمبر!AI13 -> سداد حتى نهاية ديسمبر 2025م.
A14: =ديسمبر!A14 -> محمد السيد | B14: =ديسمبر!B14 -> مأهول | C14: =ديسمبر!C14 -> 917636525 | D14: 5000 | E14: =ديسمبر!E14 -> 1 | F14: =ديسمبر!F14 -> 0 | G14: 5000 | H14: =ديسمبر!AC14 -> 0 | I14: =ديسمبر!AD14 -> 0 | J14: =ROUND((ديسمبر!AE14+ديسمبر!AF14)/100,0)*100 -> 0 | K14: 0 | L14: 5000 | M14: 0 | N14: 5000 | O14: 5000 | P14: 0 | Q14: 0 | R14: 5000 | AB14: 0 | AC14: 5000 | AD14: 0 | AE14: 0 | AF14: 2500 | AG14: 7500 | AH14: لم يتم السداد | AI14: =ديسمبر!AI14 -> سداد حتى نهاية ديسمبر 2025م.
A15: =ديسمبر!A15 -> هشام محمد السيد | B15: =ديسمبر!B15 -> مأهول | C15: =ديسمبر!C15 -> 915778117 | D15: 5000 | E15: =ديسمبر!E15 -> 4 | F15: =ديسمبر!F15 -> 5 | G15: 12500 | H15: =ديسمبر!AC15 -> 0 | I15: =ديسمبر!AD15 -> 0 | J15: =ROUND((ديسمبر!AE15+ديسمبر!AF15)/100,0)*100 -> 0 | K15: 0 | L15: 5000 | M15: 7500 | N15: 12500 | O15: 5000 | P15: 7500 | Q15: 0 | R15: 12500 | AB15: 0 | AC15: 5000 | AD15: 7500 | AE15: 0 | AF15: 6300 | AG15: 18800 | AH15: لم يتم السداد | AI15: =ديسمبر!AI15 -> سداد حتى نهاية ديسمبر 2025م.
A16: =ديسمبر!A16 -> عصام محمد السيد (أ) | B16: =ديسمبر!B16 -> مأهول | C16: =ديسمبر!C16 -> 915896866 | D16: 5000 | E16: =ديسمبر!E16 -> 1 | F16: =ديسمبر!F16 -> 0 | G16: 5000 | H16: =ديسمبر!AC16 -> 2000 | I16: =ديسمبر!AD16 -> -2000 | J16: =ROUND((ديسمبر!AE16+ديسمبر!AF16)/100,0)*100 -> 0 | K16: 0 | L16: 5000 | M16: 0 | N16: 5000 | O16: 7000 | P16: -2000 | Q16: 0 | R16: 5000 | AB16: 0 | AC16: 7000 | AD16: -2000 | AE16: 0 | AF16: 2500 | AG16: 7500 | AH16: لم يتم السداد | AI16: =ديسمبر!AI16 -> سداد حتى نهاية ديسمبر 2025م.
A17: =ديسمبر!A17 -> عبدالله الأنصاري | B17: =ديسمبر!B17 -> مغلق | C17: =ديسمبر!C17 -> 911101791 | D17: 0 | E17: =ديسمبر!E17 -> 2 | F17: =ديسمبر!F17 -> 0 | G17: 0 | H17: =ديسمبر!AC17 -> 0 | I17: =ديسمبر!AD17 -> 0 | J17: =ROUND((ديسمبر!AE17+ديسمبر!AF17)/100,0)*100 -> 0 | K17: 0 | L17: 0 | M17: 0 | N17: 0 | O17: 0 | P17: 0 | Q17: 0 | R17: 0 | AB17: 0 | AC17: 0 | AD17: 0 | AE17: 0 | AF17: 0 | AG17: 0 | AH17: تم السداد أو ليست عليه إلتزامات | AI17: =ديسمبر!AI17 -> سداد حتى نهاية ديسمبر 2025م.
A18: =ديسمبر!A18 -> عماد محمد سعيد | B18: =ديسمبر!B18 -> مأهول | C18: =ديسمبر!C18 -> 911113020 | D18: 5000 | E18: =ديسمبر!E18 -> 2 | F18: =ديسمبر!F18 -> 0 | G18: 5000 | H18: =ديسمبر!AC18 -> 6000 | I18: =ديسمبر!AD18 -> -6000 | J18: =ROUND((ديسمبر!AE18+ديسمبر!AF18)/100,0)*100 -> 0 | K18: 0 | L18: 5000 | M18: 0 | N18: 5000 | O18: 11000 | P18: -6000 | Q18: 0 | R18: 5000 | AB18: 0 | AC18: 11000 | AD18: -6000 | AE18: 0 | AF18: 2500 | AG18: 7500 | AH18: لم يتم السداد | AI18: =ديسمبر!AI18 -> سداد حتى نهاية ديسمبر 2025م.
A19: =ديسمبر!A19 -> ماهر محمد صالح | B19: =ديسمبر!B19 -> معفي | C19: =ديسمبر!C19 -> 962864495 | D19: 0 | E19: =ديسمبر!E19 -> 1 | F19: =ديسمبر!F19 -> 0 | G19: 0 | H19: =ديسمبر!AC19 -> 0 | I19: =ديسمبر!AD19 -> 0 | J19: =ROUND((ديسمبر!AE19+ديسمبر!AF19)/100,0)*100 -> 0 | K19: 0 | L19: 0 | M19: 0 | N19: 0 | O19: 0 | P19: 0 | Q19: 0 | R19: 0 | AB19: 0 | AC19: 0 | AD19: 0 | AE19: 0 | AF19: 0 | AG19: 0 | AH19: تم السداد أو ليست عليه إلتزامات | AI19: =ديسمبر!AI19 -> سداد حتى نهاية ديسمبر 2025م.
A20: =ديسمبر!A20 -> منزل المرحوم محمد عبدالله فيك الخير (صالح جرمور) | B20: =ديسمبر!B20 -> معفي | C20: =ديسمبر!C20 -> 915857673 | D20: 0 | E20: =ديسمبر!E20 -> 0 | F20: =ديسمبر!F20 -> 0 | G20: 0 | H20: =ديسمبر!AC20 -> 0 | I20: =ديسمبر!AD20 -> 0 | J20: =ROUND((ديسمبر!AE20+ديسمبر!AF20)/100,0)*100 -> 0 | K20: 0 | L20: 0 | M20: 0 | N20: 0 | O20: 0 | P20: 0 | Q20: 0 | R20: 0 | AB20: 0 | AC20: 0 | AD20: 0 | AE20: 0 | AF20: 0 | AG20: 0 | AH20: تم السداد أو ليست عليه إلتزامات | AI20: =ديسمبر!AI20 -> سداد حتى نهاية ديسمبر 2025م.
A21: =ديسمبر!A21 -> ناصر إدريس السيد (عماد إبراهيم السيد) | B21: =ديسمبر!B21 -> مأهول | C21: =ديسمبر!C21 -> 111914245 | D21: 5000 | E21: =ديسمبر!E21 -> 0 | F21: =ديسمبر!F21 -> 0 | G21: 5000 | H21: =ديسمبر!AC21 -> 0 | I21: =ديسمبر!AD21 -> 0 | J21: =ROUND((ديسمبر!AE21+ديسمبر!AF21)/100,0)*100 -> 0 | K21: 0 | L21: 5000 | M21: 0 | N21: 5000 | O21: 5000 | P21: 0 | Q21: 0 | R21: 5000 | AB21: 0 | AC21: 5000 | AD21: 0 | AE21: 0 | AF21: 2500 | AG21: 7500 | AH21: لم يتم السداد | AI21: =ديسمبر!AI21 -> سداد حتى نهاية ديسمبر 2025م.
A22: =ديسمبر!A22 -> محمدعلي الفقير | B22: =ديسمبر!B22 -> مأهول | C22: =ديسمبر!C22 -> 910204066 | D22: 5000 | E22: =ديسمبر!E22 -> 3 | F22: =ديسمبر!F22 -> 0 | G22: 5000 | H22: =ديسمبر!AC22 -> 6000 | I22: =ديسمبر!AD22 -> -6000 | J22: =ROUND((ديسمبر!AE22+ديسمبر!AF22)/100,0)*100 -> 0 | K22: 0 | L22: 5000 | M22: 0 | N22: 5000 | O22: 11000 | P22: -6000 | Q22: 0 | R22: 5000 | AB22: 0 | AC22: 11000 | AD22: -6000 | AE22: 0 | AF22: 2500 | AG22: 7500 | AH22: لم يتم السداد | AI22: =ديسمبر!AI22 -> سداد حتى نهاية ديسمبر 2025م.
A23: =ديسمبر!A23 -> محمد محمدعلي الفقير | B23: =ديسمبر!B23 -> مأهول | C23: =ديسمبر!C23 -> 965199199 | D23: 5000 | E23: =ديسمبر!E23 -> 0 | F23: =ديسمبر!F23 -> 0 | G23: 5000 | H23: =ديسمبر!AC23 -> 0 | I23: =ديسمبر!AD23 -> 0 | J23: =ROUND((ديسمبر!AE23+ديسمبر!AF23)/100,0)*100 -> 0 | K23: 0 | L23: 5000 | M23: 0 | N23: 5000 | O23: 5000 | P23: 0 | Q23: 0 | R23: 5000 | AB23: 0 | AC23: 5000 | AD23: 0 | AE23: 0 | AF23: 2500 | AG23: 7500 | AH23: لم يتم السداد | AI23: =ديسمبر!AI23 -> سداد حتى نهاية ديسمبر 2025م.
A24: =ديسمبر!A24 -> طه محمدعلي الفقير | B24: =ديسمبر!B24 -> مأهول | C24: =ديسمبر!C24 -> 112437426 | D24: 5000 | E24: =ديسمبر!E24 -> 3 | F24: =ديسمبر!F24 -> 0 | G24: 5000 | H24: =ديسمبر!AC24 -> 5000 | I24: =ديسمبر!AD24 -> -7000 | J24: =ROUND((ديسمبر!AE24+ديسمبر!AF24)/100,0)*100 -> 0 | K24: -2000 | L24: 5000 | M24: 0 | N24: 5000 | O24: 10000 | P24: -7000 | Q24: 0 | R24: 3000 | AB24: 0 | AC24: 10000 | AD24: -7000 | AE24: 0 | AF24: 1500 | AG24: 4500 | AH24: لم يتم السداد | AI24: =ديسمبر!AI24 -> له (2000) جنيه، وسداد حتى نهاية ديسمبر 2025م.
A25: =ديسمبر!A25 -> عبدالله محمد حمد (أ) | B25: =ديسمبر!B25 -> مأهول | C25: =ديسمبر!C25 -> 118561564 | D25: 5000 | E25: =ديسمبر!E25 -> 0 | F25: =ديسمبر!F25 -> 0 | G25: 5000 | H25: =ديسمبر!AC25 -> 6000 | I25: =ديسمبر!AD25 -> -6000 | J25: =ROUND((ديسمبر!AE25+ديسمبر!AF25)/100,0)*100 -> 0 | K25: 0 | L25: 5000 | M25: 0 | N25: 5000 | O25: 11000 | P25: -6000 | Q25: 0 | R25: 5000 | AB25: 0 | AC25: 11000 | AD25: -6000 | AE25: 0 | AF25: 2500 | AG25: 7500 | AH25: لم يتم السداد | AI25: =ديسمبر!AI25 -> سداد حتى نهاية ديسمبر 2025م.
A26: =ديسمبر!A26 -> عبدالله محمد حمد (ب) | B26: =ديسمبر!B26 -> مأهول | C26: =ديسمبر!C26 -> 118561564 | D26: 5000 | E26: =ديسمبر!E26 -> 1 | F26: =ديسمبر!F26 -> 0 | G26: 5000 | H26: =ديسمبر!AC26 -> 6000 | I26: =ديسمبر!AD26 -> -6000 | J26: =ROUND((ديسمبر!AE26+ديسمبر!AF26)/100,0)*100 -> 0 | K26: 0 | L26: 5000 | M26: 0 | N26: 5000 | O26: 11000 | P26: -6000 | Q26: 0 | R26: 5000 | AB26: 0 | AC26: 11000 | AD26: -6000 | AE26: 0 | AF26: 2500 | AG26: 7500 | AH26: لم يتم السداد | AI26: =ديسمبر!AI26 -> سداد حتى نهاية ديسمبر 2025م.
A27: =ديسمبر!A27 -> محمد عبدالله محمد حمد (بابا) | B27: =ديسمبر!B27 -> مأهول | C27: =ديسمبر!C27 -> 118561564 | D27: 5000 | E27: =ديسمبر!E27 -> 0 | F27: =ديسمبر!F27 -> 0 | G27: 5000 | H27: =ديسمبر!AC27 -> 0 | I27: =ديسمبر!AD27 -> 0 | J27: =ROUND((ديسمبر!AE27+ديسمبر!AF27)/100,0)*100 -> 0 | K27: 0 | L27: 5000 | M27: 0 | N27: 5000 | O27: 5000 | P27: 0 | Q27: 0 | R27: 5000 | AB27: 0 | AC27: 5000 | AD27: 0 | AE27: 0 | AF27: 2500 | AG27: 7500 | AH27: لم يتم السداد | AI27: =ديسمبر!AI27 -> سداد حتى نهاية ديسمبر 2025م.
A28: =ديسمبر!A28 -> منذر عبدالله محمد حمد | B28: =ديسمبر!B28 -> مأهول | C28: =ديسمبر!C28 -> 118561564 | D28: 5000 | E28: =ديسمبر!E28 -> 1 | F28: =ديسمبر!F28 -> 0 | G28: 5000 | H28: =ديسمبر!AC28 -> 2000 | I28: =ديسمبر!AD28 -> -2000 | J28: =ROUND((ديسمبر!AE28+ديسمبر!AF28)/100,0)*100 -> 0 | K28: 0 | L28: 5000 | M28: 0 | N28: 5000 | O28: 7000 | P28: -2000 | Q28: 0 | R28: 5000 | AB28: 0 | AC28: 7000 | AD28: -2000 | AE28: 0 | AF28: 2500 | AG28: 7500 | AH28: لم يتم السداد | AI28: =ديسمبر!AI28 -> سداد حتى نهاية ديسمبر 2025م.
A29: =ديسمبر!A29 -> الباقر عبدالله أنصار | B29: =ديسمبر!B29 -> مأهول | C29: =ديسمبر!C29 -> 0 | D29: 5000 | E29: =ديسمبر!E29 -> 0 | F29: =ديسمبر!F29 -> 0 | G29: 5000 | H29: =ديسمبر!AC29 -> 0 | I29: =ديسمبر!AD29 -> 0 | J29: =ROUND((ديسمبر!AE29+ديسمبر!AF29)/100,0)*100 -> 0 | K29: 0 | L29: 5000 | M29: 0 | N29: 5000 | O29: 5000 | P29: 0 | Q29: 0 | R29: 5000 | AB29: 0 | AC29: 5000 | AD29: 0 | AE29: 0 | AF29: 2500 | AG29: 7500 | AH29: لم يتم السداد | AI29: =ديسمبر!AI29 -> سداد حتى نهاية ديسمبر 2025م.
A30: =ديسمبر!A30 -> خالد أحمد صالح ودصالح | B30: =ديسمبر!B30 -> جديد | C30: =ديسمبر!C30 -> 0 | D30: 0 | E30: =ديسمبر!E30 -> 0 | F30: =ديسمبر!F30 -> 0 | G30: 0 | H30: =ديسمبر!AC30 -> 0 | I30: =ديسمبر!AD30 -> 0 | J30: =ROUND((ديسمبر!AE30+ديسمبر!AF30)/100,0)*100 -> 0 | K30: 0 | L30: 0 | M30: 0 | N30: 0 | O30: 0 | P30: 0 | Q30: 0 | R30: 0 | AB30: 0 | AC30: 0 | AD30: 0 | AE30: 0 | AF30: 0 | AG30: 0 | AH30: تم السداد أو ليست عليه إلتزامات | AI30: =ديسمبر!AI30 -> 0
A31: =ديسمبر!A31 -> عبدالله صالح حامنتود | B31: =ديسمبر!B31 -> جديد | C31: =ديسمبر!C31 -> 0 | D31: 0 | E31: =ديسمبر!E31 -> 0 | F31: =ديسمبر!F31 -> 0 | G31: 0 | H31: =ديسمبر!AC31 -> 0 | I31: =ديسمبر!AD31 -> 0 | J31: =ROUND((ديسمبر!AE31+ديسمبر!AF31)/100,0)*100 -> 0 | K31: 0 | L31: 0 | M31: 0 | N31: 0 | O31: 0 | P31: 0 | Q31: 0 | R31: 0 | AB31: 0 | AC31: 0 | AD31: 0 | AE31: 0 | AF31: 0 | AG31: 0 | AH31: تم السداد أو ليست عليه إلتزامات | AI31: =ديسمبر!AI31 -> توصيل جديد
A32: =ديسمبر!A32 -> عبدالرحمن جمال عبدالرحمن | B32: =ديسمبر!B32 -> 0 | C32: =ديسمبر!C32 -> 0 | D32: 0 | E32: =ديسمبر!E32 -> 0 | F32: =ديسمبر!F32 -> 0 | G32: 0 | H32: =ديسمبر!AC32 -> 0 | I32: =ديسمبر!AD32 -> 0 | J32: =ROUND((ديسمبر!AE32+ديسمبر!AF32)/100,0)*100 -> 0 | K32: 0 | L32: 0 | M32: 0 | N32: 0 | O32: 0 | P32: 0 | Q32: 0 | R32: 0 | AB32: 0 | AC32: 0 | AD32: 0 | AE32: 0 | AF32: 0 | AG32: 0 | AH32: تم السداد أو ليست عليه إلتزامات | AI32: =ديسمبر!AI32 -> للمراجعة مع المتحصل
A33: =ديسمبر!A33 -> محمد صالح | B33: =ديسمبر!B33 -> 0 | C33: =ديسمبر!C33 -> 0 | D33: 0 | E33: =ديسمبر!E33 -> 0 | F33: =ديسمبر!F33 -> 0 | G33: 0 | H33: =ديسمبر!AC33 -> 0 | I33: =ديسمبر!AD33 -> 0 | J33: =ROUND((ديسمبر!AE33+ديسمبر!AF33)/100,0)*100 -> 0 | K33: 0 | L33: 0 | M33: 0 | N33: 0 | O33: 0 | P33: 0 | Q33: 0 | R33: 0 | AB33: 0 | AC33: 0 | AD33: 0 | AE33: 0 | AF33: 0 | AG33: 0 | AH33: تم السداد أو ليست عليه إلتزامات | AI33: =ديسمبر!AI33 -> للمراجعة مع المتحصل
A34: =ديسمبر!A34 -> أنور محي الدين (1) | B34: =ديسمبر!B34 -> 0 | C34: =ديسمبر!C34 -> 0 | D34: 0 | E34: =ديسمبر!E34 -> 0 | F34: =ديسمبر!F34 -> 0 | G34: 0 | H34: =ديسمبر!AC34 -> 0 | I34: =ديسمبر!AD34 -> 0 | J34: =ROUND((ديسمبر!AE34+ديسمبر!AF34)/100,0)*100 -> 0 | K34: 0 | L34: 0 | M34: 0 | N34: 0 | O34: 0 | P34: 0 | Q34: 0 | R34: 0 | AB34: 0 | AC34: 0 | AD34: 0 | AE34: 0 | AF34: 0 | AG34: 0 | AH34: تم السداد أو ليست عليه إلتزامات | AI34: =ديسمبر!AI34 -> للمراجعة مع المتحصل
A35: =ديسمبر!A35 -> أنور محي الدين (2) | B35: =ديسمبر!B35 -> 0 | C35: =ديسمبر!C35 -> 0 | D35: 0 | E35: =ديسمبر!E35 -> 0 | F35: =ديسمبر!F35 -> 0 | G35: 0 | H35: =ديسمبر!AC35 -> 0 | I35: =ديسمبر!AD35 -> 0 | J35: =ROUND((ديسمبر!AE35+ديسمبر!AF35)/100,0)*100 -> 0 | K35: 0 | L35: 0 | M35: 0 | N35: 0 | O35: 0 | P35: 0 | Q35: 0 | R35: 0 | AB35: 0 | AC35: 0 | AD35: 0 | AE35: 0 | AF35: =(IF(SUM(AC35:AE35)>0,IF(AB35<0,0,ROUND((SUM(AC35:AE35)/2)/100,0)*100),0)) -> 0 | AG35: 0 | AH35: تم السداد أو ليست عليه إلتزامات | AI35: =ديسمبر!AI35 -> للمراجعة مع المتحصل
A36: =ديسمبر!A36 -> أنور محي الدين (3) | B36: =ديسمبر!B36 -> 0 | C36: =ديسمبر!C36 -> 0 | D36: 0 | E36: =ديسمبر!E36 -> 0 | F36: =ديسمبر!F36 -> 0 | G36: 0 | H36: =ديسمبر!AC36 -> 0 | I36: =ديسمبر!AD36 -> 0 | J36: =ROUND((ديسمبر!AE36+ديسمبر!AF36)/100,0)*100 -> 0 | K36: 0 | L36: 0 | M36: 0 | N36: 0 | O36: 0 | P36: 0 | Q36: 0 | R36: 0 | AB36: 0 | AC36: 0 | AD36: 0 | AE36: 0 | AF36: 0 | AG36: 0 | AH36: تم السداد أو ليست عليه إلتزامات | AI36: =ديسمبر!AI36 -> للمراجعة مع المتحصل
A37: =ديسمبر!A37 -> جلال أنور | B37: =ديسمبر!B37 -> 0 | C37: =ديسمبر!C37 -> 0 | D37: 0 | E37: =ديسمبر!E37 -> 0 | F37: =ديسمبر!F37 -> 0 | G37: 0 | H37: =ديسمبر!AC37 -> 0 | I37: =ديسمبر!AD37 -> 0 | J37: =ROUND((ديسمبر!AE37+ديسمبر!AF37)/100,0)*100 -> 0 | K37: 0 | L37: 0 | M37: 0 | N37: 0 | O37: 0 | P37: 0 | Q37: 0 | R37: 0 | AB37: 0 | AC37: 0 | AD37: 0 | AE37: 0 | AF37: 0 | AG37: 0 | AH37: تم السداد أو ليست عليه إلتزامات | AI37: =ديسمبر!AI37 -> للمراجعة مع المتحصل
A38: =ديسمبر!A38 -> محسن فتحي | B38: =ديسمبر!B38 -> 0 | C38: =ديسمبر!C38 -> 0 | D38: 0 | E38: =ديسمبر!E38 -> 0 | F38: =ديسمبر!F38 -> 0 | G38: 0 | H38: =ديسمبر!AC38 -> 0 | I38: =ديسمبر!AD38 -> 0 | J38: =ROUND((ديسمبر!AE38+ديسمبر!AF38)/100,0)*100 -> 0 | K38: 0 | L38: 0 | M38: 0 | N38: 0 | O38: 0 | P38: 0 | Q38: 0 | R38: 0 | AB38: 0 | AC38: 0 | AD38: 0 | AE38: 0 | AF38: 0 | AG38: 0 | AH38: تم السداد أو ليست عليه إلتزامات | AI38: =ديسمبر!AI38 -> للمراجعة مع المتحصل
A39: =ديسمبر!A39 -> معتز صالح | B39: =ديسمبر!B39 -> 0 | C39: =ديسمبر!C39 -> 0 | D39: 0 | E39: =ديسمبر!E39 -> 0 | F39: =ديسمبر!F39 -> 0 | G39: 0 | H39: =ديسمبر!AC39 -> 0 | I39: =ديسمبر!AD39 -> 0 | J39: =ROUND((ديسمبر!AE39+ديسمبر!AF39)/100,0)*100 -> 0 | K39: 0 | L39: 0 | M39: 0 | N39: 0 | O39: 0 | P39: 0 | Q39: 0 | R39: 0 | AB39: 0 | AC39: 0 | AD39: 0 | AE39: 0 | AF39: 0 | AG39: 0 | AH39: تم السداد أو ليست عليه إلتزامات | AI39: =ديسمبر!AI39 -> للمراجعة مع المتحصل
A40: =ديسمبر!A40 -> صالح النور | B40: =ديسمبر!B40 -> 0 | C40: =ديسمبر!C40 -> 0 | D40: 0 | E40: =ديسمبر!E40 -> 1 | F40: =ديسمبر!F40 -> 0 | G40: 0 | H40: =ديسمبر!AC40 -> 0 | I40: =ديسمبر!AD40 -> 0 | J40: =ROUND((ديسمبر!AE40+ديسمبر!AF40)/100,0)*100 -> 0 | K40: 0 | L40: 0 | M40: 0 | N40: 0 | O40: 0 | P40: 0 | Q40: 0 | R40: 0 | AB40: 0 | AC40: 0 | AD40: 0 | AE40: 0 | AF40: 0 | AG40: 0 | AH40: تم السداد أو ليست عليه إلتزامات | AI40: =ديسمبر!AI40 -> للمراجعة مع المتحصل
A41: =ديسمبر!A41 -> محمد إدريس | B41: =ديسمبر!B41 -> 0 | C41: =ديسمبر!C41 -> 0 | D41: 0 | E41: =ديسمبر!E41 -> 0 | F41: =ديسمبر!F41 -> 0 | G41: 0 | H41: =ديسمبر!AC41 -> 0 | I41: =ديسمبر!AD41 -> 0 | J41: =ROUND((ديسمبر!AE41+ديسمبر!AF41)/100,0)*100 -> 0 | K41: 0 | L41: 0 | M41: 0 | N41: 0 | O41: 0 | P41: 0 | Q41: 0 | R41: 0 | AB41: 0 | AC41: 0 | AD41: 0 | AE41: 0 | AF41: 0 | AG41: 0 | AH41: تم السداد أو ليست عليه إلتزامات | AI41: =ديسمبر!AI41 -> للمراجعة مع المتحصل
A42: =ديسمبر!A42 -> عمر محمد السيد | B42: =ديسمبر!B42 -> 0 | C42: =ديسمبر!C42 -> 0 | D42: 0 | E42: =ديسمبر!E42 -> 3 | F42: =ديسمبر!F42 -> 0 | G42: 0 | H42: =ديسمبر!AC42 -> 0 | I42: =ديسمبر!AD42 -> 0 | J42: =ROUND((ديسمبر!AE42+ديسمبر!AF42)/100,0)*100 -> 0 | K42: 0 | L42: 0 | M42: 0 | N42: 0 | O42: 0 | P42: 0 | Q42: 0 | R42: 0 | AB42: 0 | AC42: 0 | AD42: 0 | AE42: 0 | AF42: 0 | AG42: 0 | AH42: تم السداد أو ليست عليه إلتزامات | AI42: =ديسمبر!AI42 -> للمراجعة مع المتحصل
A43: =ديسمبر!A43 -> منزل المرحوم إدريس السيد | B43: =ديسمبر!B43 -> 0 | C43: =ديسمبر!C43 -> 0 | D43: 0 | E43: =ديسمبر!E43 -> 0 | F43: =ديسمبر!F43 -> 0 | G43: 0 | H43: =ديسمبر!AC43 -> 0 | I43: =ديسمبر!AD43 -> 0 | J43: =ROUND((ديسمبر!AE43+ديسمبر!AF43)/100,0)*100 -> 0 | K43: 0 | L43: 0 | M43: 0 | N43: 0 | O43: 0 | P43: 0 | Q43: 0 | R43: 0 | AB43: 0 | AC43: 0 | AD43: 0 | AE43: 0 | AF43: 0 | AG43: 0 | AH43: تم السداد أو ليست عليه إلتزامات | AI43: =ديسمبر!AI43 -> للمراجعة مع المتحصل
A44: =ديسمبر!A44 -> صفوان مهدي الزين | B44: =ديسمبر!B44 -> 0 | C44: =ديسمبر!C44 -> 0 | D44: 0 | E44: =ديسمبر!E44 -> 4 | F44: =ديسمبر!F44 -> 6 | G44: 9000 | H44: =ديسمبر!AC44 -> 0 | I44: =ديسمبر!AD44 -> 36600 | J44: =ROUND((ديسمبر!AE44+ديسمبر!AF44)/100,0)*100 -> 0 | K44: 36600 | L44: 0 | M44: 9000 | N44: 9000 | O44: 0 | P44: 45600 | Q44: 0 | R44: 45600 | AB44: 0 | AC44: 0 | AD44: 45600 | AE44: 0 | AF44: 22800 | AG44: 68400 | AH44: مفصول | AI44: =ديسمبر!AI44 -> للمراجعة مع المتحصل
A45: =ديسمبر!A45 -> أحمد صالح | B45: =ديسمبر!B45 -> 0 | C45: =ديسمبر!C45 -> 0 | D45: 0 | E45: =ديسمبر!E45 -> 2 | F45: =ديسمبر!F45 -> 0 | G45: 0 | H45: =ديسمبر!AC45 -> 0 | I45: =ديسمبر!AD45 -> 0 | J45: =ROUND((ديسمبر!AE45+ديسمبر!AF45)/100,0)*100 -> 0 | K45: 0 | L45: 0 | M45: 0 | N45: 0 | O45: 0 | P45: 0 | Q45: 0 | R45: 0 | AB45: 0 | AC45: 0 | AD45: 0 | AE45: 0 | AF45: 0 | AG45: 0 | AH45: تم السداد أو ليست عليه إلتزامات | AI45: =ديسمبر!AI45 -> للمراجعة مع المتحصل
A46: =ديسمبر!A46 -> محجوب محمد صالح | B46: =ديسمبر!B46 -> 0 | C46: =ديسمبر!C46 -> 0 | D46: 0 | E46: =ديسمبر!E46 -> 3 | F46: =ديسمبر!F46 -> 0 | G46: 0 | H46: =ديسمبر!AC46 -> 0 | I46: =ديسمبر!AD46 -> 0 | J46: =ROUND((ديسمبر!AE46+ديسمبر!AF46)/100,0)*100 -> 0 | K46: 0 | L46: 0 | M46: 0 | N46: 0 | O46: 0 | P46: 0 | Q46: 0 | R46: 0 | AB46: 0 | AC46: 0 | AD46: 0 | AE46: 0 | AF46: 0 | AG46: 0 | AH46: تم السداد أو ليست عليه إلتزامات | AI46: =ديسمبر!AI46 -> للمراجعة مع المتحصل
A47: =ديسمبر!A47 -> عادل عبدالله | B47: =ديسمبر!B47 -> 0 | C47: =ديسمبر!C47 -> 0 | D47: 0 | E47: =ديسمبر!E47 -> 11 | F47: =ديسمبر!F47 -> 0 | G47: 0 | H47: =ديسمبر!AC47 -> 0 | I47: =ديسمبر!AD47 -> 0 | J47: =ROUND((ديسمبر!AE47+ديسمبر!AF47)/100,0)*100 -> 0 | K47: 0 | L47: 0 | M47: 0 | N47: 0 | O47: 0 | P47: 0 | Q47: 0 | R47: 0 | AB47: 0 | AC47: 0 | AD47: 0 | AE47: 0 | AF47: 0 | AG47: 0 | AH47: تم السداد أو ليست عليه إلتزامات | AI47: =ديسمبر!AI47 -> للمراجعة مع المتحصل
A48: =ديسمبر!A48 -> حسن الزين ودصالح | B48: =ديسمبر!B48 -> 0 | C48: =ديسمبر!C48 -> 0 | D48: 0 | E48: =ديسمبر!E48 -> 2 | F48: =ديسمبر!F48 -> 0 | G48: 0 | H48: =ديسمبر!AC48 -> 0 | I48: =ديسمبر!AD48 -> 0 | J48: =ROUND((ديسمبر!AE48+ديسمبر!AF48)/100,0)*100 -> 0 | K48: 0 | L48: 0 | M48: 0 | N48: 0 | O48: 0 | P48: 0 | Q48: 0 | R48: 0 | AB48: 0 | AC48: 0 | AD48: 0 | AE48: 0 | AF48: 0 | AG48: 0 | AH48: تم السداد أو ليست عليه إلتزامات | AI48: =ديسمبر!AI48 -> للمراجعة مع المتحصل
A49: =ديسمبر!A49 -> أحمد محجوب | B49: =ديسمبر!B49 -> 0 | C49: =ديسمبر!C49 -> 0 | D49: 0 | E49: =ديسمبر!E49 -> 1 | F49: =ديسمبر!F49 -> 0 | G49: 0 | H49: =ديسمبر!AC49 -> 0 | I49: =ديسمبر!AD49 -> 0 | J49: =ROUND((ديسمبر!AE49+ديسمبر!AF49)/100,0)*100 -> 0 | K49: 0 | L49: 0 | M49: 0 | N49: 0 | O49: 0 | P49: 0 | Q49: 0 | R49: 0 | AB49: 0 | AC49: 0 | AD49: 0 | AE49: 0 | AF49: 0 | AG49: 0 | AH49: تم السداد أو ليست عليه إلتزامات | AI49: =ديسمبر!AI49 -> للمراجعة مع المتحصل
A50: =ديسمبر!A50 -> راشد ودحجه | B50: =ديسمبر!B50 -> 0 | C50: =ديسمبر!C50 -> 0 | D50: 0 | E50: =ديسمبر!E50 -> 0 | F50: =ديسمبر!F50 -> 0 | G50: 0 | H50: =ديسمبر!AC50 -> 0 | I50: =ديسمبر!AD50 -> 0 | J50: =ROUND((ديسمبر!AE50+ديسمبر!AF50)/100,0)*100 -> 0 | K50: 0 | L50: 0 | M50: 0 | N50: 0 | O50: 0 | P50: 0 | Q50: 0 | R50: 0 | AB50: 0 | AC50: 0 | AD50: 0 | AE50: 0 | AF50: 0 | AG50: 0 | AH50: تم السداد أو ليست عليه إلتزامات | AI50: =ديسمبر!AI50 -> للمراجعة مع المتحصل
A51: =ديسمبر!A51 -> محمد صلاح | B51: =ديسمبر!B51 -> 0 | C51: =ديسمبر!C51 -> 0 | D51: 0 | E51: =ديسمبر!E51 -> 0 | F51: =ديسمبر!F51 -> 0 | G51: 0 | H51: =ديسمبر!AC51 -> 0 | I51: =ديسمبر!AD51 -> 0 | J51: =ROUND((ديسمبر!AE51+ديسمبر!AF51)/100,0)*100 -> 0 | K51: 0 | L51: 0 | M51: 0 | N51: 0 | O51: 0 | P51: 0 | Q51: 0 | R51: 0 | AB51: 0 | AC51: 0 | AD51: 0 | AE51: 0 | AF51: 0 | AG51: 0 | AH51: تم السداد أو ليست عليه إلتزامات | AI51: =ديسمبر!AI51 -> للمراجعة مع المتحصل
A52: =ديسمبر!A52 -> الفاضل محمدعلي | B52: =ديسمبر!B52 -> 0 | C52: =ديسمبر!C52 -> 0 | D52: 0 | E52: =ديسمبر!E52 -> 0 | F52: =ديسمبر!F52 -> 0 | G52: 0 | H52: =ديسمبر!AC52 -> 0 | I52: =ديسمبر!AD52 -> 0 | J52: =ROUND((ديسمبر!AE52+ديسمبر!AF52)/100,0)*100 -> 0 | K52: 0 | L52: 0 | M52: 0 | N52: 0 | O52: 0 | P52: 0 | Q52: 0 | R52: 0 | AB52: 0 | AC52: 0 | AD52: 0 | AE52: 0 | AF52: 0 | AG52: 0 | AH52: تم السداد أو ليست عليه إلتزامات | AI52: =ديسمبر!AI52 -> للمراجعة مع المتحصل | AK52: الإجمالي | AM52: =SUM(AM3:AM51) -> 0
A53: =ديسمبر!A53 -> سعاد ودحجه | B53: =ديسمبر!B53 -> 0 | C53: =ديسمبر!C53 -> 0 | D53: 0 | E53: =ديسمبر!E53 -> 2 | F53: =ديسمبر!F53 -> 0 | G53: 0 | H53: =ديسمبر!AC53 -> 0 | I53: =ديسمبر!AD53 -> 0 | J53: =ROUND((ديسمبر!AE53+ديسمبر!AF53)/100,0)*100 -> 0 | K53: 0 | L53: 0 | M53: 0 | N53: 0 | O53: 0 | P53: 0 | Q53: 0 | R53: 0 | AB53: 0 | AC53: 0 | AD53: 0 | AE53: 0 | AF53: 0 | AG53: 0 | AH53: تم السداد أو ليست عليه إلتزامات | AI53: =ديسمبر!AI53 -> للمراجعة مع المتحصل
A54: =ديسمبر!A54 -> أحمد الفقير | B54: =ديسمبر!B54 -> 0 | C54: =ديسمبر!C54 -> 0 | D54: 0 | E54: =ديسمبر!E54 -> 2 | F54: =ديسمبر!F54 -> 0 | G54: 0 | H54: =ديسمبر!AC54 -> 0 | I54: =ديسمبر!AD54 -> 0 | J54: =ROUND((ديسمبر!AE54+ديسمبر!AF54)/100,0)*100 -> 0 | K54: 0 | L54: 0 | M54: 0 | N54: 0 | O54: 0 | P54: 0 | Q54: 0 | R54: 0 | AB54: 0 | AC54: 0 | AD54: 0 | AE54: 0 | AF54: 0 | AG54: 0 | AH54: تم السداد أو ليست عليه إلتزامات | AI54: =ديسمبر!AI54 -> للمراجعة مع المتحصل
A55: =ديسمبر!A55 -> عبدالقادر خالد محمدعلي الفقير | B55: =ديسمبر!B55 -> 0 | C55: =ديسمبر!C55 -> 0 | D55: 0 | E55: =ديسمبر!E55 -> 3 | F55: =ديسمبر!F55 -> 0 | G55: 0 | H55: =ديسمبر!AC55 -> 0 | I55: =ديسمبر!AD55 -> 0 | J55: =ROUND((ديسمبر!AE55+ديسمبر!AF55)/100,0)*100 -> 0 | K55: 0 | L55: 0 | M55: 0 | N55: 0 | O55: 0 | P55: 0 | Q55: 0 | R55: 0 | AB55: 0 | AC55: 0 | AD55: 0 | AE55: 0 | AF55: 0 | AG55: 0 | AH55: تم السداد أو ليست عليه إلتزامات | AI55: =ديسمبر!AI55 -> للمراجعة مع المتحصل
A56: =ديسمبر!A56 -> وليد الفقير | B56: =ديسمبر!B56 -> 0 | C56: =ديسمبر!C56 -> 0 | D56: 0 | E56: =ديسمبر!E56 -> 0 | F56: =ديسمبر!F56 -> 0 | G56: 0 | H56: =ديسمبر!AC56 -> 0 | I56: =ديسمبر!AD56 -> 0 | J56: =ROUND((ديسمبر!AE56+ديسمبر!AF56)/100,0)*100 -> 0 | K56: 0 | L56: 0 | M56: 0 | N56: 0 | O56: 0 | P56: 0 | Q56: 0 | R56: 0 | AB56: 0 | AC56: 0 | AD56: 0 | AE56: 0 | AF56: 0 | AG56: 0 | AH56: تم السداد أو ليست عليه إلتزامات | AI56: =ديسمبر!AI56 -> للمراجعة مع المتحصل
A57: =ديسمبر!A57 -> خالد محمدعلي الفقير | B57: =ديسمبر!B57 -> 0 | C57: =ديسمبر!C57 -> 0 | D57: 0 | E57: =ديسمبر!E57 -> 3 | F57: =ديسمبر!F57 -> 0 | G57: 0 | H57: =ديسمبر!AC57 -> 0 | I57: =ديسمبر!AD57 -> 0 | J57: =ROUND((ديسمبر!AE57+ديسمبر!AF57)/100,0)*100 -> 0 | K57: 0 | L57: 0 | M57: 0 | N57: 0 | O57: 0 | P57: 0 | Q57: 0 | R57: 0 | AB57: 0 | AC57: 0 | AD57: 0 | AE57: 0 | AF57: 0 | AG57: 0 | AH57: تم السداد أو ليست عليه إلتزامات | AI57: =ديسمبر!AI57 -> للمراجعة مع المتحصل
A58: =ديسمبر!A58 -> مصعب خالد | B58: =ديسمبر!B58 -> 0 | C58: =ديسمبر!C58 -> 0 | D58: 0 | E58: =ديسمبر!E58 -> 4 | F58: =ديسمبر!F58 -> 10 | G58: 15000 | H58: =ديسمبر!AC58 -> 0 | I58: =ديسمبر!AD58 -> 61000 | J58: =ROUND((ديسمبر!AE58+ديسمبر!AF58)/100,0)*100 -> 0 | K58: 61000 | L58: 0 | M58: 15000 | N58: 15000 | O58: 0 | P58: 76000 | Q58: 0 | R58: 76000 | AB58: 0 | AC58: 0 | AD58: 76000 | AE58: 0 | AF58: 38000 | AG58: 114000 | AH58: مفصول | AI58: =ديسمبر!AI58 -> للمراجعة مع المتحصل
A59: =ديسمبر!A59 -> عماد إبراهيم السيد | B59: =ديسمبر!B59 -> 0 | C59: =ديسمبر!C59 -> 0 | D59: 0 | E59: =ديسمبر!E59 -> 1 | F59: =ديسمبر!F59 -> 0 | G59: 0 | H59: =ديسمبر!AC59 -> 0 | I59: =ديسمبر!AD59 -> 0 | J59: =ROUND((ديسمبر!AE59+ديسمبر!AF59)/100,0)*100 -> 0 | K59: 0 | L59: 0 | M59: 0 | N59: 0 | O59: 0 | P59: 0 | Q59: 0 | R59: 0 | AB59: 0 | AC59: 0 | AD59: 0 | AE59: 0 | AF59: 0 | AG59: 0 | AH59: تم السداد أو ليست عليه إلتزامات | AI59: =ديسمبر!AI59 -> للمراجعة مع المتحصل
A60: =ديسمبر!A60 -> العاقب الزين | B60: =ديسمبر!B60 -> مأهول | C60: =ديسمبر!C60 -> 0 | D60: 5000 | E60: =ديسمبر!E60 -> 0 | F60: =ديسمبر!F60 -> 0 | G60: 5000 | H60: =ديسمبر!AC60 -> 25000 | I60: =ديسمبر!AD60 -> 0 | J60: =ROUND((ديسمبر!AE60+ديسمبر!AF60)/100,0)*100 -> 0 | K60: 25000 | L60: 5000 | M60: 0 | N60: 5000 | O60: 30000 | P60: 0 | Q60: 0 | R60: 30000 | AB60: 0 | AC60: 30000 | AD60: 0 | AE60: 0 | AF60: 15000 | AG60: 45000 | AH60: مفصول | AI60: =ديسمبر!AI60 -> للمراجعة مع المتحصل
A61: =ديسمبر!A61 -> 0 | B61: =ديسمبر!B61 -> 0 | C61: =ديسمبر!C61 -> 0 | D61: 0 | E61: =ديسمبر!E61 -> 0 | F61: =ديسمبر!F61 -> 0 | G61: 0 | H61: =ديسمبر!AC61 -> 0 | I61: =ديسمبر!AD61 -> 0 | J61: =ROUND((ديسمبر!AE61+ديسمبر!AF61)/100,0)*100 -> 0 | K61: 0 | L61: 0 | M61: 0 | N61: 0 | O61: 0 | P61: 0 | Q61: 0 | R61: 0 | AB61: 0 | AC61: 0 | AD61: 0 | AE61: 0 | AF61: 0 | AG61: 0 | AH61: تم السداد أو ليست عليه إلتزامات | AI61: =ديسمبر!AI61 -> 0
A62: =ديسمبر!A62 -> 0 | B62: =ديسمبر!B62 -> 0 | C62: =ديسمبر!C62 -> 0 | D62: 0 | E62: =ديسمبر!E62 -> 0 | F62: =ديسمبر!F62 -> 0 | G62: 0 | H62: =ديسمبر!AC62 -> 0 | I62: =ديسمبر!AD62 -> 0 | J62: =ROUND((ديسمبر!AE62+ديسمبر!AF62)/100,0)*100 -> 0 | K62: 0 | L62: 0 | M62: 0 | N62: 0 | O62: 0 | P62: 0 | Q62: 0 | R62: 0 | AB62: 0 | AC62: 0 | AD62: 0 | AE62: 0 | AF62: 0 | AG62: 0 | AH62: تم السداد أو ليست عليه إلتزامات | AI62: =ديسمبر!AI62 -> 0
A63: =ديسمبر!A63 -> 0 | B63: =ديسمبر!B63 -> 0 | C63: =ديسمبر!C63 -> 0 | D63: 0 | E63: =ديسمبر!E63 -> 0 | F63: =ديسمبر!F63 -> 0 | G63: 0 | H63: =ديسمبر!AC63 -> 0 | I63: =ديسمبر!AD63 -> 0 | J63: =ROUND((ديسمبر!AE63+ديسمبر!AF63)/100,0)*100 -> 0 | K63: 0 | L63: 0 | M63: 0 | N63: 0 | O63: 0 | P63: 0 | Q63: 0 | R63: 0 | AB63: 0 | AC63: 0 | AD63: 0 | AE63: 0 | AF63: 0 | AG63: 0 | AH63: تم السداد أو ليست عليه إلتزامات | AI63: =ديسمبر!AI63 -> 0
A64: =ديسمبر!A64 -> 0 | B64: =ديسمبر!B64 -> 0 | C64: =ديسمبر!C64 -> 0 | D64: 0 | E64: =ديسمبر!E64 -> 0 | F64: =ديسمبر!F64 -> 0 | G64: 0 | H64: =ديسمبر!AC64 -> 0 | I64: =ديسمبر!AD64 -> 0 | J64: =ROUND((ديسمبر!AE64+ديسمبر!AF64)/100,0)*100 -> 0 | K64: 0 | L64: 0 | M64: 0 | N64: 0 | O64: 0 | P64: 0 | Q64: 0 | R64: 0 | AB64: 0 | AC64: 0 | AD64: 0 | AE64: 0 | AF64: 0 | AG64: 0 | AH64: تم السداد أو ليست عليه إلتزامات | AI64: =ديسمبر!AI64 -> 0
A65: =ديسمبر!A65 -> 0 | B65: =ديسمبر!B65 -> 0 | C65: =ديسمبر!C65 -> 0 | D65: 0 | E65: =ديسمبر!E65 -> 0 | F65: =ديسمبر!F65 -> 0 | G65: 0 | H65: =ديسمبر!AC65 -> 0 | I65: =ديسمبر!AD65 -> 0 | J65: =ROUND((ديسمبر!AE65+ديسمبر!AF65)/100,0)*100 -> 0 | K65: 0 | L65: 0 | M65: 0 | N65: 0 | O65: 0 | P65: 0 | Q65: 0 | R65: 0 | AB65: 0 | AC65: 0 | AD65: 0 | AE65: 0 | AF65: 0 | AG65: 0 | AH65: تم السداد أو ليست عليه إلتزامات | AI65: =ديسمبر!AI65 -> 0
A66: =ديسمبر!A66 -> 0 | B66: =ديسمبر!B66 -> 0 | C66: =ديسمبر!C66 -> 0 | D66: 0 | E66: =ديسمبر!E66 -> 0 | F66: =ديسمبر!F66 -> 0 | G66: 0 | H66: =ديسمبر!AC66 -> 0 | I66: =ديسمبر!AD66 -> 0 | J66: =ROUND((ديسمبر!AE66+ديسمبر!AF66)/100,0)*100 -> 0 | K66: 0 | L66: 0 | M66: 0 | N66: 0 | O66: 0 | P66: 0 | Q66: 0 | R66: 0 | AB66: 0 | AC66: 0 | AD66: 0 | AE66: 0 | AF66: 0 | AG66: 0 | AH66: تم السداد أو ليست عليه إلتزامات | AI66: =ديسمبر!AI66 -> 0
A67: =ديسمبر!A67 -> 0 | B67: =ديسمبر!B67 -> 0 | C67: =ديسمبر!C67 -> 0 | D67: 0 | E67: =ديسمبر!E67 -> 0 | F67: =ديسمبر!F67 -> 0 | G67: 0 | H67: =ديسمبر!AC67 -> 0 | I67: =ديسمبر!AD67 -> 0 | J67: =ROUND((ديسمبر!AE67+ديسمبر!AF67)/100,0)*100 -> 0 | K67: 0 | L67: 0 | M67: 0 | N67: 0 | O67: 0 | P67: 0 | Q67: 0 | R67: 0 | AB67: 0 | AC67: 0 | AD67: 0 | AE67: 0 | AF67: =(IF(SUM(AC67:AE67)>0,IF(AB67<0,0,ROUND((SUM(AC67:AE67)/2)/100,0)*100),0)) -> 0 | AG67: 0 | AH67: تم السداد أو ليست عليه إلتزامات | AI67: =ديسمبر!AI67 -> 0
A68: =ديسمبر!A68 -> 0 | B68: =ديسمبر!B68 -> 0 | C68: =ديسمبر!C68 -> 0 | D68: =IF(B68="مأهول",5000,0) -> 0 | E68: =ديسمبر!E68 -> 0 | F68: =ديسمبر!F68 -> 0 | G68: =D68+(F68*1500) -> 0 | H68: =ديسمبر!AC68 -> 0 | I68: =ديسمبر!AD68 -> 0 | J68: =ROUND((ديسمبر!AE68+ديسمبر!AF68)/100,0)*100 -> 0 | K68: =ROUND((SUM(H68:J68))/100,0)*100 -> 0 | L68: =D68 -> 0 | M68: =(F68*1500) -> 0 | N68: =SUM(L68:M68) -> 0 | O68: =ROUND((H68+L68)/100,0)*100 -> 0 | P68: 0 | Q68: =J68 -> 0 | R68: =ROUND((SUM(O68:Q68))/100,0)*100 -> 0 | AB68: =SUM(V68:AA68) -> 0 | AC68: =ROUND((O68-V68)/100,0)*100 -> 0 | AD68: 0 | AE68: =ROUND((Q68-Z68)/100,0)*100 -> 0 | AF68: 0 | AG68: =ROUND(SUM(AC68:AF68)/50,0)*50 -> 0 | AH68: =IF(A68<>"",_xlfn.IFS(AG68>(G68*3),"مفصول",AG68=0,"تم السداد أو ليست عليه إلتزامات",AG68<0,"له باقي طرفنا",0<AG68>(G68*3),"لم يتم السداد"),"") -> تم السداد أو ليست عليه إلتزامات | AI68: =ديسمبر!AI68 -> 0
A69: =ديسمبر!A69 -> 0 | B69: =ديسمبر!B69 -> 0 | C69: =ديسمبر!C69 -> 0 | D69: =IF(B69="مأهول",5000,0) -> 0 | E69: =ديسمبر!E69 -> 0 | F69: =ديسمبر!F69 -> 0 | G69: 0 | H69: =ديسمبر!AC69 -> 0 | I69: =ديسمبر!AD69 -> 0 | J69: =ROUND((ديسمبر!AE69+ديسمبر!AF69)/100,0)*100 -> 0 | K69: =ROUND((SUM(H69:J69))/100,0)*100 -> 0 | L69: =D69 -> 0 | M69: 0 | N69: =SUM(L69:M69) -> 0 | O69: 0 | P69: 0 | Q69: =J69 -> 0 | R69: =ROUND((SUM(O69:Q69))/100,0)*100 -> 0 | AB69: =SUM(V69:AA69) -> 0 | AC69: 0 | AD69: 0 | AE69: =ROUND((Q69-Z69)/100,0)*100 -> 0 | AF69: 0 | AG69: =ROUND(SUM(AC69:AF69)/50,0)*50 -> 0 | AH69: =IF(A69<>"",_xlfn.IFS(AG69>(G69*3),"مفصول",AG69=0,"تم السداد أو ليست عليه إلتزامات",AG69<0,"له باقي طرفنا",0<AG69>(G69*3),"لم يتم السداد"),"") -> تم السداد أو ليست عليه إلتزامات | AI69: =ديسمبر!AI69 -> 0
A70: =ديسمبر!A70 -> 0 | B70: =ديسمبر!B70 -> 0 | C70: =ديسمبر!C70 -> 0 | D70: =IF(B70="مأهول",5000,0) -> 0 | E70: =ديسمبر!E70 -> 0 | F70: =ديسمبر!F70 -> 0 | G70: 0 | H70: =ديسمبر!AC70 -> 0 | I70: =ديسمبر!AD70 -> 0 | J70: =ROUND((ديسمبر!AE70+ديسمبر!AF70)/100,0)*100 -> 0 | K70: =ROUND((SUM(H70:J70))/100,0)*100 -> 0 | L70: =D70 -> 0 | M70: 0 | N70: =SUM(L70:M70) -> 0 | O70: 0 | P70: 0 | Q70: =J70 -> 0 | R70: =ROUND((SUM(O70:Q70))/100,0)*100 -> 0 | AB70: =SUM(V70:AA70) -> 0 | AC70: 0 | AD70: 0 | AE70: =ROUND((Q70-Z70)/100,0)*100 -> 0 | AF70: 0 | AG70: =ROUND(SUM(AC70:AF70)/50,0)*50 -> 0 | AH70: =IF(A70<>"",_xlfn.IFS(AG70>(G70*3),"مفصول",AG70=0,"تم السداد أو ليست عليه إلتزامات",AG70<0,"له باقي طرفنا",0<AG70>(G70*3),"لم يتم السداد"),"") -> تم السداد أو ليست عليه إلتزامات | AI70: =ديسمبر!AI70 -> 0
A71: =ديسمبر!A71 -> 0 | B71: =ديسمبر!B71 -> 0 | C71: =ديسمبر!C71 -> 0 | D71: =IF(B71="مأهول",5000,0) -> 0 | E71: =ديسمبر!E71 -> 0 | F71: =ديسمبر!F71 -> 0 | G71: 0 | H71: =ديسمبر!AC71 -> 0 | I71: =ديسمبر!AD71 -> 0 | J71: =ROUND((ديسمبر!AE71+ديسمبر!AF71)/100,0)*100 -> 0 | K71: =ROUND((SUM(H71:J71))/100,0)*100 -> 0 | L71: =D71 -> 0 | M71: 0 | N71: =SUM(L71:M71) -> 0 | O71: 0 | P71: 0 | Q71: =J71 -> 0 | R71: =ROUND((SUM(O71:Q71))/100,0)*100 -> 0 | AB71: =SUM(V71:AA71) -> 0 | AC71: 0 | AD71: 0 | AE71: =ROUND((Q71-Z71)/100,0)*100 -> 0 | AF71: 0 | AG71: =ROUND(SUM(AC71:AF71)/50,0)*50 -> 0 | AH71: =IF(A71<>"",_xlfn.IFS(AG71>(G71*3),"مفصول",AG71=0,"تم السداد أو ليست عليه إلتزامات",AG71<0,"له باقي طرفنا",0<AG71>(G71*3),"لم يتم السداد"),"") -> تم السداد أو ليست عليه إلتزامات | AI71: =ديسمبر!AI71 -> 0
A72: =ديسمبر!A72 -> 0 | B72: =ديسمبر!B72 -> 0 | C72: =ديسمبر!C72 -> 0 | D72: =IF(B72="مأهول",5000,0) -> 0 | E72: =ديسمبر!E72 -> 0 | F72: =ديسمبر!F72 -> 0 | G72: 0 | H72: =ديسمبر!AC72 -> 0 | I72: =ديسمبر!AD72 -> 0 | J72: =ROUND((ديسمبر!AE72+ديسمبر!AF72)/100,0)*100 -> 0 | K72: =ROUND((SUM(H72:J72))/100,0)*100 -> 0 | L72: =D72 -> 0 | M72: 0 | N72: =SUM(L72:M72) -> 0 | O72: 0 | P72: 0 | Q72: =J72 -> 0 | R72: =ROUND((SUM(O72:Q72))/100,0)*100 -> 0 | AB72: =SUM(V72:AA72) -> 0 | AC72: 0 | AD72: 0 | AE72: =ROUND((Q72-Z72)/100,0)*100 -> 0 | AF72: 0 | AG72: =ROUND(SUM(AC72:AF72)/50,0)*50 -> 0 | AH72: =IF(A72<>"",_xlfn.IFS(AG72>(G72*3),"مفصول",AG72=0,"تم السداد أو ليست عليه إلتزامات",AG72<0,"له باقي طرفنا",0<AG72>(G72*3),"لم يتم السداد"),"") -> تم السداد أو ليست عليه إلتزامات | AI72: =ديسمبر!AI72 -> 0
A73: الإجمالي | D73: =SUM(D3:D72) -> 120000 | E73: =SUM(E3:E72) -> 77 | F73: =SUM(F3:F72) -> 24 | G73: =SUM(G3:G72) -> 156000 | H73: =SUM(H3:H72) -> 76000 | I73: =SUM(I3:I72) -> 44600 | J73: 0 | K73: 120600 | L73: 120000 | M73: 36000 | N73: 156000 | O73: 196000 | P73: 80600 | Q73: 0 | R73: 276600 | V73: =SUM(V3:V72) -> 0 | W73: =SUM(W3:W72) -> 0 | X73: 0 | Y73: 0 | Z73: =SUM(Z3:Z72) -> 0 | AA73: 0 | AB73: =SUM(AB3:AB72) -> 0 | AC73: 196000 | AD73: =SUM(AD3:AD72) -> 80600 | AE73: =SUM(AE3:AE72) -> 0 | AF73: 138400 | AG73: 415000
A76: البيان | B76: المبلغ | C76: ملحوظات
A77: إجمالي التحصيل الشهري | B77: =AB73 -> 0
A78: مديونية سابقة على المتحصل | B78: =ديسمبر!B82 -> -4000
A79: إستلام أمين الصندوق | B79: =AM52 -> 0
A80: المطلوب من المتحصل | B80: =(B77+B78)-B79 -> -4000
A81: السداد
A82: الباقي | B82: =B80-B81 -> -4000
A83: مأهول
A84: شتول
A85: جديد
A86: مغلق
A87: مفصول
A88: معفي

Sheet فبراير
A1: البيانات الشخصية | G1: الربط | H1: المتأخرات حتى نهاية يناير 2026م | L1: جاري فبراير 2026م | O1: المطلوب حتى نهاية فبراير 2026م | S1: تفاصيل السداد خلال فبراير 2026م | AC1: المتأخرات حتى نهاية فبراير 2026م | AH1: موقف السداد | AI1: ملاحظات | AK1: إستلام أمين الصندوق
A2: الإسم | B2: المنزل | C2: الهاتف | D2: السكني | E2: شتول الربط | F2: شتول خ. الربط | G2: الشهري | H2: السكني | I2: الشتول | J2: غرامات | K2: الإجمالي | L2: السكني | M2: الشتول | N2: الإجمالي | O2: السكني | P2: الشتول | Q2: غرامات | R2: الإجمالي | S2: التاريخ | T2: رقم الإيصال | U2: رقم الدفتر | V2: السكني | W2: الشتول | X2: توصيل | Y2: مباني | Z2: غرامات | AA2: أخرى | AB2: الإجمالي | AC2: السكني | AD2: الشتول | AE2: الغرامات | AF2: غرامة تأخير سداد | AG2: الإجمالي | AK2: التاريخ | AL2: الإسم | AM2: المبلغ | AN2: ملحوظات
A3: =يناير!A3 -> منزل المرحوم عبدالله محمد صالح (ودحجه) | B3: =يناير!B3 -> مأهول | C3: =يناير!C3 -> 913223640 | D3: =IF(B3="مأهول",5000,0) -> 5000 | E3: =يناير!E3 -> 2 | F3: =يناير!F3 -> 0 | G3: =D3+(F3*1500) -> 5000 | H3: =يناير!AC3 -> 5000 | I3: =يناير!AD3 -> 0 | J3: =ROUND((يناير!AE3+يناير!AF3)/100,0)*100 -> 2500 | K3: =ROUND((SUM(H3:J3))/100,0)*100 -> 7500 | L3: =D3 -> 5000 | M3: =(F3*1500) -> 0 | N3: =SUM(L3:M3) -> 5000 | O3: =ROUND((H3+L3)/100,0)*100 -> 10000 | P3: =ROUND((I3+M3)/100,0)*100 -> 0 | Q3: =J3 -> 2500 | R3: =ROUND((SUM(O3:Q3))/100,0)*100 -> 12500 | AB3: =SUM(V3:AA3) -> 0 | AC3: =ROUND((O3-V3)/100,0)*100 -> 10000 | AD3: =ROUND((P3-W3)/100,0)*100 -> 0 | AE3: =ROUND((Q3-Z3)/100,0)*100 -> 2500 | AF3: =(IF(SUM(AC3:AE3)>0,IF(AB3<0,0,ROUND((SUM(AC3:AE3)/2)/100,0)*100),0)) -> 6300 | AG3: =ROUND(SUM(AC3:AF3)/100,0)*100 -> 18800 | AH3: =IF(A3<>"",_xlfn.IFS(AG3>(G3*3),"مفصول",AG3=0,"تم السداد أو ليست عليه إلتزامات",AG3<0,"له باقي طرفنا",0<AG3>(G3*3),"لم يتم السداد"),"") -> مفصول | AI3: =يناير!AI3 -> سداد حتى نهاية ديسمبر 2025م.
A4: =يناير!A4 -> مبارك عبدالله محمد صالح | B4: =يناير!B4 -> مأهول | C4: =يناير!C4 -> 912572291 | D4: =IF(B4="مأهول",5000,0) -> 5000 | E4: =يناير!E4 -> 1 | F4: =يناير!F4 -> 0 | G4: =D4+(F4*1500) -> 5000 | H4: =يناير!AC4 -> 9000 | I4: =يناير!AD4 -> -4000 | J4: =ROUND((يناير!AE4+يناير!AF4)/100,0)*100 -> 2500 | K4: =ROUND((SUM(H4:J4))/100,0)*100 -> 7500 | L4: =D4 -> 5000 | M4: =(F4*1500) -> 0 | N4: =SUM(L4:M4) -> 5000 | O4: =ROUND((H4+L4)/100,0)*100 -> 14000 | P4: -4000 | Q4: =J4 -> 2500 | R4: =ROUND((SUM(O4:Q4))/100,0)*100 -> 12500 | AB4: =SUM(V4:AA4) -> 0 | AC4: =ROUND((O4-V4)/100,0)*100 -> 14000 | AD4: -4000 | AE4: =ROUND((Q4-Z4)/100,0)*100 -> 2500 | AF4: 6300 | AG4: =ROUND(SUM(AC4:AF4)/50,0)*50 -> 18800 | AH4: =IF(A4<>"",_xlfn.IFS(AG4>(G4*3),"مفصول",AG4=0,"تم السداد أو ليست عليه إلتزامات",AG4<0,"له باقي طرفنا",0<AG4>(G4*3),"لم يتم السداد"),"") -> مفصول | AI4: =يناير!AI4 -> سداد حتى نهاية ديسمبر 2025م.
A5: =يناير!A5 -> خالد عبدالله محمد صالح | B5: =يناير!B5 -> مأهول | C5: =يناير!C5 -> 916713241 | D5: 5000 | E5: =يناير!E5 -> 2 | F5: =يناير!F5 -> 0 | G5: 5000 | H5: =يناير!AC5 -> 9000 | I5: =يناير!AD5 -> -4000 | J5: =ROUND((يناير!AE5+يناير!AF5)/100,0)*100 -> 2500 | K5: 7500 | L5: 5000 | M5: 0 | N5: 5000 | O5: 14000 | P5: -4000 | Q5: 2500 | R5: 12500 | AB5: 0 | AC5: 14000 | AD5: -4000 | AE5: 2500 | AF5: 6300 | AG5: 18800 | AH5: مفصول | AI5: =يناير!AI5 -> سداد حتى نهاية ديسمبر 2025م.
A6: =يناير!A6 -> الفاضل عبدالله محمد صالح | B6: =يناير!B6 -> مغلق | C6: =يناير!C6 -> 917924080 | D6: 0 | E6: =يناير!E6 -> 1 | F6: =يناير!F6 -> 0 | G6: 0 | H6: =يناير!AC6 -> 0 | I6: =يناير!AD6 -> 0 | J6: =ROUND((يناير!AE6+يناير!AF6)/100,0)*100 -> 0 | K6: 0 | L6: 0 | M6: 0 | N6: 0 | O6: 0 | P6: 0 | Q6: 0 | R6: 0 | AB6: 0 | AC6: 0 | AD6: 0 | AE6: 0 | AF6: 0 | AG6: 0 | AH6: تم السداد أو ليست عليه إلتزامات | AI6: =يناير!AI6 -> سداد حتى نهاية ديسمبر 2025م.
A7: =يناير!A7 -> بكري عبدالرحمن ود صالح | B7: =يناير!B7 -> مأهول | C7: =يناير!C7 -> 126793356 | D7: 5000 | E7: =يناير!E7 -> 1 | F7: =يناير!F7 -> 0 | G7: 5000 | H7: =يناير!AC7 -> 7000 | I7: =يناير!AD7 -> -2000 | J7: =ROUND((يناير!AE7+يناير!AF7)/100,0)*100 -> 2500 | K7: 7500 | L7: 5000 | M7: 0 | N7: 5000 | O7: 12000 | P7: -2000 | Q7: 2500 | R7: 12500 | AB7: 0 | AC7: 12000 | AD7: -2000 | AE7: 2500 | AF7: 6300 | AG7: 18800 | AH7: مفصول | AI7: =يناير!AI7 -> سداد حتى نهاية ديسمبر 2025م.
A8: =يناير!A8 -> جمال عبدالرحمن ود صالح | B8: =يناير!B8 -> مأهول | C8: =يناير!C8 -> 124317243 | D8: 5000 | E8: =يناير!E8 -> 0 | F8: =يناير!F8 -> 0 | G8: 5000 | H8: =يناير!AC8 -> 5000 | I8: =يناير!AD8 -> 0 | J8: =ROUND((يناير!AE8+يناير!AF8)/100,0)*100 -> 2500 | K8: 7500 | L8: 5000 | M8: 0 | N8: 5000 | O8: 10000 | P8: 0 | Q8: 2500 | R8: 12500 | AB8: 0 | AC8: 10000 | AD8: 0 | AE8: 2500 | AF8: 6300 | AG8: 18800 | AH8: مفصول | AI8: =يناير!AI8 -> سداد حتى نهاية ديسمبر 2025م.
A9: =يناير!A9 -> صلاح عبدالرحمن ود صالح | B9: =يناير!B9 -> مأهول | C9: =يناير!C9 -> 121347090 | D9: 5000 | E9: =يناير!E9 -> 2 | F9: =يناير!F9 -> 0 | G9: 5000 | H9: =يناير!AC9 -> 9000 | I9: =يناير!AD9 -> -4000 | J9: =ROUND((يناير!AE9+يناير!AF9)/100,0)*100 -> 2500 | K9: 7500 | L9: 5000 | M9: 0 | N9: 5000 | O9: 14000 | P9: -4000 | Q9: 2500 | R9: 12500 | AB9: 0 | AC9: 14000 | AD9: -4000 | AE9: 2500 | AF9: 6300 | AG9: 18800 | AH9: مفصول | AI9: =يناير!AI9 -> سداد حتى نهاية ديسمبر 2025م.
A10: =يناير!A10 -> عبدالحي عبدالرحمن ودصالح | B10: =يناير!B10 -> مأهول | C10: =يناير!C10 -> 114114215 | D10: 5000 | E10: =يناير!E10 -> 0 | F10: =يناير!F10 -> 0 | G10: 5000 | H10: =يناير!AC10 -> 5000 | I10: =يناير!AD10 -> 0 | J10: =ROUND((يناير!AE10+يناير!AF10)/100,0)*100 -> 2500 | K10: 7500 | L10: 5000 | M10: 0 | N10: 5000 | O10: 10000 | P10: 0 | Q10: 2500 | R10: 12500 | AB10: 0 | AC10: 10000 | AD10: 0 | AE10: 2500 | AF10: 6300 | AG10: 18800 | AH10: مفصول | AI10: =يناير!AI10 -> سداد حتى نهاية ديسمبر 2025م.
A11: =يناير!A11 -> فضل عبدالرحمن ودصالح | B11: =يناير!B11 -> مأهول | C11: =يناير!C11 -> 965527390 | D11: 5000 | E11: =يناير!E11 -> 4 | F11: =يناير!F11 -> 3 | G11: 9500 | H11: =يناير!AC11 -> 5000 | I11: =يناير!AD11 -> 4500 | J11: =ROUND((يناير!AE11+يناير!AF11)/100,0)*100 -> 4800 | K11: 14300 | L11: 5000 | M11: 4500 | N11: 9500 | O11: 10000 | P11: 9000 | Q11: 4800 | R11: 23800 | AB11: 0 | AC11: 10000 | AD11: 9000 | AE11: 4800 | AF11: 11900 | AG11: 35700 | AH11: مفصول | AI11: =يناير!AI11 -> سداد حتى نهاية ديسمبر 2025م.
A12: =يناير!A12 -> منزل المرحوم الزين ود صالح (العاقب) | B12: =يناير!B12 -> مأهول | C12: =يناير!C12 -> 917344140 | D12: 5000 | E12: =يناير!E12 -> 1 | F12: =يناير!F12 -> 0 | G12: 5000 | H12: =يناير!AC12 -> 5000 | I12: =يناير!AD12 -> 0 | J12: =ROUND((يناير!AE12+يناير!AF12)/100,0)*100 -> 2500 | K12: 7500 | L12: 5000 | M12: 0 | N12: 5000 | O12: 10000 | P12: 0 | Q12: 2500 | R12: 12500 | AB12: 0 | AC12: 10000 | AD12: 0 | AE12: 2500 | AF12: 6300 | AG12: 18800 | AH12: مفصول | AI12: =يناير!AI12 -> سداد حتى نهاية ديسمبر 2025م.
A13: =يناير!A13 -> مهدي الزين | B13: =يناير!B13 -> مأهول | C13: =يناير!C13 -> 913099777 | D13: 5000 | E13: =يناير!E13 -> 2 | F13: =يناير!F13 -> 0 | G13: 5000 | H13: =يناير!AC13 -> 9000 | I13: =يناير!AD13 -> -4000 | J13: =ROUND((يناير!AE13+يناير!AF13)/100,0)*100 -> 2500 | K13: 7500 | L13: 5000 | M13: 0 | N13: 5000 | O13: 14000 | P13: -4000 | Q13: 2500 | R13: 12500 | AB13: 0 | AC13: 14000 | AD13: -4000 | AE13: 2500 | AF13: 6300 | AG13: 18800 | AH13: مفصول | AI13: =يناير!AI13 -> سداد حتى نهاية ديسمبر 2025م.
A14: =يناير!A14 -> محمد السيد | B14: =يناير!B14 -> مأهول | C14: =يناير!C14 -> 917636525 | D14: 5000 | E14: =يناير!E14 -> 1 | F14: =يناير!F14 -> 0 | G14: 5000 | H14: =يناير!AC14 -> 5000 | I14: =يناير!AD14 -> 0 | J14: =ROUND((يناير!AE14+يناير!AF14)/100,0)*100 -> 2500 | K14: 7500 | L14: 5000 | M14: 0 | N14: 5000 | O14: 10000 | P14: 0 | Q14: 2500 | R14: 12500 | AB14: 0 | AC14: 10000 | AD14: 0 | AE14: 2500 | AF14: 6300 | AG14: 18800 | AH14: مفصول | AI14: =يناير!AI14 -> سداد حتى نهاية ديسمبر 2025م.
A15: =يناير!A15 -> هشام محمد السيد | B15: =يناير!B15 -> مأهول | C15: =يناير!C15 -> 915778117 | D15: 5000 | E15: =يناير!E15 -> 4 | F15: =يناير!F15 -> 5 | G15: 12500 | H15: =يناير!AC15 -> 5000 | I15: =يناير!AD15 -> 7500 | J15: =ROUND((يناير!AE15+يناير!AF15)/100,0)*100 -> 6300 | K15: 18800 | L15: 5000 | M15: 7500 | N15: 12500 | O15: 10000 | P15: 15000 | Q15: 6300 | R15: 31300 | AB15: 0 | AC15: 10000 | AD15: 15000 | AE15: 6300 | AF15: 15700 | AG15: 47000 | AH15: مفصول | AI15: =يناير!AI15 -> سداد حتى نهاية ديسمبر 2025م.
A16: =يناير!A16 -> عصام محمد السيد (أ) | B16: =يناير!B16 -> مأهول | C16: =يناير!C16 -> 915896866 | D16: 5000 | E16: =يناير!E16 -> 1 | F16: =يناير!F16 -> 0 | G16: 5000 | H16: =يناير!AC16 -> 7000 | I16: =يناير!AD16 -> -2000 | J16: =ROUND((يناير!AE16+يناير!AF16)/100,0)*100 -> 2500 | K16: 7500 | L16: 5000 | M16: 0 | N16: 5000 | O16: 12000 | P16: -2000 | Q16: 2500 | R16: 12500 | AB16: 0 | AC16: 12000 | AD16: -2000 | AE16: 2500 | AF16: 6300 | AG16: 18800 | AH16: مفصول | AI16: =يناير!AI16 -> سداد حتى نهاية ديسمبر 2025م.
A17: =يناير!A17 -> عبدالله الأنصاري | B17: =يناير!B17 -> مغلق | C17: =يناير!C17 -> 911101791 | D17: 0 | E17: =يناير!E17 -> 2 | F17: =يناير!F17 -> 0 | G17: 0 | H17: =يناير!AC17 -> 0 | I17: =يناير!AD17 -> 0 | J17: =ROUND((يناير!AE17+يناير!AF17)/100,0)*100 -> 0 | K17: 0 | L17: 0 | M17: 0 | N17: 0 | O17: 0 | P17: 0 | Q17: 0 | R17: 0 | AB17: 0 | AC17: 0 | AD17: 0 | AE17: 0 | AF17: 0 | AG17: 0 | AH17: تم السداد أو ليست عليه إلتزامات | AI17: =يناير!AI17 -> سداد حتى نهاية ديسمبر 2025م.
A18: =يناير!A18 -> عماد محمد سعيد | B18: =يناير!B18 -> مأهول | C18: =يناير!C18 -> 911113020 | D18: 5000 | E18: =يناير!E18 -> 2 | F18: =يناير!F18 -> 0 | G18: 5000 | H18: =يناير!AC18 -> 11000 | I18: =يناير!AD18 -> -6000 | J18: =ROUND((يناير!AE18+يناير!AF18)/100,0)*100 -> 2500 | K18: 7500 | L18: 5000 | M18: 0 | N18: 5000 | O18: 16000 | P18: -6000 | Q18: 2500 | R18: 12500 | AB18: 0 | AC18: 16000 | AD18: -6000 | AE18: 2500 | AF18: 6300 | AG18: 18800 | AH18: مفصول | AI18: =يناير!AI18 -> سداد حتى نهاية ديسمبر 2025م.
A19: =يناير!A19 -> ماهر محمد صالح | B19: =يناير!B19 -> معفي | C19: =يناير!C19 -> 962864495 | D19: 0 | E19: =يناير!E19 -> 1 | F19: =يناير!F19 -> 0 | G19: 0 | H19: =يناير!AC19 -> 0 | I19: =يناير!AD19 -> 0 | J19: =ROUND((يناير!AE19+يناير!AF19)/100,0)*100 -> 0 | K19: 0 | L19: 0 | M19: 0 | N19: 0 | O19: 0 | P19: 0 | Q19: 0 | R19: 0 | AB19: 0 | AC19: 0 | AD19: 0 | AE19: 0 | AF19: 0 | AG19: 0 | AH19: تم السداد أو ليست عليه إلتزامات | AI19: =يناير!AI19 -> سداد حتى نهاية ديسمبر 2025م.
A20: =يناير!A20 -> منزل المرحوم محمد عبدالله فيك الخير (صالح جرمور) | B20: =يناير!B20 -> معفي | C20: =يناير!C20 -> 915857673 | D20: 0 | E20: =يناير!E20 -> 0 | F20: =يناير!F20 -> 0 | G20: 0 | H20: =يناير!AC20 -> 0 | I20: =يناير!AD20 -> 0 | J20: =ROUND((يناير!AE20+يناير!AF20)/100,0)*100 -> 0 | K20: 0 | L20: 0 | M20: 0 | N20: 0 | O20: 0 | P20: 0 | Q20: 0 | R20: 0 | AB20: 0 | AC20: 0 | AD20: 0 | AE20: 0 | AF20: 0 | AG20: 0 | AH20: تم السداد أو ليست عليه إلتزامات | AI20: =يناير!AI20 -> سداد حتى نهاية ديسمبر 2025م.
A21: =يناير!A21 -> ناصر إدريس السيد (عماد إبراهيم السيد) | B21: =يناير!B21 -> مأهول | C21: =يناير!C21 -> 111914245 | D21: 5000 | E21: =يناير!E21 -> 0 | F21: =يناير!F21 -> 0 | G21: 5000 | H21: =يناير!AC21 -> 5000 | I21: =يناير!AD21 -> 0 | J21: =ROUND((يناير!AE21+يناير!AF21)/100,0)*100 -> 2500 | K21: 7500 | L21: 5000 | M21: 0 | N21: 5000 | O21: 10000 | P21: 0 | Q21: 2500 | R21: 12500 | AB21: 0 | AC21: 10000 | AD21: 0 | AE21: 2500 | AF21: 6300 | AG21: 18800 | AH21: مفصول | AI21: =يناير!AI21 -> سداد حتى نهاية ديسمبر 2025م.
A22: =يناير!A22 -> محمدعلي الفقير | B22: =يناير!B22 -> مأهول | C22: =يناير!C22 -> 910204066 | D22: 5000 | E22: =يناير!E22 -> 3 | F22: =يناير!F22 -> 0 | G22: 5000 | H22: =يناير!AC22 -> 11000 | I22: =يناير!AD22 -> -6000 | J22: =ROUND((يناير!AE22+يناير!AF22)/100,0)*100 -> 2500 | K22: 7500 | L22: 5000 | M22: 0 | N22: 5000 | O22: 16000 | P22: -6000 | Q22: 2500 | R22: 12500 | AB22: 0 | AC22: 16000 | AD22: -6000 | AE22: 2500 | AF22: 6300 | AG22: 18800 | AH22: مفصول | AI22: =يناير!AI22 -> سداد حتى نهاية ديسمبر 2025م.
A23: =يناير!A23 -> محمد محمدعلي الفقير | B23: =يناير!B23 -> مأهول | C23: =يناير!C23 -> 965199199 | D23: 5000 | E23: =يناير!E23 -> 0 | F23: =يناير!F23 -> 0 | G23: 5000 | H23: =يناير!AC23 -> 5000 | I23: =يناير!AD23 -> 0 | J23: =ROUND((يناير!AE23+يناير!AF23)/100,0)*100 -> 2500 | K23: 7500 | L23: 5000 | M23: 0 | N23: 5000 | O23: 10000 | P23: 0 | Q23: 2500 | R23: 12500 | AB23: 0 | AC23: 10000 | AD23: 0 | AE23: 2500 | AF23: 6300 | AG23: 18800 | AH23: مفصول | AI23: =يناير!AI23 -> سداد حتى نهاية ديسمبر 2025م.
A24: =يناير!A24 -> طه محمدعلي الفقير | B24: =يناير!B24 -> مأهول | C24: =يناير!C24 -> 112437426 | D24: 5000 | E24: =يناير!E24 -> 3 | F24: =يناير!F24 -> 0 | G24: 5000 | H24: =يناير!AC24 -> 10000 | I24: =يناير!AD24 -> -7000 | J24: =ROUND((يناير!AE24+يناير!AF24)/100,0)*100 -> 1500 | K24: 4500 | L24: 5000 | M24: 0 | N24: 5000 | O24: 15000 | P24: -7000 | Q24: 1500 | R24: 9500 | AB24: 0 | AC24: 15000 | AD24: -7000 | AE24: 1500 | AF24: 4800 | AG24: 14300 | AH24: لم يتم السداد | AI24: =يناير!AI24 -> له (2000) جنيه، وسداد حتى نهاية ديسمبر 2025م.
A25: =يناير!A25 -> عبدالله محمد حمد (أ) | B25: =يناير!B25 -> مأهول | C25: =يناير!C25 -> 118561564 | D25: 5000 | E25: =يناير!E25 -> 0 | F25: =يناير!F25 -> 0 | G25: 5000 | H25: =يناير!AC25 -> 11000 | I25: =يناير!AD25 -> -6000 | J25: =ROUND((يناير!AE25+يناير!AF25)/100,0)*100 -> 2500 | K25: 7500 | L25: 5000 | M25: 0 | N25: 5000 | O25: 16000 | P25: -6000 | Q25: 2500 | R25: 12500 | AB25: 0 | AC25: 16000 | AD25: -6000 | AE25: 2500 | AF25: 6300 | AG25: 18800 | AH25: مفصول | AI25: =يناير!AI25 -> سداد حتى نهاية ديسمبر 2025م.
A26: =يناير!A26 -> عبدالله محمد حمد (ب) | B26: =يناير!B26 -> مأهول | C26: =يناير!C26 -> 118561564 | D26: 5000 | E26: =يناير!E26 -> 1 | F26: =يناير!F26 -> 0 | G26: 5000 | H26: =يناير!AC26 -> 11000 | I26: =يناير!AD26 -> -6000 | J26: =ROUND((يناير!AE26+يناير!AF26)/100,0)*100 -> 2500 | K26: 7500 | L26: 5000 | M26: 0 | N26: 5000 | O26: 16000 | P26: -6000 | Q26: 2500 | R26: 12500 | AB26: 0 | AC26: 16000 | AD26: -6000 | AE26: 2500 | AF26: 6300 | AG26: 18800 | AH26: مفصول | AI26: =يناير!AI26 -> سداد حتى نهاية ديسمبر 2025م.
A27: =يناير!A27 -> محمد عبدالله محمد حمد (بابا) | B27: =يناير!B27 -> مأهول | C27: =يناير!C27 -> 118561564 | D27: 5000 | E27: =يناير!E27 -> 0 | F27: =يناير!F27 -> 0 | G27: 5000 | H27: =يناير!AC27 -> 5000 | I27: =يناير!AD27 -> 0 | J27: =ROUND((يناير!AE27+يناير!AF27)/100,0)*100 -> 2500 | K27: 7500 | L27: 5000 | M27: 0 | N27: 5000 | O27: 10000 | P27: 0 | Q27: 2500 | R27: 12500 | AB27: 0 | AC27: 10000 | AD27: 0 | AE27: 2500 | AF27: 6300 | AG27: 18800 | AH27: مفصول | AI27: =يناير!AI27 -> سداد حتى نهاية ديسمبر 2025م.
A28: =يناير!A28 -> منذر عبدالله محمد حمد | B28: =يناير!B28 -> مأهول | C28: =يناير!C28 -> 118561564 | D28: 5000 | E28: =يناير!E28 -> 1 | F28: =يناير!F28 -> 0 | G28: 5000 | H28: =يناير!AC28 -> 7000 | I28: =يناير!AD28 -> -2000 | J28: =ROUND((يناير!AE28+يناير!AF28)/100,0)*100 -> 2500 | K28: 7500 | L28: 5000 | M28: 0 | N28: 5000 | O28: 12000 | P28: -2000 | Q28: 2500 | R28: 12500 | AB28: 0 | AC28: 12000 | AD28: -2000 | AE28: 2500 | AF28: 6300 | AG28: 18800 | AH28: مفصول | AI28: =يناير!AI28 -> سداد حتى نهاية ديسمبر 2025م.
A29: =يناير!A29 -> الباقر عبدالله أنصار | B29: =يناير!B29 -> مأهول | C29: =يناير!C29 -> 0 | D29: 5000 | E29: =يناير!E29 -> 0 | F29: =يناير!F29 -> 0 | G29: 5000 | H29: =يناير!AC29 -> 5000 | I29: =يناير!AD29 -> 0 | J29: =ROUND((يناير!AE29+يناير!AF29)/100,0)*100 -> 2500 | K29: 7500 | L29: 5000 | M29: 0 | N29: 5000 | O29: 10000 | P29: 0 | Q29: 2500 | R29: 12500 | AB29: 0 | AC29: 10000 | AD29: 0 | AE29: 2500 | AF29: 6300 | AG29: 18800 | AH29: مفصول | AI29: =يناير!AI29 -> سداد حتى نهاية ديسمبر 2025م.
A30: =يناير!A30 -> خالد أحمد صالح ودصالح | B30: =يناير!B30 -> جديد | C30: =يناير!C30 -> 0 | D30: 0 | E30: =يناير!E30 -> 0 | F30: =يناير!F30 -> 0 | G30: 0 | H30: =يناير!AC30 -> 0 | I30: =يناير!AD30 -> 0 | J30: =ROUND((يناير!AE30+يناير!AF30)/100,0)*100 -> 0 | K30: 0 | L30: 0 | M30: 0 | N30: 0 | O30: 0 | P30: 0 | Q30: 0 | R30: 0 | AB30: 0 | AC30: 0 | AD30: 0 | AE30: 0 | AF30: 0 | AG30: 0 | AH30: تم السداد أو ليست عليه إلتزامات | AI30: =يناير!AI30 -> 0
A31: =يناير!A31 -> عبدالله صالح حامنتود | B31: =يناير!B31 -> جديد | C31: =يناير!C31 -> 0 | D31: 0 | E31: =يناير!E31 -> 0 | F31: =يناير!F31 -> 0 | G31: 0 | H31: =يناير!AC31 -> 0 | I31: =يناير!AD31 -> 0 | J31: =ROUND((يناير!AE31+يناير!AF31)/100,0)*100 -> 0 | K31: 0 | L31: 0 | M31: 0 | N31: 0 | O31: 0 | P31: 0 | Q31: 0 | R31: 0 | AB31: 0 | AC31: 0 | AD31: 0 | AE31: 0 | AF31: 0 | AG31: 0 | AH31: تم السداد أو ليست عليه إلتزامات | AI31: =يناير!AI31 -> توصيل جديد
A32: =يناير!A32 -> عبدالرحمن جمال عبدالرحمن | B32: =يناير!B32 -> 0 | C32: =يناير!C32 -> 0 | D32: 0 | E32: =يناير!E32 -> 0 | F32: =يناير!F32 -> 0 | G32: 0 | H32: =يناير!AC32 -> 0 | I32: =يناير!AD32 -> 0 | J32: =ROUND((يناير!AE32+يناير!AF32)/100,0)*100 -> 0 | K32: 0 | L32: 0 | M32: 0 | N32: 0 | O32: 0 | P32: 0 | Q32: 0 | R32: 0 | AB32: 0 | AC32: 0 | AD32: 0 | AE32: 0 | AF32: 0 | AG32: 0 | AH32: تم السداد أو ليست عليه إلتزامات | AI32: =يناير!AI32 -> للمراجعة مع المتحصل
A33: =يناير!A33 -> محمد صالح | B33: =يناير!B33 -> 0 | C33: =يناير!C33 -> 0 | D33: 0 | E33: =يناير!E33 -> 0 | F33: =يناير!F33 -> 0 | G33: 0 | H33: =يناير!AC33 -> 0 | I33: =يناير!AD33 -> 0 | J33: =ROUND((يناير!AE33+يناير!AF33)/100,0)*100 -> 0 | K33: 0 | L33: 0 | M33: 0 | N33: 0 | O33: 0 | P33: 0 | Q33: 0 | R33: 0 | AB33: 0 | AC33: 0 | AD33: 0 | AE33: 0 | AF33: 0 | AG33: 0 | AH33: تم السداد أو ليست عليه إلتزامات | AI33: =يناير!AI33 -> للمراجعة مع المتحصل
A34: =يناير!A34 -> أنور محي الدين (1) | B34: =يناير!B34 -> 0 | C34: =يناير!C34 -> 0 | D34: 0 | E34: =يناير!E34 -> 0 | F34: =يناير!F34 -> 0 | G34: 0 | H34: =يناير!AC34 -> 0 | I34: =يناير!AD34 -> 0 | J34: =ROUND((يناير!AE34+يناير!AF34)/100,0)*100 -> 0 | K34: 0 | L34: 0 | M34: 0 | N34: 0 | O34: 0 | P34: 0 | Q34: 0 | R34: 0 | AB34: 0 | AC34: 0 | AD34: 0 | AE34: 0 | AF34: 0 | AG34: 0 | AH34: تم السداد أو ليست عليه إلتزامات | AI34: =يناير!AI34 -> للمراجعة مع المتحصل
A35: =يناير!A35 -> أنور محي الدين (2) | B35: =يناير!B35 -> 0 | C35: =يناير!C35 -> 0 | D35: 0 | E35: =يناير!E35 -> 0 | F35: =يناير!F35 -> 0 | G35: 0 | H35: =يناير!AC35 -> 0 | I35: =يناير!AD35 -> 0 | J35: =ROUND((يناير!AE35+يناير!AF35)/100,0)*100 -> 0 | K35: 0 | L35: 0 | M35: 0 | N35: 0 | O35: 0 | P35: 0 | Q35: 0 | R35: 0 | AB35: 0 | AC35: 0 | AD35: 0 | AE35: 0 | AF35: =(IF(SUM(AC35:AE35)>0,IF(AB35<0,0,ROUND((SUM(AC35:AE35)/2)/100,0)*100),0)) -> 0 | AG35: 0 | AH35: تم السداد أو ليست عليه إلتزامات | AI35: =يناير!AI35 -> للمراجعة مع المتحصل
A36: =يناير!A36 -> أنور محي الدين (3) | B36: =يناير!B36 -> 0 | C36: =يناير!C36 -> 0 | D36: 0 | E36: =يناير!E36 -> 0 | F36: =يناير!F36 -> 0 | G36: 0 | H36: =يناير!AC36 -> 0 | I36: =يناير!AD36 -> 0 | J36: =ROUND((يناير!AE36+يناير!AF36)/100,0)*100 -> 0 | K36: 0 | L36: 0 | M36: 0 | N36: 0 | O36: 0 | P36: 0 | Q36: 0 | R36: 0 | AB36: 0 | AC36: 0 | AD36: 0 | AE36: 0 | AF36: 0 | AG36: 0 | AH36: تم السداد أو ليست عليه إلتزامات | AI36: =يناير!AI36 -> للمراجعة مع المتحصل
A37: =يناير!A37 -> جلال أنور | B37: =يناير!B37 -> 0 | C37: =يناير!C37 -> 0 | D37: 0 | E37: =يناير!E37 -> 0 | F37: =يناير!F37 -> 0 | G37: 0 | H37: =يناير!AC37 -> 0 | I37: =يناير!AD37 -> 0 | J37: =ROUND((يناير!AE37+يناير!AF37)/100,0)*100 -> 0 | K37: 0 | L37: 0 | M37: 0 | N37: 0 | O37: 0 | P37: 0 | Q37: 0 | R37: 0 | AB37: 0 | AC37: 0 | AD37: 0 | AE37: 0 | AF37: 0 | AG37: 0 | AH37: تم السداد أو ليست عليه إلتزامات | AI37: =يناير!AI37 -> للمراجعة مع المتحصل
A38: =يناير!A38 -> محسن فتحي | B38: =يناير!B38 -> 0 | C38: =يناير!C38 -> 0 | D38: 0 | E38: =يناير!E38 -> 0 | F38: =يناير!F38 -> 0 | G38: 0 | H38: =يناير!AC38 -> 0 | I38: =يناير!AD38 -> 0 | J38: =ROUND((يناير!AE38+يناير!AF38)/100,0)*100 -> 0 | K38: 0 | L38: 0 | M38: 0 | N38: 0 | O38: 0 | P38: 0 | Q38: 0 | R38: 0 | AB38: 0 | AC38: 0 | AD38: 0 | AE38: 0 | AF38: 0 | AG38: 0 | AH38: تم السداد أو ليست عليه إلتزامات | AI38: =يناير!AI38 -> للمراجعة مع المتحصل
A39: =يناير!A39 -> معتز صالح | B39: =يناير!B39 -> 0 | C39: =يناير!C39 -> 0 | D39: 0 | E39: =يناير!E39 -> 0 | F39: =يناير!F39 -> 0 | G39: 0 | H39: =يناير!AC39 -> 0 | I39: =يناير!AD39 -> 0 | J39: =ROUND((يناير!AE39+يناير!AF39)/100,0)*100 -> 0 | K39: 0 | L39: 0 | M39: 0 | N39: 0 | O39: 0 | P39: 0 | Q39: 0 | R39: 0 | AB39: 0 | AC39: 0 | AD39: 0 | AE39: 0 | AF39: 0 | AG39: 0 | AH39: تم السداد أو ليست عليه إلتزامات | AI39: =يناير!AI39 -> للمراجعة مع المتحصل
A40: =يناير!A40 -> صالح النور | B40: =يناير!B40 -> 0 | C40: =يناير!C40 -> 0 | D40: 0 | E40: =يناير!E40 -> 1 | F40: =يناير!F40 -> 0 | G40: 0 | H40: =يناير!AC40 -> 0 | I40: =يناير!AD40 -> 0 | J40: =ROUND((يناير!AE40+يناير!AF40)/100,0)*100 -> 0 | K40: 0 | L40: 0 | M40: 0 | N40: 0 | O40: 0 | P40: 0 | Q40: 0 | R40: 0 | AB40: 0 | AC40: 0 | AD40: 0 | AE40: 0 | AF40: 0 | AG40: 0 | AH40: تم السداد أو ليست عليه إلتزامات | AI40: =يناير!AI40 -> للمراجعة مع المتحصل
A41: =يناير!A41 -> محمد إدريس | B41: =يناير!B41 -> 0 | C41: =يناير!C41 -> 0 | D41: 0 | E41: =يناير!E41 -> 0 | F41: =يناير!F41 -> 0 | G41: 0 | H41: =يناير!AC41 -> 0 | I41: =يناير!AD41 -> 0 | J41: =ROUND((يناير!AE41+يناير!AF41)/100,0)*100 -> 0 | K41: 0 | L41: 0 | M41: 0 | N41: 0 | O41: 0 | P41: 0 | Q41: 0 | R41: 0 | AB41: 0 | AC41: 0 | AD41: 0 | AE41: 0 | AF41: 0 | AG41: 0 | AH41: تم السداد أو ليست عليه إلتزامات | AI41: =يناير!AI41 -> للمراجعة مع المتحصل
A42: =يناير!A42 -> عمر محمد السيد | B42: =يناير!B42 -> 0 | C42: =يناير!C42 -> 0 | D42: 0 | E42: =يناير!E42 -> 3 | F42: =يناير!F42 -> 0 | G42: 0 | H42: =يناير!AC42 -> 0 | I42: =يناير!AD42 -> 0 | J42: =ROUND((يناير!AE42+يناير!AF42)/100,0)*100 -> 0 | K42: 0 | L42: 0 | M42: 0 | N42: 0 | O42: 0 | P42: 0 | Q42: 0 | R42: 0 | AB42: 0 | AC42: 0 | AD42: 0 | AE42: 0 | AF42: 0 | AG42: 0 | AH42: تم السداد أو ليست عليه إلتزامات | AI42: =يناير!AI42 -> للمراجعة مع المتحصل
A43: =يناير!A43 -> منزل المرحوم إدريس السيد | B43: =يناير!B43 -> 0 | C43: =يناير!C43 -> 0 | D43: 0 | E43: =يناير!E43 -> 0 | F43: =يناير!F43 -> 0 | G43: 0 | H43: =يناير!AC43 -> 0 | I43: =يناير!AD43 -> 0 | J43: =ROUND((يناير!AE43+يناير!AF43)/100,0)*100 -> 0 | K43: 0 | L43: 0 | M43: 0 | N43: 0 | O43: 0 | P43: 0 | Q43: 0 | R43: 0 | AB43: 0 | AC43: 0 | AD43: 0 | AE43: 0 | AF43: 0 | AG43: 0 | AH43: تم السداد أو ليست عليه إلتزامات | AI43: =يناير!AI43 -> للمراجعة مع المتحصل
A44: =يناير!A44 -> صفوان مهدي الزين | B44: =يناير!B44 -> 0 | C44: =يناير!C44 -> 0 | D44: 0 | E44: =يناير!E44 -> 4 | F44: =يناير!F44 -> 6 | G44: 9000 | H44: =يناير!AC44 -> 0 | I44: =يناير!AD44 -> 45600 | J44: =ROUND((يناير!AE44+يناير!AF44)/100,0)*100 -> 22800 | K44: 68400 | L44: 0 | M44: 9000 | N44: 9000 | O44: 0 | P44: 54600 | Q44: 22800 | R44: 77400 | AB44: 0 | AC44: 0 | AD44: 54600 | AE44: 22800 | AF44: 38700 | AG44: 116100 | AH44: مفصول | AI44: =يناير!AI44 -> للمراجعة مع المتحصل
A45: =يناير!A45 -> أحمد صالح | B45: =يناير!B45 -> 0 | C45: =يناير!C45 -> 0 | D45: 0 | E45: =يناير!E45 -> 2 | F45: =يناير!F45 -> 0 | G45: 0 | H45: =يناير!AC45 -> 0 | I45: =يناير!AD45 -> 0 | J45: =ROUND((يناير!AE45+يناير!AF45)/100,0)*100 -> 0 | K45: 0 | L45: 0 | M45: 0 | N45: 0 | O45: 0 | P45: 0 | Q45: 0 | R45: 0 | AB45: 0 | AC45: 0 | AD45: 0 | AE45: 0 | AF45: 0 | AG45: 0 | AH45: تم السداد أو ليست عليه إلتزامات | AI45: =يناير!AI45 -> للمراجعة مع المتحصل
A46: =يناير!A46 -> محجوب محمد صالح | B46: =يناير!B46 -> 0 | C46: =يناير!C46 -> 0 | D46: 0 | E46: =يناير!E46 -> 3 | F46: =يناير!F46 -> 0 | G46: 0 | H46: =يناير!AC46 -> 0 | I46: =يناير!AD46 -> 0 | J46: =ROUND((يناير!AE46+يناير!AF46)/100,0)*100 -> 0 | K46: 0 | L46: 0 | M46: 0 | N46: 0 | O46: 0 | P46: 0 | Q46: 0 | R46: 0 | AB46: 0 | AC46: 0 | AD46: 0 | AE46: 0 | AF46: 0 | AG46: 0 | AH46: تم السداد أو ليست عليه إلتزامات | AI46: =يناير!AI46 -> للمراجعة مع المتحصل
A47: =يناير!A47 -> عادل عبدالله | B47: =يناير!B47 -> 0 | C47: =يناير!C47 -> 0 | D47: 0 | E47: =يناير!E47 -> 11 | F47: =يناير!F47 -> 0 | G47: 0 | H47: =يناير!AC47 -> 0 | I47: =يناير!AD47 -> 0 | J47: =ROUND((يناير!AE47+يناير!AF47)/100,0)*100 -> 0 | K47: 0 | L47: 0 | M47: 0 | N47: 0 | O47: 0 | P47: 0 | Q47: 0 | R47: 0 | AB47: 0 | AC47: 0 | AD47: 0 | AE47: 0 | AF47: 0 | AG47: 0 | AH47: تم السداد أو ليست عليه إلتزامات | AI47: =يناير!AI47 -> للمراجعة مع المتحصل
A48: =يناير!A48 -> حسن الزين ودصالح | B48: =يناير!B48 -> 0 | C48: =يناير!C48 -> 0 | D48: 0 | E48: =يناير!E48 -> 2 | F48: =يناير!F48 -> 0 | G48: 0 | H48: =يناير!AC48 -> 0 | I48: =يناير!AD48 -> 0 | J48: =ROUND((يناير!AE48+يناير!AF48)/100,0)*100 -> 0 | K48: 0 | L48: 0 | M48: 0 | N48: 0 | O48: 0 | P48: 0 | Q48: 0 | R48: 0 | AB48: 0 | AC48: 0 | AD48: 0 | AE48: 0 | AF48: 0 | AG48: 0 | AH48: تم السداد أو ليست عليه إلتزامات | AI48: =يناير!AI48 -> للمراجعة مع المتحصل
A49: =يناير!A49 -> أحمد محجوب | B49: =يناير!B49 -> 0 | C49: =يناير!C49 -> 0 | D49: 0 | E49: =يناير!E49 -> 1 | F49: =يناير!F49 -> 0 | G49: 0 | H49: =يناير!AC49 -> 0 | I49: =يناير!AD49 -> 0 | J49: =ROUND((يناير!AE49+يناير!AF49)/100,0)*100 -> 0 | K49: 0 | L49: 0 | M49: 0 | N49: 0 | O49: 0 | P49: 0 | Q49: 0 | R49: 0 | AB49: 0 | AC49: 0 | AD49: 0 | AE49: 0 | AF49: 0 | AG49: 0 | AH49: تم السداد أو ليست عليه إلتزامات | AI49: =يناير!AI49 -> للمراجعة مع المتحصل
A50: =يناير!A50 -> راشد ودحجه | B50: =يناير!B50 -> 0 | C50: =يناير!C50 -> 0 | D50: 0 | E50: =يناير!E50 -> 0 | F50: =يناير!F50 -> 0 | G50: 0 | H50: =يناير!AC50 -> 0 | I50: =يناير!AD50 -> 0 | J50: =ROUND((يناير!AE50+يناير!AF50)/100,0)*100 -> 0 | K50: 0 | L50: 0 | M50: 0 | N50: 0 | O50: 0 | P50: 0 | Q50: 0 | R50: 0 | AB50: 0 | AC50: 0 | AD50: 0 | AE50: 0 | AF50: 0 | AG50: 0 | AH50: تم السداد أو ليست عليه إلتزامات | AI50: =يناير!AI50 -> للمراجعة مع المتحصل
A51: =يناير!A51 -> محمد صلاح | B51: =يناير!B51 -> 0 | C51: =يناير!C51 -> 0 | D51: 0 | E51: =يناير!E51 -> 0 | F51: =يناير!F51 -> 0 | G51: 0 | H51: =يناير!AC51 -> 0 | I51: =يناير!AD51 -> 0 | J51: =ROUND((يناير!AE51+يناير!AF51)/100,0)*100 -> 0 | K51: 0 | L51: 0 | M51: 0 | N51: 0 | O51: 0 | P51: 0 | Q51: 0 | R51: 0 | AB51: 0 | AC51: 0 | AD51: 0 | AE51: 0 | AF51: 0 | AG51: 0 | AH51: تم السداد أو ليست عليه إلتزامات | AI51: =يناير!AI51 -> للمراجعة مع المتحصل
A52: =يناير!A52 -> الفاضل محمدعلي | B52: =يناير!B52 -> 0 | C52: =يناير!C52 -> 0 | D52: 0 | E52: =يناير!E52 -> 0 | F52: =يناير!F52 -> 0 | G52: 0 | H52: =يناير!AC52 -> 0 | I52: =يناير!AD52 -> 0 | J52: =ROUND((يناير!AE52+يناير!AF52)/100,0)*100 -> 0 | K52: 0 | L52: 0 | M52: 0 | N52: 0 | O52: 0 | P52: 0 | Q52: 0 | R52: 0 | AB52: 0 | AC52: 0 | AD52: 0 | AE52: 0 | AF52: 0 | AG52: 0 | AH52: تم السداد أو ليست عليه إلتزامات | AI52: =يناير!AI52 -> للمراجعة مع المتحصل | AK52: الإجمالي | AM52: =SUM(AM3:AM51) -> 0
A53: =يناير!A53 -> سعاد ودحجه | B53: =يناير!B53 -> 0 | C53: =يناير!C53 -> 0 | D53: 0 | E53: =يناير!E53 -> 2 | F53: =يناير!F53 -> 0 | G53: 0 | H53: =يناير!AC53 -> 0 | I53: =يناير!AD53 -> 0 | J53: =ROUND((يناير!AE53+يناير!AF53)/100,0)*100 -> 0 | K53: 0 | L53: 0 | M53: 0 | N53: 0 | O53: 0 | P53: 0 | Q53: 0 | R53: 0 | AB53: 0 | AC53: 0 | AD53: 0 | AE53: 0 | AF53: 0 | AG53: 0 | AH53: تم السداد أو ليست عليه إلتزامات | AI53: =يناير!AI53 -> للمراجعة مع المتحصل
A54: =يناير!A54 -> أحمد الفقير | B54: =يناير!B54 -> 0 | C54: =يناير!C54 -> 0 | D54: 0 | E54: =يناير!E54 -> 2 | F54: =يناير!F54 -> 0 | G54: 0 | H54: =يناير!AC54 -> 0 | I54: =يناير!AD54 -> 0 | J54: =ROUND((يناير!AE54+يناير!AF54)/100,0)*100 -> 0 | K54: 0 | L54: 0 | M54: 0 | N54: 0 | O54: 0 | P54: 0 | Q54: 0 | R54: 0 | AB54: 0 | AC54: 0 | AD54: 0 | AE54: 0 | AF54: 0 | AG54: 0 | AH54: تم السداد أو ليست عليه إلتزامات | AI54: =يناير!AI54 -> للمراجعة مع المتحصل
A55: =يناير!A55 -> عبدالقادر خالد محمدعلي الفقير | B55: =يناير!B55 -> 0 | C55: =يناير!C55 -> 0 | D55: 0 | E55: =يناير!E55 -> 3 | F55: =يناير!F55 -> 0 | G55: 0 | H55: =يناير!AC55 -> 0 | I55: =يناير!AD55 -> 0 | J55: =ROUND((يناير!AE55+يناير!AF55)/100,0)*100 -> 0 | K55: 0 | L55: 0 | M55: 0 | N55: 0 | O55: 0 | P55: 0 | Q55: 0 | R55: 0 | AB55: 0 | AC55: 0 | AD55: 0 | AE55: 0 | AF55: 0 | AG55: 0 | AH55: تم السداد أو ليست عليه إلتزامات | AI55: =يناير!AI55 -> للمراجعة مع المتحصل
A56: =يناير!A56 -> وليد الفقير | B56: =يناير!B56 -> 0 | C56: =يناير!C56 -> 0 | D56: 0 | E56: =يناير!E56 -> 0 | F56: =يناير!F56 -> 0 | G56: 0 | H56: =يناير!AC56 -> 0 | I56: =يناير!AD56 -> 0 | J56: =ROUND((يناير!AE56+يناير!AF56)/100,0)*100 -> 0 | K56: 0 | L56: 0 | M56: 0 | N56: 0 | O56: 0 | P56: 0 | Q56: 0 | R56: 0 | AB56: 0 | AC56: 0 | AD56: 0 | AE56: 0 | AF56: 0 | AG56: 0 | AH56: تم السداد أو ليست عليه إلتزامات | AI56: =يناير!AI56 -> للمراجعة مع المتحصل
A57: =يناير!A57 -> خالد محمدعلي الفقير | B57: =يناير!B57 -> 0 | C57: =يناير!C57 -> 0 | D57: 0 | E57: =يناير!E57 -> 3 | F57: =يناير!F57 -> 0 | G57: 0 | H57: =يناير!AC57 -> 0 | I57: =يناير!AD57 -> 0 | J57: =ROUND((يناير!AE57+يناير!AF57)/100,0)*100 -> 0 | K57: 0 | L57: 0 | M57: 0 | N57: 0 | O57: 0 | P57: 0 | Q57: 0 | R57: 0 | AB57: 0 | AC57: 0 | AD57: 0 | AE57: 0 | AF57: 0 | AG57: 0 | AH57: تم السداد أو ليست عليه إلتزامات | AI57: =يناير!AI57 -> للمراجعة مع المتحصل
A58: =يناير!A58 -> مصعب خالد | B58: =يناير!B58 -> 0 | C58: =يناير!C58 -> 0 | D58: 0 | E58: =يناير!E58 -> 4 | F58: =يناير!F58 -> 10 | G58: 15000 | H58: =يناير!AC58 -> 0 | I58: =يناير!AD58 -> 76000 | J58: =ROUND((يناير!AE58+يناير!AF58)/100,0)*100 -> 38000 | K58: 114000 | L58: 0 | M58: 15000 | N58: 15000 | O58: 0 | P58: 91000 | Q58: 38000 | R58: 129000 | AB58: 0 | AC58: 0 | AD58: 91000 | AE58: 38000 | AF58: 64500 | AG58: 193500 | AH58: مفصول | AI58: =يناير!AI58 -> للمراجعة مع المتحصل
A59: =يناير!A59 -> عماد إبراهيم السيد | B59: =يناير!B59 -> 0 | C59: =يناير!C59 -> 0 | D59: 0 | E59: =يناير!E59 -> 1 | F59: =يناير!F59 -> 0 | G59: 0 | H59: =يناير!AC59 -> 0 | I59: =يناير!AD59 -> 0 | J59: =ROUND((يناير!AE59+يناير!AF59)/100,0)*100 -> 0 | K59: 0 | L59: 0 | M59: 0 | N59: 0 | O59: 0 | P59: 0 | Q59: 0 | R59: 0 | AB59: 0 | AC59: 0 | AD59: 0 | AE59: 0 | AF59: 0 | AG59: 0 | AH59: تم السداد أو ليست عليه إلتزامات | AI59: =يناير!AI59 -> للمراجعة مع المتحصل
A60: =يناير!A60 -> العاقب الزين | B60: =يناير!B60 -> مأهول | C60: =يناير!C60 -> 0 | D60: 5000 | E60: =يناير!E60 -> 0 | F60: =يناير!F60 -> 0 | G60: 5000 | H60: =يناير!AC60 -> 30000 | I60: =يناير!AD60 -> 0 | J60: =ROUND((يناير!AE60+يناير!AF60)/100,0)*100 -> 15000 | K60: 45000 | L60: 5000 | M60: 0 | N60: 5000 | O60: 35000 | P60: 0 | Q60: 15000 | R60: 50000 | AB60: 0 | AC60: 35000 | AD60: 0 | AE60: 15000 | AF60: 25000 | AG60: 75000 | AH60: مفصول | AI60: =يناير!AI60 -> للمراجعة مع المتحصل
A61: =يناير!A61 -> 0 | B61: =يناير!B61 -> 0 | C61: =يناير!C61 -> 0 | D61: 0 | E61: =يناير!E61 -> 0 | F61: =يناير!F61 -> 0 | G61: 0 | H61: =يناير!AC61 -> 0 | I61: =يناير!AD61 -> 0 | J61: =ROUND((يناير!AE61+يناير!AF61)/100,0)*100 -> 0 | K61: 0 | L61: 0 | M61: 0 | N61: 0 | O61: 0 | P61: 0 | Q61: 0 | R61: 0 | AB61: 0 | AC61: 0 | AD61: 0 | AE61: 0 | AF61: 0 | AG61: 0 | AH61: تم السداد أو ليست عليه إلتزامات | AI61: =يناير!AI61 -> 0
A62: =يناير!A62 -> 0 | B62: =يناير!B62 -> 0 | C62: =يناير!C62 -> 0 | D62: 0 | E62: =يناير!E62 -> 0 | F62: =يناير!F62 -> 0 | G62: 0 | H62: =يناير!AC62 -> 0 | I62: =يناير!AD62 -> 0 | J62: =ROUND((يناير!AE62+يناير!AF62)/100,0)*100 -> 0 | K62: 0 | L62: 0 | M62: 0 | N62: 0 | O62: 0 | P62: 0 | Q62: 0 | R62: 0 | AB62: 0 | AC62: 0 | AD62: 0 | AE62: 0 | AF62: 0 | AG62: 0 | AH62: تم السداد أو ليست عليه إلتزامات | AI62: =يناير!AI62 -> 0
A63: =يناير!A63 -> 0 | B63: =يناير!B63 -> 0 | C63: =يناير!C63 -> 0 | D63: 0 | E63: =يناير!E63 -> 0 | F63: =يناير!F63 -> 0 | G63: 0 | H63: =يناير!AC63 -> 0 | I63: =يناير!AD63 -> 0 | J63: =ROUND((يناير!AE63+يناير!AF63)/100,0)*100 -> 0 | K63: 0 | L63: 0 | M63: 0 | N63: 0 | O63: 0 | P63: 0 | Q63: 0 | R63: 0 | AB63: 0 | AC63: 0 | AD63: 0 | AE63: 0 | AF63: 0 | AG63: 0 | AH63: تم السداد أو ليست عليه إلتزامات | AI63: =يناير!AI63 -> 0
A64: =يناير!A64 -> 0 | B64: =يناير!B64 -> 0 | C64: =يناير!C64 -> 0 | D64: 0 | E64: =يناير!E64 -> 0 | F64: =يناير!F64 -> 0 | G64: 0 | H64: =يناير!AC64 -> 0 | I64: =يناير!AD64 -> 0 | J64: =ROUND((يناير!AE64+يناير!AF64)/100,0)*100 -> 0 | K64: 0 | L64: 0 | M64: 0 | N64: 0 | O64: 0 | P64: 0 | Q64: 0 | R64: 0 | AB64: 0 | AC64: 0 | AD64: 0 | AE64: 0 | AF64: 0 | AG64: 0 | AH64: تم السداد أو ليست عليه إلتزامات | AI64: =يناير!AI64 -> 0
A65: =يناير!A65 -> 0 | B65: =يناير!B65 -> 0 | C65: =يناير!C65 -> 0 | D65: 0 | E65: =يناير!E65 -> 0 | F65: =يناير!F65 -> 0 | G65: 0 | H65: =يناير!AC65 -> 0 | I65: =يناير!AD65 -> 0 | J65: =ROUND((يناير!AE65+يناير!AF65)/100,0)*100 -> 0 | K65: 0 | L65: 0 | M65: 0 | N65: 0 | O65: 0 | P65: 0 | Q65: 0 | R65: 0 | AB65: 0 | AC65: 0 | AD65: 0 | AE65: 0 | AF65: 0 | AG65: 0 | AH65: تم السداد أو ليست عليه إلتزامات | AI65: =يناير!AI65 -> 0
A66: =يناير!A66 -> 0 | B66: =يناير!B66 -> 0 | C66: =يناير!C66 -> 0 | D66: 0 | E66: =يناير!E66 -> 0 | F66: =يناير!F66 -> 0 | G66: 0 | H66: =يناير!AC66 -> 0 | I66: =يناير!AD66 -> 0 | J66: =ROUND((يناير!AE66+يناير!AF66)/100,0)*100 -> 0 | K66: 0 | L66: 0 | M66: 0 | N66: 0 | O66: 0 | P66: 0 | Q66: 0 | R66: 0 | AB66: 0 | AC66: 0 | AD66: 0 | AE66: 0 | AF66: 0 | AG66: 0 | AH66: تم السداد أو ليست عليه إلتزامات | AI66: =يناير!AI66 -> 0
A67: =يناير!A67 -> 0 | B67: =يناير!B67 -> 0 | C67: =يناير!C67 -> 0 | D67: 0 | E67: =يناير!E67 -> 0 | F67: =يناير!F67 -> 0 | G67: 0 | H67: =يناير!AC67 -> 0 | I67: =يناير!AD67 -> 0 | J67: =ROUND((يناير!AE67+يناير!AF67)/100,0)*100 -> 0 | K67: 0 | L67: 0 | M67: 0 | N67: 0 | O67: 0 | P67: 0 | Q67: 0 | R67: 0 | AB67: 0 | AC67: 0 | AD67: 0 | AE67: 0 | AF67: =(IF(SUM(AC67:AE67)>0,IF(AB67<0,0,ROUND((SUM(AC67:AE67)/2)/100,0)*100),0)) -> 0 | AG67: 0 | AH67: تم السداد أو ليست عليه إلتزامات | AI67: =يناير!AI67 -> 0
A68: =يناير!A68 -> 0 | B68: =يناير!B68 -> 0 | C68: =يناير!C68 -> 0 | D68: =IF(B68="مأهول",5000,0) -> 0 | E68: =يناير!E68 -> 0 | F68: =يناير!F68 -> 0 | G68: =D68+(F68*1500) -> 0 | H68: =يناير!AC68 -> 0 | I68: =يناير!AD68 -> 0 | J68: =ROUND((يناير!AE68+يناير!AF68)/100,0)*100 -> 0 | K68: =ROUND((SUM(H68:J68))/100,0)*100 -> 0 | L68: =D68 -> 0 | M68: =(F68*1500) -> 0 | N68: =SUM(L68:M68) -> 0 | O68: =ROUND((H68+L68)/100,0)*100 -> 0 | P68: 0 | Q68: =J68 -> 0 | R68: =ROUND((SUM(O68:Q68))/100,0)*100 -> 0 | AB68: =SUM(V68:AA68) -> 0 | AC68: =ROUND((O68-V68)/100,0)*100 -> 0 | AD68: 0 | AE68: =ROUND((Q68-Z68)/100,0)*100 -> 0 | AF68: 0 | AG68: =ROUND(SUM(AC68:AF68)/50,0)*50 -> 0 | AH68: =IF(A68<>"",_xlfn.IFS(AG68>(G68*3),"مفصول",AG68=0,"تم السداد أو ليست عليه إلتزامات",AG68<0,"له باقي طرفنا",0<AG68>(G68*3),"لم يتم السداد"),"") -> تم السداد أو ليست عليه إلتزامات | AI68: =يناير!AI68 -> 0
A69: =يناير!A69 -> 0 | B69: =يناير!B69 -> 0 | C69: =يناير!C69 -> 0 | D69: =IF(B69="مأهول",5000,0) -> 0 | E69: =يناير!E69 -> 0 | F69: =يناير!F69 -> 0 | G69: 0 | H69: =يناير!AC69 -> 0 | I69: =يناير!AD69 -> 0 | J69: =ROUND((يناير!AE69+يناير!AF69)/100,0)*100 -> 0 | K69: =ROUND((SUM(H69:J69))/100,0)*100 -> 0 | L69: =D69 -> 0 | M69: 0 | N69: =SUM(L69:M69) -> 0 | O69: 0 | P69: 0 | Q69: =J69 -> 0 | R69: =ROUND((SUM(O69:Q69))/100,0)*100 -> 0 | AB69: =SUM(V69:AA69) -> 0 | AC69: 0 | AD69: 0 | AE69: =ROUND((Q69-Z69)/100,0)*100 -> 0 | AF69: 0 | AG69: =ROUND(SUM(AC69:AF69)/50,0)*50 -> 0 | AH69: =IF(A69<>"",_xlfn.IFS(AG69>(G69*3),"مفصول",AG69=0,"تم السداد أو ليست عليه إلتزامات",AG69<0,"له باقي طرفنا",0<AG69>(G69*3),"لم يتم السداد"),"") -> تم السداد أو ليست عليه إلتزامات | AI69: =يناير!AI69 -> 0
A70: =يناير!A70 -> 0 | B70: =يناير!B70 -> 0 | C70: =يناير!C70 -> 0 | D70: =IF(B70="مأهول",5000,0) -> 0 | E70: =يناير!E70 -> 0 | F70: =يناير!F70 -> 0 | G70: 0 | H70: =يناير!AC70 -> 0 | I70: =يناير!AD70 -> 0 | J70: =ROUND((يناير!AE70+يناير!AF70)/100,0)*100 -> 0 | K70: =ROUND((SUM(H70:J70))/100,0)*100 -> 0 | L70: =D70 -> 0 | M70: 0 | N70: =SUM(L70:M70) -> 0 | O70: 0 | P70: 0 | Q70: =J70 -> 0 | R70: =ROUND((SUM(O70:Q70))/100,0)*100 -> 0 | AB70: =SUM(V70:AA70) -> 0 | AC70: 0 | AD70: 0 | AE70: =ROUND((Q70-Z70)/100,0)*100 -> 0 | AF70: 0 | AG70: =ROUND(SUM(AC70:AF70)/50,0)*50 -> 0 | AH70: =IF(A70<>"",_xlfn.IFS(AG70>(G70*3),"مفصول",AG70=0,"تم السداد أو ليست عليه إلتزامات",AG70<0,"له باقي طرفنا",0<AG70>(G70*3),"لم يتم السداد"),"") -> تم السداد أو ليست عليه إلتزامات | AI70: =يناير!AI70 -> 0
A71: =يناير!A71 -> 0 | B71: =يناير!B71 -> 0 | C71: =يناير!C71 -> 0 | D71: =IF(B71="مأهول",5000,0) -> 0 | E71: =يناير!E71 -> 0 | F71: =يناير!F71 -> 0 | G71: 0 | H71: =يناير!AC71 -> 0 | I71: =يناير!AD71 -> 0 | J71: =ROUND((يناير!AE71+يناير!AF71)/100,0)*100 -> 0 | K71: =ROUND((SUM(H71:J71))/100,0)*100 -> 0 | L71: =D71 -> 0 | M71: 0 | N71: =SUM(L71:M71) -> 0 | O71: 0 | P71: 0 | Q71: =J71 -> 0 | R71: =ROUND((SUM(O71:Q71))/100,0)*100 -> 0 | AB71: =SUM(V71:AA71) -> 0 | AC71: 0 | AD71: 0 | AE71: =ROUND((Q71-Z71)/100,0)*100 -> 0 | AF71: 0 | AG71: =ROUND(SUM(AC71:AF71)/50,0)*50 -> 0 | AH71: =IF(A71<>"",_xlfn.IFS(AG71>(G71*3),"مفصول",AG71=0,"تم السداد أو ليست عليه إلتزامات",AG71<0,"له باقي طرفنا",0<AG71>(G71*3),"لم يتم السداد"),"") -> تم السداد أو ليست عليه إلتزامات | AI71: =يناير!AI71 -> 0
A72: =يناير!A72 -> 0 | B72: =يناير!B72 -> 0 | C72: =يناير!C72 -> 0 | D72: =IF(B72="مأهول",5000,0) -> 0 | E72: =يناير!E72 -> 0 | F72: =يناير!F72 -> 0 | G72: 0 | H72: =يناير!AC72 -> 0 | I72: =يناير!AD72 -> 0 | J72: =ROUND((يناير!AE72+يناير!AF72)/100,0)*100 -> 0 | K72: =ROUND((SUM(H72:J72))/100,0)*100 -> 0 | L72: =D72 -> 0 | M72: 0 | N72: =SUM(L72:M72) -> 0 | O72: 0 | P72: 0 | Q72: =J72 -> 0 | R72: =ROUND((SUM(O72:Q72))/100,0)*100 -> 0 | AB72: =SUM(V72:AA72) -> 0 | AC72: 0 | AD72: 0 | AE72: =ROUND((Q72-Z72)/100,0)*100 -> 0 | AF72: 0 | AG72: =ROUND(SUM(AC72:AF72)/50,0)*50 -> 0 | AH72: =IF(A72<>"",_xlfn.IFS(AG72>(G72*3),"مفصول",AG72=0,"تم السداد أو ليست عليه إلتزامات",AG72<0,"له باقي طرفنا",0<AG72>(G72*3),"لم يتم السداد"),"") -> تم السداد أو ليست عليه إلتزامات | AI72: =يناير!AI72 -> 0
A73: الإجمالي | D73: =SUM(D3:D72) -> 120000 | E73: =SUM(E3:E72) -> 77 | F73: =SUM(F3:F72) -> 24 | G73: =SUM(G3:G72) -> 156000 | H73: =SUM(H3:H72) -> 196000 | I73: =SUM(I3:I72) -> 80600 | J73: 138400 | K73: 415000 | L73: 120000 | M73: 36000 | N73: 156000 | O73: 316000 | P73: 116600 | Q73: 138400 | R73: 571000 | V73: =SUM(V3:V72) -> 0 | W73: =SUM(W3:W72) -> 0 | X73: 0 | Y73: 0 | Z73: =SUM(Z3:Z72) -> 0 | AA73: 0 | AB73: =SUM(AB3:AB72) -> 0 | AC73: 316000 | AD73: =SUM(AD3:AD72) -> 116600 | AE73: =SUM(AE3:AE72) -> 138400 | AF73: 286600 | AG73: 857600
A76: البيان | B76: المبلغ | C76: ملحوظات
A77: إجمالي التحصيل الشهري | B77: =AB73 -> 0
A78: مديونية سابقة على المتحصل | B78: =يناير!B82 -> -4000
A79: إستلام أمين الصندوق | B79: =AM52 -> 0
A80: المطلوب من المتحصل | B80: =(B77+B78)-B79 -> -4000
A81: السداد
A82: الباقي | B82: =B80-B81 -> -4000
A83: مأهول
A84: شتول
A85: جديد
A86: مغلق
A87: مفصول
A88: معفي

Sheet مارس
A1: البيانات الشخصية | G1: الربط | H1: المتأخرات حتى نهاية فبراير 2026م | L1: جاري مارس 2026م | O1: المطلوب حتى نهاية مارس 2026م | S1: تفاصيل السداد خلال مارس 2026م | AC1: المتأخرات حتى نهاية مارس 2026م | AH1: موقف السداد | AI1: ملاحظات | AK1: إستلام أمين الصندوق
A2: الإسم | B2: المنزل | C2: الهاتف | D2: السكني | E2: شتول الربط | F2: شتول خ. الربط | G2: الشهري | H2: السكني | I2: الشتول | J2: غرامات | K2: الإجمالي | L2: السكني | M2: الشتول | N2: الإجمالي | O2: السكني | P2: الشتول | Q2: غرامات | R2: الإجمالي | S2: التاريخ | T2: رقم الإيصال | U2: رقم الدفتر | V2: السكني | W2: الشتول | X2: توصيل | Y2: مباني | Z2: غرامات | AA2: أخرى | AB2: الإجمالي | AC2: السكني | AD2: الشتول | AE2: الغرامات | AF2: غرامة تأخير سداد | AG2: الإجمالي | AK2: التاريخ | AL2: الإسم | AM2: المبلغ | AN2: ملحوظات
A3: =فبراير!A3 -> منزل المرحوم عبدالله محمد صالح (ودحجه) | B3: =فبراير!B3 -> مأهول | C3: =فبراير!C3 -> 913223640 | D3: =IF(B3="مأهول",5000,0) -> 5000 | E3: =فبراير!E3 -> 2 | F3: =فبراير!F3 -> 0 | G3: =D3+(F3*1500) -> 5000 | H3: =فبراير!AC3 -> 10000 | I3: =فبراير!AD3 -> 0 | J3: =ROUND((فبراير!AE3+فبراير!AF3)/100,0)*100 -> 8800 | K3: =ROUND((SUM(H3:J3))/100,0)*100 -> 18800 | L3: =D3 -> 5000 | M3: =(F3*1500) -> 0 | N3: =SUM(L3:M3) -> 5000 | O3: =ROUND((H3+L3)/100,0)*100 -> 15000 | P3: =ROUND((I3+M3)/100,0)*100 -> 0 | Q3: =J3 -> 8800 | R3: =ROUND((SUM(O3:Q3))/100,0)*100 -> 23800 | AB3: =SUM(V3:AA3) -> 0 | AC3: =ROUND((O3-V3)/100,0)*100 -> 15000 | AD3: =ROUND((P3-W3)/100,0)*100 -> 0 | AE3: =ROUND((Q3-Z3)/100,0)*100 -> 8800 | AF3: =(IF(SUM(AC3:AE3)>0,IF(AB3<0,0,ROUND((SUM(AC3:AE3)/2)/100,0)*100),0)) -> 11900 | AG3: =ROUND(SUM(AC3:AF3)/100,0)*100 -> 35700 | AH3: =IF(A3<>"",_xlfn.IFS(AG3>(G3*3),"مفصول",AG3=0,"تم السداد أو ليست عليه إلتزامات",AG3<0,"له باقي طرفنا",0<AG3>(G3*3),"لم يتم السداد"),"") -> مفصول | AI3: =فبراير!AI3 -> سداد حتى نهاية ديسمبر 2025م.
A4: =فبراير!A4 -> مبارك عبدالله محمد صالح | B4: =فبراير!B4 -> مأهول | C4: =فبراير!C4 -> 912572291 | D4: =IF(B4="مأهول",5000,0) -> 5000 | E4: =فبراير!E4 -> 1 | F4: =فبراير!F4 -> 0 | G4: =D4+(F4*1500) -> 5000 | H4: =فبراير!AC4 -> 14000 | I4: =فبراير!AD4 -> -4000 | J4: =ROUND((فبراير!AE4+فبراير!AF4)/100,0)*100 -> 8800 | K4: =ROUND((SUM(H4:J4))/100,0)*100 -> 18800 | L4: =D4 -> 5000 | M4: =(F4*1500) -> 0 | N4: =SUM(L4:M4) -> 5000 | O4: =ROUND((H4+L4)/100,0)*100 -> 19000 | P4: -4000 | Q4: =J4 -> 8800 | R4: =ROUND((SUM(O4:Q4))/100,0)*100 -> 23800 | AB4: =SUM(V4:AA4) -> 0 | AC4: =ROUND((O4-V4)/100,0)*100 -> 19000 | AD4: -4000 | AE4: =ROUND((Q4-Z4)/100,0)*100 -> 8800 | AF4: 11900 | AG4: =ROUND(SUM(AC4:AF4)/50,0)*50 -> 35700 | AH4: =IF(A4<>"",_xlfn.IFS(AG4>(G4*3),"مفصول",AG4=0,"تم السداد أو ليست عليه إلتزامات",AG4<0,"له باقي طرفنا",0<AG4>(G4*3),"لم يتم السداد"),"") -> مفصول | AI4: =فبراير!AI4 -> سداد حتى نهاية ديسمبر 2025م.
A5: =فبراير!A5 -> خالد عبدالله محمد صالح | B5: =فبراير!B5 -> مأهول | C5: =فبراير!C5 -> 916713241 | D5: 5000 | E5: =فبراير!E5 -> 2 | F5: =فبراير!F5 -> 0 | G5: 5000 | H5: =فبراير!AC5 -> 14000 | I5: =فبراير!AD5 -> -4000 | J5: =ROUND((فبراير!AE5+فبراير!AF5)/100,0)*100 -> 8800 | K5: 18800 | L5: 5000 | M5: 0 | N5: 5000 | O5: 19000 | P5: -4000 | Q5: 8800 | R5: 23800 | AB5: 0 | AC5: 19000 | AD5: -4000 | AE5: 8800 | AF5: 11900 | AG5: 35700 | AH5: مفصول | AI5: =فبراير!AI5 -> سداد حتى نهاية ديسمبر 2025م.
A6: =فبراير!A6 -> الفاضل عبدالله محمد صالح | B6: =فبراير!B6 -> مغلق | C6: =فبراير!C6 -> 917924080 | D6: 0 | E6: =فبراير!E6 -> 1 | F6: =فبراير!F6 -> 0 | G6: 0 | H6: =فبراير!AC6 -> 0 | I6: =فبراير!AD6 -> 0 | J6: =ROUND((فبراير!AE6+فبراير!AF6)/100,0)*100 -> 0 | K6: 0 | L6: 0 | M6: 0 | N6: 0 | O6: 0 | P6: 0 | Q6: 0 | R6: 0 | AB6: 0 | AC6: 0 | AD6: 0 | AE6: 0 | AF6: 0 | AG6: 0 | AH6: تم السداد أو ليست عليه إلتزامات | AI6: =فبراير!AI6 -> سداد حتى نهاية ديسمبر 2025م.
A7: =فبراير!A7 -> بكري عبدالرحمن ود صالح | B7: =فبراير!B7 -> مأهول | C7: =فبراير!C7 -> 126793356 | D7: 5000 | E7: =فبراير!E7 -> 1 | F7: =فبراير!F7 -> 0 | G7: 5000 | H7: =فبراير!AC7 -> 12000 | I7: =فبراير!AD7 -> -2000 | J7: =ROUND((فبراير!AE7+فبراير!AF7)/100,0)*100 -> 8800 | K7: 18800 | L7: 5000 | M7: 0 | N7: 5000 | O7: 17000 | P7: -2000 | Q7: 8800 | R7: 23800 | AB7: 0 | AC7: 17000 | AD7: -2000 | AE7: 8800 | AF7: 11900 | AG7: 35700 | AH7: مفصول | AI7: =فبراير!AI7 -> سداد حتى نهاية ديسمبر 2025م.
A8: =فبراير!A8 -> جمال عبدالرحمن ود صالح | B8: =فبراير!B8 -> مأهول | C8: =فبراير!C8 -> 124317243 | D8: 5000 | E8: =فبراير!E8 -> 0 | F8: =فبراير!F8 -> 0 | G8: 5000 | H8: =فبراير!AC8 -> 10000 | I8: =فبراير!AD8 -> 0 | J8: =ROUND((فبراير!AE8+فبراير!AF8)/100,0)*100 -> 8800 | K8: 18800 | L8: 5000 | M8: 0 | N8: 5000 | O8: 15000 | P8: 0 | Q8: 8800 | R8: 23800 | AB8: 0 | AC8: 15000 | AD8: 0 | AE8: 8800 | AF8: 11900 | AG8: 35700 | AH8: مفصول | AI8: =فبراير!AI8 -> سداد حتى نهاية ديسمبر 2025م.
A9: =فبراير!A9 -> صلاح عبدالرحمن ود صالح | B9: =فبراير!B9 -> مأهول | C9: =فبراير!C9 -> 121347090 | D9: 5000 | E9: =فبراير!E9 -> 2 | F9: =فبراير!F9 -> 0 | G9: 5000 | H9: =فبراير!AC9 -> 14000 | I9: =فبراير!AD9 -> -4000 | J9: =ROUND((فبراير!AE9+فبراير!AF9)/100,0)*100 -> 8800 | K9: 18800 | L9: 5000 | M9: 0 | N9: 5000 | O9: 19000 | P9: -4000 | Q9: 8800 | R9: 23800 | AB9: 0 | AC9: 19000 | AD9: -4000 | AE9: 8800 | AF9: 11900 | AG9: 35700 | AH9: مفصول | AI9: =فبراير!AI9 -> سداد حتى نهاية ديسمبر 2025م.
A10: =فبراير!A10 -> عبدالحي عبدالرحمن ودصالح | B10: =فبراير!B10 -> مأهول | C10: =فبراير!C10 -> 114114215 | D10: 5000 | E10: =فبراير!E10 -> 0 | F10: =فبراير!F10 -> 0 | G10: 5000 | H10: =فبراير!AC10 -> 10000 | I10: =فبراير!AD10 -> 0 | J10: =ROUND((فبراير!AE10+فبراير!AF10)/100,0)*100 -> 8800 | K10: 18800 | L10: 5000 | M10: 0 | N10: 5000 | O10: 15000 | P10: 0 | Q10: 8800 | R10: 23800 | AB10: 0 | AC10: 15000 | AD10: 0 | AE10: 8800 | AF10: 11900 | AG10: 35700 | AH10: مفصول | AI10: =فبراير!AI10 -> سداد حتى نهاية ديسمبر 2025م.
A11: =فبراير!A11 -> فضل عبدالرحمن ودصالح | B11: =فبراير!B11 -> مأهول | C11: =فبراير!C11 -> 965527390 | D11: 5000 | E11: =فبراير!E11 -> 4 | F11: =فبراير!F11 -> 3 | G11: 9500 | H11: =فبراير!AC11 -> 10000 | I11: =فبراير!AD11 -> 9000 | J11: =ROUND((فبراير!AE11+فبراير!AF11)/100,0)*100 -> 16700 | K11: 35700 | L11: 5000 | M11: 4500 | N11: 9500 | O11: 15000 | P11: 13500 | Q11: 16700 | R11: 45200 | AB11: 0 | AC11: 15000 | AD11: 13500 | AE11: 16700 | AF11: 22600 | AG11: 67800 | AH11: مفصول | AI11: =فبراير!AI11 -> سداد حتى نهاية ديسمبر 2025م.
A12: =فبراير!A12 -> منزل المرحوم الزين ود صالح (العاقب) | B12: =فبراير!B12 -> مأهول | C12: =فبراير!C12 -> 917344140 | D12: 5000 | E12: =فبراير!E12 -> 1 | F12: =فبراير!F12 -> 0 | G12: 5000 | H12: =فبراير!AC12 -> 10000 | I12: =فبراير!AD12 -> 0 | J12: =ROUND((فبراير!AE12+فبراير!AF12)/100,0)*100 -> 8800 | K12: 18800 | L12: 5000 | M12: 0 | N12: 5000 | O12: 15000 | P12: 0 | Q12: 8800 | R12: 23800 | AB12: 0 | AC12: 15000 | AD12: 0 | AE12: 8800 | AF12: 11900 | AG12: 35700 | AH12: مفصول | AI12: =فبراير!AI12 -> سداد حتى نهاية ديسمبر 2025م.
A13: =فبراير!A13 -> مهدي الزين | B13: =فبراير!B13 -> مأهول | C13: =فبراير!C13 -> 913099777 | D13: 5000 | E13: =فبراير!E13 -> 2 | F13: =فبراير!F13 -> 0 | G13: 5000 | H13: =فبراير!AC13 -> 14000 | I13: =فبراير!AD13 -> -4000 | J13: =ROUND((فبراير!AE13+فبراير!AF13)/100,0)*100 -> 8800 | K13: 18800 | L13: 5000 | M13: 0 | N13: 5000 | O13: 19000 | P13: -4000 | Q13: 8800 | R13: 23800 | AB13: 0 | AC13: 19000 | AD13: -4000 | AE13: 8800 | AF13: 11900 | AG13: 35700 | AH13: مفصول | AI13: =فبراير!AI13 -> سداد حتى نهاية ديسمبر 2025م.
A14: =فبراير!A14 -> محمد السيد | B14: =فبراير!B14 -> مأهول | C14: =فبراير!C14 -> 917636525 | D14: 5000 | E14: =فبراير!E14 -> 1 | F14: =فبراير!F14 -> 0 | G14: 5000 | H14: =فبراير!AC14 -> 10000 | I14: =فبراير!AD14 -> 0 | J14: =ROUND((فبراير!AE14+فبراير!AF14)/100,0)*100 -> 8800 | K14: 18800 | L14: 5000 | M14: 0 | N14: 5000 | O14: 15000 | P14: 0 | Q14: 8800 | R14: 23800 | AB14: 0 | AC14: 15000 | AD14: 0 | AE14: 8800 | AF14: 11900 | AG14: 35700 | AH14: مفصول | AI14: =فبراير!AI14 -> سداد حتى نهاية ديسمبر 2025م.
A15: =فبراير!A15 -> هشام محمد السيد | B15: =فبراير!B15 -> مأهول | C15: =فبراير!C15 -> 915778117 | D15: 5000 | E15: =فبراير!E15 -> 4 | F15: =فبراير!F15 -> 5 | G15: 12500 | H15: =فبراير!AC15 -> 10000 | I15: =فبراير!AD15 -> 15000 | J15: =ROUND((فبراير!AE15+فبراير!AF15)/100,0)*100 -> 22000 | K15: 47000 | L15: 5000 | M15: 7500 | N15: 12500 | O15: 15000 | P15: 22500 | Q15: 22000 | R15: 59500 | AB15: 0 | AC15: 15000 | AD15: 22500 | AE15: 22000 | AF15: 29800 | AG15: 89300 | AH15: مفصول | AI15: =فبراير!AI15 -> سداد حتى نهاية ديسمبر 2025م.
A16: =فبراير!A16 -> عصام محمد السيد (أ) | B16: =فبراير!B16 -> مأهول | C16: =فبراير!C16 -> 915896866 | D16: 5000 | E16: =فبراير!E16 -> 1 | F16: =فبراير!F16 -> 0 | G16: 5000 | H16: =فبراير!AC16 -> 12000 | I16: =فبراير!AD16 -> -2000 | J16: =ROUND((فبراير!AE16+فبراير!AF16)/100,0)*100 -> 8800 | K16: 18800 | L16: 5000 | M16: 0 | N16: 5000 | O16: 17000 | P16: -2000 | Q16: 8800 | R16: 23800 | AB16: 0 | AC16: 17000 | AD16: -2000 | AE16: 8800 | AF16: 11900 | AG16: 35700 | AH16: مفصول | AI16: =فبراير!AI16 -> سداد حتى نهاية ديسمبر 2025م.
A17: =فبراير!A17 -> عبدالله الأنصاري | B17: =فبراير!B17 -> مغلق | C17: =فبراير!C17 -> 911101791 | D17: 0 | E17: =فبراير!E17 -> 2 | F17: =فبراير!F17 -> 0 | G17: 0 | H17: =فبراير!AC17 -> 0 | I17: =فبراير!AD17 -> 0 | J17: =ROUND((فبراير!AE17+فبراير!AF17)/100,0)*100 -> 0 | K17: 0 | L17: 0 | M17: 0 | N17: 0 | O17: 0 | P17: 0 | Q17: 0 | R17: 0 | AB17: 0 | AC17: 0 | AD17: 0 | AE17: 0 | AF17: 0 | AG17: 0 | AH17: تم السداد أو ليست عليه إلتزامات | AI17: =فبراير!AI17 -> سداد حتى نهاية ديسمبر 2025م.
A18: =فبراير!A18 -> عماد محمد سعيد | B18: =فبراير!B18 -> مأهول | C18: =فبراير!C18 -> 911113020 | D18: 5000 | E18: =فبراير!E18 -> 2 | F18: =فبراير!F18 -> 0 | G18: 5000 | H18: =فبراير!AC18 -> 16000 | I18: =فبراير!AD18 -> -6000 | J18: =ROUND((فبراير!AE18+فبراير!AF18)/100,0)*100 -> 8800 | K18: 18800 | L18: 5000 | M18: 0 | N18: 5000 | O18: 21000 | P18: -6000 | Q18: 8800 | R18: 23800 | AB18: 0 | AC18: 21000 | AD18: -6000 | AE18: 8800 | AF18: 11900 | AG18: 35700 | AH18: مفصول | AI18: =فبراير!AI18 -> سداد حتى نهاية ديسمبر 2025م.
A19: =فبراير!A19 -> ماهر محمد صالح | B19: =فبراير!B19 -> معفي | C19: =فبراير!C19 -> 962864495 | D19: 0 | E19: =فبراير!E19 -> 1 | F19: =فبراير!F19 -> 0 | G19: 0 | H19: =فبراير!AC19 -> 0 | I19: =فبراير!AD19 -> 0 | J19: =ROUND((فبراير!AE19+فبراير!AF19)/100,0)*100 -> 0 | K19: 0 | L19: 0 | M19: 0 | N19: 0 | O19: 0 | P19: 0 | Q19: 0 | R19: 0 | AB19: 0 | AC19: 0 | AD19: 0 | AE19: 0 | AF19: 0 | AG19: 0 | AH19: تم السداد أو ليست عليه إلتزامات | AI19: =فبراير!AI19 -> سداد حتى نهاية ديسمبر 2025م.
A20: =فبراير!A20 -> منزل المرحوم محمد عبدالله فيك الخير (صالح جرمور) | B20: =فبراير!B20 -> معفي | C20: =فبراير!C20 -> 915857673 | D20: 0 | E20: =فبراير!E20 -> 0 | F20: =فبراير!F20 -> 0 | G20: 0 | H20: =فبراير!AC20 -> 0 | I20: =فبراير!AD20 -> 0 | J20: =ROUND((فبراير!AE20+فبراير!AF20)/100,0)*100 -> 0 | K20: 0 | L20: 0 | M20: 0 | N20: 0 | O20: 0 | P20: 0 | Q20: 0 | R20: 0 | AB20: 0 | AC20: 0 | AD20: 0 | AE20: 0 | AF20: 0 | AG20: 0 | AH20: تم السداد أو ليست عليه إلتزامات | AI20: =فبراير!AI20 -> سداد حتى نهاية ديسمبر 2025م.
A21: =فبراير!A21 -> ناصر إدريس السيد (عماد إبراهيم السيد) | B21: =فبراير!B21 -> مأهول | C21: =فبراير!C21 -> 111914245 | D21: 5000 | E21: =فبراير!E21 -> 0 | F21: =فبراير!F21 -> 0 | G21: 5000 | H21: =فبراير!AC21 -> 10000 | I21: =فبراير!AD21 -> 0 | J21: =ROUND((فبراير!AE21+فبراير!AF21)/100,0)*100 -> 8800 | K21: 18800 | L21: 5000 | M21: 0 | N21: 5000 | O21: 15000 | P21: 0 | Q21: 8800 | R21: 23800 | AB21: 0 | AC21: 15000 | AD21: 0 | AE21: 8800 | AF21: 11900 | AG21: 35700 | AH21: مفصول | AI21: =فبراير!AI21 -> سداد حتى نهاية ديسمبر 2025م.
A22: =فبراير!A22 -> محمدعلي الفقير | B22: =فبراير!B22 -> مأهول | C22: =فبراير!C22 -> 910204066 | D22: 5000 | E22: =فبراير!E22 -> 3 | F22: =فبراير!F22 -> 0 | G22: 5000 | H22: =فبراير!AC22 -> 16000 | I22: =فبراير!AD22 -> -6000 | J22: =ROUND((فبراير!AE22+فبراير!AF22)/100,0)*100 -> 8800 | K22: 18800 | L22: 5000 | M22: 0 | N22: 5000 | O22: 21000 | P22: -6000 | Q22: 8800 | R22: 23800 | AB22: 0 | AC22: 21000 | AD22: -6000 | AE22: 8800 | AF22: 11900 | AG22: 35700 | AH22: مفصول | AI22: =فبراير!AI22 -> سداد حتى نهاية ديسمبر 2025م.
A23: =فبراير!A23 -> محمد محمدعلي الفقير | B23: =فبراير!B23 -> مأهول | C23: =فبراير!C23 -> 965199199 | D23: 5000 | E23: =فبراير!E23 -> 0 | F23: =فبراير!F23 -> 0 | G23: 5000 | H23: =فبراير!AC23 -> 10000 | I23: =فبراير!AD23 -> 0 | J23: =ROUND((فبراير!AE23+فبراير!AF23)/100,0)*100 -> 8800 | K23: 18800 | L23: 5000 | M23: 0 | N23: 5000 | O23: 15000 | P23: 0 | Q23: 8800 | R23: 23800 | AB23: 0 | AC23: 15000 | AD23: 0 | AE23: 8800 | AF23: 11900 | AG23: 35700 | AH23: مفصول | AI23: =فبراير!AI23 -> سداد حتى نهاية ديسمبر 2025م.
A24: =فبراير!A24 -> طه محمدعلي الفقير | B24: =فبراير!B24 -> مأهول | C24: =فبراير!C24 -> 112437426 | D24: 5000 | E24: =فبراير!E24 -> 3 | F24: =فبراير!F24 -> 0 | G24: 5000 | H24: =فبراير!AC24 -> 15000 | I24: =فبراير!AD24 -> -7000 | J24: =ROUND((فبراير!AE24+فبراير!AF24)/100,0)*100 -> 6300 | K24: 14300 | L24: 5000 | M24: 0 | N24: 5000 | O24: 20000 | P24: -7000 | Q24: 6300 | R24: 19300 | AB24: 0 | AC24: 20000 | AD24: -7000 | AE24: 6300 | AF24: 9700 | AG24: 29000 | AH24: مفصول | AI24: =فبراير!AI24 -> له (2000) جنيه، وسداد حتى نهاية ديسمبر 2025م.
A25: =فبراير!A25 -> عبدالله محمد حمد (أ) | B25: =فبراير!B25 -> مأهول | C25: =فبراير!C25 -> 118561564 | D25: 5000 | E25: =فبراير!E25 -> 0 | F25: =فبراير!F25 -> 0 | G25: 5000 | H25: =فبراير!AC25 -> 16000 | I25: =فبراير!AD25 -> -6000 | J25: =ROUND((فبراير!AE25+فبراير!AF25)/100,0)*100 -> 8800 | K25: 18800 | L25: 5000 | M25: 0 | N25: 5000 | O25: 21000 | P25: -6000 | Q25: 8800 | R25: 23800 | AB25: 0 | AC25: 21000 | AD25: -6000 | AE25: 8800 | AF25: 11900 | AG25: 35700 | AH25: مفصول | AI25: =فبراير!AI25 -> سداد حتى نهاية ديسمبر 2025م.
A26: =فبراير!A26 -> عبدالله محمد حمد (ب) | B26: =فبراير!B26 -> مأهول | C26: =فبراير!C26 -> 118561564 | D26: 5000 | E26: =فبراير!E26 -> 1 | F26: =فبراير!F26 -> 0 | G26: 5000 | H26: =فبراير!AC26 -> 16000 | I26: =فبراير!AD26 -> -6000 | J26: =ROUND((فبراير!AE26+فبراير!AF26)/100,0)*100 -> 8800 | K26: 18800 | L26: 5000 | M26: 0 | N26: 5000 | O26: 21000 | P26: -6000 | Q26: 8800 | R26: 23800 | AB26: 0 | AC26: 21000 | AD26: -6000 | AE26: 8800 | AF26: 11900 | AG26: 35700 | AH26: مفصول | AI26: =فبراير!AI26 -> سداد حتى نهاية ديسمبر 2025م.
A27: =فبراير!A27 -> محمد عبدالله محمد حمد (بابا) | B27: =فبراير!B27 -> مأهول | C27: =فبراير!C27 -> 118561564 | D27: 5000 | E27: =فبراير!E27 -> 0 | F27: =فبراير!F27 -> 0 | G27: 5000 | H27: =فبراير!AC27 -> 10000 | I27: =فبراير!AD27 -> 0 | J27: =ROUND((فبراير!AE27+فبراير!AF27)/100,0)*100 -> 8800 | K27: 18800 | L27: 5000 | M27: 0 | N27: 5000 | O27: 15000 | P27: 0 | Q27: 8800 | R27: 23800 | AB27: 0 | AC27: 15000 | AD27: 0 | AE27: 8800 | AF27: 11900 | AG27: 35700 | AH27: مفصول | AI27: =فبراير!AI27 -> سداد حتى نهاية ديسمبر 2025م.
A28: =فبراير!A28 -> منذر عبدالله محمد حمد | B28: =فبراير!B28 -> مأهول | C28: =فبراير!C28 -> 118561564 | D28: 5000 | E28: =فبراير!E28 -> 1 | F28: =فبراير!F28 -> 0 | G28: 5000 | H28: =فبراير!AC28 -> 12000 | I28: =فبراير!AD28 -> -2000 | J28: =ROUND((فبراير!AE28+فبراير!AF28)/100,0)*100 -> 8800 | K28: 18800 | L28: 5000 | M28: 0 | N28: 5000 | O28: 17000 | P28: -2000 | Q28: 8800 | R28: 23800 | AB28: 0 | AC28: 17000 | AD28: -2000 | AE28: 8800 | AF28: 11900 | AG28: 35700 | AH28: مفصول | AI28: =فبراير!AI28 -> سداد حتى نهاية ديسمبر 2025م.
A29: =فبراير!A29 -> الباقر عبدالله أنصار | B29: =فبراير!B29 -> مأهول | C29: =فبراير!C29 -> 0 | D29: 5000 | E29: =فبراير!E29 -> 0 | F29: =فبراير!F29 -> 0 | G29: 5000 | H29: =فبراير!AC29 -> 10000 | I29: =فبراير!AD29 -> 0 | J29: =ROUND((فبراير!AE29+فبراير!AF29)/100,0)*100 -> 8800 | K29: 18800 | L29: 5000 | M29: 0 | N29: 5000 | O29: 15000 | P29: 0 | Q29: 8800 | R29: 23800 | AB29: 0 | AC29: 15000 | AD29: 0 | AE29: 8800 | AF29: 11900 | AG29: 35700 | AH29: مفصول | AI29: =فبراير!AI29 -> سداد حتى نهاية ديسمبر 2025م.
A30: =فبراير!A30 -> خالد أحمد صالح ودصالح | B30: =فبراير!B30 -> جديد | C30: =فبراير!C30 -> 0 | D30: 0 | E30: =فبراير!E30 -> 0 | F30: =فبراير!F30 -> 0 | G30: 0 | H30: =فبراير!AC30 -> 0 | I30: =فبراير!AD30 -> 0 | J30: =ROUND((فبراير!AE30+فبراير!AF30)/100,0)*100 -> 0 | K30: 0 | L30: 0 | M30: 0 | N30: 0 | O30: 0 | P30: 0 | Q30: 0 | R30: 0 | AB30: 0 | AC30: 0 | AD30: 0 | AE30: 0 | AF30: 0 | AG30: 0 | AH30: تم السداد أو ليست عليه إلتزامات | AI30: =فبراير!AI30 -> 0
A31: =فبراير!A31 -> عبدالله صالح حامنتود | B31: =فبراير!B31 -> جديد | C31: =فبراير!C31 -> 0 | D31: 0 | E31: =فبراير!E31 -> 0 | F31: =فبراير!F31 -> 0 | G31: 0 | H31: =فبراير!AC31 -> 0 | I31: =فبراير!AD31 -> 0 | J31: =ROUND((فبراير!AE31+فبراير!AF31)/100,0)*100 -> 0 | K31: 0 | L31: 0 | M31: 0 | N31: 0 | O31: 0 | P31: 0 | Q31: 0 | R31: 0 | AB31: 0 | AC31: 0 | AD31: 0 | AE31: 0 | AF31: 0 | AG31: 0 | AH31: تم السداد أو ليست عليه إلتزامات | AI31: =فبراير!AI31 -> توصيل جديد
A32: =فبراير!A32 -> عبدالرحمن جمال عبدالرحمن | B32: =فبراير!B32 -> 0 | C32: =فبراير!C32 -> 0 | D32: 0 | E32: =فبراير!E32 -> 0 | F32: =فبراير!F32 -> 0 | G32: 0 | H32: =فبراير!AC32 -> 0 | I32: =فبراير!AD32 -> 0 | J32: =ROUND((فبراير!AE32+فبراير!AF32)/100,0)*100 -> 0 | K32: 0 | L32: 0 | M32: 0 | N32: 0 | O32: 0 | P32: 0 | Q32: 0 | R32: 0 | AB32: 0 | AC32: 0 | AD32: 0 | AE32: 0 | AF32: 0 | AG32: 0 | AH32: تم السداد أو ليست عليه إلتزامات | AI32: =فبراير!AI32 -> للمراجعة مع المتحصل
A33: =فبراير!A33 -> محمد صالح | B33: =فبراير!B33 -> 0 | C33: =فبراير!C33 -> 0 | D33: 0 | E33: =فبراير!E33 -> 0 | F33: =فبراير!F33 -> 0 | G33: 0 | H33: =فبراير!AC33 -> 0 | I33: =فبراير!AD33 -> 0 | J33: =ROUND((فبراير!AE33+فبراير!AF33)/100,0)*100 -> 0 | K33: 0 | L33: 0 | M33: 0 | N33: 0 | O33: 0 | P33: 0 | Q33: 0 | R33: 0 | AB33: 0 | AC33: 0 | AD33: 0 | AE33: 0 | AF33: 0 | AG33: 0 | AH33: تم السداد أو ليست عليه إلتزامات | AI33: =فبراير!AI33 -> للمراجعة مع المتحصل
A34: =فبراير!A34 -> أنور محي الدين (1) | B34: =فبراير!B34 -> 0 | C34: =فبراير!C34 -> 0 | D34: 0 | E34: =فبراير!E34 -> 0 | F34: =فبراير!F34 -> 0 | G34: 0 | H34: =فبراير!AC34 -> 0 | I34: =فبراير!AD34 -> 0 | J34: =ROUND((فبراير!AE34+فبراير!AF34)/100,0)*100 -> 0 | K34: 0 | L34: 0 | M34: 0 | N34: 0 | O34: 0 | P34: 0 | Q34: 0 | R34: 0 | AB34: 0 | AC34: 0 | AD34: 0 | AE34: 0 | AF34: 0 | AG34: 0 | AH34: تم السداد أو ليست عليه إلتزامات | AI34: =فبراير!AI34 -> للمراجعة مع المتحصل
A35: =فبراير!A35 -> أنور محي الدين (2) | B35: =فبراير!B35 -> 0 | C35: =فبراير!C35 -> 0 | D35: 0 | E35: =فبراير!E35 -> 0 | F35: =فبراير!F35 -> 0 | G35: 0 | H35: =فبراير!AC35 -> 0 | I35: =فبراير!AD35 -> 0 | J35: =ROUND((فبراير!AE35+فبراير!AF35)/100,0)*100 -> 0 | K35: 0 | L35: 0 | M35: 0 | N35: 0 | O35: 0 | P35: 0 | Q35: 0 | R35: 0 | AB35: 0 | AC35: 0 | AD35: 0 | AE35: 0 | AF35: =(IF(SUM(AC35:AE35)>0,IF(AB35<0,0,ROUND((SUM(AC35:AE35)/2)/100,0)*100),0)) -> 0 | AG35: 0 | AH35: تم السداد أو ليست عليه إلتزامات | AI35: =فبراير!AI35 -> للمراجعة مع المتحصل
A36: =فبراير!A36 -> أنور محي الدين (3) | B36: =فبراير!B36 -> 0 | C36: =فبراير!C36 -> 0 | D36: 0 | E36: =فبراير!E36 -> 0 | F36: =فبراير!F36 -> 0 | G36: 0 | H36: =فبراير!AC36 -> 0 | I36: =فبراير!AD36 -> 0 | J36: =ROUND((فبراير!AE36+فبراير!AF36)/100,0)*100 -> 0 | K36: 0 | L36: 0 | M36: 0 | N36: 0 | O36: 0 | P36: 0 | Q36: 0 | R36: 0 | AB36: 0 | AC36: 0 | AD36: 0 | AE36: 0 | AF36: 0 | AG36: 0 | AH36: تم السداد أو ليست عليه إلتزامات | AI36: =فبراير!AI36 -> للمراجعة مع المتحصل
A37: =فبراير!A37 -> جلال أنور | B37: =فبراير!B37 -> 0 | C37: =فبراير!C37 -> 0 | D37: 0 | E37: =فبراير!E37 -> 0 | F37: =فبراير!F37 -> 0 | G37: 0 | H37: =فبراير!AC37 -> 0 | I37: =فبراير!AD37 -> 0 | J37: =ROUND((فبراير!AE37+فبراير!AF37)/100,0)*100 -> 0 | K37: 0 | L37: 0 | M37: 0 | N37: 0 | O37: 0 | P37: 0 | Q37: 0 | R37: 0 | AB37: 0 | AC37: 0 | AD37: 0 | AE37: 0 | AF37: 0 | AG37: 0 | AH37: تم السداد أو ليست عليه إلتزامات | AI37: =فبراير!AI37 -> للمراجعة مع المتحصل
A38: =فبراير!A38 -> محسن فتحي | B38: =فبراير!B38 -> 0 | C38: =فبراير!C38 -> 0 | D38: 0 | E38: =فبراير!E38 -> 0 | F38: =فبراير!F38 -> 0 | G38: 0 | H38: =فبراير!AC38 -> 0 | I38: =فبراير!AD38 -> 0 | J38: =ROUND((فبراير!AE38+فبراير!AF38)/100,0)*100 -> 0 | K38: 0 | L38: 0 | M38: 0 | N38: 0 | O38: 0 | P38: 0 | Q38: 0 | R38: 0 | AB38: 0 | AC38: 0 | AD38: 0 | AE38: 0 | AF38: 0 | AG38: 0 | AH38: تم السداد أو ليست عليه إلتزامات | AI38: =فبراير!AI38 -> للمراجعة مع المتحصل
A39: =فبراير!A39 -> معتز صالح | B39: =فبراير!B39 -> 0 | C39: =فبراير!C39 -> 0 | D39: 0 | E39: =فبراير!E39 -> 0 | F39: =فبراير!F39 -> 0 | G39: 0 | H39: =فبراير!AC39 -> 0 | I39: =فبراير!AD39 -> 0 | J39: =ROUND((فبراير!AE39+فبراير!AF39)/100,0)*100 -> 0 | K39: 0 | L39: 0 | M39: 0 | N39: 0 | O39: 0 | P39: 0 | Q39: 0 | R39: 0 | AB39: 0 | AC39: 0 | AD39: 0 | AE39: 0 | AF39: 0 | AG39: 0 | AH39: تم السداد أو ليست عليه إلتزامات | AI39: =فبراير!AI39 -> للمراجعة مع المتحصل
A40: =فبراير!A40 -> صالح النور | B40: =فبراير!B40 -> 0 | C40: =فبراير!C40 -> 0 | D40: 0 | E40: =فبراير!E40 -> 1 | F40: =فبراير!F40 -> 0 | G40: 0 | H40: =فبراير!AC40 -> 0 | I40: =فبراير!AD40 -> 0 | J40: =ROUND((فبراير!AE40+فبراير!AF40)/100,0)*100 -> 0 | K40: 0 | L40: 0 | M40: 0 | N40: 0 | O40: 0 | P40: 0 | Q40: 0 | R40: 0 | AB40: 0 | AC40: 0 | AD40: 0 | AE40: 0 | AF40: 0 | AG40: 0 | AH40: تم السداد أو ليست عليه إلتزامات | AI40: =فبراير!AI40 -> للمراجعة مع المتحصل
A41: =فبراير!A41 -> محمد إدريس | B41: =فبراير!B41 -> 0 | C41: =فبراير!C41 -> 0 | D41: 0 | E41: =فبراير!E41 -> 0 | F41: =فبراير!F41 -> 0 | G41: 0 | H41: =فبراير!AC41 -> 0 | I41: =فبراير!AD41 -> 0 | J41: =ROUND((فبراير!AE41+فبراير!AF41)/100,0)*100 -> 0 | K41: 0 | L41: 0 | M41: 0 | N41: 0 | O41: 0 | P41: 0 | Q41: 0 | R41: 0 | AB41: 0 | AC41: 0 | AD41: 0 | AE41: 0 | AF41: 0 | AG41: 0 | AH41: تم السداد أو ليست عليه إلتزامات | AI41: =فبراير!AI41 -> للمراجعة مع المتحصل
A42: =فبراير!A42 -> عمر محمد السيد | B42: =فبراير!B42 -> 0 | C42: =فبراير!C42 -> 0 | D42: 0 | E42: =فبراير!E42 -> 3 | F42: =فبراير!F42 -> 0 | G42: 0 | H42: =فبراير!AC42 -> 0 | I42: =فبراير!AD42 -> 0 | J42: =ROUND((فبراير!AE42+فبراير!AF42)/100,0)*100 -> 0 | K42: 0 | L42: 0 | M42: 0 | N42: 0 | O42: 0 | P42: 0 | Q42: 0 | R42: 0 | AB42: 0 | AC42: 0 | AD42: 0 | AE42: 0 | AF42: 0 | AG42: 0 | AH42: تم السداد أو ليست عليه إلتزامات | AI42: =فبراير!AI42 -> للمراجعة مع المتحصل
A43: =فبراير!A43 -> منزل المرحوم إدريس السيد | B43: =فبراير!B43 -> 0 | C43: =فبراير!C43 -> 0 | D43: 0 | E43: =فبراير!E43 -> 0 | F43: =فبراير!F43 -> 0 | G43: 0 | H43: =فبراير!AC43 -> 0 | I43: =فبراير!AD43 -> 0 | J43: =ROUND((فبراير!AE43+فبراير!AF43)/100,0)*100 -> 0 | K43: 0 | L43: 0 | M43: 0 | N43: 0 | O43: 0 | P43: 0 | Q43: 0 | R43: 0 | AB43: 0 | AC43: 0 | AD43: 0 | AE43: 0 | AF43: 0 | AG43: 0 | AH43: تم السداد أو ليست عليه إلتزامات | AI43: =فبراير!AI43 -> للمراجعة مع المتحصل
A44: =فبراير!A44 -> صفوان مهدي الزين | B44: =فبراير!B44 -> 0 | C44: =فبراير!C44 -> 0 | D44: 0 | E44: =فبراير!E44 -> 4 | F44: =فبراير!F44 -> 6 | G44: 9000 | H44: =فبراير!AC44 -> 0 | I44: =فبراير!AD44 -> 54600 | J44: =ROUND((فبراير!AE44+فبراير!AF44)/100,0)*100 -> 61500 | K44: 116100 | L44: 0 | M44: 9000 | N44: 9000 | O44: 0 | P44: 63600 | Q44: 61500 | R44: 125100 | AB44: 0 | AC44: 0 | AD44: 63600 | AE44: 61500 | AF44: 62600 | AG44: 187700 | AH44: مفصول | AI44: =فبراير!AI44 -> للمراجعة مع المتحصل
A45: =فبراير!A45 -> أحمد صالح | B45: =فبراير!B45 -> 0 | C45: =فبراير!C45 -> 0 | D45: 0 | E45: =فبراير!E45 -> 2 | F45: =فبراير!F45 -> 0 | G45: 0 | H45: =فبراير!AC45 -> 0 | I45: =فبراير!AD45 -> 0 | J45: =ROUND((فبراير!AE45+فبراير!AF45)/100,0)*100 -> 0 | K45: 0 | L45: 0 | M45: 0 | N45: 0 | O45: 0 | P45: 0 | Q45: 0 | R45: 0 | AB45: 0 | AC45: 0 | AD45: 0 | AE45: 0 | AF45: 0 | AG45: 0 | AH45: تم السداد أو ليست عليه إلتزامات | AI45: =فبراير!AI45 -> للمراجعة مع المتحصل
A46: =فبراير!A46 -> محجوب محمد صالح | B46: =فبراير!B46 -> 0 | C46: =فبراير!C46 -> 0 | D46: 0 | E46: =فبراير!E46 -> 3 | F46: =فبراير!F46 -> 0 | G46: 0 | H46: =فبراير!AC46 -> 0 | I46: =فبراير!AD46 -> 0 | J46: =ROUND((فبراير!AE46+فبراير!AF46)/100,0)*100 -> 0 | K46: 0 | L46: 0 | M46: 0 | N46: 0 | O46: 0 | P46: 0 | Q46: 0 | R46: 0 | AB46: 0 | AC46: 0 | AD46: 0 | AE46: 0 | AF46: 0 | AG46: 0 | AH46: تم السداد أو ليست عليه إلتزامات | AI46: =فبراير!AI46 -> للمراجعة مع المتحصل
A47: =فبراير!A47 -> عادل عبدالله | B47: =فبراير!B47 -> 0 | C47: =فبراير!C47 -> 0 | D47: 0 | E47: =فبراير!E47 -> 11 | F47: =فبراير!F47 -> 0 | G47: 0 | H47: =فبراير!AC47 -> 0 | I47: =فبراير!AD47 -> 0 | J47: =ROUND((فبراير!AE47+فبراير!AF47)/100,0)*100 -> 0 | K47: 0 | L47: 0 | M47: 0 | N47: 0 | O47: 0 | P47: 0 | Q47: 0 | R47: 0 | AB47: 0 | AC47: 0 | AD47: 0 | AE47: 0 | AF47: 0 | AG47: 0 | AH47: تم السداد أو ليست عليه إلتزامات | AI47: =فبراير!AI47 -> للمراجعة مع المتحصل
A48: =فبراير!A48 -> حسن الزين ودصالح | B48: =فبراير!B48 -> 0 | C48: =فبراير!C48 -> 0 | D48: 0 | E48: =فبراير!E48 -> 2 | F48: =فبراير!F48 -> 0 | G48: 0 | H48: =فبراير!AC48 -> 0 | I48: =فبراير!AD48 -> 0 | J48: =ROUND((فبراير!AE48+فبراير!AF48)/100,0)*100 -> 0 | K48: 0 | L48: 0 | M48: 0 | N48: 0 | O48: 0 | P48: 0 | Q48: 0 | R48: 0 | AB48: 0 | AC48: 0 | AD48: 0 | AE48: 0 | AF48: 0 | AG48: 0 | AH48: تم السداد أو ليست عليه إلتزامات | AI48: =فبراير!AI48 -> للمراجعة مع المتحصل
A49: =فبراير!A49 -> أحمد محجوب | B49: =فبراير!B49 -> 0 | C49: =فبراير!C49 -> 0 | D49: 0 | E49: =فبراير!E49 -> 1 | F49: =فبراير!F49 -> 0 | G49: 0 | H49: =فبراير!AC49 -> 0 | I49: =فبراير!AD49 -> 0 | J49: =ROUND((فبراير!AE49+فبراير!AF49)/100,0)*100 -> 0 | K49: 0 | L49: 0 | M49: 0 | N49: 0 | O49: 0 | P49: 0 | Q49: 0 | R49: 0 | AB49: 0 | AC49: 0 | AD49: 0 | AE49: 0 | AF49: 0 | AG49: 0 | AH49: تم السداد أو ليست عليه إلتزامات | AI49: =فبراير!AI49 -> للمراجعة مع المتحصل
A50: =فبراير!A50 -> راشد ودحجه | B50: =فبراير!B50 -> 0 | C50: =فبراير!C50 -> 0 | D50: 0 | E50: =فبراير!E50 -> 0 | F50: =فبراير!F50 -> 0 | G50: 0 | H50: =فبراير!AC50 -> 0 | I50: =فبراير!AD50 -> 0 | J50: =ROUND((فبراير!AE50+فبراير!AF50)/100,0)*100 -> 0 | K50: 0 | L50: 0 | M50: 0 | N50: 0 | O50: 0 | P50: 0 | Q50: 0 | R50: 0 | AB50: 0 | AC50: 0 | AD50: 0 | AE50: 0 | AF50: 0 | AG50: 0 | AH50: تم السداد أو ليست عليه إلتزامات | AI50: =فبراير!AI50 -> للمراجعة مع المتحصل
A51: =فبراير!A51 -> محمد صلاح | B51: =فبراير!B51 -> 0 | C51: =فبراير!C51 -> 0 | D51: 0 | E51: =فبراير!E51 -> 0 | F51: =فبراير!F51 -> 0 | G51: 0 | H51: =فبراير!AC51 -> 0 | I51: =فبراير!AD51 -> 0 | J51: =ROUND((فبراير!AE51+فبراير!AF51)/100,0)*100 -> 0 | K51: 0 | L51: 0 | M51: 0 | N51: 0 | O51: 0 | P51: 0 | Q51: 0 | R51: 0 | AB51: 0 | AC51: 0 | AD51: 0 | AE51: 0 | AF51: 0 | AG51: 0 | AH51: تم السداد أو ليست عليه إلتزامات | AI51: =فبراير!AI51 -> للمراجعة مع المتحصل
A52: =فبراير!A52 -> الفاضل محمدعلي | B52: =فبراير!B52 -> 0 | C52: =فبراير!C52 -> 0 | D52: 0 | E52: =فبراير!E52 -> 0 | F52: =فبراير!F52 -> 0 | G52: 0 | H52: =فبراير!AC52 -> 0 | I52: =فبراير!AD52 -> 0 | J52: =ROUND((فبراير!AE52+فبراير!AF52)/100,0)*100 -> 0 | K52: 0 | L52: 0 | M52: 0 | N52: 0 | O52: 0 | P52: 0 | Q52: 0 | R52: 0 | AB52: 0 | AC52: 0 | AD52: 0 | AE52: 0 | AF52: 0 | AG52: 0 | AH52: تم السداد أو ليست عليه إلتزامات | AI52: =فبراير!AI52 -> للمراجعة مع المتحصل | AK52: الإجمالي | AM52: =SUM(AM3:AM51) -> 0
A53: =فبراير!A53 -> سعاد ودحجه | B53: =فبراير!B53 -> 0 | C53: =فبراير!C53 -> 0 | D53: 0 | E53: =فبراير!E53 -> 2 | F53: =فبراير!F53 -> 0 | G53: 0 | H53: =فبراير!AC53 -> 0 | I53: =فبراير!AD53 -> 0 | J53: =ROUND((فبراير!AE53+فبراير!AF53)/100,0)*100 -> 0 | K53: 0 | L53: 0 | M53: 0 | N53: 0 | O53: 0 | P53: 0 | Q53: 0 | R53: 0 | AB53: 0 | AC53: 0 | AD53: 0 | AE53: 0 | AF53: 0 | AG53: 0 | AH53: تم السداد أو ليست عليه إلتزامات | AI53: =فبراير!AI53 -> للمراجعة مع المتحصل
A54: =فبراير!A54 -> أحمد الفقير | B54: =فبراير!B54 -> 0 | C54: =فبراير!C54 -> 0 | D54: 0 | E54: =فبراير!E54 -> 2 | F54: =فبراير!F54 -> 0 | G54: 0 | H54: =فبراير!AC54 -> 0 | I54: =فبراير!AD54 -> 0 | J54: =ROUND((فبراير!AE54+فبراير!AF54)/100,0)*100 -> 0 | K54: 0 | L54: 0 | M54: 0 | N54: 0 | O54: 0 | P54: 0 | Q54: 0 | R54: 0 | AB54: 0 | AC54: 0 | AD54: 0 | AE54: 0 | AF54: 0 | AG54: 0 | AH54: تم السداد أو ليست عليه إلتزامات | AI54: =فبراير!AI54 -> للمراجعة مع المتحصل
A55: =فبراير!A55 -> عبدالقادر خالد محمدعلي الفقير | B55: =فبراير!B55 -> 0 | C55: =فبراير!C55 -> 0 | D55: 0 | E55: =فبراير!E55 -> 3 | F55: =فبراير!F55 -> 0 | G55: 0 | H55: =فبراير!AC55 -> 0 | I55: =فبراير!AD55 -> 0 | J55: =ROUND((فبراير!AE55+فبراير!AF55)/100,0)*100 -> 0 | K55: 0 | L55: 0 | M55: 0 | N55: 0 | O55: 0 | P55: 0 | Q55: 0 | R55: 0 | AB55: 0 | AC55: 0 | AD55: 0 | AE55: 0 | AF55: 0 | AG55: 0 | AH55: تم السداد أو ليست عليه إلتزامات | AI55: =فبراير!AI55 -> للمراجعة مع المتحصل
A56: =فبراير!A56 -> وليد الفقير | B56: =فبراير!B56 -> 0 | C56: =فبراير!C56 -> 0 | D56: 0 | E56: =فبراير!E56 -> 0 | F56: =فبراير!F56 -> 0 | G56: 0 | H56: =فبراير!AC56 -> 0 | I56: =فبراير!AD56 -> 0 | J56: =ROUND((فبراير!AE56+فبراير!AF56)/100,0)*100 -> 0 | K56: 0 | L56: 0 | M56: 0 | N56: 0 | O56: 0 | P56: 0 | Q56: 0 | R56: 0 | AB56: 0 | AC56: 0 | AD56: 0 | AE56: 0 | AF56: 0 | AG56: 0 | AH56: تم السداد أو ليست عليه إلتزامات | AI56: =فبراير!AI56 -> للمراجعة مع المتحصل
A57: =فبراير!A57 -> خالد محمدعلي الفقير | B57: =فبراير!B57 -> 0 | C57: =فبراير!C57 -> 0 | D57: 0 | E57: =فبراير!E57 -> 3 | F57: =فبراير!F57 -> 0 | G57: 0 | H57: =فبراير!AC57 -> 0 | I57: =فبراير!AD57 -> 0 | J57: =ROUND((فبراير!AE57+فبراير!AF57)/100,0)*100 -> 0 | K57: 0 | L57: 0 | M57: 0 | N57: 0 | O57: 0 | P57: 0 | Q57: 0 | R57: 0 | AB57: 0 | AC57: 0 | AD57: 0 | AE57: 0 | AF57: 0 | AG57: 0 | AH57: تم السداد أو ليست عليه إلتزامات | AI57: =فبراير!AI57 -> للمراجعة مع المتحصل
A58: =فبراير!A58 -> مصعب خالد | B58: =فبراير!B58 -> 0 | C58: =فبراير!C58 -> 0 | D58: 0 | E58: =فبراير!E58 -> 4 | F58: =فبراير!F58 -> 10 | G58: 15000 | H58: =فبراير!AC58 -> 0 | I58: =فبراير!AD58 -> 91000 | J58: =ROUND((فبراير!AE58+فبراير!AF58)/100,0)*100 -> 102500 | K58: 193500 | L58: 0 | M58: 15000 | N58: 15000 | O58: 0 | P58: 106000 | Q58: 102500 | R58: 208500 | AB58: 0 | AC58: 0 | AD58: 106000 | AE58: 102500 | AF58: 104300 | AG58: 312800 | AH58: مفصول | AI58: =فبراير!AI58 -> للمراجعة مع المتحصل
A59: =فبراير!A59 -> عماد إبراهيم السيد | B59: =فبراير!B59 -> 0 | C59: =فبراير!C59 -> 0 | D59: 0 | E59: =فبراير!E59 -> 1 | F59: =فبراير!F59 -> 0 | G59: 0 | H59: =فبراير!AC59 -> 0 | I59: =فبراير!AD59 -> 0 | J59: =ROUND((فبراير!AE59+فبراير!AF59)/100,0)*100 -> 0 | K59: 0 | L59: 0 | M59: 0 | N59: 0 | O59: 0 | P59: 0 | Q59: 0 | R59: 0 | AB59: 0 | AC59: 0 | AD59: 0 | AE59: 0 | AF59: 0 | AG59: 0 | AH59: تم السداد أو ليست عليه إلتزامات | AI59: =فبراير!AI59 -> للمراجعة مع المتحصل
A60: =فبراير!A60 -> العاقب الزين | B60: =فبراير!B60 -> مأهول | C60: =فبراير!C60 -> 0 | D60: 5000 | E60: =فبراير!E60 -> 0 | F60: =فبراير!F60 -> 0 | G60: 5000 | H60: =فبراير!AC60 -> 35000 | I60: =فبراير!AD60 -> 0 | J60: =ROUND((فبراير!AE60+فبراير!AF60)/100,0)*100 -> 40000 | K60: 75000 | L60: 5000 | M60: 0 | N60: 5000 | O60: 40000 | P60: 0 | Q60: 40000 | R60: 80000 | AB60: 0 | AC60: 40000 | AD60: 0 | AE60: 40000 | AF60: 40000 | AG60: 120000 | AH60: مفصول | AI60: =فبراير!AI60 -> للمراجعة مع المتحصل
A61: =فبراير!A61 -> 0 | B61: =فبراير!B61 -> 0 | C61: =فبراير!C61 -> 0 | D61: 0 | E61: =فبراير!E61 -> 0 | F61: =فبراير!F61 -> 0 | G61: 0 | H61: =فبراير!AC61 -> 0 | I61: =فبراير!AD61 -> 0 | J61: =ROUND((فبراير!AE61+فبراير!AF61)/100,0)*100 -> 0 | K61: 0 | L61: 0 | M61: 0 | N61: 0 | O61: 0 | P61: 0 | Q61: 0 | R61: 0 | AB61: 0 | AC61: 0 | AD61: 0 | AE61: 0 | AF61: 0 | AG61: 0 | AH61: تم السداد أو ليست عليه إلتزامات | AI61: =فبراير!AI61 -> 0
A62: =فبراير!A62 -> 0 | B62: =فبراير!B62 -> 0 | C62: =فبراير!C62 -> 0 | D62: 0 | E62: =فبراير!E62 -> 0 | F62: =فبراير!F62 -> 0 | G62: 0 | H62: =فبراير!AC62 -> 0 | I62: =فبراير!AD62 -> 0 | J62: =ROUND((فبراير!AE62+فبراير!AF62)/100,0)*100 -> 0 | K62: 0 | L62: 0 | M62: 0 | N62: 0 | O62: 0 | P62: 0 | Q62: 0 | R62: 0 | AB62: 0 | AC62: 0 | AD62: 0 | AE62: 0 | AF62: 0 | AG62: 0 | AH62: تم السداد أو ليست عليه إلتزامات | AI62: =فبراير!AI62 -> 0
A63: =فبراير!A63 -> 0 | B63: =فبراير!B63 -> 0 | C63: =فبراير!C63 -> 0 | D63: 0 | E63: =فبراير!E63 -> 0 | F63: =فبراير!F63 -> 0 | G63: 0 | H63: =فبراير!AC63 -> 0 | I63: =فبراير!AD63 -> 0 | J63: =ROUND((فبراير!AE63+فبراير!AF63)/100,0)*100 -> 0 | K63: 0 | L63: 0 | M63: 0 | N63: 0 | O63: 0 | P63: 0 | Q63: 0 | R63: 0 | AB63: 0 | AC63: 0 | AD63: 0 | AE63: 0 | AF63: 0 | AG63: 0 | AH63: تم السداد أو ليست عليه إلتزامات | AI63: =فبراير!AI63 -> 0
A64: =فبراير!A64 -> 0 | B64: =فبراير!B64 -> 0 | C64: =فبراير!C64 -> 0 | D64: 0 | E64: =فبراير!E64 -> 0 | F64: =فبراير!F64 -> 0 | G64: 0 | H64: =فبراير!AC64 -> 0 | I64: =فبراير!AD64 -> 0 | J64: =ROUND((فبراير!AE64+فبراير!AF64)/100,0)*100 -> 0 | K64: 0 | L64: 0 | M64: 0 | N64: 0 | O64: 0 | P64: 0 | Q64: 0 | R64: 0 | AB64: 0 | AC64: 0 | AD64: 0 | AE64: 0 | AF64: 0 | AG64: 0 | AH64: تم السداد أو ليست عليه إلتزامات | AI64: =فبراير!AI64 -> 0
A65: =فبراير!A65 -> 0 | B65: =فبراير!B65 -> 0 | C65: =فبراير!C65 -> 0 | D65: 0 | E65: =فبراير!E65 -> 0 | F65: =فبراير!F65 -> 0 | G65: 0 | H65: =فبراير!AC65 -> 0 | I65: =فبراير!AD65 -> 0 | J65: =ROUND((فبراير!AE65+فبراير!AF65)/100,0)*100 -> 0 | K65: 0 | L65: 0 | M65: 0 | N65: 0 | O65: 0 | P65: 0 | Q65: 0 | R65: 0 | AB65: 0 | AC65: 0 | AD65: 0 | AE65: 0 | AF65: 0 | AG65: 0 | AH65: تم السداد أو ليست عليه إلتزامات | AI65: =فبراير!AI65 -> 0
